Workbook

Sheet Data pompa (hidden)
B2: 1 | C2: 2 | D2: 3 | E2: 4 | F2: 5 | G2: 6 | H2: 7 | I2: 8 | J2: 9 | K2: 10 | L2: 11 | M2: 12 | N2: 13 | O2: 14 | P2: 15 | Q2: 16 | R2: 17 | S2: 18
B3: Location | C3: Kapasitas Design Regasifikasi (MMSCFD) | D3: Sendout Presssure (barg) | E3: Kapasitas Tangki (m3) | F3: Jumlah Tangki | I3: Pump Capacity (m3/h) | J3: Pump Rated Capacity (m3/h) | K3: Inlet Pressure (barg) | L3: Outlet Pressure (barg) | M3: Temperature (oC) | N3: Density (kg/m3) | O3: Dynamic viscosity (cP) | P3: Vapor Pressure (bara) | Q3: Suction Size | R3: Discharge Size | S3: Low Liquid Level (mm) | T3: Remarks
B5: Mobile PP Wangi-Wangi | C5: 0.96 | D5: 50 | E5: 120 | F5: 4 | G5: =C5*46/24 -> 1.84 | I5: 7.34 | J5: =I5*1.1 -> 8.074 | K5: 2 | L5: 52 | M5: -158.83 | N5: 433.1 | O5: 0.1174 | P5: =0.217+1.01 -> 1.227 | Q5: 3 | R5: 3 | S5: =VLOOKUP(E5,'Low liquid level'!$J$6:$P$13,7,FALSE) -> 350
B6: Mobile PP Kolaka Utara | C6: 0.96 | D6: 50 | E6: 450 | F6: 1 | G6: 1.84 | I6: 1.85 | J6: =I6*1.1 -> 2.035 | K6: 2 | L6: 52 | M6: -158.83 | N6: 433.1 | O6: 0.1174 | P6: =0.217+1.01 -> 1.227 | Q6: 2 | R6: 2 | S6: =VLOOKUP(E6,'Low liquid level'!$J$6:$P$13,7,FALSE) -> 450
B7: Rote | C7: 0.96 | D7: 8 | E7: 350 | F7: 1 | G7: =C7*46/24 -> 1.84 | I7: 8.08 | J7: 8.888 | K7: 2 | L7: 10 | M7: -158.83 | N7: 433.1 | O7: 0.1174 | P7: =0.217+1.01 -> 1.227 | Q7: 3 | R7: 3 | S7: =VLOOKUP(E7,'Low liquid level'!$J$6:$P$13,7,FALSE) -> 400
B8: Malinau | C8: 1.152 | D8: 8 | E8: 180 | F8: 1 | G8: 2.208 | I8: 2.22 | J8: 2.442 | K8: 2 | L8: 10 | M8: -158.85 | N8: 433.2 | O8: 0.1174 | P8: =0.2151+1.01 -> 1.2251 | Q8: 2 | R8: 2 | S8: =VLOOKUP(E8,'Low liquid level'!$J$6:$P$13,7,FALSE) -> 400
B9: Selayar | C9: 1.92 | D9: 8 | E9: 350 & 450 | F9: 2 | G9: 3.68 | I9: 3.7 | J9: 4.07 | K9: 2 | L9: 10 | M9: -158.88 | N9: 433.2 | O9: 0.1175 | P9: =0.2122+1.01 -> 1.2222 | Q9: 2 | R9: 2 | S9: 400
B10: Mobile PP Bombana | C10: 1.92 | D10: 50 | E10: 350 & 450 | F10: 2 | G10: 3.68 | I10: 6.46 | J10: 7.106 | K10: 2 | L10: 52 | M10: -158.88 | N10: 433.2 | O10: 0.1175 | P10: 1.2222 | Q10: 3 | R10: 2 | S10: 400 | T10: Taking the lowest
B11: Waingapu | C11: 1.92 | D11: 8 | E11: 600 | F11: 1 | G11: 3.68 | I11: 3.7 | J11: 4.07 | K11: 2 | L11: 10 | M11: -158.88 | N11: 433.2 | O11: 0.1175 | P11: 1.2222 | Q11: 2 | R11: 2 | S11: =VLOOKUP(E11,'Low liquid level'!$J$6:$P$13,7,FALSE) -> 400 | T11: Taking the lowest
B12: Alor | C12: 1.92 | D12: 8 | E12: 350 | F12: 2 | G12: 3.68 | I12: 3.68 | J12: 4.048 | K12: 2 | L12: 10 | M12: -158.88 | N12: 433.2 | O12: 0.1175 | P12: 1.2222 | Q12: 2 | R12: 2 | S12: =VLOOKUP(E12,'Low liquid level'!$J$6:$P$13,7,FALSE) -> 400
B13: Tahuna | C13: 1.92 | D13: 8 | E13: 600 | F13: 1 | G13: 3.68 | I13: 3.7 | J13: 4.07 | K13: 2 | L13: 10 | M13: -158.88 | N13: 433.2 | O13: 0.1175 | P13: 1.2222 | Q13: 2 | R13: 2 | S13: =VLOOKUP(E13,'Low liquid level'!$J$6:$P$13,7,FALSE) -> 400
B14: Nunukan 2 | C14: 1.92 | D14: 8 | E14: 500 | F14: 2 | G14: 3.68 | I14: 3.7 | J14: 4.07 | K14: 2 | L14: 10 | M14: -158.88 | N14: 433.2 | O14: 0.1175 | P14: 1.2222 | Q14: z | R14: 2 | S14: =VLOOKUP(E14,'Low liquid level'!$J$6:$P$13,7,FALSE) -> 450
B15: Mobile PP Flores | C15: 3.84 | D15: 50 | E15: 600 | F15: 1 | G15: 7.36 | I15: 7.39 | J15: 8.129 | K15: 2 | L15: 52 | M15: -158.9 | N15: 433.4 | O15: 0.1176 | P15: =0.2094+1.01 -> 1.2194 | Q15: 3 | R15: 3 | S15: =VLOOKUP(E15,'Low liquid level'!$J$6:$P$13,7,FALSE) -> 400
B16: Bau-bau | C16: 5.76 | D16: 8 | E16: 450 | F16: 5 | G16: 11.04 | I16: 11.09 | J16: 12.199 | K16: 2 | L16: 10 | M16: -158.91 | N16: 433.3 | O16: 0.1176 | P16: =0.2094+1.01 -> 1.2194 | Q16: 3 | R16: 2 | S16: =VLOOKUP(E16,'Low liquid level'!$J$6:$P$13,7,FALSE) -> 450
B17: Maumere | C17: 7.68 | D17: 8 | E17: 350 | F17: 8 | G17: 14.72 | I17: 14.78 | J17: 16.258 | K17: 2 | L17: 10 | M17: -158.92 | N17: 433.3 | O17: 0.1176 | P17: =0.2084+1.01 -> 1.2184 | Q17: 3 | R17: 3 | S17: =VLOOKUP(E17,'Low liquid level'!$J$6:$P$13,7,FALSE) -> 400
B18: Kupang Peaker | C18: 7.68 | D18: 8 | E18: 350 | F18: 8 | G18: 14.72 | I18: 14.78 | J18: 16.258 | K18: 2 | L18: 10 | M18: -158.92 | N18: 433.3 | O18: 0.1176 | P18: =0.2084+1.01 -> 1.2184 | Q18: 3 | R18: 3 | S18: =VLOOKUP(E18,'Low liquid level'!$J$6:$P$13,7,FALSE) -> 400
B19: Sumbawa | C19: 9.6 | D19: 8 | E19: 350 | F19: 8 | G19: 18.4 | I19: 18.48 | J19: 20.328 | K19: 2 | L19: 10 | M19: -158.92 | N19: 433.3 | O19: 0.1176 | P19: =0.2084+1.01 -> 1.2184 | Q19: 4 | R19: 3 | S19: =VLOOKUP(E19,'Low liquid level'!$J$6:$P$13,7,FALSE) -> 400
B20: Bima | C20: 9.6 | D20: 8 | E20: 350 | F20: 8 | G20: 18.4 | I20: 18.48 | J20: 20.328 | K20: 2 | L20: 10 | M20: -158.92 | N20: 433.3 | O20: 0.1176 | P20: =0.2084+1.01 -> 1.2184 | Q20: 4 | R20: 3 | S20: =VLOOKUP(E20,'Low liquid level'!$J$6:$P$13,7,FALSE) -> 400
B21: Balongan | C21: 26 | D21: 42 | E21: 350 | F21: 20 | G21: 49.83333333 | I21: 12.81364026 | J21: =I21*1.1 -> 14.09500428 | K21: 1.99 | L21: 42 | M21: -159.98 | N21: 433.3 | O21: 0.1202 | P21: =0.152198221614014+1.01 -> 1.162198222 | Q21: 6 | R21: 4 | S21: =VLOOKUP(E21,'Low liquid level'!$J$6:$P$13,7,FALSE) -> 400
B22: Kalsel Peaker-1 (LP) | C22: 33.6 | D22: 50 | E22: 5400 | F22: 1 | G22: 64.4 | I22: 64.91 | J22: 71.401 | K22: 0.15 | L22: 3.45 | M22: -159.53 | N22: 434 | O22: 0.1190810296 | P22: =0.150034049481549+1.01 -> 1.160034049 | Q22: 8 | R22: 4 | S22: =VLOOKUP(E22,'Low liquid level'!$J$6:$P$13,7,FALSE) -> 900
B23: Kalsel Peaker-1 (HP) | C23: 33.6 | D23: 50 | I23: 64.93 | J23: 71.423 | K23: 2.9 | L23: 52 | M23: -158.8 | N23: 433.9 | O23: 0.08516 | P23: =2.878+1.01 -> 3.888 | Q23: 6 | R23: 4 | S23: 1000 | T23: Assumption
B24: Minahasa Peaker (LP) | C24: 36 | D24: 50 | E24: 10800 | F24: 1 | G24: 69 | I24: 69.57 | J24: 76.527 | K24: 0.15 | L24: 4.45 | M24: -159.54 | N24: 434 | O24: 0.1191 | P24: =0.1504+1.01 -> 1.1604 | Q24: 8 | R24: 6 | S24: =VLOOKUP(E24,'Low liquid level'!$J$6:$P$13,7,FALSE) -> 1200
B25: Minahasa Peaker (HP) | C25: 36 | D25: 50 | I25: 69.75 | J25: =I25*1.1 -> 76.725 | K25: 3.9 | L25: 52 | M25: -158.8 | N25: 432.9 | O25: 0.07928 | P25: 3.889 | Q25: 6 | R25: 6 | S25: 1000 | T25: Assumption
B26: Minahasa Peaker (reliq) | C26: 36 | D26: 50 | E26: 10800 | F26: 1 | I26: 69.33 | J26: =I26*1.1 -> 76.263 | K26: 0.15 | L26: 52 | M26: -159.54 | N26: 433.9 | O26: 0.1191 | P26: =0.1504+1.01 -> 1.1604 | Q26: 6 | R26: 6 | S26: =VLOOKUP(E26,'Low liquid level'!$J$6:$P$13,7,FALSE) -> 1200
B27: Kalsel Peaker-1 (reliq) | C27: 33.6 | D27: 50 | E27: 5400 | F27: 1 | I27: 64.93 | J27: =I27*1.1 -> 71.423 | K27: 0.15 | L27: 52 | M27: -159.54 | N27: 433.9 | O27: 0.1191 | P27: =0.1504+1.01 -> 1.1604 | Q27: 6 | R27: 4 | S27: =VLOOKUP(E27,'Low liquid level'!$J$6:$P$13,7,FALSE) -> 900

Sheet Low liquid level (hidden)
B2: Location | C2: Kapasitas Design Regasifikasi (MMSCFD) | D2: Kapasitas Tangki (m3) | E2: Jumlah Tangki | F2: Head Type | G2: OD | H2: L
B4: Selayar | C4: 1.92 | D4: 350 | E4: 1 | F4: Ellipsoidal | G4: =VLOOKUP(D4,$J$6:$L$13,2,FALSE) -> 4.5 | H4: =VLOOKUP(D4,$J$6:$L$13,3,FALSE) -> 35 | K4: Outside | M4: Inside | O4: Volume (m3) | P4: Fluid Length | Q4: Fluid Volume (m3)
D5: 450 | E5: 1 | F5: Ellipsoidal | G5: 5.2 | H5: 32 | K5: D (m) | L5: L (m) | M5: D (m) | N5: L (m)
B6: Mobile PP Wangi-Wangi | C6: 0.96 | D6: 120 | E6: 4 | F6: Ellipsoidal | G6: 3.8 | H6: 14.3 | J6: 120 | K6: 3.8 | L6: 14.3 | M6: =K6-0.2*2 -> 3.4 | N6: =L6-2*0.6 -> 13.1 | O6: 121.22 | P6: 350 | Q6: 6.49 | R6: =Q6/J6 -> 0.05408333333
B7: Mobile PP Sultra (Kendari) | C7: 12 | D7: 350 | E7: 14 | F7: Ellipsoidal | G7: 4.5 | H7: 35 | J7: 180 | K7: 4.2 | L7: 18.7 | M7: =K7-0.3*2 -> 3.6 | N7: =L7-2*0.6 -> 17.5 | O7: 180.6 | P7: 400 | Q7: 10.89 | R7: =Q7/J7 -> 0.0605
B8: Bau-bau | C8: 5.76 | D8: 450 | E8: 5 | F8: Ellipsoidal | G8: 5.2 | H8: 32 | J8: 350 | K8: 4.5 | L8: 35 | M8: 3.7 | N8: =L8-2*1.3 -> 32.4 | O8: 351.07 | P8: 400 | Q8: 20.47 | R8: 0.05848571429
B9: Mobile PP Bombana | C9: 1.92 | D9: 350 | E9: 1 | F9: Ellipsoidal | G9: 4.5 | H9: 35 | J9: 450 | K9: 5.2 | L9: 32 | M9: 4.4 | N9: =L9-2*1.3 -> 29.4 | O9: 450.85 | P9: 450 | Q9: 24.1 | R9: 0.05355555556
D10: 450 | E10: 1 | F10: Ellipsoidal | G10: 5.2 | H10: 32 | J10: 500 | K10: 5.15 | L10: 35.1 | M10: 4.4 | N10: =L10-2*1.2 -> 32.7 | O10: 501.03 | P10: 450 | Q10: 26.8 | R10: 0.0536
B11: Mobile PP Kolaka Utara | C11: 0.96 | D11: 450 | E11: 1 | F11: Ellipsoidal | G11: 5.2 | H11: 32 | J11: 600 | K11: 5.2 | L11: 42 | M11: 4.4 | N11: 39.24 | O11: 600 | P11: 400 | Q11: 32.15 | R11: 0.05358333333
B12: Sumbawa | C12: 9.6 | D12: 500 | E12: 5 | F12: Ellipsoidal | G12: 5.15 | H12: 35.1 | J12: 5400 | K12: 22 | L12: 22.5 | M12: 20 | N12: =L12-2*1 -> 20.5 | O12: 6440 | P12: 900 | Q12: 282 | R12: 0.05222222222
B13: Bima | C13: 9.6 | D13: 500 | E13: 5 | F13: Ellipsoidal | G13: 5.15 | H13: 35.1 | J13: 10800 | K13: 30 | L13: 28.66 | M13: 25.3 | N13: 24.4 | O13: 12266 | P13: 1200 | Q13: 603 | R13: 0.05583333333
B14: Waingapu | C14: 1.92 | D14: 500 | E14: 1 | F14: Ellipsoidal | G14: 5.15 | H14: 35.1
B15: Mobile PP Flores | C15: 3.84 | D15: 350 | E15: 3 | F15: Ellipsoidal | G15: 4.5 | H15: 35
B16: Maumere | C16: 7.68 | D16: 350 | E16: 8 | F16: Ellipsoidal | G16: 4.5 | H16: 35
B17: Alor | C17: 1.92 | D17: 350 | E17: 2 | F17: Ellipsoidal | G17: 4.5 | H17: 35
B18: Kupang Peaker | C18: 7.68 | D18: 350 | E18: 8 | F18: Ellipsoidal | G18: 4.5 | H18: 35
B19: Rote | C19: 0.96 | D19: 350 | E19: 1 | F19: Ellipsoidal | G19: 4.5 | H19: 35
B20: Kalsel Peaker-1 | C20: 33.6 | D20: 5400 | E20: 1 | F20: Ellipsoidal | G20: 22 | H20: 22.5
B21: Minahasa Peaker | C21: 36 | D21: 10800 | E21: 1 | F21: Ellipsoidal | G21: 30 | H21: 28.66
B22: Tahuna | C22: 1.92 | D22: 600 | E22: 1 | F22: Ellipsoidal | G22: 5.2 | H22: 42
B23: Nunukan 2 | C23: 1.92 | D23: 500 | E23: 2 | F23: Ellipsoidal | G23: 5.15 | H23: 35.1
B24: Malinau | C24: 1.152 | D24: 180 | E24: 1 | F24: Ellipsoidal | G24: 4.2 | H24: 18.7

Sheet Sheet1 (hidden)
D4: Suction | E4: Ball valve | F4: 2 | G4: For multiple tank
E5: Strainer | F5: 1
D7: Discharge | E7: Check valve | F7: 3
E8: Ball valve | F8: 5 | G8: 6 untuk discharge lebih besar sama dengan 3 in
E9: Orifice | F9: 1
E10: Control valve | F10: 1
D12: AAV | F12: 1

Sheet Wangi-wangi (hidden)
F1: PUMP SIZING
C5: Project: LNG Regasification in Central Region of Indonesia
C7: Equipment Design Group | E7: 1-2 | F7: MMSCFD
C8: Equipment Design | E8: 0.96 | F8: MMSCFD
C9: Tag No: | E9: MPW-G-001A/B
C10: Description: | E10: LNG Pump
C11: Location: | E11: Mobile PP Wangi-wangi | O11: Pipe roughness | P11: 0.05 | Q11: mm
P12: =P11/1000/3.28 -> 1.524390244e-05 | Q12: ft
C14: DATA | I14: RESULTS | O14: Mass flow | P14: =E15*E16/0.45 -> 7064.342222 | Q14: lb/hr
C15: Flow rate | E15: 7.34 | F15: m3/h | I15: Suction Hydraulic | O15: Rho | P15: =E16/16.02 -> 27.0349563 | Q15: lb/ft3
C16: Density | E16: =VLOOKUP(E11,'Data pompa'!$B$5:$R$24,13,FALSE) -> 433.1 | F16: kg/m3 | I16: Pipe ID | J16: =VLOOKUP(E28,'Pipe size sch 40'!$A$5:$C$27,3,FALSE)*25.4/1000 -> 0.077978 | K16: m
C17: Flow temperature | E17: =VLOOKUP(E11,'Data pompa'!$B$5:$R$24,12,FALSE) -> -158.83 | F17: deg C | I17: Velocity | J17: =E15/(PI()/4*J16^2)/3600 -> 0.4269327724 | K17: m/s | O17: Side Calculation (Suction)
C18: Viscocity | E18: =VLOOKUP(E11,'Data pompa'!$B$5:$R$24,14,FALSE) -> 0.1174 | F18: cP | I18: Velocity acceptance | J18: =IF(E28<=2,0.9,IF(OR(E28>=3,E28<=6),1.2,IF(OR(E28>=8,E28<=18),1.5,1.8))) -> 1.2 | K18: m/s | L18: (max) | O18: f tebakan | P18: 0.01877901005
E19: =E18*10^-3 -> 0.0001174 | F19: Nm2/s | I19: Reynold number | J19: =E16*J18*J16/E19 -> 345202.0968 | O19: f left | P19: =1/(P18)^0.5 -> 7.297324395
C20: Vapor pressure | E20: =VLOOKUP(E11,'Data pompa'!$B$5:$R$24,15,FALSE) -> 1.227 | F20: bara | I20: Pipe DP | J20: =P24 -> 0.009663955407 | K20: bar/100m | O20: f right | P20: =-2*LOG(P12/(3.7*J16*0.3048)+2.51/(J19*(P18)^0.5)) -> 7.290235547
C21: Pump efficiency | E21: 0.45 | I21: Pipe DP acceptance | J21: =IF(E28<=6,0.137,0.225) -> 0.137 | K21: bar/100m | O21: f left/f right | P21: =P19/P20 -> 1.000972376 | Q21: Goal seek
I22: Static head | J22: =E16*9.8*E26/10^5 -> 0.01485533 | K22: bar | O22: psi/100 ft | P22: =0.000336*P18*P14^2/(J16*1000/25.4)^5/P15 -> 0.04271081732
C23: SUCTION | I23: Pipe friction loss | J23: =J20*E27/100 -> 0.005798373244 | K23: bar | O23: psi/ft | P23: =P22/100 -> 0.0004271081732
C24: Pressure at Vessel (min) | E24: 2 | F24: barg | I24: Fitting friction loss | J24: =G46 -> 0.06179040063 | K24: bar | O24: bar/100 m | P24: =P23*100/14.5/0.3048 -> 0.009663955407
C25: Pressure at Vessel (max) | E25: 5 | F25: barg | I25: Suction Pressure | J25: =E24+J22-SUM(J23:J24) -> 1.947266556 | K25: barg
C26: Static head | E26: =VLOOKUP(E11,'Data pompa'!$B$5:$S$27,18,FALSE)/1000 -> 0.35 | F26: m | I26: Result | J26: =IF(AND(J17<J18,J20<J21),"OK","NOT OK") -> OK
C27: Length | E27: 60 | F27: m | G27: assumption | O27: Side Calculation (Discharge) | T27: Suction | V27: Discharge
C28: Pipe size | E28: =VLOOKUP(E11,'Data pompa'!$B$5:$R$24,16,FALSE) -> 3 | F28: in | I28: Discharge Hydraulic | O28: f tebakan | P28: 0.01799960853 | W28: < 49 barg | X28: > 49 barg
C29: Schedule | E29: 40 | I29: Pipe ID | J29: =VLOOKUP(E52,'Pipe size sch 40'!$A$5:$C$27,3,FALSE)*25.4/1000 -> 0.077978 | K29: m | O29: f left | P29: =1/(P28)^0.5 -> 7.453640978 | T29: Velocity | U29: Pressure | V29: Velocity | W29: Pressure | X29: Pressure
C30: Fittings | I30: Velocity | J30: =E15/(PI()/4*J16^2)/3600 -> 0.4269327724 | K30: m/s | O30: f right | P30: =-2*LOG(P12/(3.7*J29*0.3048)+2.51/(J32*(P28)^0.5)) -> 7.452628499 | S30: 0.5 | T30: 0.9 | U30: 0.137 | V30: 4.5 | W30: 0.343 | X30: 0.686
E31: Qty | F31: K | G31: DP | I31: Velocity acceptance | J31: =IF(E50<=18,4.5,6) -> 4.5 | K31: m/s | L31: (max) | O31: f left/f right | P31: =P29/P30 -> 1.000135855 | Q31: Goal seek | S31: 0.75 | T31: 0.9 | U31: 0.137 | V31: 4.5 | W31: 0.343 | X31: 0.686
C32: Elbow 90 LR | D32: =C32&$E$28 -> Elbow 90 LR3 | E32: 10 | F32: =VLOOKUP(D32,'K-value'!$D$48:$E$124,2,FALSE) -> 0.29 | G32: =E32*F32*$J$17^2/(2*9.8)*$E$16*9.8/10^5 -> 0.001144656485 | I32: Reynold number | J32: =E16*J31*J29/E19 -> 1294507.863 | O32: psi/100 ft | P32: =0.000336*P28*P14^2/(J29*1000/25.4)^5/P15 -> 0.04093815326 | S32: 1 | T32: 0.9 | U32: 0.137 | V32: 4.5 | W32: 0.343 | X32: 0.686
C33: Elbow 45 LR | D33: Elbow 45 LR3 | F33: =VLOOKUP(D33,'K-value'!$D$48:$E$124,2,FALSE) -> 0.29 | G33: 0 | I33: Pipe DP | J33: =P34 -> 0.009262863894 | K33: bar/100m | O33: psi/ft | P33: =P32/100 -> 0.0004093815326 | S33: 1.5 | T33: 0.9 | U33: 0.137 | V33: 4.5 | W33: 0.343 | X33: 0.686
C34: Tee thru | D34: Tee thru3 | F34: =VLOOKUP(D34,'K-value'!$D$48:$E$124,2,FALSE) -> 0.36 | G34: 0 | I34: Pipe DP acceptance | J34: =IF(E49<=49,0.343,0.686) -> 0.686 | K34: bar/100m | O34: bar/100 m | P34: =P33*100/14.5/0.3048 -> 0.009262863894 | S34: 2 | T34: 0.9 | U34: 0.137 | V34: 4.5 | W34: 0.343 | X34: 0.686
C35: Tee branch | D35: Tee branch3 | F35: =VLOOKUP(D35,'K-value'!$D$48:$E$124,2,FALSE) -> 1.08 | G35: 0 | I35: Static head | J35: =E15*9.8*E50/10^5 -> 0.00215796 | K35: bar | L35: note 1 | S35: 3 | T35: 1.2 | U35: 0.137 | V35: 4.5 | W35: 0.343 | X35: 0.686
C36: Ball valve | D36: Ball valve3 | E36: 2 | F36: =VLOOKUP(D36,'K-value'!$D$48:$E$124,2,FALSE) -> 0.05 | G36: 3.947091328e-05 | I36: Line losses | J36: =J33*E51/100 -> 0.009262863894 | K36: bar | S36: 4 | T36: 1.2 | U36: 0.137 | V36: 4.5 | W36: 0.343 | X36: 0.686
C37: Butterfly valve | D37: Butterfly valve3 | F37: =VLOOKUP(D37,'K-value'!$D$48:$E$124,2,FALSE) -> 0.81 | G37: 0 | I37: Fitting & eqp losses | J37: =G70+G72 -> 1.004149182 | K37: bar | O37: NPSHA calculation | S37: 6 | T37: 1.2 | U37: 0.137 | V37: 4.5 | W37: 0.343 | X37: 0.686
C38: Gate valve | D38: Gate valve3 | F38: =VLOOKUP(D38,'K-value'!$D$48:$E$124,2,FALSE) -> 0.14 | G38: 0 | I38: Discharge Pressure | J38: =E49+J35+J36+J37 -> 51.01557001 | K38: barg | O38: HA | P38: =(E24+1.01)*100000/(E16*9.81) -> 70.84501629 | Q38: m | S38: 8 | T38: 1.5 | U38: 0.225 | V38: 4.5 | W38: 0.343 | X38: 0.686
C39: Globe valve | D39: Globe valve3 | F39: =VLOOKUP(D39,'K-value'!$D$48:$E$124,2,FALSE) -> 6.1 | G39: 0 | I39: Result | J39: =IF(AND(J30<J31,J33<J34),"OK","NOT OK") -> OK | O39: HZ | P39: =E26 -> 0.35 | Q39: m | S39: 10 | T39: 1.5 | U39: 0.225 | V39: 4.5 | W39: 0.343 | X39: 0.686
C40: Check valve | D40: Check valve3 | F40: =VLOOKUP(D40,'K-value'!$D$48:$E$124,2,FALSE) -> 1.8 | G40: 0 | O40: HF | P40: =SUM(J23:J24)*-1 -> -0.06758877387 | S40: 12 | T40: 1.5 | U40: 0.225 | V40: 4.5 | W40: 0.343 | X40: 0.686
C41: Plug valve | D41: Plug valve3 | F41: =VLOOKUP(D41,'K-value'!$D$48:$E$124,2,FALSE) -> 1.62 | G41: 0 | I41: Pump Data | O41: HV | P41: 0 | S41: 16 | T41: 1.5 | U41: 0.225 | V41: 4.5 | W41: 0.343 | X41: 0.686
C42: Pipe entrance | D42: Pipe entrance3 | E42: 1 | F42: =VLOOKUP(D42,'K-value'!$D$48:$E$124,2,FALSE) -> 0.78 | G42: 0.0003078731236 | I42: Suction Pressure | J42: =J25 -> 1.947266556 | K42: barg | O42: HVP | P42: =E20*10^5/(E16*9.8)*-1 -> -28.90881589 | Q42: m | S42: 18 | T42: 1.5 | U42: 0.225 | V42: 4.5 | W42: 0.343 | X42: 0.686
C43: Suction strainer | D43: Suction strainer3 | E43: 1 | G43: =0.05*E43 -> 0.05 | I43: Discharge Pressure | J43: =J38 -> 51.01557001 | K43: barg | O43: NPSHA | P43: =SUM(P38:P42) -> 42.21861162 | Q43: m | S43: 20 | T43: 1.8 | U43: 0.225 | V43: 6 | W43: 0.343 | X43: 0.686
C44: Total, barg | G44: =SUM(G32:G43) -> 0.05149200052 | I44: Selected disc. Pressure | J44: 52 | K44: barg
C45: Contingency | G45: 0.2 | I45: Differential Pressure | J45: =J44-J42 -> 50.05273344 | K45: bar
C46: Total + Contingency | G46: =(1+G45)*G44 -> 0.06179040063 | I46: Differential Head | J46: =J45*10^5/(E16*9.8) -> 1179.270787 | K46: m
I47: Hydraulic Power | J47: =E16*9.8*J46*E15/3600000 -> 10.20519621 | K47: kW
C48: DISCHARGE | I48: Pump BHP | J48: =J47/E21 -> 22.67821379 | K48: kW
C49: Target Pressure | E49: =VLOOKUP(E11,'Data pompa'!$B$5:$R$24,3,FALSE) -> 50 | F49: barg | I49: NPSHa | J49: =P43 -> 42.21861162 | K49: m
C50: Static head | E50: 3 | F50: m | G50: note 2 | I50: NPSHr | J50: =J49-1 -> 41.21861162 | K50: m
C51: Length | E51: 100 | F51: m
C52: Pipe size | E52: =VLOOKUP(E11,'Data pompa'!$B$5:$R$24,17,FALSE) -> 3 | F52: in | I52: Shut in Pressure
C53: Schedule | E53: 40 | I53: P shut in | J53: =E25+1.3*J45 -> 70.06855348 | K53: barg
C54: Fittings
E55: Qty | F55: K | G55: DP
C56: Elbow 90 LR | D56: =C56&$E$52 -> Elbow 90 LR3 | E56: 7 | F56: =VLOOKUP(D56,'K-value'!$D$48:$E$124,2,FALSE) -> 0.29 | G56: =E56*F56*$J$17^2/(2*9.8)*$E$16*9.8/10^5 -> 0.0008012595396
C57: Elbow 45 LR | D57: Elbow 45 LR3 | F57: =VLOOKUP(D57,'K-value'!$D$48:$E$124,2,FALSE) -> 0.29 | G57: 0
C58: Tee thru | D58: Tee thru3 | F58: =VLOOKUP(D58,'K-value'!$D$48:$E$124,2,FALSE) -> 0.36 | G58: 0
C59: Tee branch | D59: Tee branch3 | E59: 1 | F59: =VLOOKUP(D59,'K-value'!$D$48:$E$124,2,FALSE) -> 1.08 | G59: 0.0004262858634
C60: Ball valve | D60: Ball valve3 | E60: 5 | F60: =VLOOKUP(D60,'K-value'!$D$48:$E$124,2,FALSE) -> 0.05 | G60: 9.86772832e-05
C61: Butterfly valve | D61: Butterfly valve3 | F61: =VLOOKUP(D61,'K-value'!$D$48:$E$124,2,FALSE) -> 0.81 | G61: 0
C62: Gate valve | D62: Gate valve3 | F62: =VLOOKUP(D62,'K-value'!$D$48:$E$124,2,FALSE) -> 0.14 | G62: 0
C63: Globe valve | D63: Globe valve3 | F63: =VLOOKUP(D63,'K-value'!$D$48:$E$124,2,FALSE) -> 6.1 | G63: 0 | I63: Note:
C64: Check valve | D64: Check valve3 | E64: 3 | F64: =VLOOKUP(D64,'K-value'!$D$48:$E$124,2,FALSE) -> 1.8 | G64: 0.002131429317
C65: Plug valve | D65: Plug valve3 | F65: =VLOOKUP(D65,'K-value'!$D$48:$E$124,2,FALSE) -> 1.62 | G65: 0 | I65: 1. Discharge liquid level is assumed 3 m above grade elevation
C66: Pipe entrance | D66: Pipe entrance3 | F66: =VLOOKUP(D66,'K-value'!$D$48:$E$124,2,FALSE) -> 0.78 | G66: 0
C67: Flow orifice | D67: Flow orifice3 | E67: 1 | G67: 0.25
C68: Total, barg | G68: =SUM(G56:G67) -> 0.253457652
C69: Contingency | G69: 0.2
C70: Total + contingency, barg | G70: =G68*(1+G69) -> 0.3041491824
C71: Pressure Loss due to Equipment
C72: AAV | G72: 0.7

Sheet Kolaka (hidden)
F1: PUMP SIZING
C5: Project: LNG Regasification in Central Region of Indonesia
C7: Equipment Design Group | E7: 1-2 | F7: MMSCFD
C8: Equipment Design | E8: 0.96 | F8: MMSCFD
C9: Tag No: | E9: MPK-G-001A/B
C10: Description: | E10: LNG Pump
C11: Location: | E11: Mobile PP Kolaka Utara | O11: Pipe roughness | P11: 0.05 | Q11: mm
P12: =P11/1000/3.28 -> 1.524390244e-05 | Q12: ft
C14: DATA | I14: RESULTS | O14: Mass flow | P14: =E15*E16/0.45 -> 1780.522222 | Q14: lb/hr
C15: Flow rate | E15: ='Data pompa'!I6 -> 1.85 | F15: m3/h | I15: Suction Hydraulic | O15: Rho | P15: =E16/16.02 -> 27.0349563 | Q15: lb/ft3
C16: Density | E16: =VLOOKUP(E11,'Data pompa'!$B$5:$R$24,13,FALSE) -> 433.1 | F16: kg/m3 | I16: Pipe ID | J16: =VLOOKUP(E28,'Pipe size sch 40'!$A$5:$C$27,3,FALSE)*25.4/1000 -> 0.052578 | K16: m
C17: Flow temperature | E17: =VLOOKUP(E11,'Data pompa'!$B$5:$R$24,12,FALSE) -> -158.83 | F17: deg C | I17: Velocity | J17: =E15/(PI()/4*J16^2)/3600 -> 0.2366852653 | K17: m/s | O17: Side Calculation (Suction)
C18: Viscocity | E18: =VLOOKUP(E11,'Data pompa'!$B$5:$R$24,14,FALSE) -> 0.1174 | F18: cP | I18: Velocity acceptance | J18: =IF(E28<=2,0.9,IF(OR(E28>=3,E28<=6),1.2,IF(OR(E28>=8,E28<=18),1.5,1.8))) -> 0.9 | K18: m/s | L18: (max) | O18: f tebakan | P18: 0.02110001129
E19: =E18*10^-3 -> 0.0001174 | F19: Nm2/s | I19: Reynold number | J19: =E16*J18*J16/E19 -> 174568.8128 | O19: f left | P19: =1/(P18)^0.5 -> 6.884282066
C20: Vapor pressure | E20: =VLOOKUP(E11,'Data pompa'!$B$5:$R$24,15,FALSE) -> 1.227 | F20: bara | I20: Pipe DP | J20: =P24 -> 0.004949443805 | K20: bar/100m | O20: f right | P20: =-2*LOG(P12/(3.7*J16*0.3048)+2.51/(J19*(P18)^0.5)) -> 6.896933185
C21: Pump efficiency | E21: 0.45 | I21: Pipe DP acceptance | J21: =IF(E28<=6,0.137,0.225) -> 0.137 | K21: bar/100m | O21: f left/f right | P21: =P19/P20 -> 0.9981656891 | Q21: Goal seek
I22: Static head | J22: =E16*9.8*E26/10^5 -> 0.01909971 | K22: bar | O22: psi/100 ft | P22: =0.000336*P18*P14^2/(J16*1000/25.4)^5/P15 -> 0.02187456184
C23: SUCTION | I23: Pipe friction loss | J23: =J20*E27/100 -> 0.001237360951 | K23: bar | O23: psi/ft | P23: =P22/100 -> 0.0002187456184
C24: Pressure at Vessel (min) | E24: 2 | F24: barg | I24: Fitting friction loss | J24: =G46 -> 0.06029696964 | K24: bar | O24: bar/100 m | P24: =P23*100/14.5/0.3048 -> 0.004949443805
C25: Pressure at Vessel (max) | E25: 5 | F25: barg | I25: Suction Pressure | J25: =E24+J22-SUM(J23:J24) -> 1.957565379 | K25: barg
C26: Static head | E26: =VLOOKUP(E11,'Data pompa'!$B$5:$S$27,18,FALSE)/1000 -> 0.45 | F26: m | I26: Result | J26: =IF(AND(J17<J18,J20<J21),"OK","NOT OK") -> OK
C27: Length | E27: 25 | F27: m | G27: assumption | O27: Side Calculation (Discharge) | T27: Suction | V27: Discharge
C28: Pipe size | E28: =VLOOKUP(E11,'Data pompa'!$B$5:$R$24,16,FALSE) -> 2 | F28: in | I28: Discharge Hydraulic | O28: f tebakan | P28: 0.019756363 | W28: < 49 barg | X28: > 49 barg
C29: Schedule | E29: 40 | I29: Pipe ID | J29: =VLOOKUP(E52,'Pipe size sch 40'!$A$5:$C$27,3,FALSE)*25.4/1000 -> 0.052578 | K29: m | O29: f left | P29: =1/(P28)^0.5 -> 7.114534692 | T29: Velocity | U29: Pressure | V29: Velocity | W29: Pressure | X29: Pressure
C30: Fittings | I30: Velocity | J30: =E15/(PI()/4*J16^2)/3600 -> 0.2366852653 | K30: m/s | O30: f right | P30: =-2*LOG(P12/(3.7*J29*0.3048)+2.51/(J32*(P28)^0.5)) -> 7.113338894 | S30: 0.5 | T30: 0.9 | U30: 0.137 | V30: 4.5 | W30: 0.343 | X30: 0.686
E31: Qty | F31: K | G31: DP | I31: Velocity acceptance | J31: =IF(E50<=18,4.5,6) -> 4.5 | K31: m/s | L31: (max) | O31: f left/f right | P31: =P29/P30 -> 1.000168106 | Q31: Goal seek | S31: 0.75 | T31: 0.9 | U31: 0.137 | V31: 4.5 | W31: 0.343 | X31: 0.686
C32: Elbow 90 LR | D32: =C32&$E$28 -> Elbow 90 LR2 | E32: 4 | F32: =VLOOKUP(D32,'K-value'!$D$48:$E$124,2,FALSE) -> 0.3 | G32: =E32*F32*$J$17^2/(2*9.8)*$E$16*9.8/10^5 -> 0.0001455733507 | I32: Reynold number | J32: =E16*J31*J29/E19 -> 872844.0639 | O32: psi/100 ft | P32: =0.000336*P28*P14^2/(J29*1000/25.4)^5/P15 -> 0.02048159018 | S32: 1 | T32: 0.9 | U32: 0.137 | V32: 4.5 | W32: 0.343 | X32: 0.686
C33: Elbow 45 LR | D33: Elbow 45 LR2 | F33: =VLOOKUP(D33,'K-value'!$D$48:$E$124,2,FALSE) -> 0.3 | G33: 0 | I33: Pipe DP | J33: =P34 -> 0.004634263322 | K33: bar/100m | O33: psi/ft | P33: =P32/100 -> 0.0002048159018 | S33: 1.5 | T33: 0.9 | U33: 0.137 | V33: 4.5 | W33: 0.343 | X33: 0.686
C34: Tee thru | D34: Tee thru2 | F34: =VLOOKUP(D34,'K-value'!$D$48:$E$124,2,FALSE) -> 0.38 | G34: 0 | I34: Pipe DP acceptance | J34: =IF(E49<=49,0.343,0.686) -> 0.686 | K34: bar/100m | O34: bar/100 m | P34: =P33*100/14.5/0.3048 -> 0.004634263322 | S34: 2 | T34: 0.9 | U34: 0.137 | V34: 4.5 | W34: 0.343 | X34: 0.686
C35: Tee branch | D35: Tee branch2 | F35: =VLOOKUP(D35,'K-value'!$D$48:$E$124,2,FALSE) -> 1.14 | G35: 0 | I35: Static head | J35: =E15*9.8*E50/10^5 -> 0.0005439 | K35: bar | L35: note 1 | S35: 3 | T35: 1.2 | U35: 0.137 | V35: 4.5 | W35: 0.343 | X35: 0.686
C36: Ball valve | D36: Ball valve2 | E36: 1 | F36: =VLOOKUP(D36,'K-value'!$D$48:$E$124,2,FALSE) -> 0.06 | G36: 7.278667534e-06 | I36: Line losses | J36: =J33*E51/100 -> 0.001390278997 | K36: bar | S36: 4 | T36: 1.2 | U36: 0.137 | V36: 4.5 | W36: 0.343 | X36: 0.686
C37: Butterfly valve | D37: Butterfly valve2 | F37: =VLOOKUP(D37,'K-value'!$D$48:$E$124,2,FALSE) -> 0.86 | G37: 0 | I37: Fitting & eqp losses | J37: =G70+G72 -> 1.001511051 | K37: bar | O37: NPSHA calculation | S37: 6 | T37: 1.2 | U37: 0.137 | V37: 4.5 | W37: 0.343 | X37: 0.686
C38: Gate valve | D38: Gate valve2 | F38: =VLOOKUP(D38,'K-value'!$D$48:$E$124,2,FALSE) -> 0.15 | G38: 0 | I38: Discharge Pressure | J38: =E49+J35+J36+J37 -> 51.00344523 | K38: barg | O38: HA | P38: =(E24+1.01)*100000/(E16*9.81) -> 70.84501629 | Q38: m | S38: 8 | T38: 1.5 | U38: 0.225 | V38: 4.5 | W38: 0.343 | X38: 0.686
C39: Globe valve | D39: Globe valve2 | F39: =VLOOKUP(D39,'K-value'!$D$48:$E$124,2,FALSE) -> 6.5 | G39: 0 | I39: Result | J39: =IF(AND(J30<J31,J33<J34),"OK","NOT OK") -> OK | O39: HZ | P39: =E26 -> 0.45 | Q39: m | S39: 10 | T39: 1.5 | U39: 0.225 | V39: 4.5 | W39: 0.343 | X39: 0.686
C40: Check valve | D40: Check valve2 | F40: =VLOOKUP(D40,'K-value'!$D$48:$E$124,2,FALSE) -> 1.9 | G40: 0 | O40: HF | P40: =SUM(J23:J24)*-1 -> -0.06153433059 | S40: 12 | T40: 1.5 | U40: 0.225 | V40: 4.5 | W40: 0.343 | X40: 0.686
C41: Plug valve | D41: Plug valve2 | F41: =VLOOKUP(D41,'K-value'!$D$48:$E$124,2,FALSE) -> 1.71 | G41: 0 | I41: Pump Data | O41: HV | P41: 0 | S41: 16 | T41: 1.5 | U41: 0.225 | V41: 4.5 | W41: 0.343 | X41: 0.686
C42: Pipe entrance | D42: Pipe entrance2 | E42: 1 | F42: =VLOOKUP(D42,'K-value'!$D$48:$E$124,2,FALSE) -> 0.78 | G42: 9.462267795e-05 | I42: Suction Pressure | J42: =J25 -> 1.957565379 | K42: barg | O42: HVP | P42: =E20*10^5/(E16*9.8)*-1 -> -28.90881589 | Q42: m | S42: 18 | T42: 1.5 | U42: 0.225 | V42: 4.5 | W42: 0.343 | X42: 0.686
C43: Suction strainer | D43: Suction strainer2 | E43: 1 | G43: =0.05*E43 -> 0.05 | I43: Discharge Pressure | J43: =J38 -> 51.00344523 | K43: barg | O43: NPSHA | P43: =SUM(P38:P42) -> 42.32466606 | Q43: m | S43: 20 | T43: 1.8 | U43: 0.225 | V43: 6 | W43: 0.343 | X43: 0.686
C44: Total, barg | G44: =SUM(G32:G43) -> 0.0502474747 | I44: Selected disc. Pressure | J44: 52 | K44: barg
C45: Contingency | G45: 0.2 | I45: Differential Pressure | J45: =J44-J42 -> 50.04243462 | K45: bar
C46: Total + Contingency | G46: =(1+G45)*G44 -> 0.06029696964 | I46: Differential Head | J46: =J45*10^5/(E16*9.8) -> 1179.028141 | K46: m
I47: Hydraulic Power | J47: =E16*9.8*J46*E15/3600000 -> 2.571625112 | K47: kW
C48: DISCHARGE | I48: Pump BHP | J48: =J47/E21 -> 5.714722472 | K48: kW
C49: Target Pressure | E49: =VLOOKUP(E11,'Data pompa'!$B$5:$R$24,3,FALSE) -> 50 | F49: barg | I49: NPSHa | J49: =P43 -> 42.32466606 | K49: m
C50: Static head | E50: 3 | F50: m | G50: note 2 | I50: NPSHr | J50: =J49-1 -> 41.32466606 | K50: m
C51: Length | E51: 30 | F51: m
C52: Pipe size | E52: =VLOOKUP(E11,'Data pompa'!$B$5:$R$24,17,FALSE) -> 2 | F52: in | I52: Shut in Pressure
C53: Schedule | E53: 40 | I53: P shut in | J53: =E25+1.3*J45 -> 70.05516501 | K53: barg
C54: Fittings
E55: Qty | F55: K | G55: DP
C56: Elbow 90 LR | D56: =C56&$E$52 -> Elbow 90 LR2 | E56: =2+1+3+1 -> 7 | F56: =VLOOKUP(D56,'K-value'!$D$48:$E$124,2,FALSE) -> 0.3 | G56: =E56*F56*$J$17^2/(2*9.8)*$E$16*9.8/10^5 -> 0.0002547533637
C57: Elbow 45 LR | D57: Elbow 45 LR2 | F57: =VLOOKUP(D57,'K-value'!$D$48:$E$124,2,FALSE) -> 0.3 | G57: 0
C58: Tee thru | D58: Tee thru2 | F58: =VLOOKUP(D58,'K-value'!$D$48:$E$124,2,FALSE) -> 0.38 | G58: 0
C59: Tee branch | D59: Tee branch2 | E59: 2 | F59: =VLOOKUP(D59,'K-value'!$D$48:$E$124,2,FALSE) -> 1.14 | G59: 0.0002765893663
C60: Ball valve | D60: Ball valve2 | E60: 5 | F60: =VLOOKUP(D60,'K-value'!$D$48:$E$124,2,FALSE) -> 0.06 | G60: 3.639333767e-05
C61: Butterfly valve | D61: Butterfly valve2 | F61: =VLOOKUP(D61,'K-value'!$D$48:$E$124,2,FALSE) -> 0.86 | G61: 0
C62: Gate valve | D62: Gate valve2 | F62: =VLOOKUP(D62,'K-value'!$D$48:$E$124,2,FALSE) -> 0.15 | G62: 0
C63: Globe valve | D63: Globe valve2 | F63: =VLOOKUP(D63,'K-value'!$D$48:$E$124,2,FALSE) -> 6.5 | G63: 0 | I63: Note:
C64: Check valve | D64: Check valve2 | E64: 3 | F64: =VLOOKUP(D64,'K-value'!$D$48:$E$124,2,FALSE) -> 1.9 | G64: 0.0006914734158
C65: Plug valve | D65: Plug valve2 | F65: =VLOOKUP(D65,'K-value'!$D$48:$E$124,2,FALSE) -> 1.71 | G65: 0 | I65: 1. Discharge liquid level is assumed 3 m above grade elevation
C66: Pipe entrance | D66: Pipe entrance2 | F66: =VLOOKUP(D66,'K-value'!$D$48:$E$124,2,FALSE) -> 0.78 | G66: 0
C67: Flow orifice | D67: Flow orifice2 | E67: 1 | G67: 0.25
C68: Total, barg | G68: =SUM(G56:G67) -> 0.2512592095
C69: Contingency | G69: 0.2
C70: Total + contingency, barg | G70: =G68*(1+G69) -> 0.3015110514
C71: Pressure Loss due to Equipment
C72: AAV | G72: 0.7

Sheet Rote (hidden)
F1: PUMP SIZING
C5: Project: LNG Regasification in Central Region of Indonesia
C7: Equipment Design Group | E7: 1-2 | F7: MMSCFD
C8: Equipment Design | E8: 0.96 | F8: MMSCFD
C9: Tag No: | E9: ROT-G-001A/B
C10: Description: | E10: LNG Pump
C11: Location: | E11: Rote | O11: Pipe roughness | P11: 0.05 | Q11: mm
P12: =P11/1000/3.28 -> 1.524390244e-05 | Q12: ft
C14: DATA | I14: RESULTS | O14: Mass flow | P14: =E15*E16/0.45 -> 7776.551111 | Q14: lb/hr
C15: Flow rate | E15: 8.08 | F15: m3/h | I15: Suction Hydraulic | O15: Rho | P15: =E16/16.02 -> 27.0349563 | Q15: lb/ft3
C16: Density | E16: =VLOOKUP(E11,'Data pompa'!$B$5:$R$24,13,FALSE) -> 433.1 | F16: kg/m3 | I16: Pipe ID | J16: =VLOOKUP(E28,'Pipe size sch 40'!$A$5:$C$27,3,FALSE)*25.4/1000 -> 0.077978 | K16: m
C17: Flow temperature | E17: =VLOOKUP(E11,'Data pompa'!$B$5:$R$24,12,FALSE) -> -158.83 | F17: deg C | I17: Velocity | J17: =E15/(PI()/4*J16^2)/3600 -> 0.469975041 | K17: m/s | O17: Side Calculation (Suction)
C18: Viscocity | E18: =VLOOKUP(E11,'Data pompa'!$B$5:$R$24,14,FALSE) -> 0.1174 | F18: cP | I18: Velocity acceptance | J18: =IF(E28<=2,0.9,IF(OR(E28>=3,E28<=6),1.2,IF(OR(E28>=8,E28<=18),1.5,1.8))) -> 1.2 | K18: m/s | L18: (max) | O18: f tebakan | P18: 0.01881245307
E19: =E18*10^-3 -> 0.0001174 | F19: Nm2/s | I19: Reynold number | J19: =E16*J18*J16/E19 -> 345202.0968 | O19: f left | P19: =1/(P18)^0.5 -> 7.290835259
C20: Vapor pressure | E20: =VLOOKUP(E11,'Data pompa'!$B$5:$R$24,15,FALSE) -> 1.227 | F20: bara | I20: Pipe DP | J20: =P24 -> 0.01173162721 | K20: bar/100m | O20: f right | P20: =-2*LOG(P12/(3.7*J16*0.3048)+2.51/(J19*(P18)^0.5)) -> 7.290416583
C21: Pump efficiency | E21: 0.45 | I21: Pipe DP acceptance | J21: =IF(E28<=6,0.137,0.225) -> 0.137 | K21: bar/100m | O21: f left/f right | P21: =P19/P20 -> 1.000057428 | Q21: Goal seek
I22: Static head | J22: =E16*9.8*E26/10^5 -> 0.01697752 | K22: bar | O22: psi/100 ft | P22: =0.000336*P18*P14^2/(J16*1000/25.4)^5/P15 -> 0.05184909961
C23: SUCTION | I23: Pipe friction loss | J23: =J20*E27/100 -> 0.002932906802 | K23: bar | O23: psi/ft | P23: =P22/100 -> 0.0005184909961
C24: Pressure at Vessel (min) | E24: 2 | F24: barg | I24: Fitting friction loss | J24: =G46 -> 0.06114219985 | K24: bar | O24: bar/100 m | P24: =P23*100/14.5/0.3048 -> 0.01173162721
C25: Pressure at Vessel (max) | E25: 5 | F25: barg | I25: Suction Pressure | J25: =E24+J22-SUM(J23:J24) -> 1.952902413 | K25: barg
C26: Static head | E26: =VLOOKUP(E11,'Data pompa'!$B$5:$S$27,18,FALSE)/1000 -> 0.4 | F26: m | I26: Result | J26: =IF(AND(J17<J18,J20<J21),"OK","NOT OK") -> OK
C27: Length | E27: 25 | F27: m | G27: assumption | O27: Side Calculation (Discharge) | T27: Suction | V27: Discharge
C28: Pipe size | E28: 3 | F28: in | I28: Discharge Hydraulic | O28: f tebakan | P28: 0.01799960853 | W28: < 49 barg | X28: > 49 barg
C29: Schedule | E29: 40 | I29: Pipe ID | J29: =VLOOKUP(E52,'Pipe size sch 40'!$A$5:$C$27,3,FALSE)*25.4/1000 -> 0.077978 | K29: m | O29: f left | P29: =1/(P28)^0.5 -> 7.453640978 | T29: Velocity | U29: Pressure | V29: Velocity | W29: Pressure | X29: Pressure
C30: Fittings | I30: Velocity | J30: =E15/(PI()/4*J16^2)/3600 -> 0.469975041 | K30: m/s | O30: f right | P30: =-2*LOG(P12/(3.7*J29*0.3048)+2.51/(J32*(P28)^0.5)) -> 7.452628499 | S30: 0.5 | T30: 0.9 | U30: 0.137 | V30: 4.5 | W30: 0.343 | X30: 0.686
E31: Qty | F31: K | G31: DP | I31: Velocity acceptance | J31: =IF(E50<=18,4.5,6) -> 4.5 | K31: m/s | L31: (max) | O31: f left/f right | P31: =P29/P30 -> 1.000135855 | Q31: Goal seek | S31: 0.75 | T31: 0.9 | U31: 0.137 | V31: 4.5 | W31: 0.343 | X31: 0.686
C32: Elbow 90 LR | D32: =C32&$E$28 -> Elbow 90 LR3 | E32: 4 | F32: =VLOOKUP(D32,'K-value'!$D$48:$E$124,2,FALSE) -> 0.29 | G32: =E32*F32*$J$17^2/(2*9.8)*$E$16*9.8/10^5 -> 0.0005548374489 | I32: Reynold number | J32: =E16*J31*J29/E19 -> 1294507.863 | O32: psi/100 ft | P32: =0.000336*P28*P14^2/(J29*1000/25.4)^5/P15 -> 0.04960881455 | S32: 1 | T32: 0.9 | U32: 0.137 | V32: 4.5 | W32: 0.343 | X32: 0.686
C33: Elbow 45 LR | D33: Elbow 45 LR3 | F33: =VLOOKUP(D33,'K-value'!$D$48:$E$124,2,FALSE) -> 0.29 | G33: 0 | I33: Pipe DP | J33: =P34 -> 0.01122472951 | K33: bar/100m | O33: psi/ft | P33: =P32/100 -> 0.0004960881455 | S33: 1.5 | T33: 0.9 | U33: 0.137 | V33: 4.5 | W33: 0.343 | X33: 0.686
C34: Tee thru | D34: Tee thru3 | F34: =VLOOKUP(D34,'K-value'!$D$48:$E$124,2,FALSE) -> 0.36 | G34: 0 | I34: Pipe DP acceptance | J34: =IF(E49<=49,0.343,0.686) -> 0.343 | K34: bar/100m | O34: bar/100 m | P34: =P33*100/14.5/0.3048 -> 0.01122472951 | S34: 2 | T34: 0.9 | U34: 0.137 | V34: 4.5 | W34: 0.343 | X34: 0.686
C35: Tee branch | D35: Tee branch3 | F35: =VLOOKUP(D35,'K-value'!$D$48:$E$124,2,FALSE) -> 1.08 | G35: 0 | I35: Static head | J35: =E15*9.8*E50/10^5 -> 0.00237552 | K35: bar | L35: note 1 | S35: 3 | T35: 1.2 | U35: 0.137 | V35: 4.5 | W35: 0.343 | X35: 0.686
C36: Ball valve | D36: Ball valve3 | E36: 1 | F36: =VLOOKUP(D36,'K-value'!$D$48:$E$124,2,FALSE) -> 0.05 | G36: 2.391540728e-05 | I36: Line losses | J36: =J33*E51/100 -> 0.003367418854 | K36: bar | S36: 4 | T36: 1.2 | U36: 0.137 | V36: 4.5 | W36: 0.343 | X36: 0.686
C37: Butterfly valve | D37: Butterfly valve3 | F37: =VLOOKUP(D37,'K-value'!$D$48:$E$124,2,FALSE) -> 0.81 | G37: 0 | I37: Fitting & eqp losses | J37: =G70+G72 -> 1.006147216 | K37: bar | O37: NPSHA calculation | S37: 6 | T37: 1.2 | U37: 0.137 | V37: 4.5 | W37: 0.343 | X37: 0.686
C38: Gate valve | D38: Gate valve3 | F38: =VLOOKUP(D38,'K-value'!$D$48:$E$124,2,FALSE) -> 0.14 | G38: 0 | I38: Discharge Pressure | J38: =E49+J35+J36+J37 -> 11.01189016 | K38: barg | O38: HA | P38: =(E24+1.01)*100000/(E16*9.81) -> 70.84501629 | Q38: m | S38: 8 | T38: 1.5 | U38: 0.225 | V38: 4.5 | W38: 0.343 | X38: 0.686
C39: Globe valve | D39: Globe valve3 | F39: =VLOOKUP(D39,'K-value'!$D$48:$E$124,2,FALSE) -> 6.1 | G39: 0 | I39: Result | J39: =IF(AND(J30<J31,J33<J34),"OK","NOT OK") -> OK | O39: HZ | P39: =E26 -> 0.4 | Q39: m | S39: 10 | T39: 1.5 | U39: 0.225 | V39: 4.5 | W39: 0.343 | X39: 0.686
C40: Check valve | D40: Check valve3 | F40: =VLOOKUP(D40,'K-value'!$D$48:$E$124,2,FALSE) -> 1.8 | G40: 0 | O40: HF | P40: =SUM(J23:J24)*-1 -> -0.06407510665 | S40: 12 | T40: 1.5 | U40: 0.225 | V40: 4.5 | W40: 0.343 | X40: 0.686
C41: Plug valve | D41: Plug valve3 | F41: =VLOOKUP(D41,'K-value'!$D$48:$E$124,2,FALSE) -> 1.62 | G41: 0 | I41: Pump Data | O41: HV | P41: 0 | S41: 16 | T41: 1.5 | U41: 0.225 | V41: 4.5 | W41: 0.343 | X41: 0.686
C42: Pipe entrance | D42: Pipe entrance3 | E42: 1 | F42: =VLOOKUP(D42,'K-value'!$D$48:$E$124,2,FALSE) -> 0.78 | G42: 0.0003730803535 | I42: Suction Pressure | J42: =J25 -> 1.952902413 | K42: barg | O42: HVP | P42: =E20*10^5/(E16*9.8)*-1 -> -28.90881589 | Q42: m | S42: 18 | T42: 1.5 | U42: 0.225 | V42: 4.5 | W42: 0.343 | X42: 0.686
C43: Suction strainer | D43: Suction strainer3 | E43: 1 | G43: =0.05*E43 -> 0.05 | I43: Discharge Pressure | J43: =J38 -> 11.01189016 | K43: barg | O43: NPSHA | P43: =SUM(P38:P42) -> 42.27212529 | Q43: m | S43: 20 | T43: 1.8 | U43: 0.225 | V43: 6 | W43: 0.343 | X43: 0.686
C44: Total, barg | G44: =SUM(G32:G43) -> 0.05095183321 | I44: Selected disc. Pressure | J44: 10 | K44: barg
C45: Contingency | G45: 0.2 | I45: Differential Pressure | J45: =J44-J42 -> 8.047097587 | K45: bar
C46: Total + Contingency | G46: =(1+G45)*G44 -> 0.06114219985 | I46: Differential Head | J46: =J45*10^5/(E16*9.8) -> 189.5941831 | K46: m
I47: Hydraulic Power | J47: =E16*9.8*J46*E15/3600000 -> 1.806126347 | K47: kW
C48: DISCHARGE | I48: Pump BHP | J48: =J47/E21 -> 4.013614105 | K48: kW
C49: Target Pressure | E49: 10 | F49: barg | I49: NPSHa | J49: =P43 -> 42.27212529 | K49: m
C50: Static head | E50: 3 | F50: m | G50: note 2 | I50: NPSHr | J50: =J49-1 -> 41.27212529 | K50: m
C51: Length | E51: 30 | F51: m
C52: Pipe size | E52: =VLOOKUP(E11,'Data pompa'!$B$5:$R$24,17,FALSE) -> 3 | F52: in | I52: Shut in Pressure
C53: Schedule | E53: 40 | I53: P shut in | J53: =E25+1.3*J45 -> 15.46122686 | K53: barg
C54: Fittings
E55: Qty | F55: K | G55: DP
C56: Elbow 90 LR | D56: =C56&$E$52 -> Elbow 90 LR3 | E56: 10 | F56: =VLOOKUP(D56,'K-value'!$D$48:$E$124,2,FALSE) -> 0.29 | G56: =E56*F56*$J$17^2/(2*9.8)*$E$16*9.8/10^5 -> 0.001387093622
C57: Elbow 45 LR | D57: Elbow 45 LR3 | F57: =VLOOKUP(D57,'K-value'!$D$48:$E$124,2,FALSE) -> 0.29 | G57: 0
C58: Tee thru | D58: Tee thru3 | F58: =VLOOKUP(D58,'K-value'!$D$48:$E$124,2,FALSE) -> 0.36 | G58: 0
C59: Tee branch | D59: Tee branch3 | E59: 2 | F59: =VLOOKUP(D59,'K-value'!$D$48:$E$124,2,FALSE) -> 1.08 | G59: 0.001033145594
C60: Ball valve | D60: Ball valve3 | E60: 5 | F60: =VLOOKUP(D60,'K-value'!$D$48:$E$124,2,FALSE) -> 0.05 | G60: 0.0001195770364
C61: Butterfly valve | D61: Butterfly valve3 | F61: =VLOOKUP(D61,'K-value'!$D$48:$E$124,2,FALSE) -> 0.81 | G61: 0
C62: Gate valve | D62: Gate valve3 | F62: =VLOOKUP(D62,'K-value'!$D$48:$E$124,2,FALSE) -> 0.14 | G62: 0
C63: Globe valve | D63: Globe valve3 | F63: =VLOOKUP(D63,'K-value'!$D$48:$E$124,2,FALSE) -> 6.1 | G63: 0 | I63: Note:
C64: Check valve | D64: Check valve3 | E64: 3 | F64: =VLOOKUP(D64,'K-value'!$D$48:$E$124,2,FALSE) -> 1.8 | G64: 0.002582863986
C65: Plug valve | D65: Plug valve3 | F65: =VLOOKUP(D65,'K-value'!$D$48:$E$124,2,FALSE) -> 1.62 | G65: 0 | I65: 1. Discharge liquid level is assumed 3 m above grade elevation
C66: Pipe entrance | D66: Pipe entrance3 | F66: =VLOOKUP(D66,'K-value'!$D$48:$E$124,2,FALSE) -> 0.78 | G66: 0
C67: Flow orifice | D67: Flow orifice3 | E67: 1 | G67: 0.25
C68: Total, barg | G68: =SUM(G56:G67) -> 0.2551226802
C69: Contingency | G69: 0.2
C70: Total + contingency, barg | G70: =G68*(1+G69) -> 0.3061472163
C71: Pressure Loss due to Equipment
C72: AAV | G72: 0.7

Sheet Malinau (hidden)
F1: PUMP SIZING
C5: Project: LNG Regasification in Central Region of Indonesia
C7: Equipment Design Group | E7: 1-2 | F7: MMSCFD
C8: Equipment Design | E8: 1.152 | F8: MMSCFD
C9: Tag No: | E9: MLN-G-001A/B
C10: Description: | E10: LNG Pump
C11: Location: | E11: Malinau | O11: Pipe roughness | P11: 0.05 | Q11: mm
P12: =P11/1000/3.28 -> 1.524390244e-05 | Q12: ft
C14: DATA | I14: RESULTS | O14: Mass flow | P14: =E15*E16/0.45 -> 2137.12 | Q14: lb/hr
C15: Flow rate | E15: =VLOOKUP(E11,'Data pompa'!$B$5:$R$24,8,FALSE) -> 2.22 | F15: m3/h | I15: Suction Hydraulic | O15: Rho | P15: =E16/16.02 -> 27.0411985 | Q15: lb/ft3
C16: Density | E16: =VLOOKUP(E11,'Data pompa'!$B$5:$R$24,13,FALSE) -> 433.2 | F16: kg/m3 | I16: Pipe ID | J16: =VLOOKUP(E28,'Pipe size sch 40'!$A$5:$C$27,3,FALSE)*25.4/1000 -> 0.052578 | K16: m
C17: Flow temperature | E17: =VLOOKUP(E11,'Data pompa'!$B$5:$R$24,12,FALSE) -> -158.85 | F17: deg C | I17: Velocity | J17: =E15/(PI()/4*J16^2)/3600 -> 0.2840223184 | K17: m/s | O17: Side Calculation (Suction)
C18: Viscocity | E18: =VLOOKUP(E11,'Data pompa'!$B$5:$R$24,14,FALSE) -> 0.1174 | F18: cP | I18: Velocity acceptance | J18: =IF(E28<=2,0.9,IF(OR(E28>=3,E28<=6),1.2,IF(OR(E28>=8,E28<=18),1.5,1.8))) -> 0.9 | K18: m/s | L18: (max) | O18: f tebakan | P18: 0.0210113358
E19: =E18*10^-3 -> 0.0001174 | F19: Nm2/s | I19: Reynold number | J19: =E16*J18*J16/E19 -> 174609.1196 | O19: f left | P19: =1/(P18)^0.5 -> 6.898793861
C20: Vapor pressure | E20: =VLOOKUP(E11,'Data pompa'!$B$5:$R$24,15,FALSE) -> 1.2251 | F20: bara | I20: Pipe DP | J20: =P24 -> 0.007098884821 | K20: bar/100m | O20: f right | P20: =-2*LOG(P12/(3.7*J16*0.3048)+2.51/(J19*(P18)^0.5)) -> 6.89648017
C21: Pump efficiency | E21: 0.45 | I21: Pipe DP acceptance | J21: =IF(E28<=6,0.137,0.225) -> 0.137 | K21: bar/100m | O21: f left/f right | P21: =P19/P20 -> 1.000335489 | Q21: Goal seek
I22: Static head | J22: =E16*9.8*E26/10^5 -> 0.01698144 | K22: bar | O22: psi/100 ft | P22: =0.000336*P18*P14^2/(J16*1000/25.4)^5/P15 -> 0.03137423136
C23: SUCTION | I23: Pipe friction loss | J23: =J20*E27/100 -> 0.001774721205 | K23: bar | O23: psi/ft | P23: =P22/100 -> 0.0003137423136
C24: Pressure at Vessel (min) | E24: 2 | F24: barg | I24: Fitting friction loss | J24: =G46 -> 0.06042773501 | K24: bar | O24: bar/100 m | P24: =P23*100/14.5/0.3048 -> 0.007098884821
C25: Pressure at Vessel (max) | E25: 5 | F25: barg | I25: Suction Pressure | J25: =E24+J22-SUM(J23:J24) -> 1.954778984 | K25: barg
C26: Static head | E26: =VLOOKUP(E11,'Data pompa'!$B$5:$S$27,18,FALSE)/1000 -> 0.4 | F26: m | I26: Result | J26: =IF(AND(J17<J18,J20<J21),"OK","NOT OK") -> OK
C27: Length | E27: 25 | F27: m | G27: assumption | O27: Side Calculation (Discharge) | T27: Suction | V27: Discharge
C28: Pipe size | E28: 2 | F28: in | I28: Discharge Hydraulic | O28: f tebakan | P28: 0.01975627895 | W28: < 49 barg | X28: > 49 barg
C29: Schedule | E29: 40 | I29: Pipe ID | J29: =VLOOKUP(E52,'Pipe size sch 40'!$A$5:$C$27,3,FALSE)*25.4/1000 -> 0.052578 | K29: m | O29: f left | P29: =1/(P28)^0.5 -> 7.114549826 | T29: Velocity | U29: Pressure | V29: Velocity | W29: Pressure | X29: Pressure
C30: Fittings | I30: Velocity | J30: =E15/(PI()/4*J16^2)/3600 -> 0.2840223184 | K30: m/s | O30: f right | P30: =-2*LOG(P12/(3.7*J29*0.3048)+2.51/(J32*(P28)^0.5)) -> 7.113353539 | S30: 0.5 | T30: 0.9 | U30: 0.137 | V30: 4.5 | W30: 0.343 | X30: 0.686
E31: Qty | F31: K | G31: DP | I31: Velocity acceptance | J31: =IF(E50<=18,4.5,6) -> 4.5 | K31: m/s | L31: (max) | O31: f left/f right | P31: =P29/P30 -> 1.000168175 | Q31: Goal seek | S31: 0.75 | T31: 0.9 | U31: 0.137 | V31: 4.5 | W31: 0.343 | X31: 0.686
C32: Elbow 90 LR | D32: =C32&$E$28 -> Elbow 90 LR2 | E32: 4 | F32: =VLOOKUP(D32,'K-value'!$D$48:$E$124,2,FALSE) -> 0.3 | G32: =E32*F32*$J$17^2/(2*9.8)*$E$16*9.8/10^5 -> 0.0002096740262 | I32: Reynold number | J32: =E16*J31*J29/E19 -> 873045.598 | O32: psi/100 ft | P32: =0.000336*P28*P14^2/(J29*1000/25.4)^5/P15 -> 0.02950017421 | S32: 1 | T32: 0.9 | U32: 0.137 | V32: 4.5 | W32: 0.343 | X32: 0.686
C33: Elbow 45 LR | D33: Elbow 45 LR2 | F33: =VLOOKUP(D33,'K-value'!$D$48:$E$124,2,FALSE) -> 0.3 | G33: 0 | I33: Pipe DP | J33: =P34 -> 0.006674851618 | K33: bar/100m | O33: psi/ft | P33: =P32/100 -> 0.0002950017421 | S33: 1.5 | T33: 0.9 | U33: 0.137 | V33: 4.5 | W33: 0.343 | X33: 0.686
C34: Tee thru | D34: Tee thru2 | F34: =VLOOKUP(D34,'K-value'!$D$48:$E$124,2,FALSE) -> 0.38 | G34: 0 | I34: Pipe DP acceptance | J34: =IF(E49<=49,0.343,0.686) -> 0.343 | K34: bar/100m | O34: bar/100 m | P34: =P33*100/14.5/0.3048 -> 0.006674851618 | S34: 2 | T34: 0.9 | U34: 0.137 | V34: 4.5 | W34: 0.343 | X34: 0.686
C35: Tee branch | D35: Tee branch2 | F35: =VLOOKUP(D35,'K-value'!$D$48:$E$124,2,FALSE) -> 1.14 | G35: 0 | I35: Static head | J35: =E15*9.8*E50/10^5 -> 0.00065268 | K35: bar | L35: note 1 | S35: 3 | T35: 1.2 | U35: 0.137 | V35: 4.5 | W35: 0.343 | X35: 0.686
C36: Ball valve | D36: Ball valve2 | E36: 1 | F36: =VLOOKUP(D36,'K-value'!$D$48:$E$124,2,FALSE) -> 0.06 | G36: 1.048370131e-05 | I36: Line losses | J36: =J33*E51/100 -> 0.002002455485 | K36: bar | S36: 4 | T36: 1.2 | U36: 0.137 | V36: 4.5 | W36: 0.343 | X36: 0.686
C37: Butterfly valve | D37: Butterfly valve2 | F37: =VLOOKUP(D37,'K-value'!$D$48:$E$124,2,FALSE) -> 0.86 | G37: 0 | I37: Fitting & eqp losses | J37: =G70+G72 -> 1.002365123 | K37: bar | O37: NPSHA calculation | S37: 6 | T37: 1.2 | U37: 0.137 | V37: 4.5 | W37: 0.343 | X37: 0.686
C38: Gate valve | D38: Gate valve2 | F38: =VLOOKUP(D38,'K-value'!$D$48:$E$124,2,FALSE) -> 0.15 | G38: 0 | I38: Discharge Pressure | J38: =E49+J35+J36+J37 -> 9.005020259 | K38: barg | O38: HA | P38: =(E24+1.01)*100000/(E16*9.81) -> 70.82866241 | Q38: m | S38: 8 | T38: 1.5 | U38: 0.225 | V38: 4.5 | W38: 0.343 | X38: 0.686
C39: Globe valve | D39: Globe valve2 | F39: =VLOOKUP(D39,'K-value'!$D$48:$E$124,2,FALSE) -> 6.5 | G39: 0 | I39: Result | J39: =IF(AND(J30<J31,J33<J34),"OK","NOT OK") -> OK | O39: HZ | P39: =E26 -> 0.4 | Q39: m | S39: 10 | T39: 1.5 | U39: 0.225 | V39: 4.5 | W39: 0.343 | X39: 0.686
C40: Check valve | D40: Check valve2 | F40: =VLOOKUP(D40,'K-value'!$D$48:$E$124,2,FALSE) -> 1.9 | G40: 0 | O40: HF | P40: =SUM(J23:J24)*-1 -> -0.06220245622 | S40: 12 | T40: 1.5 | U40: 0.225 | V40: 4.5 | W40: 0.343 | X40: 0.686
C41: Plug valve | D41: Plug valve2 | F41: =VLOOKUP(D41,'K-value'!$D$48:$E$124,2,FALSE) -> 1.71 | G41: 0 | I41: Pump Data | O41: HV | P41: 0 | S41: 16 | T41: 1.5 | U41: 0.225 | V41: 4.5 | W41: 0.343 | X41: 0.686
C42: Pipe entrance | D42: Pipe entrance2 | E42: 1 | F42: =VLOOKUP(D42,'K-value'!$D$48:$E$124,2,FALSE) -> 0.78 | G42: 0.000136288117 | I42: Suction Pressure | J42: =J25 -> 1.954778984 | K42: barg | O42: HVP | P42: =E20*10^5/(E16*9.8)*-1 -> -28.85738783 | Q42: m | S42: 18 | T42: 1.5 | U42: 0.225 | V42: 4.5 | W42: 0.343 | X42: 0.686
C43: Suction strainer | D43: Suction strainer2 | E43: 1 | G43: =0.05*E43 -> 0.05 | I43: Discharge Pressure | J43: =J38 -> 9.005020259 | K43: barg | O43: NPSHA | P43: =SUM(P38:P42) -> 42.30907212 | Q43: m | S43: 20 | T43: 1.8 | U43: 0.225 | V43: 6 | W43: 0.343 | X43: 0.686
C44: Total, barg | G44: =SUM(G32:G43) -> 0.05035644584 | I44: Selected disc. Pressure | J44: 10 | K44: barg
C45: Contingency | G45: 0.2 | I45: Differential Pressure | J45: =J44-J42 -> 8.045221016 | K45: bar
C46: Total + Contingency | G46: =(1+G45)*G44 -> 0.06042773501 | I46: Differential Head | J46: =J45*10^5/(E16*9.8) -> 189.5062142 | K46: m
I47: Hydraulic Power | J47: =E16*9.8*J46*E15/3600000 -> 0.4961219627 | K47: kW
C48: DISCHARGE | I48: Pump BHP | J48: =J47/E21 -> 1.10249325 | K48: kW
C49: Target Pressure | E49: =VLOOKUP(E11,'Data pompa'!$B$5:$R$24,3,FALSE) -> 8 | F49: barg | I49: NPSHa | J49: =P43 -> 42.30907212 | K49: m
C50: Static head | E50: 3 | F50: m | G50: note 2 | I50: NPSHr | J50: =J49-1 -> 41.30907212 | K50: m
C51: Length | E51: 30 | F51: m
C52: Pipe size | E52: =VLOOKUP(E11,'Data pompa'!$B$5:$R$24,17,FALSE) -> 2 | F52: in | I52: Shut in Pressure
C53: Schedule | E53: 40 | I53: P shut in | J53: =E25+1.3*J45 -> 15.45878732 | K53: barg
C54: Fittings
E55: Qty | F55: K | G55: DP
C56: Elbow 90 LR | D56: =C56&$E$52 -> Elbow 90 LR2 | E56: 10 | F56: =VLOOKUP(D56,'K-value'!$D$48:$E$124,2,FALSE) -> 0.3 | G56: =E56*F56*$J$17^2/(2*9.8)*$E$16*9.8/10^5 -> 0.0005241850655
C57: Elbow 45 LR | D57: Elbow 45 LR2 | F57: =VLOOKUP(D57,'K-value'!$D$48:$E$124,2,FALSE) -> 0.3 | G57: 0
C58: Tee thru | D58: Tee thru2 | F58: =VLOOKUP(D58,'K-value'!$D$48:$E$124,2,FALSE) -> 0.38 | G58: 0
C59: Tee branch | D59: Tee branch2 | E59: 2 | F59: =VLOOKUP(D59,'K-value'!$D$48:$E$124,2,FALSE) -> 1.14 | G59: 0.0003983806498
C60: Ball valve | D60: Ball valve2 | E60: 5 | F60: =VLOOKUP(D60,'K-value'!$D$48:$E$124,2,FALSE) -> 0.06 | G60: 5.241850655e-05
C61: Butterfly valve | D61: Butterfly valve2 | F61: =VLOOKUP(D61,'K-value'!$D$48:$E$124,2,FALSE) -> 0.86 | G61: 0
C62: Gate valve | D62: Gate valve2 | F62: =VLOOKUP(D62,'K-value'!$D$48:$E$124,2,FALSE) -> 0.15 | G62: 0
C63: Globe valve | D63: Globe valve2 | F63: =VLOOKUP(D63,'K-value'!$D$48:$E$124,2,FALSE) -> 6.5 | G63: 0 | I63: Note:
C64: Check valve | D64: Check valve2 | E64: 3 | F64: =VLOOKUP(D64,'K-value'!$D$48:$E$124,2,FALSE) -> 1.9 | G64: 0.0009959516244
C65: Plug valve | D65: Plug valve2 | F65: =VLOOKUP(D65,'K-value'!$D$48:$E$124,2,FALSE) -> 1.71 | G65: 0 | I65: 1. Discharge liquid level is assumed 3 m above grade elevation
C66: Pipe entrance | D66: Pipe entrance2 | F66: =VLOOKUP(D66,'K-value'!$D$48:$E$124,2,FALSE) -> 0.78 | G66: 0
C67: Flow orifice | D67: Flow orifice2 | E67: 1 | G67: 0.25
C68: Total, barg | G68: =SUM(G56:G67) -> 0.2519709358
C69: Contingency | G69: 0.2
C70: Total + contingency, barg | G70: =G68*(1+G69) -> 0.302365123
C71: Pressure Loss due to Equipment
C72: AAV | G72: 0.7

Sheet Bombana (hidden)
F1: PUMP SIZING
C5: Project: LNG Regasification in Central Region of Indonesia
C7: Equipment Design Group | E7: 1-2 | F7: MMSCFD
C8: Equipment Design | E8: 1.92 | F8: MMSCFD
C9: Tag No: | E9: MPB-G-001A/B
C10: Description: | E10: LNG Pump
C11: Location: | E11: Mobile PP Bombana | O11: Pipe roughness | P11: 0.05 | Q11: mm
P12: =P11/1000/3.28 -> 1.524390244e-05 | Q12: ft
C14: DATA | I14: RESULTS | O14: Mass flow | P14: =E15*E16/0.45 -> 6218.826667 | Q14: lb/hr
C15: Flow rate | E15: 6.46 | F15: m3/h | I15: Suction Hydraulic | O15: Rho | P15: =E16/16.02 -> 27.0411985 | Q15: lb/ft3
C16: Density | E16: =VLOOKUP(E11,'Data pompa'!$B$5:$R$24,13,FALSE) -> 433.2 | F16: kg/m3 | I16: Pipe ID | J16: =VLOOKUP(E28,'Pipe size sch 40'!$A$5:$C$27,3,FALSE)*25.4/1000 -> 0.077978 | K16: m
C17: Flow temperature | E17: =VLOOKUP(E11,'Data pompa'!$B$5:$R$24,12,FALSE) -> -158.88 | F17: deg C | I17: Velocity | J17: =E15/(PI()/4*J16^2)/3600 -> 0.3757473719 | K17: m/s | O17: Side Calculation (Suction)
C18: Viscocity | E18: =VLOOKUP(E11,'Data pompa'!$B$5:$R$24,14,FALSE) -> 0.1175 | F18: cP | I18: Velocity acceptance | J18: =IF(E28<=2,0.9,IF(OR(E28>=3,E28<=6),1.2,IF(OR(E28>=8,E28<=18),1.5,1.8))) -> 1.2 | K18: m/s | L18: (max) | O18: f tebakan | P18: 0.01877901005
E19: =E18*10^-3 -> 0.0001175 | F19: Nm2/s | I19: Reynold number | J19: =E16*J18*J16/E19 -> 344987.9449 | O19: f left | P19: =1/(P18)^0.5 -> 7.297324395
C20: Vapor pressure | E20: =VLOOKUP(E11,'Data pompa'!$B$5:$R$24,15,FALSE) -> 1.2222 | F20: bara | I20: Pipe DP | J20: =P24 -> 0.007487349358 | K20: bar/100m | O20: f right | P20: =-2*LOG(P12/(3.7*J16*0.3048)+2.51/(J19*(P18)^0.5)) -> 7.290109195
C21: Pump efficiency | E21: 0.45 | I21: Pipe DP acceptance | J21: =IF(E28<=6,0.137,0.225) -> 0.137 | K21: bar/100m | O21: f left/f right | P21: =P19/P20 -> 1.000989725 | Q21: Goal seek
I22: Static head | J22: =E16*9.8*E26/10^5 -> 0.01698144 | K22: bar | O22: psi/100 ft | P22: =0.000336*P18*P14^2/(J16*1000/25.4)^5/P15 -> 0.03309108922
C23: SUCTION | I23: Pipe friction loss | J23: =J20*E27/100 -> 0.004492409615 | K23: bar | O23: psi/ft | P23: =P22/100 -> 0.0003309108922
C24: Pressure at Vessel (min) | E24: 2 | F24: barg | I24: Fitting friction loss | J24: =G46 -> 0.0609614637 | K24: bar | O24: bar/100 m | P24: =P23*100/14.5/0.3048 -> 0.007487349358
C25: Pressure at Vessel (max) | E25: 5 | F25: barg | I25: Suction Pressure | J25: =E24+J22-SUM(J23:J24) -> 1.951527567 | K25: barg
C26: Static head | E26: =VLOOKUP(E11,'Data pompa'!$B$5:$S$27,18,FALSE)/1000 -> 0.4 | F26: m | I26: Result | J26: =IF(AND(J17<J18,J20<J21),"OK","NOT OK") -> OK
C27: Length | E27: 60 | F27: m | G27: assumption | O27: Side Calculation (Discharge) | T27: Suction | V27: Discharge
C28: Pipe size | E28: =VLOOKUP(E11,'Data pompa'!$B$5:$R$24,16,FALSE) -> 3 | F28: in | I28: Discharge Hydraulic | O28: f tebakan | P28: 0.019756589 | W28: < 49 barg | X28: > 49 barg
C29: Schedule | E29: 40 | I29: Pipe ID | J29: =VLOOKUP(E52,'Pipe size sch 40'!$A$5:$C$27,3,FALSE)*25.4/1000 -> 0.052578 | K29: m | O29: f left | P29: =1/(P28)^0.5 -> 7.114493998 | T29: Velocity | U29: Pressure | V29: Velocity | W29: Pressure | X29: Pressure
C30: Fittings | I30: Velocity | J30: =E15/(PI()/4*J16^2)/3600 -> 0.3757473719 | K30: m/s | O30: f right | P30: =-2*LOG(P12/(3.7*J29*0.3048)+2.51/(J32*(P28)^0.5)) -> 7.113299517 | S30: 0.5 | T30: 0.9 | U30: 0.137 | V30: 4.5 | W30: 0.343 | X30: 0.686
E31: Qty | F31: K | G31: DP | I31: Velocity acceptance | J31: =IF(E50<=18,4.5,6) -> 4.5 | K31: m/s | L31: (max) | O31: f left/f right | P31: =P29/P30 -> 1.000167922 | Q31: Goal seek | S31: 0.75 | T31: 0.9 | U31: 0.137 | V31: 4.5 | W31: 0.343 | X31: 0.686
C32: Elbow 90 LR | D32: =C32&$E$28 -> Elbow 90 LR3 | E32: 6 | F32: =VLOOKUP(D32,'K-value'!$D$48:$E$124,2,FALSE) -> 0.29 | G32: =E32*F32*$J$17^2/(2*9.8)*$E$16*9.8/10^5 -> 0.000532107774 | I32: Reynold number | J32: =E16*J31*J29/E19 -> 872302.5804 | O32: psi/100 ft | P32: =0.000336*P28*P14^2/(J29*1000/25.4)^5/P15 -> 0.2497988781 | S32: 1 | T32: 0.9 | U32: 0.137 | V32: 4.5 | W32: 0.343 | X32: 0.686
C33: Elbow 45 LR | D33: Elbow 45 LR3 | F33: =VLOOKUP(D33,'K-value'!$D$48:$E$124,2,FALSE) -> 0.29 | G33: 0 | I33: Pipe DP | J33: =P34 -> 0.05652069828 | K33: bar/100m | O33: psi/ft | P33: =P32/100 -> 0.002497988781 | S33: 1.5 | T33: 0.9 | U33: 0.137 | V33: 4.5 | W33: 0.343 | X33: 0.686
C34: Tee thru | D34: Tee thru3 | F34: =VLOOKUP(D34,'K-value'!$D$48:$E$124,2,FALSE) -> 0.36 | G34: 0 | I34: Pipe DP acceptance | J34: =IF(E49<=49,0.343,0.686) -> 0.686 | K34: bar/100m | O34: bar/100 m | P34: =P33*100/14.5/0.3048 -> 0.05652069828 | S34: 2 | T34: 0.9 | U34: 0.137 | V34: 4.5 | W34: 0.343 | X34: 0.686
C35: Tee branch | D35: Tee branch3 | F35: =VLOOKUP(D35,'K-value'!$D$48:$E$124,2,FALSE) -> 1.08 | G35: 0 | I35: Static head | J35: =E15*9.8*E50/10^5 -> 0.00189924 | K35: bar | L35: note 1 | S35: 3 | T35: 1.2 | U35: 0.137 | V35: 4.5 | W35: 0.343 | X35: 0.686
C36: Ball valve | D36: Ball valve3 | E36: 2 | F36: =VLOOKUP(D36,'K-value'!$D$48:$E$124,2,FALSE) -> 0.05 | G36: 3.058090655e-05 | I36: Line losses | J36: =J33*E51/100 -> 0.01695620948 | K36: bar | S36: 4 | T36: 1.2 | U36: 0.137 | V36: 4.5 | W36: 0.343 | X36: 0.686
C37: Butterfly valve | D37: Butterfly valve3 | F37: =VLOOKUP(D37,'K-value'!$D$48:$E$124,2,FALSE) -> 0.81 | G37: 0 | I37: Fitting & eqp losses | J37: =G70+G72 -> 1.004139432 | K37: bar | O37: NPSHA calculation | S37: 6 | T37: 1.2 | U37: 0.137 | V37: 4.5 | W37: 0.343 | X37: 0.686
C38: Gate valve | D38: Gate valve3 | F38: =VLOOKUP(D38,'K-value'!$D$48:$E$124,2,FALSE) -> 0.14 | G38: 0 | I38: Discharge Pressure | J38: =E49+J35+J36+J37 -> 51.02299488 | K38: barg | O38: HA | P38: =(E24+1.01)*100000/(E16*9.81) -> 70.82866241 | Q38: m | S38: 8 | T38: 1.5 | U38: 0.225 | V38: 4.5 | W38: 0.343 | X38: 0.686
C39: Globe valve | D39: Globe valve3 | F39: =VLOOKUP(D39,'K-value'!$D$48:$E$124,2,FALSE) -> 6.1 | G39: 0 | I39: Result | J39: =IF(AND(J30<J31,J33<J34),"OK","NOT OK") -> OK | O39: HZ | P39: =E26 -> 0.4 | Q39: m | S39: 10 | T39: 1.5 | U39: 0.225 | V39: 4.5 | W39: 0.343 | X39: 0.686
C40: Check valve | D40: Check valve3 | F40: =VLOOKUP(D40,'K-value'!$D$48:$E$124,2,FALSE) -> 1.8 | G40: 0 | O40: HF | P40: =SUM(J23:J24)*-1 -> -0.06545387332 | S40: 12 | T40: 1.5 | U40: 0.225 | V40: 4.5 | W40: 0.343 | X40: 0.686
C41: Plug valve | D41: Plug valve3 | F41: =VLOOKUP(D41,'K-value'!$D$48:$E$124,2,FALSE) -> 1.62 | G41: 0 | I41: Pump Data | O41: HV | P41: 0 | S41: 16 | T41: 1.5 | U41: 0.225 | V41: 4.5 | W41: 0.343 | X41: 0.686
C42: Pipe entrance | D42: Pipe entrance3 | E42: 1 | F42: =VLOOKUP(D42,'K-value'!$D$48:$E$124,2,FALSE) -> 0.78 | G42: 0.0002385310711 | I42: Suction Pressure | J42: =J25 -> 1.951527567 | K42: barg | O42: HVP | P42: =E20*10^5/(E16*9.8)*-1 -> -28.78907796 | Q42: m | S42: 18 | T42: 1.5 | U42: 0.225 | V42: 4.5 | W42: 0.343 | X42: 0.686
C43: Suction strainer | D43: Suction strainer3 | E43: 1 | G43: =0.05*E43 -> 0.05 | I43: Discharge Pressure | J43: =J38 -> 51.02299488 | K43: barg | O43: NPSHA | P43: =SUM(P38:P42) -> 42.37413058 | Q43: m | S43: 20 | T43: 1.8 | U43: 0.225 | V43: 6 | W43: 0.343 | X43: 0.686
C44: Total, barg | G44: =SUM(G32:G43) -> 0.05080121975 | I44: Selected disc. Pressure | J44: 52 | K44: barg
C45: Contingency | G45: 0.2 | I45: Differential Pressure | J45: =J44-J42 -> 50.04847243 | K45: bar
C46: Total + Contingency | G46: =(1+G45)*G44 -> 0.0609614637 | I46: Differential Head | J46: =J45*10^5/(E16*9.8) -> 1178.898196 | K46: m
I47: Hydraulic Power | J47: =E16*9.8*J46*E15/3600000 -> 8.980920331 | K47: kW
C48: DISCHARGE | I48: Pump BHP | J48: =J47/E21 -> 19.95760074 | K48: kW
C49: Target Pressure | E49: =VLOOKUP(E11,'Data pompa'!$B$5:$R$24,3,FALSE) -> 50 | F49: barg | I49: NPSHa | J49: =P43 -> 42.37413058 | K49: m
C50: Static head | E50: 3 | F50: m | G50: note 2 | I50: NPSHr | J50: =J49-1 -> 41.37413058 | K50: m
C51: Length | E51: 30 | F51: m
C52: Pipe size | E52: =VLOOKUP(E11,'Data pompa'!$B$5:$R$24,17,FALSE) -> 2 | F52: in | I52: Shut in Pressure
C53: Schedule | E53: 40 | I53: P shut in | J53: =E25+1.3*J45 -> 70.06301416 | K53: barg
C54: Fittings
E55: Qty | F55: K | G55: DP
C56: Elbow 90 LR | D56: =C56&$E$52 -> Elbow 90 LR2 | E56: 10 | F56: =VLOOKUP(D56,'K-value'!$D$48:$E$124,2,FALSE) -> 0.3 | G56: =E56*F56*$J$17^2/(2*9.8)*$E$16*9.8/10^5 -> 0.0009174271965
C57: Elbow 45 LR | D57: Elbow 45 LR2 | F57: =VLOOKUP(D57,'K-value'!$D$48:$E$124,2,FALSE) -> 0.3 | G57: 0
C58: Tee thru | D58: Tee thru2 | F58: =VLOOKUP(D58,'K-value'!$D$48:$E$124,2,FALSE) -> 0.38 | G58: 0
C59: Tee branch | D59: Tee branch2 | E59: 2 | F59: =VLOOKUP(D59,'K-value'!$D$48:$E$124,2,FALSE) -> 1.14 | G59: 0.0006972446693
C60: Ball valve | D60: Ball valve2 | E60: 5 | F60: =VLOOKUP(D60,'K-value'!$D$48:$E$124,2,FALSE) -> 0.06 | G60: 9.174271965e-05
C61: Butterfly valve | D61: Butterfly valve2 | F61: =VLOOKUP(D61,'K-value'!$D$48:$E$124,2,FALSE) -> 0.86 | G61: 0
C62: Gate valve | D62: Gate valve2 | F62: =VLOOKUP(D62,'K-value'!$D$48:$E$124,2,FALSE) -> 0.15 | G62: 0
C63: Globe valve | D63: Globe valve2 | F63: =VLOOKUP(D63,'K-value'!$D$48:$E$124,2,FALSE) -> 6.5 | G63: 0 | I63: Note:
C64: Check valve | D64: Check valve2 | E64: 3 | F64: =VLOOKUP(D64,'K-value'!$D$48:$E$124,2,FALSE) -> 1.9 | G64: 0.001743111673
C65: Plug valve | D65: Plug valve2 | F65: =VLOOKUP(D65,'K-value'!$D$48:$E$124,2,FALSE) -> 1.71 | G65: 0 | I65: 1. Discharge liquid level is assumed 3 m above grade elevation
C66: Pipe entrance | D66: Pipe entrance2 | F66: =VLOOKUP(D66,'K-value'!$D$48:$E$124,2,FALSE) -> 0.78 | G66: 0
C67: Flow orifice | D67: Flow orifice2 | E67: 1 | G67: 0.25
C68: Total, barg | G68: =SUM(G56:G67) -> 0.2534495263
C69: Contingency | G69: 0.2
C70: Total + contingency, barg | G70: =G68*(1+G69) -> 0.3041394315
C71: Pressure Loss due to Equipment
C72: AAV | G72: 0.7

Sheet Selayar (hidden)
F1: PUMP SIZING
C5: Project: LNG Regasification in Central Region of Indonesia
C7: Equipment Design Group | E7: 1-2 | F7: MMSCFD
C8: Equipment Design | E8: 1.92 | F8: MMSCFD
C9: Tag No: | E9: SLY-G-001A/B
C10: Description: | E10: LNG Pump
C11: Location: | E11: Selayar | O11: Pipe roughness | P11: 0.05 | Q11: mm
P12: =P11/1000/3.28 -> 1.524390244e-05 | Q12: ft
C14: DATA | I14: RESULTS | O14: Mass flow | P14: =E15*E16/0.45 -> 3561.866667 | Q14: lb/hr
C15: Flow rate | E15: =VLOOKUP(E11,'Data pompa'!$B$5:$R$24,8,FALSE) -> 3.7 | F15: m3/h | I15: Suction Hydraulic | O15: Rho | P15: =E16/16.02 -> 27.0411985 | Q15: lb/ft3
C16: Density | E16: =VLOOKUP(E11,'Data pompa'!$B$5:$R$24,13,FALSE) -> 433.2 | F16: kg/m3 | I16: Pipe ID | J16: =VLOOKUP(E28,'Pipe size sch 40'!$A$5:$C$27,3,FALSE)*25.4/1000 -> 0.052578 | K16: m
C17: Flow temperature | E17: =VLOOKUP(E11,'Data pompa'!$B$5:$R$24,12,FALSE) -> -158.88 | F17: deg C | I17: Velocity | J17: =E15/(PI()/4*J16^2)/3600 -> 0.4733705307 | K17: m/s | O17: Side Calculation (Suction)
C18: Viscocity | E18: =VLOOKUP(E11,'Data pompa'!$B$5:$R$24,14,FALSE) -> 0.1175 | F18: cP | I18: Velocity acceptance | J18: =IF(E28<=2,0.9,IF(OR(E28>=3,E28<=6),1.2,IF(OR(E28>=8,E28<=18),1.5,1.8))) -> 0.9 | K18: m/s | L18: (max) | O18: f tebakan | P18: 0.0210124494
E19: =E18*10^-3 -> 0.0001175 | F19: Nm2/s | I19: Reynold number | J19: =E16*J18*J16/E19 -> 174460.5161 | O19: f left | P19: =1/(P18)^0.5 -> 6.89861105
C20: Vapor pressure | E20: =VLOOKUP(E11,'Data pompa'!$B$5:$R$24,15,FALSE) -> 1.2222 | F20: bara | I20: Pipe DP | J20: =P24 -> 0.01972016962 | K20: bar/100m | O20: f right | P20: =-2*LOG(P12/(3.7*J16*0.3048)+2.51/(J19*(P18)^0.5)) -> 6.896280653
C21: Pump efficiency | E21: 0.45 | I21: Pipe DP acceptance | J21: =IF(E28<=6,0.137,0.225) -> 0.137 | K21: bar/100m | O21: f left/f right | P21: =P19/P20 -> 1.000337921 | Q21: Goal seek
I22: Static head | J22: =E16*9.8*E26/10^5 -> 0.01698144 | K22: bar | O22: psi/100 ft | P22: =0.000336*P18*P14^2/(J16*1000/25.4)^5/P15 -> 0.08715526164
C23: SUCTION | I23: Pipe friction loss | J23: =J20*E27/100 -> 0.009973672985 | K23: bar | O23: psi/ft | P23: =P22/100 -> 0.0008715526164
C24: Pressure at Vessel (min) | E24: 2 | F24: barg | I24: Fitting friction loss | J24: =G46 -> 0.0615725552 | K24: bar | O24: bar/100 m | P24: =P23*100/14.5/0.3048 -> 0.01972016962
C25: Pressure at Vessel (max) | E25: 5 | F25: barg | I25: Suction Pressure | J25: =E24+J22-SUM(J23:J24) -> 1.945435212 | K25: barg
C26: Static head | E26: =VLOOKUP(E11,'Data pompa'!$B$5:$S$27,18,FALSE)/1000 -> 0.4 | F26: m | I26: Result | J26: =IF(AND(J17<J18,J20<J21),"OK","NOT OK") -> OK
C27: Length | E27: =(8408+1000+23274+5300+8924+3670)/1000 -> 50.576 | F27: m | G27: assumption | O27: Side Calculation (Discharge) | T27: Suction | V27: Discharge
C28: Pipe size | E28: 2 | F28: in | I28: Discharge Hydraulic | O28: f tebakan | P28: 0.019756589 | W28: < 49 barg | X28: > 49 barg
C29: Schedule | E29: 40 | I29: Pipe ID | J29: =VLOOKUP(E52,'Pipe size sch 40'!$A$5:$C$27,3,FALSE)*25.4/1000 -> 0.052578 | K29: m | O29: f left | P29: =1/(P28)^0.5 -> 7.114493998 | T29: Velocity | U29: Pressure | V29: Velocity | W29: Pressure | X29: Pressure
C30: Fittings | I30: Velocity | J30: =E15/(PI()/4*J16^2)/3600 -> 0.4733705307 | K30: m/s | O30: f right | P30: =-2*LOG(P12/(3.7*J29*0.3048)+2.51/(J32*(P28)^0.5)) -> 7.113299517 | S30: 0.5 | T30: 0.9 | U30: 0.137 | V30: 4.5 | W30: 0.343 | X30: 0.686
E31: Qty | F31: K | G31: DP | I31: Velocity acceptance | J31: =IF(E50<=18,4.5,6) -> 4.5 | K31: m/s | L31: (max) | O31: f left/f right | P31: =P29/P30 -> 1.000167922 | Q31: Goal seek | S31: 0.75 | T31: 0.9 | U31: 0.137 | V31: 4.5 | W31: 0.343 | X31: 0.686
C32: Elbow 90 LR | D32: =C32&$E$28 -> Elbow 90 LR2 | E32: 6 | F32: =VLOOKUP(D32,'K-value'!$D$48:$E$124,2,FALSE) -> 0.3 | G32: =E32*F32*$J$17^2/(2*9.8)*$E$16*9.8/10^5 -> 0.0008736417758 | I32: Reynold number | J32: =E16*J31*J29/E19 -> 872302.5804 | O32: psi/100 ft | P32: =0.000336*P28*P14^2/(J29*1000/25.4)^5/P15 -> 0.08194621441 | S32: 1 | T32: 0.9 | U32: 0.137 | V32: 4.5 | W32: 0.343 | X32: 0.686
C33: Elbow 45 LR | D33: Elbow 45 LR2 | F33: =VLOOKUP(D33,'K-value'!$D$48:$E$124,2,FALSE) -> 0.3 | G33: 0 | I33: Pipe DP | J33: =P34 -> 0.01854154548 | K33: bar/100m | O33: psi/ft | P33: =P32/100 -> 0.0008194621441 | S33: 1.5 | T33: 0.9 | U33: 0.137 | V33: 4.5 | W33: 0.343 | X33: 0.686
C34: Tee thru | D34: Tee thru2 | F34: =VLOOKUP(D34,'K-value'!$D$48:$E$124,2,FALSE) -> 0.38 | G34: 0 | I34: Pipe DP acceptance | J34: =IF(E49<=49,0.343,0.686) -> 0.343 | K34: bar/100m | O34: bar/100 m | P34: =P33*100/14.5/0.3048 -> 0.01854154548 | S34: 2 | T34: 0.9 | U34: 0.137 | V34: 4.5 | W34: 0.343 | X34: 0.686
C35: Tee branch | D35: Tee branch2 | F35: =VLOOKUP(D35,'K-value'!$D$48:$E$124,2,FALSE) -> 1.14 | G35: 0 | I35: Static head | J35: =E15*9.8*E50/10^5 -> 0.0010878 | K35: bar | L35: note 1 | S35: 3 | T35: 1.2 | U35: 0.137 | V35: 4.5 | W35: 0.343 | X35: 0.686
C36: Ball valve | D36: Ball valve2 | E36: 2 | F36: =VLOOKUP(D36,'K-value'!$D$48:$E$124,2,FALSE) -> 0.06 | G36: 5.824278505e-05 | I36: Line losses | J36: =J33*E51/100 -> 0.005562463644 | K36: bar | S36: 4 | T36: 1.2 | U36: 0.137 | V36: 4.5 | W36: 0.343 | X36: 0.686
C37: Butterfly valve | D37: Butterfly valve2 | F37: =VLOOKUP(D37,'K-value'!$D$48:$E$124,2,FALSE) -> 0.86 | G37: 0 | I37: Fitting & eqp losses | J37: =G70+G72 -> 1.006569786 | K37: bar | O37: NPSHA calculation | S37: 6 | T37: 1.2 | U37: 0.137 | V37: 4.5 | W37: 0.343 | X37: 0.686
C38: Gate valve | D38: Gate valve2 | F38: =VLOOKUP(D38,'K-value'!$D$48:$E$124,2,FALSE) -> 0.15 | G38: 0 | I38: Discharge Pressure | J38: =E49+J35+J36+J37 -> 9.01322005 | K38: barg | O38: HA | P38: =(E24+1.01)*100000/(E16*9.81) -> 70.82866241 | Q38: m | S38: 8 | T38: 1.5 | U38: 0.225 | V38: 4.5 | W38: 0.343 | X38: 0.686
C39: Globe valve | D39: Globe valve2 | F39: =VLOOKUP(D39,'K-value'!$D$48:$E$124,2,FALSE) -> 6.5 | G39: 0 | I39: Result | J39: =IF(AND(J30<J31,J33<J34),"OK","NOT OK") -> OK | O39: HZ | P39: =E26 -> 0.4 | Q39: m | S39: 10 | T39: 1.5 | U39: 0.225 | V39: 4.5 | W39: 0.343 | X39: 0.686
C40: Check valve | D40: Check valve2 | F40: =VLOOKUP(D40,'K-value'!$D$48:$E$124,2,FALSE) -> 1.9 | G40: 0 | O40: HF | P40: =SUM(J23:J24)*-1 -> -0.07154622818 | S40: 12 | T40: 1.5 | U40: 0.225 | V40: 4.5 | W40: 0.343 | X40: 0.686
C41: Plug valve | D41: Plug valve2 | F41: =VLOOKUP(D41,'K-value'!$D$48:$E$124,2,FALSE) -> 1.71 | G41: 0 | I41: Pump Data | O41: HV | P41: 0 | S41: 16 | T41: 1.5 | U41: 0.225 | V41: 4.5 | W41: 0.343 | X41: 0.686
C42: Pipe entrance | D42: Pipe entrance2 | E42: 1 | F42: =VLOOKUP(D42,'K-value'!$D$48:$E$124,2,FALSE) -> 0.78 | G42: 0.0003785781028 | I42: Suction Pressure | J42: =J25 -> 1.945435212 | K42: barg | O42: HVP | P42: =E20*10^5/(E16*9.8)*-1 -> -28.78907796 | Q42: m | S42: 18 | T42: 1.5 | U42: 0.225 | V42: 4.5 | W42: 0.343 | X42: 0.686
C43: Suction strainer | D43: Suction strainer2 | E43: 1 | G43: =0.05*E43 -> 0.05 | I43: Discharge Pressure | J43: =J38 -> 9.01322005 | K43: barg | O43: NPSHA | P43: =SUM(P38:P42) -> 42.36803822 | Q43: m | S43: 20 | T43: 1.8 | U43: 0.225 | V43: 6 | W43: 0.343 | X43: 0.686
C44: Total, barg | G44: =SUM(G32:G43) -> 0.05131046266 | I44: Selected disc. Pressure | J44: 10 | K44: barg
C45: Contingency | G45: 0.2 | I45: Differential Pressure | J45: =J44-J42 -> 8.054564788 | K45: bar
C46: Total + Contingency | G46: =(1+G45)*G44 -> 0.0615725552 | I46: Differential Head | J46: =J45*10^5/(E16*9.8) -> 189.726308 | K46: m
I47: Hydraulic Power | J47: =E16*9.8*J46*E15/3600000 -> 0.8278302699 | K47: kW
C48: DISCHARGE | I48: Pump BHP | J48: =J47/E21 -> 1.839622822 | K48: kW
C49: Target Pressure | E49: =VLOOKUP(E11,'Data pompa'!$B$5:$R$24,3,FALSE) -> 8 | F49: barg | I49: NPSHa | J49: =P43 -> 42.36803822 | K49: m
C50: Static head | E50: 3 | F50: m | G50: note 2 | I50: NPSHr | J50: =J49-1 -> 41.36803822 | K50: m
C51: Length | E51: 30 | F51: m
C52: Pipe size | E52: =VLOOKUP(E11,'Data pompa'!$B$5:$R$24,17,FALSE) -> 2 | F52: in | I52: Shut in Pressure
C53: Schedule | E53: 40 | I53: P shut in | J53: =E25+1.3*J45 -> 15.47093422 | K53: barg
C54: Fittings
E55: Qty | F55: K | G55: DP
C56: Elbow 90 LR | D56: =C56&$E$52 -> Elbow 90 LR2 | E56: 10 | F56: =VLOOKUP(D56,'K-value'!$D$48:$E$124,2,FALSE) -> 0.3 | G56: =E56*F56*$J$17^2/(2*9.8)*$E$16*9.8/10^5 -> 0.001456069626
C57: Elbow 45 LR | D57: Elbow 45 LR2 | F57: =VLOOKUP(D57,'K-value'!$D$48:$E$124,2,FALSE) -> 0.3 | G57: 0
C58: Tee thru | D58: Tee thru2 | F58: =VLOOKUP(D58,'K-value'!$D$48:$E$124,2,FALSE) -> 0.38 | G58: 0
C59: Tee branch | D59: Tee branch2 | E59: 2 | F59: =VLOOKUP(D59,'K-value'!$D$48:$E$124,2,FALSE) -> 1.14 | G59: 0.001106612916
C60: Ball valve | D60: Ball valve2 | E60: 5 | F60: =VLOOKUP(D60,'K-value'!$D$48:$E$124,2,FALSE) -> 0.06 | G60: 0.0001456069626
C61: Butterfly valve | D61: Butterfly valve2 | F61: =VLOOKUP(D61,'K-value'!$D$48:$E$124,2,FALSE) -> 0.86 | G61: 0
C62: Gate valve | D62: Gate valve2 | F62: =VLOOKUP(D62,'K-value'!$D$48:$E$124,2,FALSE) -> 0.15 | G62: 0
C63: Globe valve | D63: Globe valve2 | F63: =VLOOKUP(D63,'K-value'!$D$48:$E$124,2,FALSE) -> 6.5 | G63: 0 | I63: Note:
C64: Check valve | D64: Check valve2 | E64: 3 | F64: =VLOOKUP(D64,'K-value'!$D$48:$E$124,2,FALSE) -> 1.9 | G64: 0.00276653229
C65: Plug valve | D65: Plug valve2 | F65: =VLOOKUP(D65,'K-value'!$D$48:$E$124,2,FALSE) -> 1.71 | G65: 0 | I65: 1. Discharge liquid level is assumed 3 m above grade elevation
C66: Pipe entrance | D66: Pipe entrance2 | F66: =VLOOKUP(D66,'K-value'!$D$48:$E$124,2,FALSE) -> 0.78 | G66: 0
C67: Flow orifice | D67: Flow orifice2 | E67: 1 | G67: 0.25
C68: Total, barg | G68: =SUM(G56:G67) -> 0.2554748218
C69: Contingency | G69: 0.2
C70: Total + contingency, barg | G70: =G68*(1+G69) -> 0.3065697862
C71: Pressure Loss due to Equipment
C72: AAV | G72: 0.7

Sheet Waingapu (hidden)
F1: PUMP SIZING
C5: Project: LNG Regasification in Central Region of Indonesia
C7: Equipment Design Group | E7: 1-2 | F7: MMSCFD
C8: Equipment Design | E8: 1.92 | F8: MMSCFD
C9: Tag No: | E9: WNG-G-001A/B
C10: Description: | E10: LNG Pump
C11: Location: | E11: Waingapu | O11: Pipe roughness | P11: 0.05 | Q11: mm
P12: =P11/1000/3.28 -> 1.524390244e-05 | Q12: ft
C14: DATA | I14: RESULTS | O14: Mass flow | P14: =E15*E16/0.45 -> 3561.866667 | Q14: lb/hr
C15: Flow rate | E15: =VLOOKUP(E11,'Data pompa'!$B$5:$R$24,8,FALSE) -> 3.7 | F15: m3/h | I15: Suction Hydraulic | O15: Rho | P15: =E16/16.02 -> 27.0411985 | Q15: lb/ft3
C16: Density | E16: =VLOOKUP(E11,'Data pompa'!$B$5:$R$24,13,FALSE) -> 433.2 | F16: kg/m3 | I16: Pipe ID | J16: =VLOOKUP(E28,'Pipe size sch 40'!$A$5:$C$27,3,FALSE)*25.4/1000 -> 0.052578 | K16: m
C17: Flow temperature | E17: =VLOOKUP(E11,'Data pompa'!$B$5:$R$24,12,FALSE) -> -158.88 | F17: deg C | I17: Velocity | J17: =E15/(PI()/4*J16^2)/3600 -> 0.4733705307 | K17: m/s | O17: Side Calculation (Suction)
C18: Viscocity | E18: =VLOOKUP(E11,'Data pompa'!$B$5:$R$24,14,FALSE) -> 0.1175 | F18: cP | I18: Velocity acceptance | J18: =IF(E28<=2,0.9,IF(OR(E28>=3,E28<=6),1.2,IF(OR(E28>=8,E28<=18),1.5,1.8))) -> 0.9 | K18: m/s | L18: (max) | O18: f tebakan | P18: 0.0210124494
E19: =E18*10^-3 -> 0.0001175 | F19: Nm2/s | I19: Reynold number | J19: =E16*J18*J16/E19 -> 174460.5161 | O19: f left | P19: =1/(P18)^0.5 -> 6.89861105
C20: Vapor pressure | E20: =VLOOKUP(E11,'Data pompa'!$B$5:$R$24,15,FALSE) -> 1.2222 | F20: bara | I20: Pipe DP | J20: =P24 -> 0.01972016962 | K20: bar/100m | O20: f right | P20: =-2*LOG(P12/(3.7*J16*0.3048)+2.51/(J19*(P18)^0.5)) -> 6.896280653
C21: Pump efficiency | E21: 0.45 | I21: Pipe DP acceptance | J21: =IF(E28<=6,0.137,0.225) -> 0.137 | K21: bar/100m | O21: f left/f right | P21: =P19/P20 -> 1.000337921 | Q21: Goal seek
I22: Static head | J22: =E16*9.8*E26/10^5 -> 0.01698144 | K22: bar | O22: psi/100 ft | P22: =0.000336*P18*P14^2/(J16*1000/25.4)^5/P15 -> 0.08715526164
C23: SUCTION | I23: Pipe friction loss | J23: =J20*E27/100 -> 0.004930042404 | K23: bar | O23: psi/ft | P23: =P22/100 -> 0.0008715526164
C24: Pressure at Vessel (min) | E24: 2 | F24: barg | I24: Fitting friction loss | J24: =G46 -> 0.06118815282 | K24: bar | O24: bar/100 m | P24: =P23*100/14.5/0.3048 -> 0.01972016962
C25: Pressure at Vessel (max) | E25: 5 | F25: barg | I25: Suction Pressure | J25: =E24+J22-SUM(J23:J24) -> 1.950863245 | K25: barg
C26: Static head | E26: =VLOOKUP(E11,'Data pompa'!$B$5:$S$27,18,FALSE)/1000 -> 0.4 | F26: m | I26: Result | J26: =IF(AND(J17<J18,J20<J21),"OK","NOT OK") -> OK
C27: Length | E27: 25 | F27: m | G27: assumption | O27: Side Calculation (Discharge) | T27: Suction | V27: Discharge
C28: Pipe size | E28: 2 | F28: in | I28: Discharge Hydraulic | O28: f tebakan | P28: 0.019756589 | W28: < 49 barg | X28: > 49 barg
C29: Schedule | E29: 40 | I29: Pipe ID | J29: =VLOOKUP(E52,'Pipe size sch 40'!$A$5:$C$27,3,FALSE)*25.4/1000 -> 0.052578 | K29: m | O29: f left | P29: =1/(P28)^0.5 -> 7.114493998 | T29: Velocity | U29: Pressure | V29: Velocity | W29: Pressure | X29: Pressure
C30: Fittings | I30: Velocity | J30: =E15/(PI()/4*J16^2)/3600 -> 0.4733705307 | K30: m/s | O30: f right | P30: =-2*LOG(P12/(3.7*J29*0.3048)+2.51/(J32*(P28)^0.5)) -> 7.113299517 | S30: 0.5 | T30: 0.9 | U30: 0.137 | V30: 4.5 | W30: 0.343 | X30: 0.686
E31: Qty | F31: K | G31: DP | I31: Velocity acceptance | J31: =IF(E50<=18,4.5,6) -> 4.5 | K31: m/s | L31: (max) | O31: f left/f right | P31: =P29/P30 -> 1.000167922 | Q31: Goal seek | S31: 0.75 | T31: 0.9 | U31: 0.137 | V31: 4.5 | W31: 0.343 | X31: 0.686
C32: Elbow 90 LR | D32: =C32&$E$28 -> Elbow 90 LR2 | E32: 4 | F32: =VLOOKUP(D32,'K-value'!$D$48:$E$124,2,FALSE) -> 0.3 | G32: =E32*F32*$J$17^2/(2*9.8)*$E$16*9.8/10^5 -> 0.0005824278505 | I32: Reynold number | J32: =E16*J31*J29/E19 -> 872302.5804 | O32: psi/100 ft | P32: =0.000336*P28*P14^2/(J29*1000/25.4)^5/P15 -> 0.08194621441 | S32: 1 | T32: 0.9 | U32: 0.137 | V32: 4.5 | W32: 0.343 | X32: 0.686
C33: Elbow 45 LR | D33: Elbow 45 LR2 | F33: =VLOOKUP(D33,'K-value'!$D$48:$E$124,2,FALSE) -> 0.3 | G33: 0 | I33: Pipe DP | J33: =P34 -> 0.01854154548 | K33: bar/100m | O33: psi/ft | P33: =P32/100 -> 0.0008194621441 | S33: 1.5 | T33: 0.9 | U33: 0.137 | V33: 4.5 | W33: 0.343 | X33: 0.686
C34: Tee thru | D34: Tee thru2 | F34: =VLOOKUP(D34,'K-value'!$D$48:$E$124,2,FALSE) -> 0.38 | G34: 0 | I34: Pipe DP acceptance | J34: =IF(E49<=49,0.343,0.686) -> 0.343 | K34: bar/100m | O34: bar/100 m | P34: =P33*100/14.5/0.3048 -> 0.01854154548 | S34: 2 | T34: 0.9 | U34: 0.137 | V34: 4.5 | W34: 0.343 | X34: 0.686
C35: Tee branch | D35: Tee branch2 | F35: =VLOOKUP(D35,'K-value'!$D$48:$E$124,2,FALSE) -> 1.14 | G35: 0 | I35: Static head | J35: =E15*9.8*E50/10^5 -> 0.0010878 | K35: bar | L35: note 1 | S35: 3 | T35: 1.2 | U35: 0.137 | V35: 4.5 | W35: 0.343 | X35: 0.686
C36: Ball valve | D36: Ball valve2 | E36: 1 | F36: =VLOOKUP(D36,'K-value'!$D$48:$E$124,2,FALSE) -> 0.06 | G36: 2.912139253e-05 | I36: Line losses | J36: =J33*E51/100 -> 0.005562463644 | K36: bar | S36: 4 | T36: 1.2 | U36: 0.137 | V36: 4.5 | W36: 0.343 | X36: 0.686
C37: Butterfly valve | D37: Butterfly valve2 | F37: =VLOOKUP(D37,'K-value'!$D$48:$E$124,2,FALSE) -> 0.86 | G37: 0 | I37: Fitting & eqp losses | J37: =G70+G72 -> 1.006045601 | K37: bar | O37: NPSHA calculation | S37: 6 | T37: 1.2 | U37: 0.137 | V37: 4.5 | W37: 0.343 | X37: 0.686
C38: Gate valve | D38: Gate valve2 | F38: =VLOOKUP(D38,'K-value'!$D$48:$E$124,2,FALSE) -> 0.15 | G38: 0 | I38: Discharge Pressure | J38: =E49+J35+J36+J37 -> 9.012695865 | K38: barg | O38: HA | P38: =(E24+1.01)*100000/(E16*9.81) -> 70.82866241 | Q38: m | S38: 8 | T38: 1.5 | U38: 0.225 | V38: 4.5 | W38: 0.343 | X38: 0.686
C39: Globe valve | D39: Globe valve2 | F39: =VLOOKUP(D39,'K-value'!$D$48:$E$124,2,FALSE) -> 6.5 | G39: 0 | I39: Result | J39: =IF(AND(J30<J31,J33<J34),"OK","NOT OK") -> OK | O39: HZ | P39: =E26 -> 0.4 | Q39: m | S39: 10 | T39: 1.5 | U39: 0.225 | V39: 4.5 | W39: 0.343 | X39: 0.686
C40: Check valve | D40: Check valve2 | F40: =VLOOKUP(D40,'K-value'!$D$48:$E$124,2,FALSE) -> 1.9 | G40: 0 | O40: HF | P40: =SUM(J23:J24)*-1 -> -0.06611819522 | S40: 12 | T40: 1.5 | U40: 0.225 | V40: 4.5 | W40: 0.343 | X40: 0.686
C41: Plug valve | D41: Plug valve2 | F41: =VLOOKUP(D41,'K-value'!$D$48:$E$124,2,FALSE) -> 1.71 | G41: 0 | I41: Pump Data | O41: HV | P41: 0 | S41: 16 | T41: 1.5 | U41: 0.225 | V41: 4.5 | W41: 0.343 | X41: 0.686
C42: Pipe entrance | D42: Pipe entrance2 | E42: 1 | F42: =VLOOKUP(D42,'K-value'!$D$48:$E$124,2,FALSE) -> 0.78 | G42: 0.0003785781028 | I42: Suction Pressure | J42: =J25 -> 1.950863245 | K42: barg | O42: HVP | P42: =E20*10^5/(E16*9.8)*-1 -> -28.78907796 | Q42: m | S42: 18 | T42: 1.5 | U42: 0.225 | V42: 4.5 | W42: 0.343 | X42: 0.686
C43: Suction strainer | D43: Suction strainer2 | E43: 1 | G43: =0.05*E43 -> 0.05 | I43: Discharge Pressure | J43: =J38 -> 9.012695865 | K43: barg | O43: NPSHA | P43: =SUM(P38:P42) -> 42.37346625 | Q43: m | S43: 20 | T43: 1.8 | U43: 0.225 | V43: 6 | W43: 0.343 | X43: 0.686
C44: Total, barg | G44: =SUM(G32:G43) -> 0.05099012735 | I44: Selected disc. Pressure | J44: 10 | K44: barg
C45: Contingency | G45: 0.2 | I45: Differential Pressure | J45: =J44-J42 -> 8.049136755 | K45: bar
C46: Total + Contingency | G46: =(1+G45)*G44 -> 0.06118815282 | I46: Differential Head | J46: =J45*10^5/(E16*9.8) -> 189.59845 | K46: m
I47: Hydraulic Power | J47: =E16*9.8*J46*E15/3600000 -> 0.8272723887 | K47: kW
C48: DISCHARGE | I48: Pump BHP | J48: =J47/E21 -> 1.838383086 | K48: kW
C49: Target Pressure | E49: =VLOOKUP(E11,'Data pompa'!$B$5:$R$24,3,FALSE) -> 8 | F49: barg | I49: NPSHa | J49: =P43 -> 42.37346625 | K49: m
C50: Static head | E50: 3 | F50: m | G50: note 2 | I50: NPSHr | J50: =J49-1 -> 41.37346625 | K50: m
C51: Length | E51: 30 | F51: m
C52: Pipe size | E52: =VLOOKUP(E11,'Data pompa'!$B$5:$R$24,17,FALSE) -> 2 | F52: in | I52: Shut in Pressure
C53: Schedule | E53: 40 | I53: P shut in | J53: =E25+1.3*J45 -> 15.46387778 | K53: barg
C54: Fittings
E55: Qty | F55: K | G55: DP
C56: Elbow 90 LR | D56: =C56&$E$52 -> Elbow 90 LR2 | E56: 7 | F56: =VLOOKUP(D56,'K-value'!$D$48:$E$124,2,FALSE) -> 0.3 | G56: =E56*F56*$J$17^2/(2*9.8)*$E$16*9.8/10^5 -> 0.001019248738
C57: Elbow 45 LR | D57: Elbow 45 LR2 | F57: =VLOOKUP(D57,'K-value'!$D$48:$E$124,2,FALSE) -> 0.3 | G57: 0
C58: Tee thru | D58: Tee thru2 | F58: =VLOOKUP(D58,'K-value'!$D$48:$E$124,2,FALSE) -> 0.38 | G58: 0
C59: Tee branch | D59: Tee branch2 | E59: 2 | F59: =VLOOKUP(D59,'K-value'!$D$48:$E$124,2,FALSE) -> 1.14 | G59: 0.001106612916
C60: Ball valve | D60: Ball valve2 | E60: 5 | F60: =VLOOKUP(D60,'K-value'!$D$48:$E$124,2,FALSE) -> 0.06 | G60: 0.0001456069626
C61: Butterfly valve | D61: Butterfly valve2 | F61: =VLOOKUP(D61,'K-value'!$D$48:$E$124,2,FALSE) -> 0.86 | G61: 0
C62: Gate valve | D62: Gate valve2 | F62: =VLOOKUP(D62,'K-value'!$D$48:$E$124,2,FALSE) -> 0.15 | G62: 0
C63: Globe valve | D63: Globe valve2 | F63: =VLOOKUP(D63,'K-value'!$D$48:$E$124,2,FALSE) -> 6.5 | G63: 0 | I63: Note:
C64: Check valve | D64: Check valve2 | E64: 3 | F64: =VLOOKUP(D64,'K-value'!$D$48:$E$124,2,FALSE) -> 1.9 | G64: 0.00276653229
C65: Plug valve | D65: Plug valve2 | F65: =VLOOKUP(D65,'K-value'!$D$48:$E$124,2,FALSE) -> 1.71 | G65: 0 | I65: 1. Discharge liquid level is assumed 3 m above grade elevation
C66: Pipe entrance | D66: Pipe entrance2 | F66: =VLOOKUP(D66,'K-value'!$D$48:$E$124,2,FALSE) -> 0.78 | G66: 0
C67: Flow orifice | D67: Flow orifice2 | E67: 1 | G67: 0.25
C68: Total, barg | G68: =SUM(G56:G67) -> 0.2550380009
C69: Contingency | G69: 0.2
C70: Total + contingency, barg | G70: =G68*(1+G69) -> 0.3060456011
C71: Pressure Loss due to Equipment
C72: AAV | G72: 0.7

Sheet Alor (hidden)
F1: PUMP SIZING
C5: Project: LNG Regasification in Central Region of Indonesia
C7: Equipment Design Group | E7: 1-2 | F7: MMSCFD
C8: Equipment Design | E8: 1.92 | F8: MMSCFD
C9: Tag No: | E9: ALO-G-001A/B
C10: Description: | E10: LNG Pump
C11: Location: | E11: Alor | O11: Pipe roughness | P11: 0.05 | Q11: mm
P12: =P11/1000/3.28 -> 1.524390244e-05 | Q12: ft
C14: DATA | I14: RESULTS | O14: Mass flow | P14: =E15*E16/0.45 -> 3542.613333 | Q14: lb/hr
C15: Flow rate | E15: ='Data pompa'!I12 -> 3.68 | F15: m3/h | I15: Suction Hydraulic | O15: Rho | P15: =E16/16.02 -> 27.0411985 | Q15: lb/ft3
C16: Density | E16: =VLOOKUP(E11,'Data pompa'!$B$5:$R$24,13,FALSE) -> 433.2 | F16: kg/m3 | I16: Pipe ID | J16: =VLOOKUP(E28,'Pipe size sch 40'!$A$5:$C$27,3,FALSE)*25.4/1000 -> 0.052578 | K16: m
C17: Flow temperature | E17: =VLOOKUP(E11,'Data pompa'!$B$5:$R$24,12,FALSE) -> -158.88 | F17: deg C | I17: Velocity | J17: =E15/(PI()/4*J16^2)/3600 -> 0.4708117711 | K17: m/s | O17: Side Calculation (Suction)
C18: Viscocity | E18: =VLOOKUP(E11,'Data pompa'!$B$5:$R$24,14,FALSE) -> 0.1175 | F18: cP | I18: Velocity acceptance | J18: =IF(E28<=2,0.9,IF(OR(E28>=3,E28<=6),1.2,IF(OR(E28>=8,E28<=18),1.5,1.8))) -> 0.9 | K18: m/s | L18: (max) | O18: f tebakan | P18: 0.0210124494
E19: =E18*10^-3 -> 0.0001175 | F19: Nm2/s | I19: Reynold number | J19: =E16*J18*J16/E19 -> 174460.5161 | O19: f left | P19: =1/(P18)^0.5 -> 6.89861105
C20: Vapor pressure | E20: =VLOOKUP(E11,'Data pompa'!$B$5:$R$24,15,FALSE) -> 1.2222 | F20: bara | I20: Pipe DP | J20: =P24 -> 0.01950755479 | K20: bar/100m | O20: f right | P20: =-2*LOG(P12/(3.7*J16*0.3048)+2.51/(J19*(P18)^0.5)) -> 6.896280653
C21: Pump efficiency | E21: 0.45 | I21: Pipe DP acceptance | J21: =IF(E28<=6,0.137,0.225) -> 0.137 | K21: bar/100m | O21: f left/f right | P21: =P19/P20 -> 1.000337921 | Q21: Goal seek
I22: Static head | J22: =E16*9.8*E26/10^5 -> 0.01698144 | K22: bar | O22: psi/100 ft | P22: =0.000336*P18*P14^2/(J16*1000/25.4)^5/P15 -> 0.08621558913
C23: SUCTION | I23: Pipe friction loss | J23: =J20*E27/100 -> 0.009866140908 | K23: bar | O23: psi/ft | P23: =P22/100 -> 0.0008621558913
C24: Pressure at Vessel (min) | E24: 2 | F24: barg | I24: Fitting friction loss | J24: =G46 -> 0.06290378769 | K24: bar | O24: bar/100 m | P24: =P23*100/14.5/0.3048 -> 0.01950755479
C25: Pressure at Vessel (max) | E25: 5 | F25: barg | I25: Suction Pressure | J25: =E24+J22-SUM(J23:J24) -> 1.944211511 | K25: barg
C26: Static head | E26: =VLOOKUP(E11,'Data pompa'!$B$5:$S$27,18,FALSE)/1000 -> 0.4 | F26: m | I26: Result | J26: =IF(AND(J17<J18,J20<J21),"OK","NOT OK") -> OK
C27: Length | E27: =(8408+1000+23274+5300+8924+3670)/1000 -> 50.576 | F27: m | G27: assumption | O27: Side Calculation (Discharge) | T27: Suction | V27: Discharge
C28: Pipe size | E28: 2 | F28: in | I28: Discharge Hydraulic | O28: f tebakan | P28: 0.019756589 | W28: < 49 barg | X28: > 49 barg
C29: Schedule | E29: 40 | I29: Pipe ID | J29: =VLOOKUP(E52,'Pipe size sch 40'!$A$5:$C$27,3,FALSE)*25.4/1000 -> 0.052578 | K29: m | O29: f left | P29: =1/(P28)^0.5 -> 7.114493998 | T29: Velocity | U29: Pressure | V29: Velocity | W29: Pressure | X29: Pressure
C30: Fittings | I30: Velocity | J30: =E15/(PI()/4*J16^2)/3600 -> 0.4708117711 | K30: m/s | O30: f right | P30: =-2*LOG(P12/(3.7*J29*0.3048)+2.51/(J32*(P28)^0.5)) -> 7.113299517 | S30: 0.5 | T30: 0.9 | U30: 0.137 | V30: 4.5 | W30: 0.343 | X30: 0.686
E31: Qty | F31: K | G31: DP | I31: Velocity acceptance | J31: =IF(E50<=18,4.5,6) -> 4.5 | K31: m/s | L31: (max) | O31: f left/f right | P31: =P29/P30 -> 1.000167922 | Q31: Goal seek | S31: 0.75 | T31: 0.9 | U31: 0.137 | V31: 4.5 | W31: 0.343 | X31: 0.686
C32: Elbow 90 LR | D32: =C32&$E$28 -> Elbow 90 LR2 | E32: 10 | F32: =VLOOKUP(D32,'K-value'!$D$48:$E$124,2,FALSE) -> 0.3 | G32: =E32*F32*$J$17^2/(2*9.8)*$E$16*9.8/10^5 -> 0.001440370877 | I32: Reynold number | J32: =E16*J31*J29/E19 -> 872302.5804 | O32: psi/100 ft | P32: =0.000336*P28*P14^2/(J29*1000/25.4)^5/P15 -> 0.08106270373 | S32: 1 | T32: 0.9 | U32: 0.137 | V32: 4.5 | W32: 0.343 | X32: 0.686
C33: Elbow 45 LR | D33: Elbow 45 LR2 | F33: =VLOOKUP(D33,'K-value'!$D$48:$E$124,2,FALSE) -> 0.3 | G33: 0 | I33: Pipe DP | J33: =P34 -> 0.0183416381 | K33: bar/100m | O33: psi/ft | P33: =P32/100 -> 0.0008106270373 | S33: 1.5 | T33: 0.9 | U33: 0.137 | V33: 4.5 | W33: 0.343 | X33: 0.686
C34: Tee thru | D34: Tee thru2 | F34: =VLOOKUP(D34,'K-value'!$D$48:$E$124,2,FALSE) -> 0.38 | G34: 0 | I34: Pipe DP acceptance | J34: =IF(E49<=49,0.343,0.686) -> 0.343 | K34: bar/100m | O34: bar/100 m | P34: =P33*100/14.5/0.3048 -> 0.0183416381 | S34: 2 | T34: 0.9 | U34: 0.137 | V34: 4.5 | W34: 0.343 | X34: 0.686
C35: Tee branch | D35: Tee branch2 | E35: 1 | F35: =VLOOKUP(D35,'K-value'!$D$48:$E$124,2,FALSE) -> 1.14 | G35: 0.0005473409333 | I35: Static head | J35: =E15*9.8*E50/10^5 -> 0.00108192 | K35: bar | L35: note 1 | S35: 3 | T35: 1.2 | U35: 0.137 | V35: 4.5 | W35: 0.343 | X35: 0.686
C36: Ball valve | D36: Ball valve2 | E36: 2 | F36: =VLOOKUP(D36,'K-value'!$D$48:$E$124,2,FALSE) -> 0.06 | G36: 5.761483508e-05 | I36: Line losses | J36: =J33*E51/100 -> 0.0183416381 | K36: bar | S36: 4 | T36: 1.2 | U36: 0.137 | V36: 4.5 | W36: 0.343 | X36: 0.686
C37: Butterfly valve | D37: Butterfly valve2 | F37: =VLOOKUP(D37,'K-value'!$D$48:$E$124,2,FALSE) -> 0.86 | G37: 0 | I37: Fitting & eqp losses | J37: =G70+G72 -> 1.006498953 | K37: bar | O37: NPSHA calculation | S37: 6 | T37: 1.2 | U37: 0.137 | V37: 4.5 | W37: 0.343 | X37: 0.686
C38: Gate valve | D38: Gate valve2 | F38: =VLOOKUP(D38,'K-value'!$D$48:$E$124,2,FALSE) -> 0.15 | G38: 0 | I38: Discharge Pressure | J38: =E49+J35+J36+J37 -> 9.025922511 | K38: barg | O38: HA | P38: =(E24+1.01)*100000/(E16*9.81) -> 70.82866241 | Q38: m | S38: 8 | T38: 1.5 | U38: 0.225 | V38: 4.5 | W38: 0.343 | X38: 0.686
C39: Globe valve | D39: Globe valve2 | F39: =VLOOKUP(D39,'K-value'!$D$48:$E$124,2,FALSE) -> 6.5 | G39: 0 | I39: Result | J39: =IF(AND(J30<J31,J33<J34),"OK","NOT OK") -> OK | O39: HZ | P39: =E26 -> 0.4 | Q39: m | S39: 10 | T39: 1.5 | U39: 0.225 | V39: 4.5 | W39: 0.343 | X39: 0.686
C40: Check valve | D40: Check valve2 | F40: =VLOOKUP(D40,'K-value'!$D$48:$E$124,2,FALSE) -> 1.9 | G40: 0 | O40: HF | P40: =SUM(J23:J24)*-1 -> -0.0727699286 | S40: 12 | T40: 1.5 | U40: 0.225 | V40: 4.5 | W40: 0.343 | X40: 0.686
C41: Plug valve | D41: Plug valve2 | F41: =VLOOKUP(D41,'K-value'!$D$48:$E$124,2,FALSE) -> 1.71 | G41: 0 | I41: Pump Data | O41: HV | P41: 0 | S41: 16 | T41: 1.5 | U41: 0.225 | V41: 4.5 | W41: 0.343 | X41: 0.686
C42: Pipe entrance | D42: Pipe entrance2 | E42: 1 | F42: =VLOOKUP(D42,'K-value'!$D$48:$E$124,2,FALSE) -> 0.78 | G42: 0.0003744964281 | I42: Suction Pressure | J42: =J25 -> 1.944211511 | K42: barg | O42: HVP | P42: =E20*10^5/(E16*9.8)*-1 -> -28.78907796 | Q42: m | S42: 18 | T42: 1.5 | U42: 0.225 | V42: 4.5 | W42: 0.343 | X42: 0.686
C43: Suction strainer | D43: Suction strainer2 | E43: 1 | G43: =0.05*E43 -> 0.05 | I43: Discharge Pressure | J43: =J38 -> 9.025922511 | K43: barg | O43: NPSHA | P43: =SUM(P38:P42) -> 42.36681452 | Q43: m | S43: 20 | T43: 1.8 | U43: 0.225 | V43: 6 | W43: 0.343 | X43: 0.686
C44: Total, barg | G44: =SUM(G32:G43) -> 0.05241982307 | I44: Selected disc. Pressure | J44: 10 | K44: barg
C45: Contingency | G45: 0.2 | I45: Differential Pressure | J45: =J44-J42 -> 8.055788489 | K45: bar
C46: Total + Contingency | G46: =(1+G45)*G44 -> 0.06290378769 | I46: Differential Head | J46: =J45*10^5/(E16*9.8) -> 189.7551324 | K46: m
I47: Hydraulic Power | J47: =E16*9.8*J46*E15/3600000 -> 0.8234806011 | K47: kW
C48: DISCHARGE | I48: Pump BHP | J48: =J47/E21 -> 1.829956891 | K48: kW
C49: Target Pressure | E49: =VLOOKUP(E11,'Data pompa'!$B$5:$R$24,3,FALSE) -> 8 | F49: barg | I49: NPSHa | J49: =P43 -> 42.36681452 | K49: m
C50: Static head | E50: 3 | F50: m | G50: note 2 | I50: NPSHr | J50: =J49-1 -> 41.36681452 | K50: m
C51: Length | E51: 100 | F51: m
C52: Pipe size | E52: =VLOOKUP(E11,'Data pompa'!$B$5:$R$24,17,FALSE) -> 2 | F52: in | I52: Shut in Pressure
C53: Schedule | E53: 40 | I53: P shut in | J53: =E25+1.3*J45 -> 15.47252504 | K53: barg
C54: Fittings
E55: Qty | F55: K | G55: DP
C56: Elbow 90 LR | D56: =C56&$E$52 -> Elbow 90 LR2 | E56: 10 | F56: =VLOOKUP(D56,'K-value'!$D$48:$E$124,2,FALSE) -> 0.3 | G56: =E56*F56*$J$17^2/(2*9.8)*$E$16*9.8/10^5 -> 0.001440370877
C57: Elbow 45 LR | D57: Elbow 45 LR2 | F57: =VLOOKUP(D57,'K-value'!$D$48:$E$124,2,FALSE) -> 0.3 | G57: 0
C58: Tee thru | D58: Tee thru2 | F58: =VLOOKUP(D58,'K-value'!$D$48:$E$124,2,FALSE) -> 0.38 | G58: 0
C59: Tee branch | D59: Tee branch2 | E59: 2 | F59: =VLOOKUP(D59,'K-value'!$D$48:$E$124,2,FALSE) -> 1.14 | G59: 0.001094681867
C60: Ball valve | D60: Ball valve2 | E60: 5 | F60: =VLOOKUP(D60,'K-value'!$D$48:$E$124,2,FALSE) -> 0.06 | G60: 0.0001440370877
C61: Butterfly valve | D61: Butterfly valve2 | F61: =VLOOKUP(D61,'K-value'!$D$48:$E$124,2,FALSE) -> 0.86 | G61: 0
C62: Gate valve | D62: Gate valve2 | F62: =VLOOKUP(D62,'K-value'!$D$48:$E$124,2,FALSE) -> 0.15 | G62: 0
C63: Globe valve | D63: Globe valve2 | F63: =VLOOKUP(D63,'K-value'!$D$48:$E$124,2,FALSE) -> 6.5 | G63: 0 | I63: Note:
C64: Check valve | D64: Check valve2 | E64: 3 | F64: =VLOOKUP(D64,'K-value'!$D$48:$E$124,2,FALSE) -> 1.9 | G64: 0.002736704667
C65: Plug valve | D65: Plug valve2 | F65: =VLOOKUP(D65,'K-value'!$D$48:$E$124,2,FALSE) -> 1.71 | G65: 0 | I65: 1. Discharge liquid level is assumed 3 m above grade elevation
C66: Pipe entrance | D66: Pipe entrance2 | F66: =VLOOKUP(D66,'K-value'!$D$48:$E$124,2,FALSE) -> 0.78 | G66: 0
C67: Flow orifice | D67: Flow orifice2 | E67: 1 | G67: 0.25
C68: Total, barg | G68: =SUM(G56:G67) -> 0.2554157945
C69: Contingency | G69: 0.2
C70: Total + contingency, barg | G70: =G68*(1+G69) -> 0.3064989534
C71: Pressure Loss due to Equipment
C72: AAV | G72: 0.7

Sheet Tahuna (hidden)
F1: PUMP SIZING
C5: Project: LNG Regasification in Central Region of Indonesia
C7: Equipment Design Group | E7: 1-2 | F7: MMSCFD
C8: Equipment Design | E8: 1.92 | F8: MMSCFD
C9: Tag No: | E9: TAH-G-001A/B
C10: Description: | E10: LNG Pump
C11: Location: | E11: Tahuna | O11: Pipe roughness | P11: 0.05 | Q11: mm
P12: =P11/1000/3.28 -> 1.524390244e-05 | Q12: ft
C14: DATA | I14: RESULTS | O14: Mass flow | P14: =E15*E16/0.45 -> 3561.866667 | Q14: lb/hr
C15: Flow rate | E15: =VLOOKUP(E11,'Data pompa'!$B$5:$R$24,8,FALSE) -> 3.7 | F15: m3/h | I15: Suction Hydraulic | O15: Rho | P15: =E16/16.02 -> 27.0411985 | Q15: lb/ft3
C16: Density | E16: =VLOOKUP(E11,'Data pompa'!$B$5:$R$24,13,FALSE) -> 433.2 | F16: kg/m3 | I16: Pipe ID | J16: =VLOOKUP(E28,'Pipe size sch 40'!$A$5:$C$27,3,FALSE)*25.4/1000 -> 0.052578 | K16: m
C17: Flow temperature | E17: =VLOOKUP(E11,'Data pompa'!$B$5:$R$24,12,FALSE) -> -158.88 | F17: deg C | I17: Velocity | J17: =E15/(PI()/4*J16^2)/3600 -> 0.4733705307 | K17: m/s | O17: Side Calculation (Suction)
C18: Viscocity | E18: =VLOOKUP(E11,'Data pompa'!$B$5:$R$24,14,FALSE) -> 0.1175 | F18: cP | I18: Velocity acceptance | J18: =IF(E28<=2,0.9,IF(OR(E28>=3,E28<=6),1.2,IF(OR(E28>=8,E28<=18),1.5,1.8))) -> 0.9 | K18: m/s | L18: (max) | O18: f tebakan | P18: 0.0210124494
E19: =E18*10^-3 -> 0.0001175 | F19: Nm2/s | I19: Reynold number | J19: =E16*J18*J16/E19 -> 174460.5161 | O19: f left | P19: =1/(P18)^0.5 -> 6.89861105
C20: Vapor pressure | E20: =VLOOKUP(E11,'Data pompa'!$B$5:$R$24,15,FALSE) -> 1.2222 | F20: bara | I20: Pipe DP | J20: =P24 -> 0.01972016962 | K20: bar/100m | O20: f right | P20: =-2*LOG(P12/(3.7*J16*0.3048)+2.51/(J19*(P18)^0.5)) -> 6.896280653
C21: Pump efficiency | E21: 0.45 | I21: Pipe DP acceptance | J21: =IF(E28<=6,0.137,0.225) -> 0.137 | K21: bar/100m | O21: f left/f right | P21: =P19/P20 -> 1.000337921 | Q21: Goal seek
I22: Static head | J22: =E16*9.8*E26/10^5 -> 0.01698144 | K22: bar | O22: psi/100 ft | P22: =0.000336*P18*P14^2/(J16*1000/25.4)^5/P15 -> 0.08715526164
C23: SUCTION | I23: Pipe friction loss | J23: =J20*E27/100 -> 0.004930042404 | K23: bar | O23: psi/ft | P23: =P22/100 -> 0.0008715526164
C24: Pressure at Vessel (min) | E24: 2 | F24: barg | I24: Fitting friction loss | J24: =G46 -> 0.06118815282 | K24: bar | O24: bar/100 m | P24: =P23*100/14.5/0.3048 -> 0.01972016962
C25: Pressure at Vessel (max) | E25: 5 | F25: barg | I25: Suction Pressure | J25: =E24+J22-SUM(J23:J24) -> 1.950863245 | K25: barg
C26: Static head | E26: =VLOOKUP(E11,'Data pompa'!$B$5:$S$27,18,FALSE)/1000 -> 0.4 | F26: m | I26: Result | J26: =IF(AND(J17<J18,J20<J21),"OK","NOT OK") -> OK
C27: Length | E27: 25 | F27: m | G27: assumption | O27: Side Calculation (Discharge) | T27: Suction | V27: Discharge
C28: Pipe size | E28: 2 | F28: in | I28: Discharge Hydraulic | O28: f tebakan | P28: 0.019756589 | W28: < 49 barg | X28: > 49 barg
C29: Schedule | E29: 40 | I29: Pipe ID | J29: =VLOOKUP(E52,'Pipe size sch 40'!$A$5:$C$27,3,FALSE)*25.4/1000 -> 0.052578 | K29: m | O29: f left | P29: =1/(P28)^0.5 -> 7.114493998 | T29: Velocity | U29: Pressure | V29: Velocity | W29: Pressure | X29: Pressure
C30: Fittings | I30: Velocity | J30: =E15/(PI()/4*J16^2)/3600 -> 0.4733705307 | K30: m/s | O30: f right | P30: =-2*LOG(P12/(3.7*J29*0.3048)+2.51/(J32*(P28)^0.5)) -> 7.113299517 | S30: 0.5 | T30: 0.9 | U30: 0.137 | V30: 4.5 | W30: 0.343 | X30: 0.686
E31: Qty | F31: K | G31: DP | I31: Velocity acceptance | J31: =IF(E50<=18,4.5,6) -> 4.5 | K31: m/s | L31: (max) | O31: f left/f right | P31: =P29/P30 -> 1.000167922 | Q31: Goal seek | S31: 0.75 | T31: 0.9 | U31: 0.137 | V31: 4.5 | W31: 0.343 | X31: 0.686
C32: Elbow 90 LR | D32: =C32&$E$28 -> Elbow 90 LR2 | E32: 4 | F32: =VLOOKUP(D32,'K-value'!$D$48:$E$124,2,FALSE) -> 0.3 | G32: =E32*F32*$J$17^2/(2*9.8)*$E$16*9.8/10^5 -> 0.0005824278505 | I32: Reynold number | J32: =E16*J31*J29/E19 -> 872302.5804 | O32: psi/100 ft | P32: =0.000336*P28*P14^2/(J29*1000/25.4)^5/P15 -> 0.08194621441 | S32: 1 | T32: 0.9 | U32: 0.137 | V32: 4.5 | W32: 0.343 | X32: 0.686
C33: Elbow 45 LR | D33: Elbow 45 LR2 | F33: =VLOOKUP(D33,'K-value'!$D$48:$E$124,2,FALSE) -> 0.3 | G33: 0 | I33: Pipe DP | J33: =P34 -> 0.01854154548 | K33: bar/100m | O33: psi/ft | P33: =P32/100 -> 0.0008194621441 | S33: 1.5 | T33: 0.9 | U33: 0.137 | V33: 4.5 | W33: 0.343 | X33: 0.686
C34: Tee thru | D34: Tee thru2 | F34: =VLOOKUP(D34,'K-value'!$D$48:$E$124,2,FALSE) -> 0.38 | G34: 0 | I34: Pipe DP acceptance | J34: =IF(E49<=49,0.343,0.686) -> 0.343 | K34: bar/100m | O34: bar/100 m | P34: =P33*100/14.5/0.3048 -> 0.01854154548 | S34: 2 | T34: 0.9 | U34: 0.137 | V34: 4.5 | W34: 0.343 | X34: 0.686
C35: Tee branch | D35: Tee branch2 | F35: =VLOOKUP(D35,'K-value'!$D$48:$E$124,2,FALSE) -> 1.14 | G35: 0 | I35: Static head | J35: =E15*9.8*E50/10^5 -> 0.0010878 | K35: bar | L35: note 1 | S35: 3 | T35: 1.2 | U35: 0.137 | V35: 4.5 | W35: 0.343 | X35: 0.686
C36: Ball valve | D36: Ball valve2 | E36: 1 | F36: =VLOOKUP(D36,'K-value'!$D$48:$E$124,2,FALSE) -> 0.06 | G36: 2.912139253e-05 | I36: Line losses | J36: =J33*E51/100 -> 0.005562463644 | K36: bar | S36: 4 | T36: 1.2 | U36: 0.137 | V36: 4.5 | W36: 0.343 | X36: 0.686
C37: Butterfly valve | D37: Butterfly valve2 | F37: =VLOOKUP(D37,'K-value'!$D$48:$E$124,2,FALSE) -> 0.86 | G37: 0 | I37: Fitting & eqp losses | J37: =G70+G72 -> 1.006045601 | K37: bar | O37: NPSHA calculation | S37: 6 | T37: 1.2 | U37: 0.137 | V37: 4.5 | W37: 0.343 | X37: 0.686
C38: Gate valve | D38: Gate valve2 | F38: =VLOOKUP(D38,'K-value'!$D$48:$E$124,2,FALSE) -> 0.15 | G38: 0 | I38: Discharge Pressure | J38: =E49+J35+J36+J37 -> 9.012695865 | K38: barg | O38: HA | P38: =(E24+1.01)*100000/(E16*9.81) -> 70.82866241 | Q38: m | S38: 8 | T38: 1.5 | U38: 0.225 | V38: 4.5 | W38: 0.343 | X38: 0.686
C39: Globe valve | D39: Globe valve2 | F39: =VLOOKUP(D39,'K-value'!$D$48:$E$124,2,FALSE) -> 6.5 | G39: 0 | I39: Result | J39: =IF(AND(J30<J31,J33<J34),"OK","NOT OK") -> OK | O39: HZ | P39: =E26 -> 0.4 | Q39: m | S39: 10 | T39: 1.5 | U39: 0.225 | V39: 4.5 | W39: 0.343 | X39: 0.686
C40: Check valve | D40: Check valve2 | F40: =VLOOKUP(D40,'K-value'!$D$48:$E$124,2,FALSE) -> 1.9 | G40: 0 | O40: HF | P40: =SUM(J23:J24)*-1 -> -0.06611819522 | S40: 12 | T40: 1.5 | U40: 0.225 | V40: 4.5 | W40: 0.343 | X40: 0.686
C41: Plug valve | D41: Plug valve2 | F41: =VLOOKUP(D41,'K-value'!$D$48:$E$124,2,FALSE) -> 1.71 | G41: 0 | I41: Pump Data | O41: HV | P41: 0 | S41: 16 | T41: 1.5 | U41: 0.225 | V41: 4.5 | W41: 0.343 | X41: 0.686
C42: Pipe entrance | D42: Pipe entrance2 | E42: 1 | F42: =VLOOKUP(D42,'K-value'!$D$48:$E$124,2,FALSE) -> 0.78 | G42: 0.0003785781028 | I42: Suction Pressure | J42: =J25 -> 1.950863245 | K42: barg | O42: HVP | P42: =E20*10^5/(E16*9.8)*-1 -> -28.78907796 | Q42: m | S42: 18 | T42: 1.5 | U42: 0.225 | V42: 4.5 | W42: 0.343 | X42: 0.686
C43: Suction strainer | D43: Suction strainer2 | E43: 1 | G43: =0.05*E43 -> 0.05 | I43: Discharge Pressure | J43: =J38 -> 9.012695865 | K43: barg | O43: NPSHA | P43: =SUM(P38:P42) -> 42.37346625 | Q43: m | S43: 20 | T43: 1.8 | U43: 0.225 | V43: 6 | W43: 0.343 | X43: 0.686
C44: Total, barg | G44: =SUM(G32:G43) -> 0.05099012735 | I44: Selected disc. Pressure | J44: 10 | K44: barg
C45: Contingency | G45: 0.2 | I45: Differential Pressure | J45: =J44-J42 -> 8.049136755 | K45: bar
C46: Total + Contingency | G46: =(1+G45)*G44 -> 0.06118815282 | I46: Differential Head | J46: =J45*10^5/(E16*9.8) -> 189.59845 | K46: m
I47: Hydraulic Power | J47: =E16*9.8*J46*E15/3600000 -> 0.8272723887 | K47: kW
C48: DISCHARGE | I48: Pump BHP | J48: =J47/E21 -> 1.838383086 | K48: kW
C49: Target Pressure | E49: =VLOOKUP(E11,'Data pompa'!$B$5:$R$24,3,FALSE) -> 8 | F49: barg | I49: NPSHa | J49: =P43 -> 42.37346625 | K49: m
C50: Static head | E50: 3 | F50: m | G50: note 2 | I50: NPSHr | J50: =J49-1 -> 41.37346625 | K50: m
C51: Length | E51: 30 | F51: m
C52: Pipe size | E52: =VLOOKUP(E11,'Data pompa'!$B$5:$R$24,17,FALSE) -> 2 | F52: in | I52: Shut in Pressure
C53: Schedule | E53: 40 | I53: P shut in | J53: =E25+1.3*J45 -> 15.46387778 | K53: barg
C54: Fittings
E55: Qty | F55: K | G55: DP
C56: Elbow 90 LR | D56: =C56&$E$52 -> Elbow 90 LR2 | E56: 7 | F56: =VLOOKUP(D56,'K-value'!$D$48:$E$124,2,FALSE) -> 0.3 | G56: =E56*F56*$J$17^2/(2*9.8)*$E$16*9.8/10^5 -> 0.001019248738
C57: Elbow 45 LR | D57: Elbow 45 LR2 | F57: =VLOOKUP(D57,'K-value'!$D$48:$E$124,2,FALSE) -> 0.3 | G57: 0
C58: Tee thru | D58: Tee thru2 | F58: =VLOOKUP(D58,'K-value'!$D$48:$E$124,2,FALSE) -> 0.38 | G58: 0
C59: Tee branch | D59: Tee branch2 | E59: 2 | F59: =VLOOKUP(D59,'K-value'!$D$48:$E$124,2,FALSE) -> 1.14 | G59: 0.001106612916
C60: Ball valve | D60: Ball valve2 | E60: 5 | F60: =VLOOKUP(D60,'K-value'!$D$48:$E$124,2,FALSE) -> 0.06 | G60: 0.0001456069626
C61: Butterfly valve | D61: Butterfly valve2 | F61: =VLOOKUP(D61,'K-value'!$D$48:$E$124,2,FALSE) -> 0.86 | G61: 0
C62: Gate valve | D62: Gate valve2 | F62: =VLOOKUP(D62,'K-value'!$D$48:$E$124,2,FALSE) -> 0.15 | G62: 0
C63: Globe valve | D63: Globe valve2 | F63: =VLOOKUP(D63,'K-value'!$D$48:$E$124,2,FALSE) -> 6.5 | G63: 0 | I63: Note:
C64: Check valve | D64: Check valve2 | E64: 3 | F64: =VLOOKUP(D64,'K-value'!$D$48:$E$124,2,FALSE) -> 1.9 | G64: 0.00276653229
C65: Plug valve | D65: Plug valve2 | F65: =VLOOKUP(D65,'K-value'!$D$48:$E$124,2,FALSE) -> 1.71 | G65: 0 | I65: 1. Discharge liquid level is assumed 3 m above grade elevation
C66: Pipe entrance | D66: Pipe entrance2 | F66: =VLOOKUP(D66,'K-value'!$D$48:$E$124,2,FALSE) -> 0.78 | G66: 0
C67: Flow orifice | D67: Flow orifice2 | E67: 1 | G67: 0.25
C68: Total, barg | G68: =SUM(G56:G67) -> 0.2550380009
C69: Contingency | G69: 0.2
C70: Total + contingency, barg | G70: =G68*(1+G69) -> 0.3060456011
C71: Pressure Loss due to Equipment
C72: AAV | G72: 0.7

Sheet Nunukan (hidden)
F1: PUMP SIZING
C5: Project: LNG Regasification in Central Region of Indonesia
C7: Equipment Design Group | E7: 1-2 | F7: MMSCFD
C8: Equipment Design | E8: 1.92 | F8: MMSCFD
C9: Tag No: | E9: NNK-G-001A/B
C10: Description: | E10: LNG Pump
C11: Location: | E11: Nunukan 2 | O11: Pipe roughness | P11: 0.05 | Q11: mm
P12: =P11/1000/3.28 -> 1.524390244e-05 | Q12: ft
C14: DATA | I14: RESULTS | O14: Mass flow | P14: =E15*E16/0.45 -> 3561.866667 | Q14: lb/hr
C15: Flow rate | E15: =VLOOKUP(E11,'Data pompa'!$B$5:$R$24,8,FALSE) -> 3.7 | F15: m3/h | I15: Suction Hydraulic | O15: Rho | P15: =E16/16.02 -> 27.0411985 | Q15: lb/ft3
C16: Density | E16: =VLOOKUP(E11,'Data pompa'!$B$5:$R$24,13,FALSE) -> 433.2 | F16: kg/m3 | I16: Pipe ID | J16: =VLOOKUP(E28,'Pipe size sch 40'!$A$5:$C$27,3,FALSE)*25.4/1000 -> 0.052578 | K16: m
C17: Flow temperature | E17: =VLOOKUP(E11,'Data pompa'!$B$5:$R$24,12,FALSE) -> -158.88 | F17: deg C | I17: Velocity | J17: =E15/(PI()/4*J16^2)/3600 -> 0.4733705307 | K17: m/s | O17: Side Calculation (Suction)
C18: Viscocity | E18: =VLOOKUP(E11,'Data pompa'!$B$5:$R$24,14,FALSE) -> 0.1175 | F18: cP | I18: Velocity acceptance | J18: =IF(E28<=2,0.9,IF(OR(E28>=3,E28<=6),1.2,IF(OR(E28>=8,E28<=18),1.5,1.8))) -> 0.9 | K18: m/s | L18: (max) | O18: f tebakan | P18: 0.0210124494
E19: =E18*10^-3 -> 0.0001175 | F19: Nm2/s | I19: Reynold number | J19: =E16*J18*J16/E19 -> 174460.5161 | O19: f left | P19: =1/(P18)^0.5 -> 6.89861105
C20: Vapor pressure | E20: =VLOOKUP(E11,'Data pompa'!$B$5:$R$24,15,FALSE) -> 1.2222 | F20: bara | I20: Pipe DP | J20: =P24 -> 0.01972016962 | K20: bar/100m | O20: f right | P20: =-2*LOG(P12/(3.7*J16*0.3048)+2.51/(J19*(P18)^0.5)) -> 6.896280653
C21: Pump efficiency | E21: 0.45 | I21: Pipe DP acceptance | J21: =IF(E28<=6,0.137,0.225) -> 0.137 | K21: bar/100m | O21: f left/f right | P21: =P19/P20 -> 1.000337921 | Q21: Goal seek
I22: Static head | J22: =E16*9.8*E26/10^5 -> 0.01910412 | K22: bar | O22: psi/100 ft | P22: =0.000336*P18*P14^2/(J16*1000/25.4)^5/P15 -> 0.08715526164
C23: SUCTION | I23: Pipe friction loss | J23: =J20*E27/100 -> 0.01183210177 | K23: bar | O23: psi/ft | P23: =P22/100 -> 0.0008715526164
C24: Pressure at Vessel (min) | E24: 2 | F24: barg | I24: Fitting friction loss | J24: =G46 -> 0.06227146862 | K24: bar | O24: bar/100 m | P24: =P23*100/14.5/0.3048 -> 0.01972016962
C25: Pressure at Vessel (max) | E25: 5 | F25: barg | I25: Suction Pressure | J25: =E24+J22-SUM(J23:J24) -> 1.94500055 | K25: barg
C26: Static head | E26: =VLOOKUP(E11,'Data pompa'!$B$5:$S$27,18,FALSE)/1000 -> 0.45 | F26: m | I26: Result | J26: =IF(AND(J17<J18,J20<J21),"OK","NOT OK") -> OK
C27: Length | E27: 60 | F27: m | G27: assumption | O27: Side Calculation (Discharge) | T27: Suction | V27: Discharge
C28: Pipe size | E28: 2 | F28: in | I28: Discharge Hydraulic | O28: f tebakan | P28: 0.019756589 | W28: < 49 barg | X28: > 49 barg
C29: Schedule | E29: 40 | I29: Pipe ID | J29: =VLOOKUP(E52,'Pipe size sch 40'!$A$5:$C$27,3,FALSE)*25.4/1000 -> 0.052578 | K29: m | O29: f left | P29: =1/(P28)^0.5 -> 7.114493998 | T29: Velocity | U29: Pressure | V29: Velocity | W29: Pressure | X29: Pressure
C30: Fittings | I30: Velocity | J30: =E15/(PI()/4*J16^2)/3600 -> 0.4733705307 | K30: m/s | O30: f right | P30: =-2*LOG(P12/(3.7*J29*0.3048)+2.51/(J32*(P28)^0.5)) -> 7.113299517 | S30: 0.5 | T30: 0.9 | U30: 0.137 | V30: 4.5 | W30: 0.343 | X30: 0.686
E31: Qty | F31: K | G31: DP | I31: Velocity acceptance | J31: =IF(E50<=18,4.5,6) -> 4.5 | K31: m/s | L31: (max) | O31: f left/f right | P31: =P29/P30 -> 1.000167922 | Q31: Goal seek | S31: 0.75 | T31: 0.9 | U31: 0.137 | V31: 4.5 | W31: 0.343 | X31: 0.686
C32: Elbow 90 LR | D32: =C32&$E$28 -> Elbow 90 LR2 | E32: 10 | F32: =VLOOKUP(D32,'K-value'!$D$48:$E$124,2,FALSE) -> 0.3 | G32: =E32*F32*$J$17^2/(2*9.8)*$E$16*9.8/10^5 -> 0.001456069626 | I32: Reynold number | J32: =E16*J31*J29/E19 -> 872302.5804 | O32: psi/100 ft | P32: =0.000336*P28*P14^2/(J29*1000/25.4)^5/P15 -> 0.08194621441 | S32: 1 | T32: 0.9 | U32: 0.137 | V32: 4.5 | W32: 0.343 | X32: 0.686
C33: Elbow 45 LR | D33: Elbow 45 LR2 | F33: =VLOOKUP(D33,'K-value'!$D$48:$E$124,2,FALSE) -> 0.3 | G33: 0 | I33: Pipe DP | J33: =P34 -> 0.01854154548 | K33: bar/100m | O33: psi/ft | P33: =P32/100 -> 0.0008194621441 | S33: 1.5 | T33: 0.9 | U33: 0.137 | V33: 4.5 | W33: 0.343 | X33: 0.686
C34: Tee thru | D34: Tee thru2 | F34: =VLOOKUP(D34,'K-value'!$D$48:$E$124,2,FALSE) -> 0.38 | G34: 0 | I34: Pipe DP acceptance | J34: =IF(E49<=49,0.343,0.686) -> 0.343 | K34: bar/100m | O34: bar/100 m | P34: =P33*100/14.5/0.3048 -> 0.01854154548 | S34: 2 | T34: 0.9 | U34: 0.137 | V34: 4.5 | W34: 0.343 | X34: 0.686
C35: Tee branch | D35: Tee branch2 | F35: =VLOOKUP(D35,'K-value'!$D$48:$E$124,2,FALSE) -> 1.14 | G35: 0 | I35: Static head | J35: =E15*9.8*E50/10^5 -> 0.0010878 | K35: bar | L35: note 1 | S35: 3 | T35: 1.2 | U35: 0.137 | V35: 4.5 | W35: 0.343 | X35: 0.686
C36: Ball valve | D36: Ball valve2 | E36: 2 | F36: =VLOOKUP(D36,'K-value'!$D$48:$E$124,2,FALSE) -> 0.06 | G36: 5.824278505e-05 | I36: Line losses | J36: =J33*E51/100 -> 0.005562463644 | K36: bar | S36: 4 | T36: 1.2 | U36: 0.137 | V36: 4.5 | W36: 0.343 | X36: 0.686
C37: Butterfly valve | D37: Butterfly valve2 | F37: =VLOOKUP(D37,'K-value'!$D$48:$E$124,2,FALSE) -> 0.86 | G37: 0 | I37: Fitting & eqp losses | J37: =G70+G72 -> 1.006569786 | K37: bar | O37: NPSHA calculation | S37: 6 | T37: 1.2 | U37: 0.137 | V37: 4.5 | W37: 0.343 | X37: 0.686
C38: Gate valve | D38: Gate valve2 | F38: =VLOOKUP(D38,'K-value'!$D$48:$E$124,2,FALSE) -> 0.15 | G38: 0 | I38: Discharge Pressure | J38: =E49+J35+J36+J37 -> 9.01322005 | K38: barg | O38: HA | P38: =(E24+1.01)*100000/(E16*9.81) -> 70.82866241 | Q38: m | S38: 8 | T38: 1.5 | U38: 0.225 | V38: 4.5 | W38: 0.343 | X38: 0.686
C39: Globe valve | D39: Globe valve2 | F39: =VLOOKUP(D39,'K-value'!$D$48:$E$124,2,FALSE) -> 6.5 | G39: 0 | I39: Result | J39: =IF(AND(J30<J31,J33<J34),"OK","NOT OK") -> OK | O39: HZ | P39: =E26 -> 0.45 | Q39: m | S39: 10 | T39: 1.5 | U39: 0.225 | V39: 4.5 | W39: 0.343 | X39: 0.686
C40: Check valve | D40: Check valve2 | F40: =VLOOKUP(D40,'K-value'!$D$48:$E$124,2,FALSE) -> 1.9 | G40: 0 | O40: HF | P40: =SUM(J23:J24)*-1 -> -0.07410357039 | S40: 12 | T40: 1.5 | U40: 0.225 | V40: 4.5 | W40: 0.343 | X40: 0.686
C41: Plug valve | D41: Plug valve2 | F41: =VLOOKUP(D41,'K-value'!$D$48:$E$124,2,FALSE) -> 1.71 | G41: 0 | I41: Pump Data | O41: HV | P41: 0 | S41: 16 | T41: 1.5 | U41: 0.225 | V41: 4.5 | W41: 0.343 | X41: 0.686
C42: Pipe entrance | D42: Pipe entrance2 | E42: 1 | F42: =VLOOKUP(D42,'K-value'!$D$48:$E$124,2,FALSE) -> 0.78 | G42: 0.0003785781028 | I42: Suction Pressure | J42: =J25 -> 1.94500055 | K42: barg | O42: HVP | P42: =E20*10^5/(E16*9.8)*-1 -> -28.78907796 | Q42: m | S42: 18 | T42: 1.5 | U42: 0.225 | V42: 4.5 | W42: 0.343 | X42: 0.686
C43: Suction strainer | D43: Suction strainer2 | E43: 1 | G43: =0.05*E43 -> 0.05 | I43: Discharge Pressure | J43: =J38 -> 9.01322005 | K43: barg | O43: NPSHA | P43: =SUM(P38:P42) -> 42.41548088 | Q43: m | S43: 20 | T43: 1.8 | U43: 0.225 | V43: 6 | W43: 0.343 | X43: 0.686
C44: Total, barg | G44: =SUM(G32:G43) -> 0.05189289051 | I44: Selected disc. Pressure | J44: 10 | K44: barg
C45: Contingency | G45: 0.2 | I45: Differential Pressure | J45: =J44-J42 -> 8.05499945 | K45: bar
C46: Total + Contingency | G46: =(1+G45)*G44 -> 0.06227146862 | I46: Differential Head | J46: =J45*10^5/(E16*9.8) -> 189.7365465 | K46: m
I47: Hydraulic Power | J47: =E16*9.8*J46*E15/3600000 -> 0.8278749435 | K47: kW
C48: DISCHARGE | I48: Pump BHP | J48: =J47/E21 -> 1.839722097 | K48: kW
C49: Target Pressure | E49: =VLOOKUP(E11,'Data pompa'!$B$5:$R$24,3,FALSE) -> 8 | F49: barg | I49: NPSHa | J49: =P43 -> 42.41548088 | K49: m
C50: Static head | E50: 3 | F50: m | G50: note 2 | I50: NPSHr | J50: =J49-1 -> 41.41548088 | K50: m
C51: Length | E51: 30 | F51: m
C52: Pipe size | E52: =VLOOKUP(E11,'Data pompa'!$B$5:$R$24,17,FALSE) -> 2 | F52: in | I52: Shut in Pressure
C53: Schedule | E53: 40 | I53: P shut in | J53: =E25+1.3*J45 -> 15.47149929 | K53: barg
C54: Fittings
E55: Qty | F55: K | G55: DP
C56: Elbow 90 LR | D56: =C56&$E$52 -> Elbow 90 LR2 | E56: 10 | F56: =VLOOKUP(D56,'K-value'!$D$48:$E$124,2,FALSE) -> 0.3 | G56: =E56*F56*$J$17^2/(2*9.8)*$E$16*9.8/10^5 -> 0.001456069626
C57: Elbow 45 LR | D57: Elbow 45 LR2 | F57: =VLOOKUP(D57,'K-value'!$D$48:$E$124,2,FALSE) -> 0.3 | G57: 0
C58: Tee thru | D58: Tee thru2 | F58: =VLOOKUP(D58,'K-value'!$D$48:$E$124,2,FALSE) -> 0.38 | G58: 0
C59: Tee branch | D59: Tee branch2 | E59: 2 | F59: =VLOOKUP(D59,'K-value'!$D$48:$E$124,2,FALSE) -> 1.14 | G59: 0.001106612916
C60: Ball valve | D60: Ball valve2 | E60: 5 | F60: =VLOOKUP(D60,'K-value'!$D$48:$E$124,2,FALSE) -> 0.06 | G60: 0.0001456069626
C61: Butterfly valve | D61: Butterfly valve2 | F61: =VLOOKUP(D61,'K-value'!$D$48:$E$124,2,FALSE) -> 0.86 | G61: 0
C62: Gate valve | D62: Gate valve2 | F62: =VLOOKUP(D62,'K-value'!$D$48:$E$124,2,FALSE) -> 0.15 | G62: 0
C63: Globe valve | D63: Globe valve2 | F63: =VLOOKUP(D63,'K-value'!$D$48:$E$124,2,FALSE) -> 6.5 | G63: 0 | I63: Note:
C64: Check valve | D64: Check valve2 | E64: 3 | F64: =VLOOKUP(D64,'K-value'!$D$48:$E$124,2,FALSE) -> 1.9 | G64: 0.00276653229
C65: Plug valve | D65: Plug valve2 | F65: =VLOOKUP(D65,'K-value'!$D$48:$E$124,2,FALSE) -> 1.71 | G65: 0 | I65: 1. Discharge liquid level is assumed 3 m above grade elevation
C66: Pipe entrance | D66: Pipe entrance2 | F66: =VLOOKUP(D66,'K-value'!$D$48:$E$124,2,FALSE) -> 0.78 | G66: 0
C67: Flow orifice | D67: Flow orifice2 | E67: 1 | G67: 0.25
C68: Total, barg | G68: =SUM(G56:G67) -> 0.2554748218
C69: Contingency | G69: 0.2
C70: Total + contingency, barg | G70: =G68*(1+G69) -> 0.3065697862
C71: Pressure Loss due to Equipment
C72: AAV | G72: 0.7

Sheet Nunukan (filling) (hidden)
F1: PUMP SIZING
C5: Project: LNG Regasification in Central Region of Indonesia
C7: Equipment Design Group | E7: 1-2 | F7: MMSCFD
C8: Equipment Design | E8: 1.92 | F8: MMSCFD
C9: Tag No: | E9: NNK-G-002A/B
C10: Description: | E10: LNG Filling Pump
C11: Location: | E11: Nunukan 2 | O11: Pipe roughness | P11: 0.05 | Q11: mm
P12: =P11/1000/3.28 -> 1.524390244e-05 | Q12: ft
C14: DATA | I14: RESULTS | O14: Mass flow | P14: =E15*E16/0.45 -> 15402.66667 | Q14: lb/hr
C15: Flow rate | E15: 16 | F15: m3/h | I15: Suction Hydraulic | O15: Rho | P15: =E16/16.02 -> 27.0411985 | Q15: lb/ft3
C16: Density | E16: =VLOOKUP(E11,'Data pompa'!$B$5:$R$24,13,FALSE) -> 433.2 | F16: kg/m3 | I16: Pipe ID | J16: =VLOOKUP(E28,'Pipe size sch 40'!$A$5:$C$27,3,FALSE)*25.4/1000 -> 0.102362 | K16: m
C17: Flow temperature | E17: =VLOOKUP(E11,'Data pompa'!$B$5:$R$24,12,FALSE) -> -158.88 | F17: deg C | I17: Velocity | J17: =E15/(PI()/4*J16^2)/3600 -> 0.5400700266 | K17: m/s | O17: Side Calculation (Suction)
C18: Viscocity | E18: =VLOOKUP(E11,'Data pompa'!$B$5:$R$24,14,FALSE) -> 0.1175 | F18: cP | I18: Velocity acceptance | J18: =IF(E28<=2,0.9,IF(OR(E28>=3,E28<=6),1.2,IF(OR(E28>=8,E28<=18),1.5,1.8))) -> 1.2 | K18: m/s | L18: (max) | O18: f tebakan | P18: 0.01877901005
E19: =E18*10^-3 -> 0.0001175 | F19: Nm2/s | I19: Reynold number | J19: =E16*J18*J16/E19 -> 452866.9113 | O19: f left | P19: =1/(P18)^0.5 -> 7.297324395
C20: Vapor pressure | E20: =VLOOKUP(E11,'Data pompa'!$B$5:$R$24,15,FALSE) -> 1.2222 | F20: bara | I20: Pipe DP | J20: =P24 -> 0.01178337431 | K20: bar/100m | O20: f right | P20: =-2*LOG(P12/(3.7*J16*0.3048)+2.51/(J19*(P18)^0.5)) -> 7.526442536
C21: Pump efficiency | E21: 0.45 | I21: Pipe DP acceptance | J21: =IF(E28<=6,0.137,0.225) -> 0.137 | K21: bar/100m | O21: f left/f right | P21: =P19/P20 -> 0.9695582421 | Q21: Goal seek
I22: Static head | J22: =E16*9.8*E26/10^5 -> 0.01910412 | K22: bar | O22: psi/100 ft | P22: =0.000336*P18*P14^2/(J16*1000/25.4)^5/P15 -> 0.0520778011
C23: SUCTION | I23: Pipe friction loss | J23: =J20*E27/100 -> 0.007070024586 | K23: bar | O23: psi/ft | P23: =P22/100 -> 0.000520778011
C24: Pressure at Vessel (min) | E24: 2 | F24: barg | I24: Fitting friction loss | J24: =G46 -> 0.0658451307 | K24: bar | O24: bar/100 m | P24: =P23*100/14.5/0.3048 -> 0.01178337431
C25: Pressure at Vessel (max) | E25: 5 | F25: barg | I25: Suction Pressure | J25: =E24+J22-SUM(J23:J24) -> 1.946188965 | K25: barg
C26: Static head | E26: =VLOOKUP(E11,'Data pompa'!$B$5:$S$27,18,FALSE)/1000 -> 0.45 | F26: m | I26: Result | J26: =IF(AND(J17<J18,J20<J21),"OK","NOT OK") -> OK
C27: Length | E27: 60 | F27: m | G27: assumption | O27: Side Calculation (Discharge) | T27: Suction | V27: Discharge
C28: Pipe size | E28: 4 | F28: in | I28: Discharge Hydraulic | O28: f tebakan | P28: 0.019756589 | W28: < 49 barg | X28: > 49 barg
C29: Schedule | E29: 40 | I29: Pipe ID | J29: =VLOOKUP(E52,'Pipe size sch 40'!$A$5:$C$27,3,FALSE)*25.4/1000 -> 0.052578 | K29: m | O29: f left | P29: =1/(P28)^0.5 -> 7.114493998 | T29: Velocity | U29: Pressure | V29: Velocity | W29: Pressure | X29: Pressure
C30: Fittings | I30: Velocity | J30: =E15/(PI()/4*J16^2)/3600 -> 0.5400700266 | K30: m/s | O30: f right | P30: =-2*LOG(P12/(3.7*J29*0.3048)+2.51/(J32*(P28)^0.5)) -> 7.113299517 | S30: 0.5 | T30: 0.9 | U30: 0.137 | V30: 4.5 | W30: 0.343 | X30: 0.686
E31: Qty | F31: K | G31: DP | I31: Velocity acceptance | J31: =IF(E50<=18,4.5,6) -> 4.5 | K31: m/s | L31: (max) | O31: f left/f right | P31: =P29/P30 -> 1.000167922 | Q31: Goal seek | S31: 0.75 | T31: 0.9 | U31: 0.137 | V31: 4.5 | W31: 0.343 | X31: 0.686
C32: Elbow 90 LR | D32: =C32&$E$28 -> Elbow 90 LR4 | E32: 4 | F32: =VLOOKUP(D32,'K-value'!$D$48:$E$124,2,FALSE) -> 0.27 | G32: =E32*F32*$J$17^2/(2*9.8)*$E$16*9.8/10^5 -> 0.0006823109763 | I32: Reynold number | J32: =E16*J31*J29/E19 -> 872302.5804 | O32: psi/100 ft | P32: =0.000336*P28*P14^2/(J29*1000/25.4)^5/P15 -> 1.532376252 | S32: 1 | T32: 0.9 | U32: 0.137 | V32: 4.5 | W32: 0.343 | X32: 0.686
C33: Elbow 45 LR | D33: Elbow 45 LR4 | F33: =VLOOKUP(D33,'K-value'!$D$48:$E$124,2,FALSE) -> 0.27 | G33: 0 | I33: Pipe DP | J33: =P34 -> 0.3467228373 | K33: bar/100m | O33: psi/ft | P33: =P32/100 -> 0.01532376252 | S33: 1.5 | T33: 0.9 | U33: 0.137 | V33: 4.5 | W33: 0.343 | X33: 0.686
C34: Tee thru | D34: Tee thru4 | F34: =VLOOKUP(D34,'K-value'!$D$48:$E$124,2,FALSE) -> 0.34 | G34: 0 | I34: Pipe DP acceptance | J34: =IF(E49<=49,0.343,0.686) -> 0.343 | K34: bar/100m | O34: bar/100 m | P34: =P33*100/14.5/0.3048 -> 0.3467228373 | S34: 2 | T34: 0.9 | U34: 0.137 | V34: 4.5 | W34: 0.343 | X34: 0.686
C35: Tee branch | D35: Tee branch4 | F35: =VLOOKUP(D35,'K-value'!$D$48:$E$124,2,FALSE) -> 1.02 | G35: 0 | I35: Static head | J35: =E15*9.8*E50/10^5 -> 0.004704 | K35: bar | L35: note 1 | S35: 3 | T35: 1.2 | U35: 0.137 | V35: 4.5 | W35: 0.343 | X35: 0.686
C36: Ball valve | D36: Ball valve4 | E36: 1 | F36: =VLOOKUP(D36,'K-value'!$D$48:$E$124,2,FALSE) -> 0.05 | G36: 3.158847112e-05 | I36: Line losses | J36: =J33*E51/100 -> 0.1040168512 | K36: bar | S36: 4 | T36: 1.2 | U36: 0.137 | V36: 4.5 | W36: 0.343 | X36: 0.686
C37: Butterfly valve | D37: Butterfly valve4 | F37: =VLOOKUP(D37,'K-value'!$D$48:$E$124,2,FALSE) -> 0.77 | G37: 0 | I37: Fitting & eqp losses | J37: =G70+G72 -> 0.302668594 | K37: bar | O37: NPSHA calculation | S37: 6 | T37: 1.2 | U37: 0.137 | V37: 4.5 | W37: 0.343 | X37: 0.686
C38: Gate valve | D38: Gate valve4 | F38: =VLOOKUP(D38,'K-value'!$D$48:$E$124,2,FALSE) -> 0.14 | G38: 0 | I38: Discharge Pressure | J38: =E49+J35+J36+J37 -> 2.411389445 | K38: barg | O38: HA | P38: =(E24+1.01)*100000/(E16*9.81) -> 70.82866241 | Q38: m | S38: 8 | T38: 1.5 | U38: 0.225 | V38: 4.5 | W38: 0.343 | X38: 0.686
C39: Globe valve | D39: Globe valve4 | E39: 1 | F39: =VLOOKUP(D39,'K-value'!$D$48:$E$124,2,FALSE) -> 5.8 | G39: 0.00366426265 | I39: Result | J39: =IF(AND(J30<J31,J33<J34),"OK","NOT OK") -> NOT OK | O39: HZ | P39: =E26 -> 0.45 | Q39: m | S39: 10 | T39: 1.5 | U39: 0.225 | V39: 4.5 | W39: 0.343 | X39: 0.686
C40: Check valve | D40: Check valve4 | F40: =VLOOKUP(D40,'K-value'!$D$48:$E$124,2,FALSE) -> 1.7 | G40: 0 | O40: HF | P40: =SUM(J23:J24)*-1 -> -0.07291515528 | S40: 12 | T40: 1.5 | U40: 0.225 | V40: 4.5 | W40: 0.343 | X40: 0.686
C41: Plug valve | D41: Plug valve4 | F41: =VLOOKUP(D41,'K-value'!$D$48:$E$124,2,FALSE) -> 1.53 | G41: 0 | I41: Pump Data | O41: HV | P41: 0 | S41: 16 | T41: 1.5 | U41: 0.225 | V41: 4.5 | W41: 0.343 | X41: 0.686
C42: Pipe entrance | D42: Pipe entrance4 | E42: 1 | F42: =VLOOKUP(D42,'K-value'!$D$48:$E$124,2,FALSE) -> 0.78 | G42: 0.0004927801495 | I42: Suction Pressure | J42: =J25 -> 1.946188965 | K42: barg | O42: HVP | P42: =E20*10^5/(E16*9.8)*-1 -> -28.78907796 | Q42: m | S42: 18 | T42: 1.5 | U42: 0.225 | V42: 4.5 | W42: 0.343 | X42: 0.686
C43: Suction strainer | D43: Suction strainer4 | E43: 1 | G43: =0.05*E43 -> 0.05 | I43: Discharge Pressure | J43: =J38 -> 2.411389445 | K43: barg | O43: NPSHA | P43: =SUM(P38:P42) -> 42.41666929 | Q43: m | S43: 20 | T43: 1.8 | U43: 0.225 | V43: 6 | W43: 0.343 | X43: 0.686
C44: Total, barg | G44: =SUM(G32:G43) -> 0.05487094225 | I44: Selected disc. Pressure | J44: 4 | K44: barg
C45: Contingency | G45: 0.2 | I45: Differential Pressure | J45: =J44-J42 -> 2.053811035 | K45: bar
C46: Total + Contingency | G46: =(1+G45)*G44 -> 0.0658451307 | I46: Differential Head | J46: =J45*10^5/(E16*9.8) -> 48.37778269 | K46: m
I47: Hydraulic Power | J47: =E16*9.8*J46*E15/3600000 -> 0.9128049046 | K47: kW
C48: DISCHARGE | I48: Pump BHP | J48: =J47/E21 -> 2.028455343 | K48: kW
C49: Target Pressure | E49: 2 | F49: barg | I49: NPSHa | J49: =P43 -> 42.41666929 | K49: m
C50: Static head | E50: 3 | F50: m | G50: note 2 | I50: NPSHr | J50: =J49-1 -> 41.41666929 | K50: m
C51: Length | E51: 30 | F51: m
C52: Pipe size | E52: =VLOOKUP(E11,'Data pompa'!$B$5:$R$24,17,FALSE) -> 2 | F52: in | I52: Shut in Pressure
C53: Schedule | E53: 40 | I53: P shut in | J53: =E25+1.3*J45 -> 7.669954346 | K53: barg
C54: Fittings
E55: Qty | F55: K | G55: DP
C56: Elbow 90 LR | D56: =C56&$E$52 -> Elbow 90 LR2 | E56: 5 | F56: =VLOOKUP(D56,'K-value'!$D$48:$E$124,2,FALSE) -> 0.3 | G56: =E56*F56*$J$17^2/(2*9.8)*$E$16*9.8/10^5 -> 0.0009476541337
C57: Elbow 45 LR | D57: Elbow 45 LR2 | F57: =VLOOKUP(D57,'K-value'!$D$48:$E$124,2,FALSE) -> 0.3 | G57: 0
C58: Tee thru | D58: Tee thru2 | F58: =VLOOKUP(D58,'K-value'!$D$48:$E$124,2,FALSE) -> 0.38 | G58: 0
C59: Tee branch | D59: Tee branch2 | F59: =VLOOKUP(D59,'K-value'!$D$48:$E$124,2,FALSE) -> 1.14 | G59: 0
C60: Ball valve | D60: Ball valve2 | E60: 2 | F60: =VLOOKUP(D60,'K-value'!$D$48:$E$124,2,FALSE) -> 0.06 | G60: 7.581233069e-05
C61: Butterfly valve | D61: Butterfly valve2 | F61: =VLOOKUP(D61,'K-value'!$D$48:$E$124,2,FALSE) -> 0.86 | G61: 0
C62: Gate valve | D62: Gate valve2 | F62: =VLOOKUP(D62,'K-value'!$D$48:$E$124,2,FALSE) -> 0.15 | G62: 0
C63: Globe valve | D63: Globe valve2 | F63: =VLOOKUP(D63,'K-value'!$D$48:$E$124,2,FALSE) -> 6.5 | G63: 0 | I63: Note:
C64: Check valve | D64: Check valve2 | E64: 1 | F64: =VLOOKUP(D64,'K-value'!$D$48:$E$124,2,FALSE) -> 1.9 | G64: 0.001200361903
C65: Plug valve | D65: Plug valve2 | F65: =VLOOKUP(D65,'K-value'!$D$48:$E$124,2,FALSE) -> 1.71 | G65: 0 | I65: 1. Discharge liquid level is assumed 3 m above grade elevation
C66: Pipe entrance | D66: Pipe entrance2 | F66: =VLOOKUP(D66,'K-value'!$D$48:$E$124,2,FALSE) -> 0.78 | G66: 0
C67: Flow orifice | D67: Flow orifice2 | E67: 1 | G67: 0.25
C68: Total, barg | G68: =SUM(G56:G67) -> 0.2522238284
C69: Contingency | G69: 0.2
C70: Total + contingency, barg | G70: =G68*(1+G69) -> 0.302668594
C71: Pressure Loss due to Equipment
C72: AAV | G72: 0

Sheet Flores (hidden)
F1: PUMP SIZING
C5: Project: LNG Regasification in Central Region of Indonesia
C7: Equipment Design Group | E7: 4-6 | F7: MMSCFD
C8: Equipment Design | E8: 3.84 | F8: MMSCFD
C9: Tag No: | E9: MPF-G-001A/B
C10: Description: | E10: LNG Pump
C11: Location: | E11: Mobile PP Flores | O11: Pipe roughness | P11: 0.05 | Q11: mm
P12: =P11/1000/3.28 -> 1.524390244e-05 | Q12: ft
C14: DATA | I14: RESULTS | O14: Mass flow | P14: =E15*E16/0.45 -> 7117.391111 | Q14: lb/hr
C15: Flow rate | E15: ='Data pompa'!I15 -> 7.39 | F15: m3/h | I15: Suction Hydraulic | O15: Rho | P15: =E16/16.02 -> 27.0536829 | Q15: lb/ft3
C16: Density | E16: =VLOOKUP(E11,'Data pompa'!$B$5:$R$24,13,FALSE) -> 433.4 | F16: kg/m3 | I16: Pipe ID | J16: =VLOOKUP(E28,'Pipe size sch 40'!$A$5:$C$27,3,FALSE)*25.4/1000 -> 0.077978 | K16: m
C17: Flow temperature | E17: =VLOOKUP(E11,'Data pompa'!$B$5:$R$24,12,FALSE) -> -158.9 | F17: deg C | I17: Velocity | J17: =E15/(PI()/4*J16^2)/3600 -> 0.4298410338 | K17: m/s | O17: Side Calculation (Suction)
C18: Viscocity | E18: =VLOOKUP(E11,'Data pompa'!$B$5:$R$24,14,FALSE) -> 0.1176 | F18: cP | I18: Velocity acceptance | J18: =IF(E28<=2,0.9,IF(OR(E28>=3,E28<=6),1.2,IF(OR(E28>=8,E28<=18),1.5,1.8))) -> 1.2 | K18: m/s | L18: (max) | O18: f tebakan | P18: 0.01881888944
E19: =E18*10^-3 -> 0.0001176 | F19: Nm2/s | I19: Reynold number | J19: =E16*J18*J16/E19 -> 344853.7265 | O19: f left | P19: =1/(P18)^0.5 -> 7.289588359
C20: Vapor pressure | E20: =VLOOKUP(E11,'Data pompa'!$B$5:$R$24,15,FALSE) -> 1.2194 | F20: bara | I20: Pipe DP | J20: =P24 -> 0.009823668392 | K20: bar/100m | O20: f right | P20: =-2*LOG(P12/(3.7*J16*0.3048)+2.51/(J19*(P18)^0.5)) -> 7.290245927
C21: Pump efficiency | E21: 0.45 | I21: Pipe DP acceptance | J21: =IF(E28<=6,0.137,0.225) -> 0.137 | K21: bar/100m | O21: f left/f right | P21: =P19/P20 -> 0.9999098017 | Q21: Goal seek
I22: Static head | J22: =E16*9.8*E26/10^5 -> 0.01698928 | K22: bar | O22: psi/100 ft | P22: =0.000336*P18*P14^2/(J16*1000/25.4)^5/P15 -> 0.04341668482
C23: SUCTION | I23: Pipe friction loss | J23: =J20*E27/100 -> 0.005894201035 | K23: bar | O23: psi/ft | P23: =P22/100 -> 0.0004341668482
C24: Pressure at Vessel (min) | E24: 2 | F24: barg | I24: Fitting friction loss | J24: =G46 -> 0.06181613322 | K24: bar | O24: bar/100 m | P24: =P23*100/14.5/0.3048 -> 0.009823668392
C25: Pressure at Vessel (max) | E25: 5 | F25: barg | I25: Suction Pressure | J25: =E24+J22-SUM(J23:J24) -> 1.949278946 | K25: barg
C26: Static head | E26: =VLOOKUP(E11,'Data pompa'!$B$5:$S$27,18,FALSE)/1000 -> 0.4 | F26: m | I26: Result | J26: =IF(AND(J17<J18,J20<J21),"OK","NOT OK") -> OK
C27: Length | E27: 60 | F27: m | G27: assumption | O27: Side Calculation (Discharge) | T27: Suction | V27: Discharge
C28: Pipe size | E28: =VLOOKUP(E11,'Data pompa'!$B$5:$R$24,16,FALSE) -> 3 | F28: in | I28: Discharge Hydraulic | O28: f tebakan | P28: 0.01800004114 | W28: < 49 barg | X28: > 49 barg
C29: Schedule | E29: 40 | I29: Pipe ID | J29: =VLOOKUP(E52,'Pipe size sch 40'!$A$5:$C$27,3,FALSE)*25.4/1000 -> 0.077978 | K29: m | O29: f left | P29: =1/(P28)^0.5 -> 7.453551408 | T29: Velocity | U29: Pressure | V29: Velocity | W29: Pressure | X29: Pressure
C30: Fittings | I30: Velocity | J30: =E15/(PI()/4*J16^2)/3600 -> 0.4298410338 | K30: m/s | O30: f right | P30: =-2*LOG(P12/(3.7*J29*0.3048)+2.51/(J32*(P28)^0.5)) -> 7.45256178 | S30: 0.5 | T30: 0.9 | U30: 0.137 | V30: 4.5 | W30: 0.343 | X30: 0.686
E31: Qty | F31: K | G31: DP | I31: Velocity acceptance | J31: =IF(E50<=18,4.5,6) -> 4.5 | K31: m/s | L31: (max) | O31: f left/f right | P31: =P29/P30 -> 1.00013279 | Q31: Goal seek | S31: 0.75 | T31: 0.9 | U31: 0.137 | V31: 4.5 | W31: 0.343 | X31: 0.686
C32: Elbow 90 LR | D32: =C32&$E$28 -> Elbow 90 LR3 | E32: 10 | F32: =VLOOKUP(D32,'K-value'!$D$48:$E$124,2,FALSE) -> 0.29 | G32: =E32*F32*$J$17^2/(2*9.8)*$E$16*9.8/10^5 -> 0.001161108096 | I32: Reynold number | J32: =E16*J31*J29/E19 -> 1293201.474 | O32: psi/100 ft | P32: =0.000336*P28*P14^2/(J29*1000/25.4)^5/P15 -> 0.04152753621 | S32: 1 | T32: 0.9 | U32: 0.137 | V32: 4.5 | W32: 0.343 | X32: 0.686
C33: Elbow 45 LR | D33: Elbow 45 LR3 | F33: =VLOOKUP(D33,'K-value'!$D$48:$E$124,2,FALSE) -> 0.29 | G33: 0 | I33: Pipe DP | J33: =P34 -> 0.00939622052 | K33: bar/100m | O33: psi/ft | P33: =P32/100 -> 0.0004152753621 | S33: 1.5 | T33: 0.9 | U33: 0.137 | V33: 4.5 | W33: 0.343 | X33: 0.686
C34: Tee thru | D34: Tee thru3 | F34: =VLOOKUP(D34,'K-value'!$D$48:$E$124,2,FALSE) -> 0.36 | G34: 0 | I34: Pipe DP acceptance | J34: =IF(E49<=49,0.343,0.686) -> 0.686 | K34: bar/100m | O34: bar/100 m | P34: =P33*100/14.5/0.3048 -> 0.00939622052 | S34: 2 | T34: 0.9 | U34: 0.137 | V34: 4.5 | W34: 0.343 | X34: 0.686
C35: Tee branch | D35: Tee branch3 | F35: =VLOOKUP(D35,'K-value'!$D$48:$E$124,2,FALSE) -> 1.08 | G35: 0 | I35: Static head | J35: =E15*9.8*E50/10^5 -> 0.00217266 | K35: bar | L35: note 1 | S35: 3 | T35: 1.2 | U35: 0.137 | V35: 4.5 | W35: 0.343 | X35: 0.686
C36: Ball valve | D36: Ball valve3 | E36: 2 | F36: =VLOOKUP(D36,'K-value'!$D$48:$E$124,2,FALSE) -> 0.05 | G36: 4.003821022e-05 | I36: Line losses | J36: =J33*E51/100 -> 0.002818866156 | K36: bar | S36: 4 | T36: 1.2 | U36: 0.137 | V36: 4.5 | W36: 0.343 | X36: 0.686
C37: Butterfly valve | D37: Butterfly valve3 | F37: =VLOOKUP(D37,'K-value'!$D$48:$E$124,2,FALSE) -> 0.81 | G37: 0 | I37: Fitting & eqp losses | J37: =G70+G72 -> 1.005169734 | K37: bar | O37: NPSHA calculation | S37: 6 | T37: 1.2 | U37: 0.137 | V37: 4.5 | W37: 0.343 | X37: 0.686
C38: Gate valve | D38: Gate valve3 | F38: =VLOOKUP(D38,'K-value'!$D$48:$E$124,2,FALSE) -> 0.14 | G38: 0 | I38: Discharge Pressure | J38: =E49+J35+J36+J37 -> 51.01016126 | K38: barg | O38: HA | P38: =(E24+1.01)*100000/(E16*9.81) -> 70.79597728 | Q38: m | S38: 8 | T38: 1.5 | U38: 0.225 | V38: 4.5 | W38: 0.343 | X38: 0.686
C39: Globe valve | D39: Globe valve3 | F39: =VLOOKUP(D39,'K-value'!$D$48:$E$124,2,FALSE) -> 6.1 | G39: 0 | I39: Result | J39: =IF(AND(J30<J31,J33<J34),"OK","NOT OK") -> OK | O39: HZ | P39: =E26 -> 0.4 | Q39: m | S39: 10 | T39: 1.5 | U39: 0.225 | V39: 4.5 | W39: 0.343 | X39: 0.686
C40: Check valve | D40: Check valve3 | F40: =VLOOKUP(D40,'K-value'!$D$48:$E$124,2,FALSE) -> 1.8 | G40: 0 | O40: HF | P40: =SUM(J23:J24)*-1 -> -0.06771033425 | S40: 12 | T40: 1.5 | U40: 0.225 | V40: 4.5 | W40: 0.343 | X40: 0.686
C41: Plug valve | D41: Plug valve3 | F41: =VLOOKUP(D41,'K-value'!$D$48:$E$124,2,FALSE) -> 1.62 | G41: 0 | I41: Pump Data | O41: HV | P41: 0 | S41: 16 | T41: 1.5 | U41: 0.225 | V41: 4.5 | W41: 0.343 | X41: 0.686
C42: Pipe entrance | D42: Pipe entrance3 | E42: 1 | F42: =VLOOKUP(D42,'K-value'!$D$48:$E$124,2,FALSE) -> 0.78 | G42: 0.0003122980397 | I42: Suction Pressure | J42: =J25 -> 1.949278946 | K42: barg | O42: HVP | P42: =E20*10^5/(E16*9.8)*-1 -> -28.70986881 | Q42: m | S42: 18 | T42: 1.5 | U42: 0.225 | V42: 4.5 | W42: 0.343 | X42: 0.686
C43: Suction strainer | D43: Suction strainer3 | E43: 1 | G43: =0.05*E43 -> 0.05 | I43: Discharge Pressure | J43: =J38 -> 51.01016126 | K43: barg | O43: NPSHA | P43: =SUM(P38:P42) -> 42.41839814 | Q43: m | S43: 20 | T43: 1.8 | U43: 0.225 | V43: 6 | W43: 0.343 | X43: 0.686
C44: Total, barg | G44: =SUM(G32:G43) -> 0.05151344435 | I44: Selected disc. Pressure | J44: 52 | K44: barg
C45: Contingency | G45: 0.2 | I45: Differential Pressure | J45: =J44-J42 -> 50.05072105 | K45: bar
C46: Total + Contingency | G46: =(1+G45)*G44 -> 0.06181613322 | I46: Differential Head | J46: =J45*10^5/(E16*9.8) -> 1178.407114 | K46: m
I47: Hydraulic Power | J47: =E16*9.8*J46*E15/3600000 -> 10.27430079 | K47: kW
C48: DISCHARGE | I48: Pump BHP | J48: =J47/E21 -> 22.83177954 | K48: kW
C49: Target Pressure | E49: =VLOOKUP(E11,'Data pompa'!$B$5:$R$24,3,FALSE) -> 50 | F49: barg | I49: NPSHa | J49: =P43 -> 42.41839814 | K49: m
C50: Static head | E50: 3 | F50: m | G50: note 2 | I50: NPSHr | J50: =J49-1 -> 41.41839814 | K50: m
C51: Length | E51: 30 | F51: m
C52: Pipe size | E52: =VLOOKUP(E11,'Data pompa'!$B$5:$R$24,17,FALSE) -> 3 | F52: in | I52: Shut in Pressure
C53: Schedule | E53: 40 | I53: P shut in | J53: =E25+1.3*J45 -> 70.06593737 | K53: barg
C54: Fittings
E55: Qty | F55: K | G55: DP
C56: Elbow 90 LR | D56: =C56&$E$52 -> Elbow 90 LR3 | E56: 10 | F56: =VLOOKUP(D56,'K-value'!$D$48:$E$124,2,FALSE) -> 0.29 | G56: =E56*F56*$J$17^2/(2*9.8)*$E$16*9.8/10^5 -> 0.001161108096
C57: Elbow 45 LR | D57: Elbow 45 LR3 | F57: =VLOOKUP(D57,'K-value'!$D$48:$E$124,2,FALSE) -> 0.29 | G57: 0
C58: Tee thru | D58: Tee thru3 | F58: =VLOOKUP(D58,'K-value'!$D$48:$E$124,2,FALSE) -> 0.36 | G58: 0
C59: Tee branch | D59: Tee branch3 | E59: 2 | F59: =VLOOKUP(D59,'K-value'!$D$48:$E$124,2,FALSE) -> 1.08 | G59: 0.0008648253407
C60: Ball valve | D60: Ball valve3 | E60: 6 | F60: =VLOOKUP(D60,'K-value'!$D$48:$E$124,2,FALSE) -> 0.05 | G60: 0.0001201146306
C61: Butterfly valve | D61: Butterfly valve3 | F61: =VLOOKUP(D61,'K-value'!$D$48:$E$124,2,FALSE) -> 0.81 | G61: 0
C62: Gate valve | D62: Gate valve3 | F62: =VLOOKUP(D62,'K-value'!$D$48:$E$124,2,FALSE) -> 0.14 | G62: 0
C63: Globe valve | D63: Globe valve3 | F63: =VLOOKUP(D63,'K-value'!$D$48:$E$124,2,FALSE) -> 6.1 | G63: 0 | I63: Note:
C64: Check valve | D64: Check valve3 | E64: 3 | F64: =VLOOKUP(D64,'K-value'!$D$48:$E$124,2,FALSE) -> 1.8 | G64: 0.002162063352
C65: Plug valve | D65: Plug valve3 | F65: =VLOOKUP(D65,'K-value'!$D$48:$E$124,2,FALSE) -> 1.62 | G65: 0 | I65: 1. Discharge liquid level is assumed 3 m above grade elevation
C66: Pipe entrance | D66: Pipe entrance3 | F66: =VLOOKUP(D66,'K-value'!$D$48:$E$124,2,FALSE) -> 0.78 | G66: 0
C67: Flow orifice | D67: Flow orifice3 | E67: 1 | G67: 0.25
C68: Total, barg | G68: =SUM(G56:G67) -> 0.2543081114
C69: Contingency | G69: 0.2
C70: Total + contingency, barg | G70: =G68*(1+G69) -> 0.3051697337
C71: Pressure Loss due to Equipment
C72: AAV | G72: 0.7

Sheet Bau-bau (hidden)
F1: PUMP SIZING
C5: Project: LNG Regasification in Central Region of Indonesia
C7: Equipment Design Group | E7: 6-8 | F7: MMSCFD
C8: Equipment Design | E8: 5.76 | F8: MMSCFD
C9: Tag No: | E9: BAU-G-001A/B
C10: Description: | E10: LNG Pump
C11: Location: | E11: Bau-bau | O11: Pipe roughness | P11: 0.05 | Q11: mm
P12: =P11/1000/3.28 -> 1.524390244e-05 | Q12: ft
C14: DATA | I14: RESULTS | O14: Mass flow | P14: =E15*E16/0.45 -> 10678.43778 | Q14: lb/hr
C15: Flow rate | E15: =VLOOKUP(E11,'Data pompa'!$B$5:$R$24,8,FALSE) -> 11.09 | F15: m3/h | I15: Suction Hydraulic | O15: Rho | P15: =E16/16.02 -> 27.0474407 | Q15: lb/ft3
C16: Density | E16: =VLOOKUP(E11,'Data pompa'!$B$5:$R$24,13,FALSE) -> 433.3 | F16: kg/m3 | I16: Pipe ID | J16: =VLOOKUP(E28,'Pipe size sch 40'!$A$5:$C$27,3,FALSE)*25.4/1000 -> 0.077978 | K16: m
C17: Flow temperature | E17: =VLOOKUP(E11,'Data pompa'!$B$5:$R$24,12,FALSE) -> -158.91 | F17: deg C | I17: Velocity | J17: =E15/(PI()/4*J16^2)/3600 -> 0.6450523768 | K17: m/s | O17: Side Calculation (Suction)
C18: Viscocity | E18: =VLOOKUP(E11,'Data pompa'!$B$5:$R$24,14,FALSE) -> 0.1176 | F18: cP | I18: Velocity acceptance | J18: =IF(E28<=2,0.9,IF(OR(E28>=3,E28<=6),1.2,IF(OR(E28>=8,E28<=18),1.5,1.8))) -> 1.2 | K18: m/s | L18: (max) | O18: f tebakan | P18: 0.01881888944
E19: =E18*10^-3 -> 0.0001176 | F19: Nm2/s | I19: Reynold number | J19: =E16*J18*J16/E19 -> 344774.1571 | O19: f left | P19: =1/(P18)^0.5 -> 7.289588359
C20: Vapor pressure | E20: =VLOOKUP(E11,'Data pompa'!$B$5:$R$24,15,FALSE) -> 1.2194 | F20: bara | I20: Pipe DP | J20: =P24 -> 0.0221180936 | K20: bar/100m | O20: f right | P20: =-2*LOG(P12/(3.7*J16*0.3048)+2.51/(J19*(P18)^0.5)) -> 7.290198951
C21: Pump efficiency | E21: 0.45 | I21: Pipe DP acceptance | J21: =IF(E28<=6,0.137,0.225) -> 0.137 | K21: bar/100m | O21: f left/f right | P21: =P19/P20 -> 0.9999162448 | Q21: Goal seek
I22: Static head | J22: =E16*9.8*E26/10^5 -> 0.01910853 | K22: bar | O22: psi/100 ft | P22: =0.000336*P18*P14^2/(J16*1000/25.4)^5/P15 -> 0.09775312646
C23: SUCTION | I23: Pipe friction loss | J23: =J20*E27/100 -> 0.01339825638 | K23: bar | O23: psi/ft | P23: =P22/100 -> 0.0009775312646
C24: Pressure at Vessel (min) | E24: 2 | F24: barg | I24: Fitting friction loss | J24: =G46 -> 0.0640890432 | K24: bar | O24: bar/100 m | P24: =P23*100/14.5/0.3048 -> 0.0221180936
C25: Pressure at Vessel (max) | E25: 5 | F25: barg | I25: Suction Pressure | J25: =E24+J22-SUM(J23:J24) -> 1.94162123 | K25: barg
C26: Static head | E26: =VLOOKUP(E11,'Data pompa'!$B$5:$S$27,18,FALSE)/1000 -> 0.45 | F26: m | I26: Result | J26: =IF(AND(J17<J18,J20<J21),"OK","NOT OK") -> OK
C27: Length | E27: =(8408+1000+23274+5300+8924+3670)/1000+10 -> 60.576 | F27: m | G27: assumption | O27: Side Calculation (Discharge) | T27: Suction | V27: Discharge
C28: Pipe size | E28: =VLOOKUP(E11,'Data pompa'!$B$5:$R$24,16,FALSE) -> 3 | F28: in | I28: Discharge Hydraulic | O28: f tebakan | P28: 0.01975681489 | W28: < 49 barg | X28: > 49 barg
C29: Schedule | E29: 40 | I29: Pipe ID | J29: =VLOOKUP(E52,'Pipe size sch 40'!$A$5:$C$27,3,FALSE)*25.4/1000 -> 0.052578 | K29: m | O29: f left | P29: =1/(P28)^0.5 -> 7.114453327 | T29: Velocity | U29: Pressure | V29: Velocity | W29: Pressure | X29: Pressure
C30: Fittings | I30: Velocity | J30: =E15/(PI()/4*J16^2)/3600 -> 0.6450523768 | K30: m/s | O30: f right | P30: =-2*LOG(P12/(3.7*J29*0.3048)+2.51/(J32*(P28)^0.5)) -> 7.113260159 | S30: 0.5 | T30: 0.9 | U30: 0.137 | V30: 4.5 | W30: 0.343 | X30: 0.686
E31: Qty | F31: K | G31: DP | I31: Velocity acceptance | J31: =IF(E50<=18,4.5,6) -> 4.5 | K31: m/s | L31: (max) | O31: f left/f right | P31: =P29/P30 -> 1.000167738 | Q31: Goal seek | S31: 0.75 | T31: 0.9 | U31: 0.137 | V31: 4.5 | W31: 0.343 | X31: 0.686
C32: Elbow 90 LR | D32: =C32&$E$28 -> Elbow 90 LR3 | E32: 10 | F32: =VLOOKUP(D32,'K-value'!$D$48:$E$124,2,FALSE) -> 0.29 | G32: =E32*F32*$J$17^2/(2*9.8)*$E$16*9.8/10^5 -> 0.002614247196 | I32: Reynold number | J32: =E16*J31*J29/E19 -> 871762.0179 | O32: psi/100 ft | P32: =0.000336*P28*P14^2/(J29*1000/25.4)^5/P15 -> 0.7363660317 | S32: 1 | T32: 0.9 | U32: 0.137 | V32: 4.5 | W32: 0.343 | X32: 0.686
C33: Elbow 45 LR | D33: Elbow 45 LR3 | F33: =VLOOKUP(D33,'K-value'!$D$48:$E$124,2,FALSE) -> 0.29 | G33: 0 | I33: Pipe DP | J33: =P34 -> 0.1666137279 | K33: bar/100m | O33: psi/ft | P33: =P32/100 -> 0.007363660317 | S33: 1.5 | T33: 0.9 | U33: 0.137 | V33: 4.5 | W33: 0.343 | X33: 0.686
C34: Tee thru | D34: Tee thru3 | F34: =VLOOKUP(D34,'K-value'!$D$48:$E$124,2,FALSE) -> 0.36 | G34: 0 | I34: Pipe DP acceptance | J34: =IF(E49<=49,0.343,0.686) -> 0.343 | K34: bar/100m | O34: bar/100 m | P34: =P33*100/14.5/0.3048 -> 0.1666137279 | S34: 2 | T34: 0.9 | U34: 0.137 | V34: 4.5 | W34: 0.343 | X34: 0.686
C35: Tee branch | D35: Tee branch3 | F35: =VLOOKUP(D35,'K-value'!$D$48:$E$124,2,FALSE) -> 1.08 | G35: 0 | I35: Static head | J35: =E15*9.8*E50/10^5 -> 0.00326046 | K35: bar | L35: note 1 | S35: 3 | T35: 1.2 | U35: 0.137 | V35: 4.5 | W35: 0.343 | X35: 0.686
C36: Ball valve | D36: Ball valve3 | E36: 2 | F36: =VLOOKUP(D36,'K-value'!$D$48:$E$124,2,FALSE) -> 0.05 | G36: 9.014645504e-05 | I36: Line losses | J36: =J33*E51/100 -> 0.04998411836 | K36: bar | S36: 4 | T36: 1.2 | U36: 0.137 | V36: 4.5 | W36: 0.343 | X36: 0.686
C37: Butterfly valve | D37: Butterfly valve3 | F37: =VLOOKUP(D37,'K-value'!$D$48:$E$124,2,FALSE) -> 0.81 | G37: 0 | I37: Fitting & eqp losses | J37: =G70+G72 -> 1.011228642 | K37: bar | O37: NPSHA calculation | S37: 6 | T37: 1.2 | U37: 0.137 | V37: 4.5 | W37: 0.343 | X37: 0.686
C38: Gate valve | D38: Gate valve3 | F38: =VLOOKUP(D38,'K-value'!$D$48:$E$124,2,FALSE) -> 0.14 | G38: 0 | I38: Discharge Pressure | J38: =E49+J35+J36+J37 -> 9.064473221 | K38: barg | O38: HA | P38: =(E24+1.01)*100000/(E16*9.81) -> 70.81231607 | Q38: m | S38: 8 | T38: 1.5 | U38: 0.225 | V38: 4.5 | W38: 0.343 | X38: 0.686
C39: Globe valve | D39: Globe valve3 | F39: =VLOOKUP(D39,'K-value'!$D$48:$E$124,2,FALSE) -> 6.1 | G39: 0 | I39: Result | J39: =IF(AND(J30<J31,J33<J34),"OK","NOT OK") -> OK | O39: HZ | P39: =E26 -> 0.45 | Q39: m | S39: 10 | T39: 1.5 | U39: 0.225 | V39: 4.5 | W39: 0.343 | X39: 0.686
C40: Check valve | D40: Check valve3 | F40: =VLOOKUP(D40,'K-value'!$D$48:$E$124,2,FALSE) -> 1.8 | G40: 0 | O40: HF | P40: =SUM(J23:J24)*-1 -> -0.07748729958 | S40: 12 | T40: 1.5 | U40: 0.225 | V40: 4.5 | W40: 0.343 | X40: 0.686
C41: Plug valve | D41: Plug valve3 | F41: =VLOOKUP(D41,'K-value'!$D$48:$E$124,2,FALSE) -> 1.62 | G41: 0 | I41: Pump Data | O41: HV | P41: 0 | S41: 16 | T41: 1.5 | U41: 0.225 | V41: 4.5 | W41: 0.343 | X41: 0.686
C42: Pipe entrance | D42: Pipe entrance3 | E42: 1 | F42: =VLOOKUP(D42,'K-value'!$D$48:$E$124,2,FALSE) -> 0.78 | G42: 0.0007031423493 | I42: Suction Pressure | J42: =J25 -> 1.94162123 | K42: barg | O42: HVP | P42: =E20*10^5/(E16*9.8)*-1 -> -28.71649468 | Q42: m | S42: 18 | T42: 1.5 | U42: 0.225 | V42: 4.5 | W42: 0.343 | X42: 0.686
C43: Suction strainer | D43: Suction strainer3 | E43: 1 | G43: =0.05*E43 -> 0.05 | I43: Discharge Pressure | J43: =J38 -> 9.064473221 | K43: barg | O43: NPSHA | P43: =SUM(P38:P42) -> 42.4683341 | Q43: m | S43: 20 | T43: 1.8 | U43: 0.225 | V43: 6 | W43: 0.343 | X43: 0.686
C44: Total, barg | G44: =SUM(G32:G43) -> 0.053407536 | I44: Selected disc. Pressure | J44: 10 | K44: barg
C45: Contingency | G45: 0.2 | I45: Differential Pressure | J45: =J44-J42 -> 8.05837877 | K45: bar
C46: Total + Contingency | G46: =(1+G45)*G44 -> 0.0640890432 | I46: Differential Head | J46: =J45*10^5/(E16*9.8) -> 189.7723397 | K46: m
I47: Hydraulic Power | J47: =E16*9.8*J46*E15/3600000 -> 2.482428349 | K47: kW
C48: DISCHARGE | I48: Pump BHP | J48: =J47/E21 -> 5.516507442 | K48: kW
C49: Target Pressure | E49: =VLOOKUP(E11,'Data pompa'!$B$5:$R$24,3,FALSE) -> 8 | F49: barg | I49: NPSHa | J49: =P43 -> 42.4683341 | K49: m
C50: Static head | E50: 3 | F50: m | G50: note 2 | I50: NPSHr | J50: =J49-1 -> 41.4683341 | K50: m
C51: Length | E51: 30 | F51: m
C52: Pipe size | E52: =VLOOKUP(E11,'Data pompa'!$B$5:$R$24,17,FALSE) -> 2 | F52: in | I52: Shut in Pressure
C53: Schedule | E53: 40 | I53: P shut in | J53: =E25+1.3*J45 -> 15.4758924 | K53: barg
C54: Fittings
E55: Qty | F55: K | G55: DP
C56: Elbow 90 LR | D56: =C56&$E$52 -> Elbow 90 LR2 | E56: 7 | F56: =VLOOKUP(D56,'K-value'!$D$48:$E$124,2,FALSE) -> 0.3 | G56: =E56*F56*$J$17^2/(2*9.8)*$E$16*9.8/10^5 -> 0.001893075556
C57: Elbow 45 LR | D57: Elbow 45 LR2 | F57: =VLOOKUP(D57,'K-value'!$D$48:$E$124,2,FALSE) -> 0.3 | G57: 0
C58: Tee thru | D58: Tee thru2 | F58: =VLOOKUP(D58,'K-value'!$D$48:$E$124,2,FALSE) -> 0.38 | G58: 0
C59: Tee branch | D59: Tee branch2 | E59: 2 | F59: =VLOOKUP(D59,'K-value'!$D$48:$E$124,2,FALSE) -> 1.14 | G59: 0.002055339175
C60: Ball valve | D60: Ball valve2 | E60: 5 | F60: =VLOOKUP(D60,'K-value'!$D$48:$E$124,2,FALSE) -> 0.06 | G60: 0.0002704393651
C61: Butterfly valve | D61: Butterfly valve2 | F61: =VLOOKUP(D61,'K-value'!$D$48:$E$124,2,FALSE) -> 0.86 | G61: 0
C62: Gate valve | D62: Gate valve2 | F62: =VLOOKUP(D62,'K-value'!$D$48:$E$124,2,FALSE) -> 0.15 | G62: 0
C63: Globe valve | D63: Globe valve2 | F63: =VLOOKUP(D63,'K-value'!$D$48:$E$124,2,FALSE) -> 6.5 | G63: 0 | I63: Note:
C64: Check valve | D64: Check valve2 | E64: 3 | F64: =VLOOKUP(D64,'K-value'!$D$48:$E$124,2,FALSE) -> 1.9 | G64: 0.005138347937
C65: Plug valve | D65: Plug valve2 | F65: =VLOOKUP(D65,'K-value'!$D$48:$E$124,2,FALSE) -> 1.71 | G65: 0 | I65: 1. Discharge liquid level is assumed 3 m above grade elevation
C66: Pipe entrance | D66: Pipe entrance2 | F66: =VLOOKUP(D66,'K-value'!$D$48:$E$124,2,FALSE) -> 0.78 | G66: 0
C67: Flow orifice | D67: Flow orifice2 | E67: 1 | G67: 0.25
C68: Total, barg | G68: =SUM(G56:G67) -> 0.259357202
C69: Contingency | G69: 0.2
C70: Total + contingency, barg | G70: =G68*(1+G69) -> 0.3112286424
C71: Pressure Loss due to Equipment
C72: AAV | G72: 0.7

Sheet Kupang (hidden)
F1: PUMP SIZING
C5: Project: LNG Regasification in Central Region of Indonesia
C7: Equipment Design Group | E7: 8-10 | F7: MMSCFD
C8: Equipment Design | E8: 7.68 | F8: MMSCFD
C9: Tag No: | E9: KPP-G-001A/B
C10: Description: | E10: LNG Pump
C11: Location: | E11: Kupang Peaker | O11: Pipe roughness | P11: 0.05 | Q11: mm
P12: =P11/1000/3.28 -> 1.524390244e-05 | Q12: ft
C14: DATA | I14: RESULTS | O14: Mass flow | P14: =E15*E16/0.45 -> 14231.49778 | Q14: lb/hr
C15: Flow rate | E15: =VLOOKUP(E11,'Data pompa'!$B$5:$R$24,8,FALSE) -> 14.78 | F15: m3/h | I15: Suction Hydraulic | O15: Rho | P15: =E16/16.02 -> 27.0474407 | Q15: lb/ft3
C16: Density | E16: =VLOOKUP(E11,'Data pompa'!$B$5:$R$24,13,FALSE) -> 433.3 | F16: kg/m3 | I16: Pipe ID | J16: =VLOOKUP(E28,'Pipe size sch 40'!$A$5:$C$27,3,FALSE)*25.4/1000 -> 0.077978 | K16: m
C17: Flow temperature | E17: =VLOOKUP(E11,'Data pompa'!$B$5:$R$24,12,FALSE) -> -158.92 | F17: deg C | I17: Velocity | J17: =E15/(PI()/4*J16^2)/3600 -> 0.8596820676 | K17: m/s | O17: Side Calculation (Suction)
C18: Viscocity | E18: =VLOOKUP(E11,'Data pompa'!$B$5:$R$24,14,FALSE) -> 0.1176 | F18: cP | I18: Velocity acceptance | J18: =IF(E28<=2,0.9,IF(OR(E28>=3,E28<=6),1.2,IF(OR(E28>=8,E28<=18),1.5,1.8))) -> 1.2 | K18: m/s | L18: (max) | O18: f tebakan | P18: 0.01881888944
E19: =E18*10^-3 -> 0.0001176 | F19: Nm2/s | I19: Reynold number | J19: =E16*J18*J16/E19 -> 344774.1571 | O19: f left | P19: =1/(P18)^0.5 -> 7.289588359
C20: Vapor pressure | E20: =VLOOKUP(E11,'Data pompa'!$B$5:$R$24,15,FALSE) -> 1.2184 | F20: bara | I20: Pipe DP | J20: =P24 -> 0.03928560696 | K20: bar/100m | O20: f right | P20: =-2*LOG(P12/(3.7*J16*0.3048)+2.51/(J19*(P18)^0.5)) -> 7.290198951
C21: Pump efficiency | E21: 0.45 | I21: Pipe DP acceptance | J21: =IF(E28<=6,0.137,0.225) -> 0.137 | K21: bar/100m | O21: f left/f right | P21: =P19/P20 -> 0.9999162448 | Q21: Goal seek
I22: Static head | J22: =E16*9.8*E26/10^5 -> 0.01698536 | K22: bar | O22: psi/100 ft | P22: =0.000336*P18*P14^2/(J16*1000/25.4)^5/P15 -> 0.1736266685
C23: SUCTION | I23: Pipe friction loss | J23: =J20*E27/100 -> 0.02379764927 | K23: bar | O23: psi/ft | P23: =P22/100 -> 0.001736266685
C24: Pressure at Vessel (min) | E24: 2 | F24: barg | I24: Fitting friction loss | J24: =G46 -> 0.06726285669 | K24: bar | O24: bar/100 m | P24: =P23*100/14.5/0.3048 -> 0.03928560696
C25: Pressure at Vessel (max) | E25: 5 | F25: barg | I25: Suction Pressure | J25: =E24+J22-SUM(J23:J24) -> 1.925924854 | K25: barg
C26: Static head | E26: =VLOOKUP(E11,'Data pompa'!$B$5:$S$27,18,FALSE)/1000 -> 0.4 | F26: m | I26: Result | J26: =IF(AND(J17<J18,J20<J21),"OK","NOT OK") -> OK
C27: Length | E27: =(8408+1000+23274+5300+8924+3670)/1000+10 -> 60.576 | F27: m | G27: assumption | O27: Side Calculation (Discharge) | T27: Suction | V27: Discharge
C28: Pipe size | E28: =VLOOKUP(E11,'Data pompa'!$B$5:$R$24,16,FALSE) -> 3 | F28: in | I28: Discharge Hydraulic | O28: f tebakan | P28: 0.01800004114 | W28: < 49 barg | X28: > 49 barg
C29: Schedule | E29: 40 | I29: Pipe ID | J29: =VLOOKUP(E52,'Pipe size sch 40'!$A$5:$C$27,3,FALSE)*25.4/1000 -> 0.077978 | K29: m | O29: f left | P29: =1/(P28)^0.5 -> 7.453551408 | T29: Velocity | U29: Pressure | V29: Velocity | W29: Pressure | X29: Pressure
C30: Fittings | I30: Velocity | J30: =E15/(PI()/4*J16^2)/3600 -> 0.8596820676 | K30: m/s | O30: f right | P30: =-2*LOG(P12/(3.7*J29*0.3048)+2.51/(J32*(P28)^0.5)) -> 7.452546339 | S30: 0.5 | T30: 0.9 | U30: 0.137 | V30: 4.5 | W30: 0.343 | X30: 0.686
E31: Qty | F31: K | G31: DP | I31: Velocity acceptance | J31: =IF(E50<=18,4.5,6) -> 4.5 | K31: m/s | L31: (max) | O31: f left/f right | P31: =P29/P30 -> 1.000134863 | Q31: Goal seek | S31: 0.75 | T31: 0.9 | U31: 0.137 | V31: 4.5 | W31: 0.343 | X31: 0.686
C32: Elbow 90 LR | D32: =C32&$E$28 -> Elbow 90 LR3 | E32: 10 | F32: =VLOOKUP(D32,'K-value'!$D$48:$E$124,2,FALSE) -> 0.29 | G32: =E32*F32*$J$17^2/(2*9.8)*$E$16*9.8/10^5 -> 0.004643360758 | I32: Reynold number | J32: =E16*J31*J29/E19 -> 1292903.089 | O32: psi/100 ft | P32: =0.000336*P28*P14^2/(J29*1000/25.4)^5/P15 -> 0.1660718176 | S32: 1 | T32: 0.9 | U32: 0.137 | V32: 4.5 | W32: 0.343 | X32: 0.686
C33: Elbow 45 LR | D33: Elbow 45 LR3 | F33: =VLOOKUP(D33,'K-value'!$D$48:$E$124,2,FALSE) -> 0.29 | G33: 0 | I33: Pipe DP | J33: =P34 -> 0.03757620998 | K33: bar/100m | O33: psi/ft | P33: =P32/100 -> 0.001660718176 | S33: 1.5 | T33: 0.9 | U33: 0.137 | V33: 4.5 | W33: 0.343 | X33: 0.686
C34: Tee thru | D34: Tee thru3 | F34: =VLOOKUP(D34,'K-value'!$D$48:$E$124,2,FALSE) -> 0.36 | G34: 0 | I34: Pipe DP acceptance | J34: =IF(E49<=49,0.343,0.686) -> 0.343 | K34: bar/100m | O34: bar/100 m | P34: =P33*100/14.5/0.3048 -> 0.03757620998 | S34: 2 | T34: 0.9 | U34: 0.137 | V34: 4.5 | W34: 0.343 | X34: 0.686
C35: Tee branch | D35: Tee branch3 | F35: =VLOOKUP(D35,'K-value'!$D$48:$E$124,2,FALSE) -> 1.08 | G35: 0 | I35: Static head | J35: =E15*9.8*E50/10^5 -> 0.00434532 | K35: bar | L35: note 1 | S35: 3 | T35: 1.2 | U35: 0.137 | V35: 4.5 | W35: 0.343 | X35: 0.686
C36: Ball valve | D36: Ball valve3 | E36: 2 | F36: =VLOOKUP(D36,'K-value'!$D$48:$E$124,2,FALSE) -> 0.05 | G36: 0.0001601158882 | I36: Line losses | J36: =J33*E51/100 -> 0.01127286299 | K36: bar | S36: 4 | T36: 1.2 | U36: 0.137 | V36: 4.5 | W36: 0.343 | X36: 0.686
C37: Butterfly valve | D37: Butterfly valve3 | F37: =VLOOKUP(D37,'K-value'!$D$48:$E$124,2,FALSE) -> 0.81 | G37: 0 | I37: Fitting & eqp losses | J37: =G70+G72 -> 1.01652396 | K37: bar | O37: NPSHA calculation | S37: 6 | T37: 1.2 | U37: 0.137 | V37: 4.5 | W37: 0.343 | X37: 0.686
C38: Gate valve | D38: Gate valve3 | F38: =VLOOKUP(D38,'K-value'!$D$48:$E$124,2,FALSE) -> 0.14 | G38: 0 | I38: Discharge Pressure | J38: =E49+J35+J36+J37 -> 9.032142143 | K38: barg | O38: HA | P38: =(E24+1.01)*100000/(E16*9.81) -> 70.81231607 | Q38: m | S38: 8 | T38: 1.5 | U38: 0.225 | V38: 4.5 | W38: 0.343 | X38: 0.686
C39: Globe valve | D39: Globe valve3 | F39: =VLOOKUP(D39,'K-value'!$D$48:$E$124,2,FALSE) -> 6.1 | G39: 0 | I39: Result | J39: =IF(AND(J30<J31,J33<J34),"OK","NOT OK") -> OK | O39: HZ | P39: =E26 -> 0.4 | Q39: m | S39: 10 | T39: 1.5 | U39: 0.225 | V39: 4.5 | W39: 0.343 | X39: 0.686
C40: Check valve | D40: Check valve3 | F40: =VLOOKUP(D40,'K-value'!$D$48:$E$124,2,FALSE) -> 1.8 | G40: 0 | O40: HF | P40: =SUM(J23:J24)*-1 -> -0.09106050596 | S40: 12 | T40: 1.5 | U40: 0.225 | V40: 4.5 | W40: 0.343 | X40: 0.686
C41: Plug valve | D41: Plug valve3 | F41: =VLOOKUP(D41,'K-value'!$D$48:$E$124,2,FALSE) -> 1.62 | G41: 0 | I41: Pump Data | O41: HV | P41: 0 | S41: 16 | T41: 1.5 | U41: 0.225 | V41: 4.5 | W41: 0.343 | X41: 0.686
C42: Pipe entrance | D42: Pipe entrance3 | E42: 1 | F42: =VLOOKUP(D42,'K-value'!$D$48:$E$124,2,FALSE) -> 0.78 | G42: 0.001248903928 | I42: Suction Pressure | J42: =J25 -> 1.925924854 | K42: barg | O42: HVP | P42: =E20*10^5/(E16*9.8)*-1 -> -28.69294498 | Q42: m | S42: 18 | T42: 1.5 | U42: 0.225 | V42: 4.5 | W42: 0.343 | X42: 0.686
C43: Suction strainer | D43: Suction strainer3 | E43: 1 | G43: =0.05*E43 -> 0.05 | I43: Discharge Pressure | J43: =J38 -> 9.032142143 | K43: barg | O43: NPSHA | P43: =SUM(P38:P42) -> 42.42831058 | Q43: m | S43: 20 | T43: 1.8 | U43: 0.225 | V43: 6 | W43: 0.343 | X43: 0.686
C44: Total, barg | G44: =SUM(G32:G43) -> 0.05605238057 | I44: Selected disc. Pressure | J44: 10 | K44: barg
C45: Contingency | G45: 0.2 | I45: Differential Pressure | J45: =J44-J42 -> 8.074075146 | K45: bar
C46: Total + Contingency | G46: =(1+G45)*G44 -> 0.06726285669 | I46: Differential Head | J46: =J45*10^5/(E16*9.8) -> 190.1419845 | K46: m
I47: Hydraulic Power | J47: =E16*9.8*J46*E15/3600000 -> 3.314856407 | K47: kW
C48: DISCHARGE | I48: Pump BHP | J48: =J47/E21 -> 7.366347571 | K48: kW
C49: Target Pressure | E49: =VLOOKUP(E11,'Data pompa'!$B$5:$R$24,3,FALSE) -> 8 | F49: barg | I49: NPSHa | J49: =P43 -> 42.42831058 | K49: m
C50: Static head | E50: 3 | F50: m | G50: note 2 | I50: NPSHr | J50: =J49-1 -> 41.42831058 | K50: m
C51: Length | E51: 30 | F51: m
C52: Pipe size | E52: =VLOOKUP(E11,'Data pompa'!$B$5:$R$24,17,FALSE) -> 3 | F52: in | I52: Shut in Pressure
C53: Schedule | E53: 40 | I53: P shut in | J53: =E25+1.3*J45 -> 15.49629769 | K53: barg
C54: Fittings
E55: Qty | F55: K | G55: DP
C56: Elbow 90 LR | D56: =C56&$E$52 -> Elbow 90 LR3 | E56: 10 | F56: =VLOOKUP(D56,'K-value'!$D$48:$E$124,2,FALSE) -> 0.29 | G56: =E56*F56*$J$17^2/(2*9.8)*$E$16*9.8/10^5 -> 0.004643360758
C57: Elbow 45 LR | D57: Elbow 45 LR3 | F57: =VLOOKUP(D57,'K-value'!$D$48:$E$124,2,FALSE) -> 0.29 | G57: 0
C58: Tee thru | D58: Tee thru3 | F58: =VLOOKUP(D58,'K-value'!$D$48:$E$124,2,FALSE) -> 0.36 | G58: 0
C59: Tee branch | D59: Tee branch3 | F59: =VLOOKUP(D59,'K-value'!$D$48:$E$124,2,FALSE) -> 1.08 | G59: 0
C60: Ball valve | D60: Ball valve3 | E60: 6 | F60: =VLOOKUP(D60,'K-value'!$D$48:$E$124,2,FALSE) -> 0.05 | G60: 0.0004803476646
C61: Butterfly valve | D61: Butterfly valve3 | F61: =VLOOKUP(D61,'K-value'!$D$48:$E$124,2,FALSE) -> 0.81 | G61: 0
C62: Gate valve | D62: Gate valve3 | F62: =VLOOKUP(D62,'K-value'!$D$48:$E$124,2,FALSE) -> 0.14 | G62: 0
C63: Globe valve | D63: Globe valve3 | F63: =VLOOKUP(D63,'K-value'!$D$48:$E$124,2,FALSE) -> 6.1 | G63: 0 | I63: Note:
C64: Check valve | D64: Check valve3 | E64: 3 | F64: =VLOOKUP(D64,'K-value'!$D$48:$E$124,2,FALSE) -> 1.8 | G64: 0.008646257963
C65: Plug valve | D65: Plug valve3 | F65: =VLOOKUP(D65,'K-value'!$D$48:$E$124,2,FALSE) -> 1.62 | G65: 0 | I65: 1. Discharge liquid level is assumed 3 m above grade elevation
C66: Pipe entrance | D66: Pipe entrance3 | F66: =VLOOKUP(D66,'K-value'!$D$48:$E$124,2,FALSE) -> 0.78 | G66: 0
C67: Flow orifice | D67: Flow orifice3 | E67: 1 | G67: 0.25
C68: Total, barg | G68: =SUM(G56:G67) -> 0.2637699664
C69: Contingency | G69: 0.2
C70: Total + contingency, barg | G70: =G68*(1+G69) -> 0.3165239597
C71: Pressure Loss due to Equipment
C72: AAV | G72: 0.7

Sheet Maumere (hidden)
F1: PUMP SIZING
C5: Project: LNG Regasification in Central Region of Indonesia
C7: Equipment Design Group | E7: 8-10 | F7: MMSCFD
C8: Equipment Design | E8: 7.68 | F8: MMSCFD
C9: Tag No: | E9: MMR-G-001A/B
C10: Description: | E10: LNG Pump
C11: Location: | E11: Maumere | O11: Pipe roughness | P11: 0.05 | Q11: mm
P12: =P11/1000/3.28 -> 1.524390244e-05 | Q12: ft
C14: DATA | I14: RESULTS | O14: Mass flow | P14: =E15*E16/0.45 -> 14231.49778 | Q14: lb/hr
C15: Flow rate | E15: =VLOOKUP(E11,'Data pompa'!$B$5:$R$24,8,FALSE) -> 14.78 | F15: m3/h | I15: Suction Hydraulic | O15: Rho | P15: =E16/16.02 -> 27.0474407 | Q15: lb/ft3
C16: Density | E16: =VLOOKUP(E11,'Data pompa'!$B$5:$R$24,13,FALSE) -> 433.3 | F16: kg/m3 | I16: Pipe ID | J16: =VLOOKUP(E28,'Pipe size sch 40'!$A$5:$C$27,3,FALSE)*25.4/1000 -> 0.077978 | K16: m
C17: Flow temperature | E17: =VLOOKUP(E11,'Data pompa'!$B$5:$R$24,12,FALSE) -> -158.92 | F17: deg C | I17: Velocity | J17: =E15/(PI()/4*J16^2)/3600 -> 0.8596820676 | K17: m/s | O17: Side Calculation (Suction)
C18: Viscocity | E18: =VLOOKUP(E11,'Data pompa'!$B$5:$R$24,14,FALSE) -> 0.1176 | F18: cP | I18: Velocity acceptance | J18: =IF(E28<=2,0.9,IF(OR(E28>=3,E28<=6),1.2,IF(OR(E28>=8,E28<=18),1.5,1.8))) -> 1.2 | K18: m/s | L18: (max) | O18: f tebakan | P18: 0.01881888944
E19: =E18*10^-3 -> 0.0001176 | F19: Nm2/s | I19: Reynold number | J19: =E16*J18*J16/E19 -> 344774.1571 | O19: f left | P19: =1/(P18)^0.5 -> 7.289588359
C20: Vapor pressure | E20: =VLOOKUP(E11,'Data pompa'!$B$5:$R$24,15,FALSE) -> 1.2184 | F20: bara | I20: Pipe DP | J20: =P24 -> 0.03928560696 | K20: bar/100m | O20: f right | P20: =-2*LOG(P12/(3.7*J16*0.3048)+2.51/(J19*(P18)^0.5)) -> 7.290198951
C21: Pump efficiency | E21: 0.45 | I21: Pipe DP acceptance | J21: =IF(E28<=6,0.137,0.225) -> 0.137 | K21: bar/100m | O21: f left/f right | P21: =P19/P20 -> 0.9999162448 | Q21: Goal seek
I22: Static head | J22: =E16*9.8*E26/10^5 -> 0.01698536 | K22: bar | O22: psi/100 ft | P22: =0.000336*P18*P14^2/(J16*1000/25.4)^5/P15 -> 0.1736266685
C23: SUCTION | I23: Pipe friction loss | J23: =J20*E27/100 -> 0.02379764927 | K23: bar | O23: psi/ft | P23: =P22/100 -> 0.001736266685
C24: Pressure at Vessel (min) | E24: 2 | F24: barg | I24: Fitting friction loss | J24: =G46 -> 0.06726285669 | K24: bar | O24: bar/100 m | P24: =P23*100/14.5/0.3048 -> 0.03928560696
C25: Pressure at Vessel (max) | E25: 5 | F25: barg | I25: Suction Pressure | J25: =E24+J22-SUM(J23:J24) -> 1.925924854 | K25: barg
C26: Static head | E26: =VLOOKUP(E11,'Data pompa'!$B$5:$S$27,18,FALSE)/1000 -> 0.4 | F26: m | I26: Result | J26: =IF(AND(J17<J18,J20<J21),"OK","NOT OK") -> OK
C27: Length | E27: =(8408+1000+23274+5300+8924+3670)/1000+10 -> 60.576 | F27: m | G27: assumption | O27: Side Calculation (Discharge) | T27: Suction | V27: Discharge
C28: Pipe size | E28: =VLOOKUP(E11,'Data pompa'!$B$5:$R$24,16,FALSE) -> 3 | F28: in | I28: Discharge Hydraulic | O28: f tebakan | P28: 0.01800004114 | W28: < 49 barg | X28: > 49 barg
C29: Schedule | E29: 40 | I29: Pipe ID | J29: =VLOOKUP(E52,'Pipe size sch 40'!$A$5:$C$27,3,FALSE)*25.4/1000 -> 0.077978 | K29: m | O29: f left | P29: =1/(P28)^0.5 -> 7.453551408 | T29: Velocity | U29: Pressure | V29: Velocity | W29: Pressure | X29: Pressure
C30: Fittings | I30: Velocity | J30: =E15/(PI()/4*J16^2)/3600 -> 0.8596820676 | K30: m/s | O30: f right | P30: =-2*LOG(P12/(3.7*J29*0.3048)+2.51/(J32*(P28)^0.5)) -> 7.452546339 | S30: 0.5 | T30: 0.9 | U30: 0.137 | V30: 4.5 | W30: 0.343 | X30: 0.686
E31: Qty | F31: K | G31: DP | I31: Velocity acceptance | J31: =IF(E50<=18,4.5,6) -> 4.5 | K31: m/s | L31: (max) | O31: f left/f right | P31: =P29/P30 -> 1.000134863 | Q31: Goal seek | S31: 0.75 | T31: 0.9 | U31: 0.137 | V31: 4.5 | W31: 0.343 | X31: 0.686
C32: Elbow 90 LR | D32: =C32&$E$28 -> Elbow 90 LR3 | E32: 10 | F32: =VLOOKUP(D32,'K-value'!$D$48:$E$124,2,FALSE) -> 0.29 | G32: =E32*F32*$J$17^2/(2*9.8)*$E$16*9.8/10^5 -> 0.004643360758 | I32: Reynold number | J32: =E16*J31*J29/E19 -> 1292903.089 | O32: psi/100 ft | P32: =0.000336*P28*P14^2/(J29*1000/25.4)^5/P15 -> 0.1660718176 | S32: 1 | T32: 0.9 | U32: 0.137 | V32: 4.5 | W32: 0.343 | X32: 0.686
C33: Elbow 45 LR | D33: Elbow 45 LR3 | F33: =VLOOKUP(D33,'K-value'!$D$48:$E$124,2,FALSE) -> 0.29 | G33: 0 | I33: Pipe DP | J33: =P34 -> 0.03757620998 | K33: bar/100m | O33: psi/ft | P33: =P32/100 -> 0.001660718176 | S33: 1.5 | T33: 0.9 | U33: 0.137 | V33: 4.5 | W33: 0.343 | X33: 0.686
C34: Tee thru | D34: Tee thru3 | F34: =VLOOKUP(D34,'K-value'!$D$48:$E$124,2,FALSE) -> 0.36 | G34: 0 | I34: Pipe DP acceptance | J34: =IF(E49<=49,0.343,0.686) -> 0.343 | K34: bar/100m | O34: bar/100 m | P34: =P33*100/14.5/0.3048 -> 0.03757620998 | S34: 2 | T34: 0.9 | U34: 0.137 | V34: 4.5 | W34: 0.343 | X34: 0.686
C35: Tee branch | D35: Tee branch3 | F35: =VLOOKUP(D35,'K-value'!$D$48:$E$124,2,FALSE) -> 1.08 | G35: 0 | I35: Static head | J35: =E15*9.8*E50/10^5 -> 0.00434532 | K35: bar | L35: note 1 | S35: 3 | T35: 1.2 | U35: 0.137 | V35: 4.5 | W35: 0.343 | X35: 0.686
C36: Ball valve | D36: Ball valve3 | E36: 2 | F36: =VLOOKUP(D36,'K-value'!$D$48:$E$124,2,FALSE) -> 0.05 | G36: 0.0001601158882 | I36: Line losses | J36: =J33*E51/100 -> 0.01127286299 | K36: bar | S36: 4 | T36: 1.2 | U36: 0.137 | V36: 4.5 | W36: 0.343 | X36: 0.686
C37: Butterfly valve | D37: Butterfly valve3 | F37: =VLOOKUP(D37,'K-value'!$D$48:$E$124,2,FALSE) -> 0.81 | G37: 0 | I37: Fitting & eqp losses | J37: =G70+G72 -> 1.020674163 | K37: bar | O37: NPSHA calculation | S37: 6 | T37: 1.2 | U37: 0.137 | V37: 4.5 | W37: 0.343 | X37: 0.686
C38: Gate valve | D38: Gate valve3 | F38: =VLOOKUP(D38,'K-value'!$D$48:$E$124,2,FALSE) -> 0.14 | G38: 0 | I38: Discharge Pressure | J38: =E49+J35+J36+J37 -> 9.036292346 | K38: barg | O38: HA | P38: =(E24+1.01)*100000/(E16*9.81) -> 70.81231607 | Q38: m | S38: 8 | T38: 1.5 | U38: 0.225 | V38: 4.5 | W38: 0.343 | X38: 0.686
C39: Globe valve | D39: Globe valve3 | F39: =VLOOKUP(D39,'K-value'!$D$48:$E$124,2,FALSE) -> 6.1 | G39: 0 | I39: Result | J39: =IF(AND(J30<J31,J33<J34),"OK","NOT OK") -> OK | O39: HZ | P39: =E26 -> 0.4 | Q39: m | S39: 10 | T39: 1.5 | U39: 0.225 | V39: 4.5 | W39: 0.343 | X39: 0.686
C40: Check valve | D40: Check valve3 | F40: =VLOOKUP(D40,'K-value'!$D$48:$E$124,2,FALSE) -> 1.8 | G40: 0 | O40: HF | P40: =SUM(J23:J24)*-1 -> -0.09106050596 | S40: 12 | T40: 1.5 | U40: 0.225 | V40: 4.5 | W40: 0.343 | X40: 0.686
C41: Plug valve | D41: Plug valve3 | F41: =VLOOKUP(D41,'K-value'!$D$48:$E$124,2,FALSE) -> 1.62 | G41: 0 | I41: Pump Data | O41: HV | P41: 0 | S41: 16 | T41: 1.5 | U41: 0.225 | V41: 4.5 | W41: 0.343 | X41: 0.686
C42: Pipe entrance | D42: Pipe entrance3 | E42: 1 | F42: =VLOOKUP(D42,'K-value'!$D$48:$E$124,2,FALSE) -> 0.78 | G42: 0.001248903928 | I42: Suction Pressure | J42: =J25 -> 1.925924854 | K42: barg | O42: HVP | P42: =E20*10^5/(E16*9.8)*-1 -> -28.69294498 | Q42: m | S42: 18 | T42: 1.5 | U42: 0.225 | V42: 4.5 | W42: 0.343 | X42: 0.686
C43: Suction strainer | D43: Suction strainer3 | E43: 1 | G43: =0.05*E43 -> 0.05 | I43: Discharge Pressure | J43: =J38 -> 9.036292346 | K43: barg | O43: NPSHA | P43: =SUM(P38:P42) -> 42.42831058 | Q43: m | S43: 20 | T43: 1.8 | U43: 0.225 | V43: 6 | W43: 0.343 | X43: 0.686
C44: Total, barg | G44: =SUM(G32:G43) -> 0.05605238057 | I44: Selected disc. Pressure | J44: 10 | K44: barg
C45: Contingency | G45: 0.2 | I45: Differential Pressure | J45: =J44-J42 -> 8.074075146 | K45: bar
C46: Total + Contingency | G46: =(1+G45)*G44 -> 0.06726285669 | I46: Differential Head | J46: =J45*10^5/(E16*9.8) -> 190.1419845 | K46: m
I47: Hydraulic Power | J47: =E16*9.8*J46*E15/3600000 -> 3.314856407 | K47: kW
C48: DISCHARGE | I48: Pump BHP | J48: =J47/E21 -> 7.366347571 | K48: kW
C49: Target Pressure | E49: 8 | F49: barg | I49: NPSHa | J49: =P43 -> 42.42831058 | K49: m
C50: Static head | E50: 3 | F50: m | G50: note 2 | I50: NPSHr | J50: =J49-1 -> 41.42831058 | K50: m
C51: Length | E51: 30 | F51: m
C52: Pipe size | E52: =VLOOKUP(E11,'Data pompa'!$B$5:$R$24,17,FALSE) -> 3 | F52: in | I52: Shut in Pressure
C53: Schedule | E53: 40 | I53: P shut in | J53: =E25+1.3*J45 -> 15.49629769 | K53: barg
C54: Fittings
E55: Qty | F55: K | G55: DP
C56: Elbow 90 LR | D56: =C56&$E$52 -> Elbow 90 LR3 | E56: 10 | F56: =VLOOKUP(D56,'K-value'!$D$48:$E$124,2,FALSE) -> 0.29 | G56: =E56*F56*$J$17^2/(2*9.8)*$E$16*9.8/10^5 -> 0.004643360758
C57: Elbow 45 LR | D57: Elbow 45 LR3 | F57: =VLOOKUP(D57,'K-value'!$D$48:$E$124,2,FALSE) -> 0.29 | G57: 0
C58: Tee thru | D58: Tee thru3 | F58: =VLOOKUP(D58,'K-value'!$D$48:$E$124,2,FALSE) -> 0.36 | G58: 0
C59: Tee branch | D59: Tee branch3 | E59: 2 | F59: =VLOOKUP(D59,'K-value'!$D$48:$E$124,2,FALSE) -> 1.08 | G59: 0.003458503185
C60: Ball valve | D60: Ball valve3 | E60: 6 | F60: =VLOOKUP(D60,'K-value'!$D$48:$E$124,2,FALSE) -> 0.05 | G60: 0.0004803476646
C61: Butterfly valve | D61: Butterfly valve3 | F61: =VLOOKUP(D61,'K-value'!$D$48:$E$124,2,FALSE) -> 0.81 | G61: 0
C62: Gate valve | D62: Gate valve3 | F62: =VLOOKUP(D62,'K-value'!$D$48:$E$124,2,FALSE) -> 0.14 | G62: 0
C63: Globe valve | D63: Globe valve3 | F63: =VLOOKUP(D63,'K-value'!$D$48:$E$124,2,FALSE) -> 6.1 | G63: 0 | I63: Note:
C64: Check valve | D64: Check valve3 | E64: 3 | F64: =VLOOKUP(D64,'K-value'!$D$48:$E$124,2,FALSE) -> 1.8 | G64: 0.008646257963
C65: Plug valve | D65: Plug valve3 | F65: =VLOOKUP(D65,'K-value'!$D$48:$E$124,2,FALSE) -> 1.62 | G65: 0 | I65: 1. Discharge liquid level is assumed 3 m above grade elevation
C66: Pipe entrance | D66: Pipe entrance3 | F66: =VLOOKUP(D66,'K-value'!$D$48:$E$124,2,FALSE) -> 0.78 | G66: 0
C67: Flow orifice | D67: Flow orifice3 | E67: 1 | G67: 0.25
C68: Total, barg | G68: =SUM(G56:G67) -> 0.2672284696
C69: Contingency | G69: 0.2
C70: Total + contingency, barg | G70: =G68*(1+G69) -> 0.3206741635
C71: Pressure Loss due to Equipment
C72: AAV | G72: 0.7

Sheet Sumbawa (hidden)
F1: PUMP SIZING
C5: Project: LNG Regasification in Central Region of Indonesia
C7: Equipment Design Group | E7: 8-10 | F7: MMSCFD
C8: Equipment Design | E8: 9.6 | F8: MMSCFD
C9: Tag No: | E9: SMB-G-001A/B
C10: Description: | E10: LNG Pump
C11: Location: | E11: Sumbawa | O11: Pipe roughness | P11: 0.05 | Q11: mm
P12: =P11/1000/3.28 -> 1.524390244e-05 | Q12: ft
C14: DATA | I14: RESULTS | O14: Mass flow | P14: =E15*E16/0.45 -> 17794.18667 | Q14: lb/hr
C15: Flow rate | E15: =VLOOKUP(E11,'Data pompa'!$B$5:$R$24,8,FALSE) -> 18.48 | F15: m3/h | I15: Suction Hydraulic | O15: Rho | P15: =E16/16.02 -> 27.0474407 | Q15: lb/ft3
C16: Density | E16: =VLOOKUP(E11,'Data pompa'!$B$5:$R$24,13,FALSE) -> 433.3 | F16: kg/m3 | I16: Pipe ID | J16: =VLOOKUP(E28,'Pipe size sch 40'!$A$5:$C$27,3,FALSE)*25.4/1000 -> 0.102362 | K16: m
C17: Flow temperature | E17: =VLOOKUP(E11,'Data pompa'!$B$5:$R$24,12,FALSE) -> -158.92 | F17: deg C | I17: Velocity | J17: =E15/(PI()/4*J16^2)/3600 -> 0.6237808807 | K17: m/s | O17: Side Calculation (Suction)
C18: Viscocity | E18: =VLOOKUP(E11,'Data pompa'!$B$5:$R$24,14,FALSE) -> 0.1176 | F18: cP | I18: Velocity acceptance | J18: =IF(E28<=2,0.9,IF(OR(E28>=3,E28<=6),1.2,IF(OR(E28>=8,E28<=18),1.5,1.8))) -> 1.2 | K18: m/s | L18: (max) | O18: f tebakan | P18: 0.01768978453
E19: =E18*10^-3 -> 0.0001176 | F19: Nm2/s | I19: Reynold number | J19: =E16*J18*J16/E19 -> 452586.2714 | O19: f left | P19: =1/(P18)^0.5 -> 7.518630264
C20: Vapor pressure | E20: =VLOOKUP(E11,'Data pompa'!$B$5:$R$24,15,FALSE) -> 1.2184 | F20: bara | I20: Pipe DP | J20: =P24 -> 0.01481097783 | K20: bar/100m | O20: f right | P20: =-2*LOG(P12/(3.7*J16*0.3048)+2.51/(J19*(P18)^0.5)) -> 7.52015886
C21: Pump efficiency | E21: 0.45 | I21: Pipe DP acceptance | J21: =IF(E28<=6,0.137,0.225) -> 0.137 | K21: bar/100m | O21: f left/f right | P21: =P19/P20 -> 0.9997967336 | Q21: Goal seek
I22: Static head | J22: =E16*9.8*E26/10^5 -> 0.01698536 | K22: bar | O22: psi/100 ft | P22: =0.000336*P18*P14^2/(J16*1000/25.4)^5/P15 -> 0.0654585976
C23: SUCTION | I23: Pipe friction loss | J23: =J20*E27/100 -> 0.008971897928 | K23: bar | O23: psi/ft | P23: =P22/100 -> 0.000654585976
C24: Pressure at Vessel (min) | E24: 2 | F24: barg | I24: Fitting friction loss | J24: =G46 -> 0.06362148828 | K24: bar | O24: bar/100 m | P24: =P23*100/14.5/0.3048 -> 0.01481097783
C25: Pressure at Vessel (max) | E25: 5 | F25: barg | I25: Suction Pressure | J25: =E24+J22-SUM(J23:J24) -> 1.944391974 | K25: barg
C26: Static head | E26: =VLOOKUP(E11,'Data pompa'!$B$5:$S$27,18,FALSE)/1000 -> 0.4 | F26: m | I26: Result | J26: =IF(AND(J17<J18,J20<J21),"OK","NOT OK") -> OK
C27: Length | E27: =(8408+1000+23274+5300+8924+3670)/1000+10 -> 60.576 | F27: m | G27: assumption | O27: Side Calculation (Discharge) | T27: Suction | V27: Discharge
C28: Pipe size | E28: =VLOOKUP(E11,'Data pompa'!$B$5:$R$24,16,FALSE) -> 4 | F28: in | I28: Discharge Hydraulic | O28: f tebakan | P28: 0.01800004114 | W28: < 49 barg | X28: > 49 barg
C29: Schedule | E29: 40 | I29: Pipe ID | J29: =VLOOKUP(E52,'Pipe size sch 40'!$A$5:$C$27,3,FALSE)*25.4/1000 -> 0.077978 | K29: m | O29: f left | P29: =1/(P28)^0.5 -> 7.453551408 | T29: Velocity | U29: Pressure | V29: Velocity | W29: Pressure | X29: Pressure
C30: Fittings | I30: Velocity | J30: =E15/(PI()/4*J16^2)/3600 -> 0.6237808807 | K30: m/s | O30: f right | P30: =-2*LOG(P12/(3.7*J29*0.3048)+2.51/(J32*(P28)^0.5)) -> 7.452546339 | S30: 0.5 | T30: 0.9 | U30: 0.137 | V30: 4.5 | W30: 0.343 | X30: 0.686
E31: Qty | F31: K | G31: DP | I31: Velocity acceptance | J31: =IF(E50<=18,4.5,6) -> 4.5 | K31: m/s | L31: (max) | O31: f left/f right | P31: =P29/P30 -> 1.000134863 | Q31: Goal seek | S31: 0.75 | T31: 0.9 | U31: 0.137 | V31: 4.5 | W31: 0.343 | X31: 0.686
C32: Elbow 90 LR | D32: =C32&$E$28 -> Elbow 90 LR4 | E32: 10 | F32: =VLOOKUP(D32,'K-value'!$D$48:$E$124,2,FALSE) -> 0.27 | G32: =E32*F32*$J$17^2/(2*9.8)*$E$16*9.8/10^5 -> 0.002276075039 | I32: Reynold number | J32: =E16*J31*J29/E19 -> 1292903.089 | O32: psi/100 ft | P32: =0.000336*P28*P14^2/(J29*1000/25.4)^5/P15 -> 0.2596276872 | S32: 1 | T32: 0.9 | U32: 0.137 | V32: 4.5 | W32: 0.343 | X32: 0.686
C33: Elbow 45 LR | D33: Elbow 45 LR4 | F33: =VLOOKUP(D33,'K-value'!$D$48:$E$124,2,FALSE) -> 0.27 | G33: 0 | I33: Pipe DP | J33: =P34 -> 0.058744612 | K33: bar/100m | O33: psi/ft | P33: =P32/100 -> 0.002596276872 | S33: 1.5 | T33: 0.9 | U33: 0.137 | V33: 4.5 | W33: 0.343 | X33: 0.686
C34: Tee thru | D34: Tee thru4 | F34: =VLOOKUP(D34,'K-value'!$D$48:$E$124,2,FALSE) -> 0.34 | G34: 0 | I34: Pipe DP acceptance | J34: =IF(E49<=49,0.343,0.686) -> 0.343 | K34: bar/100m | O34: bar/100 m | P34: =P33*100/14.5/0.3048 -> 0.058744612 | S34: 2 | T34: 0.9 | U34: 0.137 | V34: 4.5 | W34: 0.343 | X34: 0.686
C35: Tee branch | D35: Tee branch4 | F35: =VLOOKUP(D35,'K-value'!$D$48:$E$124,2,FALSE) -> 1.02 | G35: 0 | I35: Static head | J35: =E15*9.8*E50/10^5 -> 0.00543312 | K35: bar | L35: note 1 | S35: 3 | T35: 1.2 | U35: 0.137 | V35: 4.5 | W35: 0.343 | X35: 0.686
C36: Ball valve | D36: Ball valve4 | E36: 2 | F36: =VLOOKUP(D36,'K-value'!$D$48:$E$124,2,FALSE) -> 0.05 | G36: 8.429907551e-05 | I36: Line losses | J36: =J33*E51/100 -> 0.0176233836 | K36: bar | S36: 4 | T36: 1.2 | U36: 0.137 | V36: 4.5 | W36: 0.343 | X36: 0.686
C37: Butterfly valve | D37: Butterfly valve4 | F37: =VLOOKUP(D37,'K-value'!$D$48:$E$124,2,FALSE) -> 0.77 | G37: 0 | I37: Fitting & eqp losses | J37: =G70+G72 -> 1.010884697 | K37: bar | O37: NPSHA calculation | S37: 6 | T37: 1.2 | U37: 0.137 | V37: 4.5 | W37: 0.343 | X37: 0.686
C38: Gate valve | D38: Gate valve4 | F38: =VLOOKUP(D38,'K-value'!$D$48:$E$124,2,FALSE) -> 0.14 | G38: 0 | I38: Discharge Pressure | J38: =E49+J35+J36+J37 -> 9.0339412 | K38: barg | O38: HA | P38: =(E24+1.01)*100000/(E16*9.81) -> 70.81231607 | Q38: m | S38: 8 | T38: 1.5 | U38: 0.225 | V38: 4.5 | W38: 0.343 | X38: 0.686
C39: Globe valve | D39: Globe valve4 | F39: =VLOOKUP(D39,'K-value'!$D$48:$E$124,2,FALSE) -> 5.8 | G39: 0 | I39: Result | J39: =IF(AND(J30<J31,J33<J34),"OK","NOT OK") -> OK | O39: HZ | P39: =E26 -> 0.4 | Q39: m | S39: 10 | T39: 1.5 | U39: 0.225 | V39: 4.5 | W39: 0.343 | X39: 0.686
C40: Check valve | D40: Check valve4 | F40: =VLOOKUP(D40,'K-value'!$D$48:$E$124,2,FALSE) -> 1.7 | G40: 0 | O40: HF | P40: =SUM(J23:J24)*-1 -> -0.07259338621 | S40: 12 | T40: 1.5 | U40: 0.225 | V40: 4.5 | W40: 0.343 | X40: 0.686
C41: Plug valve | D41: Plug valve4 | F41: =VLOOKUP(D41,'K-value'!$D$48:$E$124,2,FALSE) -> 1.53 | G41: 0 | I41: Pump Data | O41: HV | P41: 0 | S41: 16 | T41: 1.5 | U41: 0.225 | V41: 4.5 | W41: 0.343 | X41: 0.686
C42: Pipe entrance | D42: Pipe entrance4 | E42: 1 | F42: =VLOOKUP(D42,'K-value'!$D$48:$E$124,2,FALSE) -> 0.78 | G42: 0.000657532789 | I42: Suction Pressure | J42: =J25 -> 1.944391974 | K42: barg | O42: HVP | P42: =E20*10^5/(E16*9.8)*-1 -> -28.69294498 | Q42: m | S42: 18 | T42: 1.5 | U42: 0.225 | V42: 4.5 | W42: 0.343 | X42: 0.686
C43: Suction strainer | D43: Suction strainer4 | E43: 1 | G43: =0.05*E43 -> 0.05 | I43: Discharge Pressure | J43: =J38 -> 9.0339412 | K43: barg | O43: NPSHA | P43: =SUM(P38:P42) -> 42.4467777 | Q43: m | S43: 20 | T43: 1.8 | U43: 0.225 | V43: 6 | W43: 0.343 | X43: 0.686
C44: Total, barg | G44: =SUM(G32:G43) -> 0.0530179069 | I44: Selected disc. Pressure | J44: 10 | K44: barg
C45: Contingency | G45: 0.2 | I45: Differential Pressure | J45: =J44-J42 -> 8.055608026 | K45: bar
C46: Total + Contingency | G46: =(1+G45)*G44 -> 0.06362148828 | I46: Differential Head | J46: =J45*10^5/(E16*9.8) -> 189.7070895 | K46: m
I47: Hydraulic Power | J47: =E16*9.8*J46*E15/3600000 -> 4.13521212 | K47: kW
C48: DISCHARGE | I48: Pump BHP | J48: =J47/E21 -> 9.189360267 | K48: kW
C49: Target Pressure | E49: 8 | F49: barg | I49: NPSHa | J49: =P43 -> 42.4467777 | K49: m
C50: Static head | E50: 3 | F50: m | G50: note 2 | I50: NPSHr | J50: =J49-1 -> 41.4467777 | K50: m
C51: Length | E51: 30 | F51: m
C52: Pipe size | E52: =VLOOKUP(E11,'Data pompa'!$B$5:$R$24,17,FALSE) -> 3 | F52: in | I52: Shut in Pressure
C53: Schedule | E53: 40 | I53: P shut in | J53: =E25+1.3*J45 -> 15.47229043 | K53: barg
C54: Fittings
E55: Qty | F55: K | G55: DP
C56: Elbow 90 LR | D56: =C56&$E$52 -> Elbow 90 LR3 | E56: 10 | F56: =VLOOKUP(D56,'K-value'!$D$48:$E$124,2,FALSE) -> 0.29 | G56: =E56*F56*$J$17^2/(2*9.8)*$E$16*9.8/10^5 -> 0.00244467319
C57: Elbow 45 LR | D57: Elbow 45 LR3 | F57: =VLOOKUP(D57,'K-value'!$D$48:$E$124,2,FALSE) -> 0.29 | G57: 0
C58: Tee thru | D58: Tee thru3 | F58: =VLOOKUP(D58,'K-value'!$D$48:$E$124,2,FALSE) -> 0.36 | G58: 0
C59: Tee branch | D59: Tee branch3 | E59: 2 | F59: =VLOOKUP(D59,'K-value'!$D$48:$E$124,2,FALSE) -> 1.08 | G59: 0.001820860031
C60: Ball valve | D60: Ball valve3 | E60: 6 | F60: =VLOOKUP(D60,'K-value'!$D$48:$E$124,2,FALSE) -> 0.05 | G60: 0.0002528972265
C61: Butterfly valve | D61: Butterfly valve3 | F61: =VLOOKUP(D61,'K-value'!$D$48:$E$124,2,FALSE) -> 0.81 | G61: 0
C62: Gate valve | D62: Gate valve3 | F62: =VLOOKUP(D62,'K-value'!$D$48:$E$124,2,FALSE) -> 0.14 | G62: 0
C63: Globe valve | D63: Globe valve3 | F63: =VLOOKUP(D63,'K-value'!$D$48:$E$124,2,FALSE) -> 6.1 | G63: 0 | I63: Note:
C64: Check valve | D64: Check valve3 | E64: 3 | F64: =VLOOKUP(D64,'K-value'!$D$48:$E$124,2,FALSE) -> 1.8 | G64: 0.004552150077
C65: Plug valve | D65: Plug valve3 | F65: =VLOOKUP(D65,'K-value'!$D$48:$E$124,2,FALSE) -> 1.62 | G65: 0 | I65: 1. Discharge liquid level is assumed 3 m above grade elevation
C66: Pipe entrance | D66: Pipe entrance3 | F66: =VLOOKUP(D66,'K-value'!$D$48:$E$124,2,FALSE) -> 0.78 | G66: 0
C67: Flow orifice | D67: Flow orifice3 | E67: 1 | G67: 0.25
C68: Total, barg | G68: =SUM(G56:G67) -> 0.2590705805
C69: Contingency | G69: 0.2
C70: Total + contingency, barg | G70: =G68*(1+G69) -> 0.3108846966
C71: Pressure Loss due to Equipment
C72: AAV | G72: 0.7

Sheet Bima (hidden)
F1: PUMP SIZING
C5: Project: LNG Regasification in Central Region of Indonesia
C7: Equipment Design Group | E7: 8-10 | F7: MMSCFD
C8: Equipment Design | E8: 9.6 | F8: MMSCFD
C9: Tag No: | E9: BIM-G-001A/B
C10: Description: | E10: LNG Pump
C11: Location: | E11: Bima | O11: Pipe roughness | P11: 0.05 | Q11: mm
P12: =P11/1000/3.28 -> 1.524390244e-05 | Q12: ft
C14: DATA | I14: RESULTS | O14: Mass flow | P14: =E15*E16/0.45 -> 17794.18667 | Q14: lb/hr
C15: Flow rate | E15: =VLOOKUP(E11,'Data pompa'!$B$5:$R$24,8,FALSE) -> 18.48 | F15: m3/h | I15: Suction Hydraulic | O15: Rho | P15: =E16/16.02 -> 27.0474407 | Q15: lb/ft3
C16: Density | E16: =VLOOKUP(E11,'Data pompa'!$B$5:$R$24,13,FALSE) -> 433.3 | F16: kg/m3 | I16: Pipe ID | J16: =VLOOKUP(E28,'Pipe size sch 40'!$A$5:$C$27,3,FALSE)*25.4/1000 -> 0.102362 | K16: m
C17: Flow temperature | E17: =VLOOKUP(E11,'Data pompa'!$B$5:$R$24,12,FALSE) -> -158.92 | F17: deg C | I17: Velocity | J17: =E15/(PI()/4*J16^2)/3600 -> 0.6237808807 | K17: m/s | O17: Side Calculation (Suction)
C18: Viscocity | E18: =VLOOKUP(E11,'Data pompa'!$B$5:$R$24,14,FALSE) -> 0.1176 | F18: cP | I18: Velocity acceptance | J18: =IF(E28<=2,0.9,IF(OR(E28>=3,E28<=6),1.2,IF(OR(E28>=8,E28<=18),1.5,1.8))) -> 1.2 | K18: m/s | L18: (max) | O18: f tebakan | P18: 0.01768978453
E19: =E18*10^-3 -> 0.0001176 | F19: Nm2/s | I19: Reynold number | J19: =E16*J18*J16/E19 -> 452586.2714 | O19: f left | P19: =1/(P18)^0.5 -> 7.518630264
C20: Vapor pressure | E20: =VLOOKUP(E11,'Data pompa'!$B$5:$R$24,15,FALSE) -> 1.2184 | F20: bara | I20: Pipe DP | J20: =P24 -> 0.01481097783 | K20: bar/100m | O20: f right | P20: =-2*LOG(P12/(3.7*J16*0.3048)+2.51/(J19*(P18)^0.5)) -> 7.52015886
C21: Pump efficiency | E21: 0.45 | I21: Pipe DP acceptance | J21: =IF(E28<=6,0.137,0.225) -> 0.137 | K21: bar/100m | O21: f left/f right | P21: =P19/P20 -> 0.9997967336 | Q21: Goal seek
I22: Static head | J22: =E16*9.8*E26/10^5 -> 0.01698536 | K22: bar | O22: psi/100 ft | P22: =0.000336*P18*P14^2/(J16*1000/25.4)^5/P15 -> 0.0654585976
C23: SUCTION | I23: Pipe friction loss | J23: =J20*E27/100 -> 0.008971897928 | K23: bar | O23: psi/ft | P23: =P22/100 -> 0.000654585976
C24: Pressure at Vessel (min) | E24: 2 | F24: barg | I24: Fitting friction loss | J24: =G46 -> 0.06362148828 | K24: bar | O24: bar/100 m | P24: =P23*100/14.5/0.3048 -> 0.01481097783
C25: Pressure at Vessel (max) | E25: 5 | F25: barg | I25: Suction Pressure | J25: =E24+J22-SUM(J23:J24) -> 1.944391974 | K25: barg
C26: Static head | E26: =VLOOKUP(E11,'Data pompa'!$B$5:$S$27,18,FALSE)/1000 -> 0.4 | F26: m | I26: Result | J26: =IF(AND(J17<J18,J20<J21),"OK","NOT OK") -> OK
C27: Length | E27: =(8408+1000+23274+5300+8924+3670)/1000+10 -> 60.576 | F27: m | G27: assumption | O27: Side Calculation (Discharge) | T27: Suction | V27: Discharge
C28: Pipe size | E28: =VLOOKUP(E11,'Data pompa'!$B$5:$R$24,16,FALSE) -> 4 | F28: in | I28: Discharge Hydraulic | O28: f tebakan | P28: 0.01800004114 | W28: < 49 barg | X28: > 49 barg
C29: Schedule | E29: 40 | I29: Pipe ID | J29: =VLOOKUP(E52,'Pipe size sch 40'!$A$5:$C$27,3,FALSE)*25.4/1000 -> 0.077978 | K29: m | O29: f left | P29: =1/(P28)^0.5 -> 7.453551408 | T29: Velocity | U29: Pressure | V29: Velocity | W29: Pressure | X29: Pressure
C30: Fittings | I30: Velocity | J30: =E15/(PI()/4*J16^2)/3600 -> 0.6237808807 | K30: m/s | O30: f right | P30: =-2*LOG(P12/(3.7*J29*0.3048)+2.51/(J32*(P28)^0.5)) -> 7.452546339 | S30: 0.5 | T30: 0.9 | U30: 0.137 | V30: 4.5 | W30: 0.343 | X30: 0.686
E31: Qty | F31: K | G31: DP | I31: Velocity acceptance | J31: =IF(E50<=18,4.5,6) -> 4.5 | K31: m/s | L31: (max) | O31: f left/f right | P31: =P29/P30 -> 1.000134863 | Q31: Goal seek | S31: 0.75 | T31: 0.9 | U31: 0.137 | V31: 4.5 | W31: 0.343 | X31: 0.686
C32: Elbow 90 LR | D32: =C32&$E$28 -> Elbow 90 LR4 | E32: 10 | F32: =VLOOKUP(D32,'K-value'!$D$48:$E$124,2,FALSE) -> 0.27 | G32: =E32*F32*$J$17^2/(2*9.8)*$E$16*9.8/10^5 -> 0.002276075039 | I32: Reynold number | J32: =E16*J31*J29/E19 -> 1292903.089 | O32: psi/100 ft | P32: =0.000336*P28*P14^2/(J29*1000/25.4)^5/P15 -> 0.2596276872 | S32: 1 | T32: 0.9 | U32: 0.137 | V32: 4.5 | W32: 0.343 | X32: 0.686
C33: Elbow 45 LR | D33: Elbow 45 LR4 | F33: =VLOOKUP(D33,'K-value'!$D$48:$E$124,2,FALSE) -> 0.27 | G33: 0 | I33: Pipe DP | J33: =P34 -> 0.058744612 | K33: bar/100m | O33: psi/ft | P33: =P32/100 -> 0.002596276872 | S33: 1.5 | T33: 0.9 | U33: 0.137 | V33: 4.5 | W33: 0.343 | X33: 0.686
C34: Tee thru | D34: Tee thru4 | F34: =VLOOKUP(D34,'K-value'!$D$48:$E$124,2,FALSE) -> 0.34 | G34: 0 | I34: Pipe DP acceptance | J34: =IF(E49<=49,0.343,0.686) -> 0.343 | K34: bar/100m | O34: bar/100 m | P34: =P33*100/14.5/0.3048 -> 0.058744612 | S34: 2 | T34: 0.9 | U34: 0.137 | V34: 4.5 | W34: 0.343 | X34: 0.686
C35: Tee branch | D35: Tee branch4 | F35: =VLOOKUP(D35,'K-value'!$D$48:$E$124,2,FALSE) -> 1.02 | G35: 0 | I35: Static head | J35: =E15*9.8*E50/10^5 -> 0.00543312 | K35: bar | L35: note 1 | S35: 3 | T35: 1.2 | U35: 0.137 | V35: 4.5 | W35: 0.343 | X35: 0.686
C36: Ball valve | D36: Ball valve4 | E36: 2 | F36: =VLOOKUP(D36,'K-value'!$D$48:$E$124,2,FALSE) -> 0.05 | G36: 8.429907551e-05 | I36: Line losses | J36: =J33*E51/100 -> 0.0176233836 | K36: bar | S36: 4 | T36: 1.2 | U36: 0.137 | V36: 4.5 | W36: 0.343 | X36: 0.686
C37: Butterfly valve | D37: Butterfly valve4 | F37: =VLOOKUP(D37,'K-value'!$D$48:$E$124,2,FALSE) -> 0.77 | G37: 0 | I37: Fitting & eqp losses | J37: =G70+G72 -> 1.010834117 | K37: bar | O37: NPSHA calculation | S37: 6 | T37: 1.2 | U37: 0.137 | V37: 4.5 | W37: 0.343 | X37: 0.686
C38: Gate valve | D38: Gate valve4 | F38: =VLOOKUP(D38,'K-value'!$D$48:$E$124,2,FALSE) -> 0.14 | G38: 0 | I38: Discharge Pressure | J38: =E49+J35+J36+J37 -> 9.033890621 | K38: barg | O38: HA | P38: =(E24+1.01)*100000/(E16*9.81) -> 70.81231607 | Q38: m | S38: 8 | T38: 1.5 | U38: 0.225 | V38: 4.5 | W38: 0.343 | X38: 0.686
C39: Globe valve | D39: Globe valve4 | F39: =VLOOKUP(D39,'K-value'!$D$48:$E$124,2,FALSE) -> 5.8 | G39: 0 | I39: Result | J39: =IF(AND(J30<J31,J33<J34),"OK","NOT OK") -> OK | O39: HZ | P39: =E26 -> 0.4 | Q39: m | S39: 10 | T39: 1.5 | U39: 0.225 | V39: 4.5 | W39: 0.343 | X39: 0.686
C40: Check valve | D40: Check valve4 | F40: =VLOOKUP(D40,'K-value'!$D$48:$E$124,2,FALSE) -> 1.7 | G40: 0 | O40: HF | P40: =SUM(J23:J24)*-1 -> -0.07259338621 | S40: 12 | T40: 1.5 | U40: 0.225 | V40: 4.5 | W40: 0.343 | X40: 0.686
C41: Plug valve | D41: Plug valve4 | F41: =VLOOKUP(D41,'K-value'!$D$48:$E$124,2,FALSE) -> 1.53 | G41: 0 | I41: Pump Data | O41: HV | P41: 0 | S41: 16 | T41: 1.5 | U41: 0.225 | V41: 4.5 | W41: 0.343 | X41: 0.686
C42: Pipe entrance | D42: Pipe entrance4 | E42: 1 | F42: =VLOOKUP(D42,'K-value'!$D$48:$E$124,2,FALSE) -> 0.78 | G42: 0.000657532789 | I42: Suction Pressure | J42: =J25 -> 1.944391974 | K42: barg | O42: HVP | P42: =E20*10^5/(E16*9.8)*-1 -> -28.69294498 | Q42: m | S42: 18 | T42: 1.5 | U42: 0.225 | V42: 4.5 | W42: 0.343 | X42: 0.686
C43: Suction strainer | D43: Suction strainer4 | E43: 1 | G43: =0.05*E43 -> 0.05 | I43: Discharge Pressure | J43: =J38 -> 9.033890621 | K43: barg | O43: NPSHA | P43: =SUM(P38:P42) -> 42.4467777 | Q43: m | S43: 20 | T43: 1.8 | U43: 0.225 | V43: 6 | W43: 0.343 | X43: 0.686
C44: Total, barg | G44: =SUM(G32:G43) -> 0.0530179069 | I44: Selected disc. Pressure | J44: 10 | K44: barg
C45: Contingency | G45: 0.2 | I45: Differential Pressure | J45: =J44-J42 -> 8.055608026 | K45: bar
C46: Total + Contingency | G46: =(1+G45)*G44 -> 0.06362148828 | I46: Differential Head | J46: =J45*10^5/(E16*9.8) -> 189.7070895 | K46: m
I47: Hydraulic Power | J47: =E16*9.8*J46*E15/3600000 -> 4.13521212 | K47: kW
C48: DISCHARGE | I48: Pump BHP | J48: =J47/E21 -> 9.189360267 | K48: kW
C49: Target Pressure | E49: =VLOOKUP(E11,'Data pompa'!$B$5:$R$24,3,FALSE) -> 8 | F49: barg | I49: NPSHa | J49: =P43 -> 42.4467777 | K49: m
C50: Static head | E50: 3 | F50: m | G50: note 2 | I50: NPSHr | J50: =J49-1 -> 41.4467777 | K50: m
C51: Length | E51: 30 | F51: m
C52: Pipe size | E52: =VLOOKUP(E11,'Data pompa'!$B$5:$R$24,17,FALSE) -> 3 | F52: in | I52: Shut in Pressure
C53: Schedule | E53: 40 | I53: P shut in | J53: =E25+1.3*J45 -> 15.47229043 | K53: barg
C54: Fittings
E55: Qty | F55: K | G55: DP
C56: Elbow 90 LR | D56: =C56&$E$52 -> Elbow 90 LR3 | E56: 10 | F56: =VLOOKUP(D56,'K-value'!$D$48:$E$124,2,FALSE) -> 0.29 | G56: =E56*F56*$J$17^2/(2*9.8)*$E$16*9.8/10^5 -> 0.00244467319
C57: Elbow 45 LR | D57: Elbow 45 LR3 | F57: =VLOOKUP(D57,'K-value'!$D$48:$E$124,2,FALSE) -> 0.29 | G57: 0
C58: Tee thru | D58: Tee thru3 | F58: =VLOOKUP(D58,'K-value'!$D$48:$E$124,2,FALSE) -> 0.36 | G58: 0
C59: Tee branch | D59: Tee branch3 | E59: 2 | F59: =VLOOKUP(D59,'K-value'!$D$48:$E$124,2,FALSE) -> 1.08 | G59: 0.001820860031
C60: Ball valve | D60: Ball valve3 | E60: 5 | F60: =VLOOKUP(D60,'K-value'!$D$48:$E$124,2,FALSE) -> 0.05 | G60: 0.0002107476888
C61: Butterfly valve | D61: Butterfly valve3 | F61: =VLOOKUP(D61,'K-value'!$D$48:$E$124,2,FALSE) -> 0.81 | G61: 0
C62: Gate valve | D62: Gate valve3 | F62: =VLOOKUP(D62,'K-value'!$D$48:$E$124,2,FALSE) -> 0.14 | G62: 0
C63: Globe valve | D63: Globe valve3 | F63: =VLOOKUP(D63,'K-value'!$D$48:$E$124,2,FALSE) -> 6.1 | G63: 0 | I63: Note:
C64: Check valve | D64: Check valve3 | E64: 3 | F64: =VLOOKUP(D64,'K-value'!$D$48:$E$124,2,FALSE) -> 1.8 | G64: 0.004552150077
C65: Plug valve | D65: Plug valve3 | F65: =VLOOKUP(D65,'K-value'!$D$48:$E$124,2,FALSE) -> 1.62 | G65: 0 | I65: 1. Discharge liquid level is assumed 3 m above grade elevation
C66: Pipe entrance | D66: Pipe entrance3 | F66: =VLOOKUP(D66,'K-value'!$D$48:$E$124,2,FALSE) -> 0.78 | G66: 0
C67: Flow orifice | D67: Flow orifice3 | E67: 1 | G67: 0.25
C68: Total, barg | G68: =SUM(G56:G67) -> 0.259028431
C69: Contingency | G69: 0.2
C70: Total + contingency, barg | G70: =G68*(1+G69) -> 0.3108341172
C71: Pressure Loss due to Equipment
C72: AAV | G72: 0.7

Sheet Pump sizing
B2: CENTRIFUGAL PUMP SIZING
A4: ` | C4: Tag No: | E4: P-001 | I4: Please click the button "Calculate inlet pressure drop" and "Calculate oultet pressure drop" when you make changes in input data
C5: Description: | E5: Pump
C6: Location: | E6: Water pump | N6: Pipe roughness | O6: =E24 -> 0.05 | P6: mm
I7: You can change | O7: =O6/1000/3.28 -> 1.524390244e-05 | P7: ft
C9: DATA | I9: RESULTS | N9: Mass flow | O9: =E12*E13/0.45 -> 121977.7778 | P9: lb/hr
C10: Flow rate (normal) | E10: 50 | F10: m3/h | I10: Suction Hydraulic | N10: Rho | O10: =E13/16.02 -> 62.29712859 | P10: lb/ft3
C11: Percentage of rated flow | E11: 0.1 | I11: Pipe ID | J11: =VLOOKUP(E26&"-"&E27,'Sheet2 (2)'!$D$4:$G$651,4,FALSE)*25.4/1000 -> 0.0266446 | K11: m
C12: Flow rate (rated) | E12: =(E11+1)*E10 -> 55 | F12: m3/h | I12: Velocity | J12: =E12/(PI()/4*J11^2)/3600 -> 27.40008422 | K12: m/s | N12: Side Calculation (Suction)
C13: Density | E13: 998 | F13: kg/m3 | I13: Velocity acceptance | J13: =IF(E26<=2,0.9,IF(OR(E26>=3,E26<=6),1.2,IF(OR(E26>=8,E26<=18),1.5,1.8))) -> 0.9 | K13: m/s | N13: f tebakan | O13: 0.02874951064
C14: Flow temperature | E14: 30 | F14: deg C | I14: Reynold number | J14: =E13*J13*J11/E16 -> 23932.17972 | N14: f left | O14: =1/(O13)^0.5 -> 5.89772844
C15: Viscocity | E15: 1 | F15: cP | N15: f right | O15: =-2*LOG(O7/(3.7*J11*0.3048)+2.51/(J14*(O13)^0.5)) -> 5.897032496
E16: =E15*10^-3 -> 0.001 | F16: Nm2/s | N16: f left/f right | O16: =O14/O15 -> 1.000118016 | P16: Goal seek
C17: Vapor pressure | E17: 1.01 | F17: bara | I17: Pipe DP | J17: =O19 -> 410.9630092 | K17: bar/100m | N17: psi/100 ft | O17: =0.000336*O13*O9^2/(J11*1000/25.4)^5/O10 -> 1816.292115
C18: Pump efficiency | E18: 0.6 | I18: Pipe DP acceptance | J18: =IF(E26<=6,0.137,0.225) -> 0.137 | K18: bar/100m | N18: psi/ft | O18: =O17/100 -> 18.16292115
I19: Static head | J19: =E13*9.8*E23/10^5 -> 0.097804 | K19: bar | N19: bar/100 m | O19: =O18*100/14.5/0.3048 -> 410.9630092
C20: SUCTION | I20: Pipe friction loss | J20: =J17*E25/100 -> 205.4815046 | K20: bar
C21: Pressure at Vessel (min) | E21: 1 | F21: barg | I21: Fitting friction loss | J21: =G44 -> 25.90957647 | K21: bar
C22: Pressure at Vessel (max) | E22: 2 | F22: barg | I22: Suction Pressure | J22: =E21+J19-SUM(J20:J21) -> -230.2932771 | K22: barg | N22: Side Calculation (Discharge) | S22: Suction | U22: Discharge
C23: Static head | E23: 1 | F23: m | I23: Result | J23: =IF(AND(J12<J13,J17<J18),"OK","NOT OK") -> NOT OK | N23: f tebakan | O23: 0.0176692773 | V23: < 49 barg | W23: > 49 barg
C24: Pipe roughness | E24: 0.05 | F24: mm | N24: f left | O24: =1/(O23)^0.5 -> 7.522992117 | S24: Velocity | T24: Pressure | U24: Velocity | V24: Pressure | W24: Pressure
C25: Length | E25: 50 | F25: m | I25: Discharge Hydraulic | N25: f right | O25: =-2*LOG(O7/(3.7*J26*0.3048)+2.51/(J29*(O23)^0.5)) -> 7.522412016 | R25: 0.5 | S25: 0.9 | T25: 0.137 | U25: 4.5 | V25: 0.343 | W25: 0.686
C26: Pipe size | E26: 1 | F26: in | I26: Pipe ID | J26: =VLOOKUP(E50&"-"&E51,'Sheet2 (2)'!$D$4:$G$651,4,FALSE)*25.4/1000 -> 0.1022604 | K26: m | N26: f left/f right | O26: =O24/O25 -> 1.000077116 | P26: Goal seek | R26: 0.75 | S26: 0.9 | T26: 0.137 | U26: 4.5 | V26: 0.343 | W26: 0.686
C27: Schedule | E27: 40 | I27: Velocity | J27: =E12/(PI()/4*J11^2)/3600 -> 27.40008422 | K27: m/s | N27: psi/100 ft | O27: =0.000336*O23*O9^2/(J26*1000/25.4)^5/O10 -> 1.340548761 | R27: 1 | S27: 0.9 | T27: 0.137 | U27: 4.5 | V27: 0.343 | W27: 0.686
C28: Fittings | I28: Velocity acceptance | J28: =IF(E48<=18,4.5,6) -> 4.5 | K28: m/s | N28: psi/ft | O28: =O27/100 -> 0.01340548761 | R28: 1.5 | S28: 0.9 | T28: 0.137 | U28: 4.5 | V28: 0.343 | W28: 0.686
E29: Qty | F29: K or DP per unit | G29: DP | I29: Reynold number | J29: =E13*J28*J26/E16 -> 459251.4564 | N29: bar/100 m | O29: =O28*100/14.5/0.3048 -> 0.3033190246 | R29: 2 | S29: 0.9 | T29: 0.137 | U29: 4.5 | V29: 0.343 | W29: 0.686
C30: Elbow 90 LR | D30: =C30&$E$26 -> Elbow 90 LR1 | E30: 1 | F30: =VLOOKUP(D30,'K-value'!$D$4:$E$179,2,FALSE) -> 0.69 | G30: =E30*F30*$J$12^2/(2*9.8)*$E$13*9.8/10^5 -> 2.584957647 | R30: 3 | S30: 1.2 | T30: 0.137 | U30: 4.5 | V30: 0.343 | W30: 0.686
C31: Elbow 45 LR | D31: Elbow 45 LR1 | F31: =VLOOKUP(D31,'K-value'!$D$4:$E$179,2,FALSE) -> 0.37 | G31: 0 | R31: 4 | S31: 1.2 | T31: 0.137 | U31: 4.5 | V31: 0.343 | W31: 0.686
C32: Tee thru | D32: Tee thru1 | F32: =VLOOKUP(D32,'K-value'!$D$4:$E$179,2,FALSE) -> 0.46 | G32: 0 | I32: Pipe DP | J32: =O29 -> 0.3033190246 | K32: bar/100m | N32: NPSHA calculation | R32: 6 | S32: 1.2 | T32: 0.137 | U32: 4.5 | V32: 0.343 | W32: 0.686
C33: Tee branch | D33: Tee branch1 | E33: 3 | F33: =VLOOKUP(D33,'K-value'!$D$4:$E$179,2,FALSE) -> 1.38 | G33: 15.50974588 | I33: Pipe DP acceptance | J33: =IF(E47<=49,0.343,0.686) -> 0.343 | K33: bar/100m | N33: HA | O33: =(E21+1.01)*100000/(E13*9.81) -> 20.53035735 | P33: m | R33: 8 | S33: 1.5 | T33: 0.225 | U33: 4.5 | V33: 0.343 | W33: 0.686
C34: Ball valve | D34: Ball valve1 | E34: 2 | F34: =VLOOKUP(D34,'K-value'!$D$4:$E$179,2,FALSE) -> 0.07 | G34: 0.5244841603 | I34: Static head | J34: =E13*9.8*E48/10^5 -> 0.293412 | K34: bar | N34: HZ | O34: =E23 -> 1 | P34: m | R34: 10 | S34: 1.5 | T34: 0.225 | U34: 4.5 | V34: 0.343 | W34: 0.686
C35: Butterfly valve | D35: Butterfly valve1 | F35: =VLOOKUP(D35,'K-value'!$D$4:$E$179,2,FALSE) -> 0.86 | G35: 0 | I35: Line losses | J35: =J32*E49/100 -> 2.156598265 | K35: bar | N35: HF | O35: =SUM(J20:J21)*-1*10^5/(E13*9.8) -> -2365.865211 | P35: m | R35: 12 | S35: 1.5 | T35: 0.225 | U35: 4.5 | V35: 0.343 | W35: 0.686
C36: Gate valve | D36: Gate valve1 | F36: =VLOOKUP(D36,'K-value'!$D$4:$E$179,2,FALSE) -> 0.18 | G36: 0 | I36: Fitting & eqp losses | J36: =G68+G70+G71+G72+G73+G74+G75 -> 46.18516616 | K36: bar | N36: HV | O36: 0 | R36: 16 | S36: 1.5 | T36: 0.225 | U36: 4.5 | V36: 0.343 | W36: 0.686
C37: Globe valve | D37: Globe valve1 | F37: =VLOOKUP(D37,'K-value'!$D$4:$E$179,2,FALSE) -> 7.8 | G37: 0 | I37: Discharge Pressure | J37: =E47+J34+J35+J36 -> 51.63517642 | K37: barg | N37: HVP | O37: =E17*10^5/(E13*9.8)*-1 -> -10.326776 | P37: m | R37: 18 | S37: 1.5 | T37: 0.225 | U37: 4.5 | V37: 0.343 | W37: 0.686
C38: Check valve | D38: Check valve1 | F38: =VLOOKUP(D38,'K-value'!$D$4:$E$179,2,FALSE) -> 2.3 | G38: 0 | I38: Result | J38: =IF(AND(J27<J28,J32<J33),"OK","NOT OK") -> NOT OK | N38: NPSHA | O38: =SUM(O33:O37) -> -2354.661629 | P38: m | R38: 20 | S38: 1.8 | T38: 0.225 | U38: 6 | V38: 0.343 | W38: 0.686
C39: Plug valve | D39: Plug valve1 | F39: =VLOOKUP(D39,'K-value'!$D$4:$E$179,2,FALSE) -> 2.07 | G39: 0
C40: Pipe entrance | D40: Pipe entrance1 | E40: 1 | F40: =VLOOKUP(D40,'K-value'!$D$4:$E$179,2,FALSE) -> 0.78 | G40: 2.922126036 | I40: Pump Data
C41: Suction strainer | D41: Suction strainer1 | E41: 1 | F41: 0.05 | G41: =F41*E41 -> 0.05 | I41: Suction Pressure | J41: =J22 -> -230.2932771 | K41: barg
C42: Total, barg | G42: =SUM(G30:G41) -> 21.59131372 | I42: Discharge Pressure | J42: =J37 -> 51.63517642 | K42: barg | N42: Preferred rated output power (kW)
C43: Contingency | G43: 0.2 | I43: Differential Pressure | J43: =J42-J41 -> 281.9284535 | K43: bar | N43: 0.37
C44: Total + Contingency | G44: =(1+G43)*G42 -> 25.90957647 | I44: Differential Head | J44: =J43*10^5/(E13*9.8) -> 2882.586126 | K44: m | N44: 0.55
I45: Hydraulic Power | J45: =E13*9.8*J44*E12/3600000 -> 430.7240262 | K45: kW | N45: 0.75
C46: DISCHARGE | I46: Pump BHP | J46: =J45/E18 -> 717.8733769 | K46: kW | N46: 1.1
C47: Target Pressure | E47: 3 | F47: barg | I47: Rated Power (calculated) | J47: =IF(J46<22,J46*1.25,IF(AND(J46>22,J46<55),J46*1.15,IF(J46>55,J46*1.1,"ERROR"))) -> 789.6607146 | K47: kW | N47: 1.5
C48: Static head | E48: 3 | F48: m | I48: Rated Power (selected) | J48: =LARGE($N$43:$N$92,COUNTIF($N$43:$N$92,">="&J47)) -> 800 | K48: kW | N48: 2.2
C49: Length | E49: 711 | F49: m | I49: NPSHa | J49: =O38 -> -2354.661629 | K49: m | N49: 3.7
C50: Pipe size | E50: 4 | F50: in | I50: NPSHr | J50: =J49-1 -> -2355.661629 | K50: m | N50: 5.5
C51: Schedule | E51: 40 | I51: P shut in | J51: =E22+1.3*J43 -> 368.5069895 | K51: barg | N51: 7.5
C52: Fittings | N52: 11
E53: Qty | F53: K or DP per unit | G53: DP | N53: 15
C54: Elbow 90 LR | D54: =C54&$E$50 -> Elbow 90 LR4 | E54: 10 | F54: =VLOOKUP(D54,'K-value'!$D$4:$E$179,2,FALSE) -> 0.27 | G54: =E54*F54*$J$12^2/(2*9.8)*$E$13*9.8/10^5 -> 10.11505166 | N54: 18.5
C55: Elbow 45 LR | D55: Elbow 45 LR4 | F55: =VLOOKUP(D55,'K-value'!$D$4:$E$179,2,FALSE) -> 0.27 | G55: 0 | N55: 22
C56: Tee thru | D56: Tee thru4 | F56: =VLOOKUP(D56,'K-value'!$D$4:$E$179,2,FALSE) -> 0.34 | G56: 0 | N56: 30
C57: Tee branch | D57: Tee branch4 | E57: 2 | F57: =VLOOKUP(D57,'K-value'!$D$4:$E$179,2,FALSE) -> 1.02 | G57: 7.642483478 | N57: 37
C58: Ball valve | D58: Ball valve4 | E58: 6 | F58: =VLOOKUP(D58,'K-value'!$D$4:$E$179,2,FALSE) -> 0.05 | G58: 1.123894629 | N58: 45
C59: Butterfly valve | D59: Butterfly valve4 | F59: =VLOOKUP(D59,'K-value'!$D$4:$E$179,2,FALSE) -> 0.77 | G59: 0 | N59: 55
C60: Gate valve | D60: Gate valve4 | F60: =VLOOKUP(D60,'K-value'!$D$4:$E$179,2,FALSE) -> 0.14 | G60: 0 | N60: 75
C61: Globe valve | D61: Globe valve4 | F61: =VLOOKUP(D61,'K-value'!$D$4:$E$179,2,FALSE) -> 5.8 | G61: 0 | N61: 90
C62: Check valve | D62: Check valve4 | E62: 3 | F62: =VLOOKUP(D62,'K-value'!$D$4:$E$179,2,FALSE) -> 1.7 | G62: 19.1062087 | N62: 110
C63: Plug valve | D63: Plug valve4 | F63: =VLOOKUP(D63,'K-value'!$D$4:$E$179,2,FALSE) -> 1.53 | G63: 0 | N63: 132
C64: Pipe entrance | D64: Pipe entrance4 | F64: =VLOOKUP(D64,'K-value'!$D$4:$E$179,2,FALSE) -> 0.78 | G64: 0 | N64: 150
C65: Flow orifice | D65: Flow orifice4 | E65: 2 | F65: 0.25 | G65: =F65*E65 -> 0.5 | N65: 160
C66: Total, barg | G66: =SUM(G54:G65) -> 38.48763846 | N66: 185
C67: Contingency | G67: 0.2 | N67: 200
C68: Total + contingency, barg | G68: =G66*(1+G67) -> 46.18516616 | N68: 220
C69: Pressure Loss due to Equipment | N69: 250
C70: Control valve | G70: =F70*E70 -> 0 | N70: 280
C71: Flow element | G71: 0 | N71: 300
C72: Equipment A | G72: 0 | N72: 315
C73: Equipment B | G73: 0 | N73: 335
C74: Equipment C | G74: 0 | N74: 355
C75: Equipment D | G75: 0 | N75: 375
N76: 400
N77: 425
N78: 450
N79: 475
N80: 500
N81: 530
N82: 560
N83: 600
N84: 630
N85: 670
N86: 710
N87: 750
N88: 800
N89: 850
N90: 900
N91: 950
N92: 1000

Sheet How to use
B2: How To Use
B3: 1 | C3: This pump sizing is calculated based on rated capacity. If you wish to size based on normal capacity, put 100% on "Percentage of rated flow rate"
B4: 2 | C4: Cell in dark orange is input cell. You can change the value
B5: 3 | C5: When sizing inlet and outlet pipe diameter, input "Velocity Acceptance" and "Pipe DP Acceptance" first. I input default value that I usually use
B6: 4 | C6: Sizing of inlet and outlet pipe diameter is done by input the guessed value, then check if "Result" is OK. Don't forget to always click "Calculate inlet pipe pressure drop" or "Calculate outlet pipe pressure drop" whenever to change the diameter
B7: 5 | C7: Ensure you input correct "Target Pressure". The Pump Sizing purpose is to calculate required differential pressure based on pressure loss along the pipe so that it meets "Target Pressure"
B8: 6 | C8: "Rated Power (selected)" is determined based on commercial available power output of motor

Sheet Transfer Pump (hidden)
F1: PUMP SIZING
C5: Project: FEED PROYEK LNG JAWA
C7: Tag No: | E7: KRWG-P-001A/B
C8: Description: | E8: LNG Transfer Pump
C9: Location: | E9: Karawang | O9: Pipe roughness | P9: 0.05 | Q9: mm
P10: =P9/1000/3.28 -> 1.524390244e-05 | Q10: ft
C12: DATA | I12: RESULTS | O12: Mass flow | P12: =E14*E15/0.45 -> 20187.2 | Q12: lb/hr
C13: Flow rate (normal) | E13: 18 | F13: m3/h | I13: Suction Hydraulic | O13: Rho | P13: =E15/16.02 -> 28.639201 | Q13: lb/ft3
C14: Flow rate (rated) | E14: =1.1*E13 -> 19.8 | F14: m3/h | I14: Pipe ID | J14: =VLOOKUP(E27,'Pipe size sch 40'!$A$5:$C$27,3,FALSE)*25.4/1000 -> 0.077978 | K14: m
C15: Density | E15: 458.8 | F15: kg/m3 | I15: Velocity | J15: =E14/(PI()/4*J14^2)/3600 -> 1.151671511 | K15: m/s | O15: Side Calculation (Suction)
C16: Flow temperature | E16: -158.4 | F16: deg C | I16: Velocity acceptance | J16: =IF(E27<=2,0.9,IF(OR(E27>=3,E27<=6),1.2,IF(OR(E27>=8,E27<=18),1.5,1.8))) -> 1.2 | K16: m/s | L16: (max) | O16: f tebakan | P16: 0.01896765269
C17: Viscocity | E17: 0.1434 | F17: cP | I17: Reynold number | J17: =E15*J16*J14/E18 -> 299383.3172 | O17: f left | P17: =1/(P16)^0.5 -> 7.260945978
E18: =E17*10^-3 -> 0.0001434 | F18: Nm2/s | I18: Pipe DP | J18: =P22 -> 0.07524355354 | K18: bar/100m | O18: f right | P18: =-2*LOG(P10/(3.7*J14*0.3048)+2.51/(J17*(P16)^0.5)) -> 7.260757689
C19: Vapor pressure | E19: ='Pump sizing'!E17 -> 1.01 | F19: bara | I19: Pipe DP acceptance | J19: =IF(E27<=6,0.137,0.225) -> 0.137 | K19: bar/100m | O19: f left/f right | P19: =P17/P18 -> 1.000025932 | Q19: Goal seek
C20: Pump efficiency | E20: 0.45 | I20: Static head | J20: =E15*9.8*E25/10^5 -> 0.0449624 | K20: bar | O20: psi/100 ft | P20: =0.000336*P16*P12^2/(J14*1000/25.4)^5/P13 -> 0.3325464092
I21: Pipe friction loss | J21: =J18*E26/100 -> 0.007524355354 | K21: bar | O21: psi/ft | P21: =P20/100 -> 0.003325464092
C22: SUCTION | I22: Fitting friction loss | J22: =G45 -> 0.08139584896 | K22: bar | O22: bar/100 m | P22: =P21*100/14.5/0.3048 -> 0.07524355354
C23: Pressure at Vessel (min) | E23: 1 | F23: barg | I23: Suction Pressure | J23: =E23+J20-SUM(J21:J22) -> 0.9560421957 | K23: barg
C24: Pressure at Vessel (max) | E24: 5 | F24: barg | I24: Result | J24: =IF(AND(J15<J16,J18<J19),"OK","NOT OK") -> OK
C25: Static head | E25: 1 | F25: m | O25: Side Calculation (Discharge) | T25: Suction | V25: Discharge
C26: Length | E26: 10 | F26: m | I26: Discharge Hydraulic | O26: f tebakan | P26: 0.01806057864 | W26: < 49 barg | X26: > 49 barg
C27: Pipe size | E27: 3 | F27: in | I27: Pipe ID | J27: =VLOOKUP(E51,'Pipe size sch 40'!$A$5:$C$27,3,FALSE)*25.4/1000 -> 0.077978 | K27: m | O27: f left | P27: =1/(P26)^0.5 -> 7.441049092 | T27: Velocity | U27: Pressure | V27: Velocity | W27: Pressure | X27: Pressure
C28: Schedule | E28: 40 | I28: Velocity | J28: =E14/(PI()/4*J14^2)/3600 -> 1.151671511 | K28: m/s | O28: f right | P28: =-2*LOG(P10/(3.7*J27*0.3048)+2.51/(J30*(P26)^0.5)) -> 7.442586826 | S28: 0.5 | T28: 0.9 | U28: 0.137 | V28: 4.5 | W28: 0.343 | X28: 0.686
C29: Fittings | I29: Velocity acceptance | J29: =IF(E49<=18,4.5,6) -> 4.5 | K29: m/s | L29: (max) | O29: f left/f right | P29: =P27/P28 -> 0.999793387 | Q29: Goal seek | S29: 0.75 | T29: 0.9 | U29: 0.137 | V29: 4.5 | W29: 0.343 | X29: 0.686
E30: Qty | F30: K | G30: DP | I30: Reynold number | J30: =E15*J29*J27/E18 -> 1122687.439 | O30: psi/100 ft | P30: =0.000336*P26*P12^2/(J27*1000/25.4)^5/P13 -> 0.3166433229 | S30: 1 | T30: 0.9 | U30: 0.137 | V30: 4.5 | W30: 0.343 | X30: 0.686
C31: Elbow 90 LR | D31: =C31&$E$27 -> Elbow 90 LR3 | E31: 6 | F31: =VLOOKUP(D31,'K-value'!$D$4:$E$146,2,FALSE) -> 0.29 | G31: =E31*F31*$J$15^2/(2*9.8)*$E$15*9.8/10^5 -> 0.00529419471 | I31: Pipe DP | J31: =P32 -> 0.07164524457 | K31: bar/100m | O31: psi/ft | P31: =P30/100 -> 0.003166433229 | S31: 1.5 | T31: 0.9 | U31: 0.137 | V31: 4.5 | W31: 0.343 | X31: 0.686
C32: Elbow 45 LR | D32: Elbow 45 LR3 | F32: =VLOOKUP(D32,'K-value'!$D$4:$E$146,2,FALSE) -> 0.29 | G32: 0 | I32: Pipe DP acceptance | J32: =IF(E48<=49,0.343,0.686) -> 0.343 | K32: bar/100m | O32: bar/100 m | P32: =P31*100/14.5/0.3048 -> 0.07164524457 | S32: 2 | T32: 0.9 | U32: 0.137 | V32: 4.5 | W32: 0.343 | X32: 0.686
C33: Tee thru | D33: Tee thru3 | F33: =VLOOKUP(D33,'K-value'!$D$4:$E$146,2,FALSE) -> 0.36 | G33: 0 | I33: Static head | J33: =E15*9.8*E49/10^5 -> 0.674436 | K33: bar | L33: note 1 | S33: 3 | T33: 1.2 | U33: 0.137 | V33: 4.5 | W33: 0.343 | X33: 0.686
C34: Tee branch | D34: Tee branch3 | E34: 3 | F34: =VLOOKUP(D34,'K-value'!$D$4:$E$146,2,FALSE) -> 1.08 | G34: 0.009858155666 | I34: Line losses | J34: =J31*E50/100 -> 0.02149357337 | K34: bar | S34: 4 | T34: 1.2 | U34: 0.137 | V34: 4.5 | W34: 0.343 | X34: 0.686
C35: Ball valve | D35: Ball valve3 | E35: 2 | F35: =VLOOKUP(D35,'K-value'!$D$4:$E$146,2,FALSE) -> 0.05 | G35: 0.0003042640638 | I35: Fitting & eqp losses | J35: =G69+G71+G72 -> 0.6339923812 | K35: bar | O35: NPSHA calculation | S35: 6 | T35: 1.2 | U35: 0.137 | V35: 4.5 | W35: 0.343 | X35: 0.686
C36: Butterfly valve | D36: Butterfly valve3 | F36: =VLOOKUP(D36,'K-value'!$D$4:$E$146,2,FALSE) -> 0.81 | G36: 0 | I36: Discharge Pressure | J36: =E48+J33+J34+J35 -> 3.329921955 | K36: barg | O36: HA | P36: =(E23+1.01)*100000/(E15*9.81) -> 44.65844951 | Q36: m | S36: 8 | T36: 1.5 | U36: 0.225 | V36: 4.5 | W36: 0.343 | X36: 0.686
C37: Gate valve | D37: Gate valve3 | F37: =VLOOKUP(D37,'K-value'!$D$4:$E$146,2,FALSE) -> 0.14 | G37: 0 | I37: Result | J37: =IF(AND(J28<J29,J31<J32),"OK","NOT OK") -> OK | O37: HZ | P37: =E25 -> 1 | Q37: m | S37: 10 | T37: 1.5 | U37: 0.225 | V37: 4.5 | W37: 0.343 | X37: 0.686
C38: Globe valve | D38: Globe valve3 | F38: =VLOOKUP(D38,'K-value'!$D$4:$E$146,2,FALSE) -> 6.1 | G38: 0 | O38: HF | P38: =SUM(J21:J22)*-1*10^5/(E15*9.8) -> -1.977656983 | Q38: m | S38: 12 | T38: 1.5 | U38: 0.225 | V38: 4.5 | W38: 0.343 | X38: 0.686
C39: Check valve | D39: Check valve3 | F39: =VLOOKUP(D39,'K-value'!$D$4:$E$146,2,FALSE) -> 1.8 | G39: 0 | I39: Pump Data | O39: HV | P39: 0 | S39: 16 | T39: 1.5 | U39: 0.225 | V39: 4.5 | W39: 0.343 | X39: 0.686
C40: Plug valve | D40: Plug valve3 | F40: =VLOOKUP(D40,'K-value'!$D$4:$E$146,2,FALSE) -> 1.62 | G40: 0 | I40: Suction Pressure | J40: =J23 -> 0.9560421957 | K40: barg | O40: HVP | P40: =E19*10^5/(E15*9.8)*-1 -> -22.46321371 | Q40: m | S40: 18 | T40: 1.5 | U40: 0.225 | V40: 4.5 | W40: 0.343 | X40: 0.686
C41: Pipe entrance | D41: Pipe entrance3 | E41: 1 | F41: =VLOOKUP(D41,'K-value'!$D$4:$E$146,2,FALSE) -> 0.78 | G41: 0.002373259697 | I41: Discharge Pressure | J41: =J36 -> 3.329921955 | K41: barg | O41: NPSHA | P41: =SUM(P36:P40) -> 21.21757882 | Q41: m | S41: 20 | T41: 1.8 | U41: 0.225 | V41: 6 | W41: 0.343 | X41: 0.686
C42: Suction strainer | D42: Suction strainer3 | E42: 1 | G42: =0.05*E42 -> 0.05 | I42: Selected disc. Pressure | J42: =J41 -> 3.329921955 | K42: barg
C43: Total, barg | G43: =SUM(G31:G42) -> 0.06782987414 | I43: Differential Pressure | J43: =J42-J40 -> 2.373879759 | K43: bar
C44: Contingency | G44: 0.2 | I44: Differential Head | J44: =J43*10^5/(E15*9.8) -> 52.79699836 | K44: m
C45: Total + Contingency | G45: =(1+G44)*G43 -> 0.08139584896 | I45: Hydraulic Power | J45: =E15*9.8*J44*E14/3600000 -> 1.305633867 | K45: kW
I46: Pump BHP | J46: =J45/E20 -> 2.901408594 | K46: kW | O46: =50*9.8*460/100000 -> 2.254
C47: DISCHARGE | I47: Rated Power (calculated) | J47: =IF(J46<22,J46*1.25,IF(AND(J46>22,J46<55),J46*1.15,IF(J46>55,J46*1.1,"ERROR"))) -> 3.626760743 | K47: kW
C48: Target Pressure | E48: 2 | F48: barg | I48: Rated Power (selected) | J48: 3.7 | K48: kW
C49: Static head | E49: 15 | F49: m | G49: note 2 | I49: NPSHa | J49: =P41 -> 21.21757882 | K49: m
C50: Length | E50: 30 | F50: m | G50: (plot plan) | I50: NPSHr | J50: =J49-1 -> 20.21757882 | K50: m
C51: Pipe size | E51: 3 | F51: in
C52: Schedule | E52: 40 | I52: Shut in Pressure
C53: Fittings | I53: P shut in | J53: - | K53: barg
E54: Qty | F54: K | G54: DP
C55: Elbow 90 LR | D55: =C55&$E$51 -> Elbow 90 LR3 | E55: 5 | F55: =VLOOKUP(D55,'K-value'!$D$4:$E$146,2,FALSE) -> 0.29 | G55: =E55*F55*$J$15^2/(2*9.8)*$E$15*9.8/10^5 -> 0.004411828925
C56: Elbow 45 LR | D56: Elbow 45 LR3 | F56: =VLOOKUP(D56,'K-value'!$D$4:$E$146,2,FALSE) -> 0.29 | G56: 0
C57: Tee thru | D57: Tee thru3 | F57: =VLOOKUP(D57,'K-value'!$D$4:$E$146,2,FALSE) -> 0.36 | G57: 0
C58: Tee branch | D58: Tee branch3 | E58: 2 | F58: =VLOOKUP(D58,'K-value'!$D$4:$E$146,2,FALSE) -> 1.08 | G58: 0.006572103777
C59: Ball valve | D59: Ball valve3 | E59: 6 | F59: =VLOOKUP(D59,'K-value'!$D$4:$E$146,2,FALSE) -> 0.05 | G59: 0.0009127921913
C60: Butterfly valve | D60: Butterfly valve3 | F60: =VLOOKUP(D60,'K-value'!$D$4:$E$146,2,FALSE) -> 0.81 | G60: 0
C61: Gate valve | D61: Gate valve3 | F61: =VLOOKUP(D61,'K-value'!$D$4:$E$146,2,FALSE) -> 0.14 | G61: 0
C62: Globe valve | D62: Globe valve3 | F62: =VLOOKUP(D62,'K-value'!$D$4:$E$146,2,FALSE) -> 6.1 | G62: 0
C63: Check valve | D63: Check valve3 | E63: 3 | F63: =VLOOKUP(D63,'K-value'!$D$4:$E$146,2,FALSE) -> 1.8 | G63: 0.01643025944
C64: Plug valve | D64: Plug valve3 | F64: =VLOOKUP(D64,'K-value'!$D$4:$E$146,2,FALSE) -> 1.62 | G64: 0
C65: Pipe entrance | D65: Pipe entrance3 | F65: =VLOOKUP(D65,'K-value'!$D$4:$E$146,2,FALSE) -> 0.78 | G65: 0
C66: Flow orifice | D66: Flow orifice3 | E66: 1 | G66: 0.25
C67: Total, barg | G67: =SUM(G55:G66) -> 0.2783269843
C68: Contingency | G68: 0.2
C69: Total + contingency, barg | G69: =G67*(1+G68) -> 0.3339923812
C71: Control valve | G71: 0.3

Sheet Karawang (LP Pump) (hidden)
F1: PUMP SIZING
C5: Project: FEED PROYEK LNG JAWA
C7: Tag No: | E7: KRWG-P-002A/B
C8: Description: | E8: LNG LP Pump
C9: Location: | E9: Karawang | O9: Pipe roughness | P9: 0.05 | Q9: mm
P10: =P9/1000/3.28 -> 1.524390244e-05 | Q10: ft
C12: DATA | I12: RESULTS | O12: Mass flow | P12: =E13*E15/0.45 -> 19575.46667 | Q12: lb/hr
C13: Flow rate (normal) | E13: =9.6*2 -> 19.2 | F13: m3/h | I13: Suction Hydraulic | O13: Rho | P13: =E15/16.02 -> 28.639201 | Q13: lb/ft3
C14: Flow rate (rated) | E14: =1.1*E13 -> 21.12 | F14: m3/h | I14: Pipe ID | J14: =VLOOKUP(E27,'Pipe size sch 40'!$A$5:$C$27,3,FALSE)*25.4/1000 -> 0.077978 | K14: m
C15: Density | E15: 458.8 | F15: kg/m3 | I15: Velocity | J15: =E13/(PI()/4*J14^2)/3600 -> 1.116772375 | K15: m/s | O15: Side Calculation (Suction)
C16: Flow temperature | E16: -158.4 | F16: deg C | I16: Velocity acceptance | J16: =IF(E27<=2,0.9,IF(OR(E27>=3,E27<=6),1.2,IF(OR(E27>=8,E27<=18),1.5,1.8))) -> 1.2 | K16: m/s | L16: (max) | O16: f tebakan | P16: 0.01896765269
C17: Viscocity | E17: 0.1434 | F17: cP | I17: Reynold number | J17: =E15*J16*J14/E18 -> 299383.3172 | O17: f left | P17: =1/(P16)^0.5 -> 7.260945978
E18: =E17*10^-3 -> 0.0001434 | F18: Nm2/s | I18: Pipe DP | J18: =P22 -> 0.07075243234 | K18: bar/100m | O18: f right | P18: =-2*LOG(P10/(3.7*J14*0.3048)+2.51/(J17*(P16)^0.5)) -> 7.260757689
C19: Vapor pressure | E19: ='Pump sizing'!E17 -> 1.01 | F19: bara | I19: Pipe DP acceptance | J19: =IF(E27<=6,0.137,0.225) -> 0.137 | K19: bar/100m | O19: f left/f right | P19: =P17/P18 -> 1.000025932 | Q19: Goal seek
C20: Pump efficiency | E20: 0.45 | I20: Static head | J20: =E15*9.8*E25/10^5 -> 0.1011654 | K20: bar | O20: psi/100 ft | P20: =0.000336*P16*P12^2/(J14*1000/25.4)^5/P13 -> 0.31269745
I21: Pipe friction loss | J21: =J18*E26/100 -> 0.007075243234 | K21: bar | O21: psi/ft | P21: =P20/100 -> 0.0031269745
C22: SUCTION | I22: Fitting friction loss | J22: =G45 -> 0.08011877809 | K22: bar | O22: bar/100 m | P22: =P21*100/14.5/0.3048 -> 0.07075243234
C23: Pressure at Vessel (min) | E23: 2 | F23: barg | I23: Suction Pressure | J23: =E23+J20-SUM(J21:J22) -> 2.013971379 | K23: barg
C24: Pressure at Vessel (max) | E24: 5 | F24: barg | I24: Result | J24: =IF(AND(J15<J16,J18<J19),"OK","NOT OK") -> OK
C25: Static head | E25: 2.25 | F25: m | G25: (vertical tank) | O25: Side Calculation (Discharge) | T25: Suction | V25: Discharge
C26: Length | E26: 10 | F26: m | G26: (plot plan) | I26: Discharge Hydraulic | O26: f tebakan | P26: 0.01806057864 | W26: < 49 barg | X26: > 49 barg
C27: Pipe size | E27: 3 | F27: in | I27: Pipe ID | J27: =VLOOKUP(E51,'Pipe size sch 40'!$A$5:$C$27,3,FALSE)*25.4/1000 -> 0.077978 | K27: m | O27: f left | P27: =1/(P26)^0.5 -> 7.441049092 | T27: Velocity | U27: Pressure | V27: Velocity | W27: Pressure | X27: Pressure
C28: Schedule | E28: 40 | I28: Velocity | J28: =E13/(PI()/4*J14^2)/3600 -> 1.116772375 | K28: m/s | O28: f right | P28: =-2*LOG(P10/(3.7*J27*0.3048)+2.51/(J30*(P26)^0.5)) -> 7.442586826 | S28: 0.5 | T28: 0.9 | U28: 0.137 | V28: 4.5 | W28: 0.343 | X28: 0.686
C29: Fittings | I29: Velocity acceptance | J29: =IF(E49<=18,4.5,6) -> 4.5 | K29: m/s | L29: (max) | O29: f left/f right | P29: =P27/P28 -> 0.999793387 | Q29: Goal seek | S29: 0.75 | T29: 0.9 | U29: 0.137 | V29: 4.5 | W29: 0.343 | X29: 0.686
E30: Qty | F30: K | G30: DP | I30: Reynold number | J30: =E15*J29*J27/E18 -> 1122687.439 | O30: psi/100 ft | P30: =0.000336*P26*P12^2/(J27*1000/25.4)^5/P13 -> 0.2977435837 | S30: 1 | T30: 0.9 | U30: 0.137 | V30: 4.5 | W30: 0.343 | X30: 0.686
C31: Elbow 90 LR | D31: =C31&$E$27 -> Elbow 90 LR3 | E31: 6 | F31: =VLOOKUP(D31,'K-value'!$D$4:$E$146,2,FALSE) -> 0.29 | G31: =E31*F31*$J$15^2/(2*9.8)*$E$15*9.8/10^5 -> 0.004978195944 | I31: Pipe DP | J31: =P32 -> 0.06736889847 | K31: bar/100m | O31: psi/ft | P31: =P30/100 -> 0.002977435837 | S31: 1.5 | T31: 0.9 | U31: 0.137 | V31: 4.5 | W31: 0.343 | X31: 0.686
C32: Elbow 45 LR | D32: Elbow 45 LR3 | F32: =VLOOKUP(D32,'K-value'!$D$4:$E$146,2,FALSE) -> 0.29 | G32: 0 | I32: Pipe DP acceptance | J32: 0.343 | K32: bar/100m | O32: bar/100 m | P32: =P31*100/14.5/0.3048 -> 0.06736889847 | S32: 2 | T32: 0.9 | U32: 0.137 | V32: 4.5 | W32: 0.343 | X32: 0.686
C33: Tee thru | D33: Tee thru3 | F33: =VLOOKUP(D33,'K-value'!$D$4:$E$146,2,FALSE) -> 0.36 | G33: 0 | I33: Static head | J33: =E15*9.8*E49/10^5 -> 0.0899248 | K33: bar | L33: note 1 | S33: 3 | T33: 1.2 | U33: 0.137 | V33: 4.5 | W33: 0.343 | X33: 0.686
C34: Tee branch | D34: Tee branch3 | E34: 3 | F34: =VLOOKUP(D34,'K-value'!$D$4:$E$146,2,FALSE) -> 1.08 | G34: 0.009269744171 | I34: Line losses | J34: =J31*E50/100 -> 0.04715822893 | K34: bar | S34: 4 | T34: 1.2 | U34: 0.137 | V34: 4.5 | W34: 0.343 | X34: 0.686
C35: Ball valve | D35: Ball valve3 | E35: 2 | F35: =VLOOKUP(D35,'K-value'!$D$4:$E$146,2,FALSE) -> 0.05 | G35: 0.0002861032152 | I35: Fitting & eqp losses | J35: =G69+G71+G72 -> 0.7319634512 | K35: bar | O35: NPSHA calculation | S35: 6 | T35: 1.2 | U35: 0.137 | V35: 4.5 | W35: 0.343 | X35: 0.686
C36: Butterfly valve | D36: Butterfly valve3 | F36: =VLOOKUP(D36,'K-value'!$D$4:$E$146,2,FALSE) -> 0.81 | G36: 0 | I36: Discharge Pressure | J36: =E48+J33+J34+J35 -> 8.86904648 | K36: barg | O36: HA | P36: =(E23+1.01)*100000/(E15*9.81) -> 66.8765836 | Q36: m | S36: 8 | T36: 1.5 | U36: 0.225 | V36: 4.5 | W36: 0.343 | X36: 0.686
C37: Gate valve | D37: Gate valve3 | F37: =VLOOKUP(D37,'K-value'!$D$4:$E$146,2,FALSE) -> 0.14 | G37: 0 | I37: Result | J37: =IF(AND(J28<J29,J31<J32),"OK","NOT OK") -> OK | O37: HZ | P37: =E25 -> 2.25 | Q37: m | S37: 10 | T37: 1.5 | U37: 0.225 | V37: 4.5 | W37: 0.343 | X37: 0.686
C38: Globe valve | D38: Globe valve3 | F38: =VLOOKUP(D38,'K-value'!$D$4:$E$146,2,FALSE) -> 6.1 | G38: 0 | O38: HF | P38: =SUM(J21:J22)*-1*10^5/(E15*9.8) -> -1.939265282 | Q38: m | S38: 12 | T38: 1.5 | U38: 0.225 | V38: 4.5 | W38: 0.343 | X38: 0.686
C39: Check valve | D39: Check valve3 | F39: =VLOOKUP(D39,'K-value'!$D$4:$E$146,2,FALSE) -> 1.8 | G39: 0 | I39: Pump Data | O39: HV | P39: 0 | S39: 16 | T39: 1.5 | U39: 0.225 | V39: 4.5 | W39: 0.343 | X39: 0.686
C40: Plug valve | D40: Plug valve3 | F40: =VLOOKUP(D40,'K-value'!$D$4:$E$146,2,FALSE) -> 1.62 | G40: 0 | I40: Suction Pressure | J40: =J23 -> 2.013971379 | K40: barg | O40: HVP | P40: =E19*10^5/(E15*9.8)*-1 -> -22.46321371 | Q40: m | S40: 18 | T40: 1.5 | U40: 0.225 | V40: 4.5 | W40: 0.343 | X40: 0.686
C41: Pipe entrance | D41: Pipe entrance3 | E41: 1 | F41: =VLOOKUP(D41,'K-value'!$D$4:$E$146,2,FALSE) -> 0.78 | G41: 0.002231605078 | I41: Discharge Pressure | J41: =J36 -> 8.86904648 | K41: barg | O41: NPSHA | P41: =SUM(P36:P40) -> 44.72410461 | Q41: m | S41: 20 | T41: 1.8 | U41: 0.225 | V41: 6 | W41: 0.343 | X41: 0.686
C42: Suction strainer | D42: Suction strainer3 | E42: 1 | G42: =0.05*E42 -> 0.05 | I42: Selected disc. Pressure | J42: =J41 -> 8.86904648 | K42: barg
C43: Total, barg | G43: =SUM(G31:G42) -> 0.06676564841 | I43: Differential Pressure | J43: =J42-J40 -> 6.855075101 | K43: bar
C44: Contingency | G44: 0.2 | I44: Differential Head | J44: =J43*10^5/(E15*9.8) -> 152.4623931 | K44: m
C45: Total + Contingency | G45: =(1+G44)*G43 -> 0.08011877809 | I45: Hydraulic Power | J45: =E15*9.8*J44*E14/3600000 -> 4.02164406 | K45: kW
I46: Pump BHP | J46: =J45/E20 -> 8.936986799 | K46: kW
C47: DISCHARGE | I47: Rated Power (calculated) | J47: =IF(J46<22,J46*1.25,IF(AND(J46>22,J46<55),J46*1.15,IF(J46>55,J46*1.1,"ERROR"))) -> 11.1712335 | K47: kW
C48: Target Pressure | E48: 8 | F48: barg | I48: Rated Power (selected) | J48: 15 | K48: kW
C49: Static head | E49: 2 | F49: m | G49: note 2 | I49: NPSHa | J49: =P41 -> 44.72410461 | K49: m
C50: Length | E50: 70 | F50: m | G50: (plot plan) | I50: NPSHr | J50: =J49-1 -> 43.72410461 | K50: m
C51: Pipe size | E51: 3 | F51: in
C52: Schedule | E52: 40 | I52: Shut in Pressure
C53: Fittings | I53: P shut in | J53: =E24+1.3*J43 -> 13.91159763 | K53: barg
E54: Qty | F54: K | G54: DP
C55: Elbow 90 LR | D55: =C55&$E$51 -> Elbow 90 LR3 | E55: 5 | F55: =VLOOKUP(D55,'K-value'!$D$4:$E$146,2,FALSE) -> 0.29 | G55: =E55*F55*$J$15^2/(2*9.8)*$E$15*9.8/10^5 -> 0.00414849662
C56: Elbow 45 LR | D56: Elbow 45 LR3 | F56: =VLOOKUP(D56,'K-value'!$D$4:$E$146,2,FALSE) -> 0.29 | G56: 0
C57: Tee thru | D57: Tee thru3 | F57: =VLOOKUP(D57,'K-value'!$D$4:$E$146,2,FALSE) -> 0.36 | G57: 0
C58: Tee branch | D58: Tee branch3 | E58: 2 | F58: =VLOOKUP(D58,'K-value'!$D$4:$E$146,2,FALSE) -> 1.08 | G58: 0.006179829447
C59: Ball valve | D59: Ball valve3 | E59: 6 | F59: =VLOOKUP(D59,'K-value'!$D$4:$E$146,2,FALSE) -> 0.05 | G59: 0.0008583096455
C60: Butterfly valve | D60: Butterfly valve3 | F60: =VLOOKUP(D60,'K-value'!$D$4:$E$146,2,FALSE) -> 0.81 | G60: 0
C61: Gate valve | D61: Gate valve3 | F61: =VLOOKUP(D61,'K-value'!$D$4:$E$146,2,FALSE) -> 0.14 | G61: 0 | I61: Note:
C62: Globe valve | D62: Globe valve3 | F62: =VLOOKUP(D62,'K-value'!$D$4:$E$146,2,FALSE) -> 6.1 | G62: 0
C63: Check valve | D63: Check valve3 | E63: 3 | F63: =VLOOKUP(D63,'K-value'!$D$4:$E$146,2,FALSE) -> 1.8 | G63: 0.01544957362 | I63: 1. Discharge liquid level is assumed 2 m above grade elevation
C64: Plug valve | D64: Plug valve3 | F64: =VLOOKUP(D64,'K-value'!$D$4:$E$146,2,FALSE) -> 1.62 | G64: 0
C65: Pipe entrance | D65: Pipe entrance3 | F65: =VLOOKUP(D65,'K-value'!$D$4:$E$146,2,FALSE) -> 0.78 | G65: 0
C66: Flow orifice | D66: Flow orifice3 | E66: 1 | G66: 0.25
C67: Total, barg | G67: =SUM(G55:G66) -> 0.2766362093
C68: Contingency | G68: 0.2
C69: Total + contingency, barg | G69: =G67*(1+G68) -> 0.3319634512 | I69: =G69-G66 -> 0.0819634512
C70: Pressure Loss due to Equipment | I70: =G66 -> 0.25
C71: Coriolis flow meter at LNG dispenser | G71: 0.1
C72: Control valve | G72: 0.3

Sheet Karawang (HP Pump) (hidden)
F1: PUMP SIZING
C5: Project: FEED PROYEK LNG JAWA
C7: Tag No: | E7: KRWG-P-003A/B
C8: Description: | E8: LNG HP Pump
C9: Location: | E9: Karawang | O9: Pipe roughness | P9: 0.05 | Q9: mm
P10: =P9/1000/3.28 -> 1.524390244e-05 | Q10: ft
C12: DATA | I12: RESULTS | O12: Mass flow | P12: =E14*E15/0.45 -> 1098.146296 | Q12: lb/hr
C13: Flow rate (normal) | E13: =0.5*47/24 -> 0.9791666667 | F13: m3/h | I13: Suction Hydraulic | O13: Rho | P13: =E15/16.02 -> 28.639201 | Q13: lb/ft3
C14: Flow rate (rated) | E14: =1.1*E13 -> 1.077083333 | F14: m3/h | I14: Pipe ID | J14: =VLOOKUP(E27,'Pipe size sch 40'!$A$5:$C$27,3,FALSE)*25.4/1000 -> 0.02667 | K14: m
C15: Density | E15: 458.8 | F15: kg/m3 | I15: Velocity | J15: =E14/(PI()/4*J14^2)/3600 -> 0.5355634027 | K15: m/s | O15: Side Calculation (Suction)
C16: Flow temperature | E16: -158.4 | F16: deg C | I16: Velocity acceptance | J16: =IF(E27<=2,0.9,IF(OR(E27>=3,E27<=6),1.2,IF(OR(E27>=8,E27<=18),1.5,1.8))) -> 0.9 | K16: m/s | L16: (max) | O16: f tebakan | P16: 0.02524381393
C17: Viscocity | E17: 0.1434 | F17: cP | I17: Reynold number | J17: =E15*J16*J14/E18 -> 76796.20921 | O17: f left | P17: =1/(P16)^0.5 -> 6.293938788
E18: =E17*10^-3 -> 0.0001434 | F18: Nm2/s | I18: Pipe DP | J18: =P22 -> 0.06331757775 | K18: bar/100m | O18: f right | P18: =-2*LOG(P10/(3.7*J14*0.3048)+2.51/(J17*(P16)^0.5)) -> 6.294389225
C19: Vapor pressure | E19: ='Pump sizing'!E17 -> 1.01 | F19: bara | I19: Pipe DP acceptance | J19: =IF(E27<=6,0.137,0.225) -> 0.137 | K19: bar/100m | O19: f left/f right | P19: =P17/P18 -> 0.9999284383 | Q19: Goal seek
C20: Pump efficiency | E20: 0.45 | I20: Static head | J20: =E15*9.8*E25/10^5 -> 0.1011654 | K20: bar | O20: psi/100 ft | P20: =0.000336*P16*P12^2/(J14*1000/25.4)^5/P13 -> 0.2798383666
I21: Pipe friction loss | J21: =J18*E26/100 -> 0.009497636662 | K21: bar | O21: psi/ft | P21: =P20/100 -> 0.002798383666
C22: SUCTION | I22: Fitting friction loss | J22: =G45 -> 0.0672641411 | K22: bar | O22: bar/100 m | P22: =P21*100/14.5/0.3048 -> 0.06331757775
C23: Pressure at Vessel (min) | E23: 2 | F23: barg | I23: Suction Pressure | J23: =E23+J20-SUM(J21:J22) -> 2.024403622 | K23: barg
C24: Pressure at Vessel (max) | E24: 5 | F24: barg | I24: Result | J24: =IF(AND(J15<J16,J18<J19),"OK","NOT OK") -> OK
C25: Static head | E25: 2.25 | F25: m | G25: (vertical tank) | O25: Side Calculation (Discharge) | T25: Suction | V25: Discharge
C26: Length | E26: 15 | F26: m | G26: (plot plan) | I26: Discharge Hydraulic | O26: f tebakan | P26: 0.02514009188 | W26: < 49 barg | X26: > 49 barg
C27: Pipe size | E27: 1 | F27: in | I27: Pipe ID | J27: =VLOOKUP(E51,'Pipe size sch 40'!$A$5:$C$27,3,FALSE)*25.4/1000 -> 0.020828 | K27: m | O27: f left | P27: =1/(P26)^0.5 -> 6.306909072 | T27: Velocity | U27: Pressure | V27: Velocity | W27: Pressure | X27: Pressure
C28: Schedule | E28: 40 | I28: Velocity | J28: =E14/(PI()/4*J14^2)/3600 -> 0.5355634027 | K28: m/s | O28: f right | P28: =-2*LOG(P10/(3.7*J27*0.3048)+2.51/(J30*(P26)^0.5)) -> 6.307608663 | S28: 0.5 | T28: 0.9 | U28: 0.137 | V28: 4.5 | W28: 0.343 | X28: 0.686
C29: Fittings | I29: Velocity acceptance | J29: =IF(E49<=18,4.5,6) -> 4.5 | K29: m/s | L29: (max) | O29: f left/f right | P29: =P27/P28 -> 0.9998890877 | Q29: Goal seek | S29: 0.75 | T29: 0.9 | U29: 0.137 | V29: 4.5 | W29: 0.343 | X29: 0.686
E30: Qty | F30: K | G30: DP | I30: Reynold number | J30: =E15*J29*J27/E18 -> 299870.9121 | O30: psi/100 ft | P30: =0.000336*P26*P12^2/(J27*1000/25.4)^5/P13 -> 0.9593926367 | S30: 1 | T30: 0.9 | U30: 0.137 | V30: 4.5 | W30: 0.343 | X30: 0.686
C31: Elbow 90 LR | D31: =C31&$E$27 -> Elbow 90 LR1 | E31: 6 | F31: =VLOOKUP(D31,'K-value'!$D$4:$E$146,2,FALSE) -> 0.69 | G31: =E31*F31*$J$15^2/(2*9.8)*$E$15*9.8/10^5 -> 0.002724052912 | I31: Pipe DP | J31: =P32 -> 0.2170768026 | K31: bar/100m | O31: psi/ft | P31: =P30/100 -> 0.009593926367 | S31: 1.5 | T31: 0.9 | U31: 0.137 | V31: 4.5 | W31: 0.343 | X31: 0.686
C32: Elbow 45 LR | D32: Elbow 45 LR1 | F32: =VLOOKUP(D32,'K-value'!$D$4:$E$146,2,FALSE) -> 0.37 | G32: 0 | I32: Pipe DP acceptance | J32: =IF(E48<=49,0.343,0.686) -> 0.686 | K32: bar/100m | O32: bar/100 m | P32: =P31*100/14.5/0.3048 -> 0.2170768026 | S32: 2 | T32: 0.9 | U32: 0.137 | V32: 4.5 | W32: 0.343 | X32: 0.686
C33: Tee thru | D33: Tee thru1 | F33: =VLOOKUP(D33,'K-value'!$D$4:$E$146,2,FALSE) -> 0.46 | G33: 0 | I33: Static head | J33: =E15*9.8*E49/10^5 -> 0.0899248 | K33: bar | L33: note 1 | S33: 3 | T33: 1.2 | U33: 0.137 | V33: 4.5 | W33: 0.343 | X33: 0.686
C34: Tee branch | D34: Tee branch1 | E34: 3 | F34: =VLOOKUP(D34,'K-value'!$D$4:$E$146,2,FALSE) -> 1.38 | G34: 0.002724052912 | I34: Line losses | J34: =J31*E50/100 -> 0.1519537618 | K34: bar | S34: 4 | T34: 1.2 | U34: 0.137 | V34: 4.5 | W34: 0.343 | X34: 0.686
C35: Ball valve | D35: Ball valve1 | E35: 2 | F35: =VLOOKUP(D35,'K-value'!$D$4:$E$146,2,FALSE) -> 0.07 | G35: 9.211773133e-05 | I35: Fitting & eqp losses | J35: =G69+G71+G72+G73 -> 2.711867396 | K35: bar | O35: NPSHA calculation | S35: 6 | T35: 1.2 | U35: 0.137 | V35: 4.5 | W35: 0.343 | X35: 0.686
C36: Butterfly valve | D36: Butterfly valve1 | F36: =VLOOKUP(D36,'K-value'!$D$4:$E$146,2,FALSE) -> 0.86 | G36: 0 | I36: Discharge Pressure | J36: =E48+J33+J34+J35 -> 252.953746 | K36: barg | O36: HA | P36: =(E23+1.01)*100000/(E15*9.81) -> 66.8765836 | Q36: m | S36: 8 | T36: 1.5 | U36: 0.225 | V36: 4.5 | W36: 0.343 | X36: 0.686
C37: Gate valve | D37: Gate valve1 | F37: =VLOOKUP(D37,'K-value'!$D$4:$E$146,2,FALSE) -> 0.18 | G37: 0 | I37: Result | J37: =IF(AND(J28<J29,J31<J32),"OK","NOT OK") -> OK | O37: HZ | P37: =E25 -> 2.25 | Q37: m | S37: 10 | T37: 1.5 | U37: 0.225 | V37: 4.5 | W37: 0.343 | X37: 0.686
C38: Globe valve | D38: Globe valve1 | F38: =VLOOKUP(D38,'K-value'!$D$4:$E$146,2,FALSE) -> 7.8 | G38: 0 | O38: HF | P38: =SUM(J21:J22)*-1*10^5/(E15*9.8) -> -1.707243781 | Q38: m | S38: 12 | T38: 1.5 | U38: 0.225 | V38: 4.5 | W38: 0.343 | X38: 0.686
C39: Check valve | D39: Check valve1 | F39: =VLOOKUP(D39,'K-value'!$D$4:$E$146,2,FALSE) -> 2.3 | G39: 0 | I39: Pump Data | O39: HV | P39: 0 | S39: 16 | T39: 1.5 | U39: 0.225 | V39: 4.5 | W39: 0.343 | X39: 0.686
C40: Plug valve | D40: Plug valve1 | F40: =VLOOKUP(D40,'K-value'!$D$4:$E$146,2,FALSE) -> 2.07 | G40: 0 | I40: Suction Pressure | J40: =J23 -> 2.024403622 | K40: barg | O40: HVP | P40: =E19*10^5/(E15*9.8)*-1 -> -22.46321371 | Q40: m | S40: 18 | T40: 1.5 | U40: 0.225 | V40: 4.5 | W40: 0.343 | X40: 0.686
C41: Pipe entrance | D41: Pipe entrance1 | E41: 1 | F41: =VLOOKUP(D41,'K-value'!$D$4:$E$146,2,FALSE) -> 0.78 | G41: 0.0005132273603 | I41: Discharge Pressure | J41: =J36 -> 252.953746 | K41: barg | O41: NPSHA | P41: =SUM(P36:P40) -> 44.95612611 | Q41: m | S41: 20 | T41: 1.8 | U41: 0.225 | V41: 6 | W41: 0.343 | X41: 0.686
C42: Suction strainer | D42: Suction strainer1 | E42: 1 | G42: =0.05*E42 -> 0.05 | I42: Selected disc. Pressure | J42: =J41 -> 252.953746 | K42: barg
C43: Total, barg | G43: =SUM(G31:G42) -> 0.05605345092 | I43: Differential Pressure | J43: =J42-J40 -> 250.9293423 | K43: bar
C44: Contingency | G44: 0.2 | I44: Differential Head | J44: =J43*10^5/(E15*9.8) -> 5580.870735 | K44: m
C45: Total + Contingency | G45: =(1+G44)*G43 -> 0.0672641411 | I45: Hydraulic Power | J45: =E15*9.8*J44*E14/3600000 -> 7.507550346 | K45: kW
I46: Pump BHP | J46: =J45/E20 -> 16.68344521 | K46: kW
C47: DISCHARGE | I47: Rated Power (calculated) | J47: =IF(J46<22,J46*1.25,IF(AND(J46>22,J46<55),J46*1.15,IF(J46>55,J46*1.1,"ERROR"))) -> 20.85430652 | K47: kW
C48: Target Pressure | E48: 250 | F48: barg | I48: Rated Power (selected) | J48: 22 | K48: kW
C49: Static head | E49: 2 | F49: m | G49: note 2 | I49: NPSHa | J49: =P41 -> 44.95612611 | K49: m
C50: Length | E50: 70 | F50: m | G50: (plot plan) | I50: NPSHr | J50: =J49-1 -> 43.95612611 | K50: m
C51: Pipe size | E51: 0.75 | F51: in
C52: Schedule | E52: 40 | I52: Shut in Pressure
C53: Fittings | I53: P shut in | J53: - | K53: barg
E54: Qty | F54: K | G54: DP
C55: Elbow 90 LR | D55: =C55&$E$51 -> Elbow 90 LR0.75 | E55: 5 | F55: =VLOOKUP(D55,'K-value'!$D$4:$E$146,2,FALSE) -> 0.81 | G55: =E55*F55*$J$15^2/(2*9.8)*$E$15*9.8/10^5 -> 0.002664834371
C56: Elbow 45 LR | D56: Elbow 45 LR0.75 | F56: =VLOOKUP(D56,'K-value'!$D$4:$E$146,2,FALSE) -> 0.4 | G56: 0
C57: Tee thru | D57: Tee thru0.75 | F57: =VLOOKUP(D57,'K-value'!$D$4:$E$146,2,FALSE) -> 0.5 | G57: 0
C58: Tee branch | D58: Tee branch0.75 | E58: 2 | F58: =VLOOKUP(D58,'K-value'!$D$4:$E$146,2,FALSE) -> 1.5 | G58: 0.001973951386
C59: Ball valve | D59: Ball valve0.75 | E59: 6 | F59: =VLOOKUP(D59,'K-value'!$D$4:$E$146,2,FALSE) -> 0.08 | G59: 0.0003158322217
C60: Butterfly valve | D60: Butterfly valve0.75 | F60: =VLOOKUP(D60,'K-value'!$D$4:$E$146,2,FALSE) -> 0.86 | G60: 0
C61: Gate valve | D61: Gate valve0.75 | F61: =VLOOKUP(D61,'K-value'!$D$4:$E$146,2,FALSE) -> 0.2 | G61: 0 | I61: Note:
C62: Globe valve | D62: Globe valve0.75 | F62: =VLOOKUP(D62,'K-value'!$D$4:$E$146,2,FALSE) -> 8.5 | G62: 0
C63: Check valve | D63: Check valve0.75 | E63: 3 | F63: =VLOOKUP(D63,'K-value'!$D$4:$E$146,2,FALSE) -> 2.5 | G63: 0.004934878464 | I63: 1. Discharge liquid level is assumed 2 m above grade elevation
C64: Plug valve | D64: Plug valve0.75 | F64: =VLOOKUP(D64,'K-value'!$D$4:$E$146,2,FALSE) -> 2.25 | G64: 0
C65: Pipe entrance | D65: Pipe entrance0.75 | F65: =VLOOKUP(D65,'K-value'!$D$4:$E$146,2,FALSE) -> 0.78 | G65: 0
C66: Flow orifice | D66: Flow orifice0.75 | E66: 1 | G66: 0.25
C67: Total, barg | G67: =SUM(G55:G66) -> 0.2598894964
C68: Contingency | G68: 0.2
C69: Total + contingency, barg | G69: =G67*(1+G68) -> 0.3118673957
C70: Pressure Loss due to Equipment
C71: AAV | G71: 2
C72: Control valve | G72: 0.3
C73: Coriolis flow meter at CNG dispenser | G73: 0.1

Sheet Cirebon (LP Pump) (hidden)
F1: PUMP SIZING
C5: Project: FEED PROYEK LNG JAWA
C7: Tag No: | E7: CRBN-P-002A/B
C8: Description: | E8: LNG LP Pump
C9: Location: | E9: Cirebon | O9: Pipe roughness | P9: 0.05 | Q9: mm
P10: =P9/1000/3.28 -> 1.524390244e-05 | Q10: ft
C12: DATA | I12: RESULTS | O12: Mass flow | P12: =E13*E15/0.45 -> 19575.46667 | Q12: lb/hr
C13: Flow rate (normal) | E13: =9.6*2 -> 19.2 | F13: m3/h | I13: Suction Hydraulic | O13: Rho | P13: =E15/16.02 -> 28.639201 | Q13: lb/ft3
C14: Flow rate (rated) | E14: =1.1*E13 -> 21.12 | F14: m3/h | I14: Pipe ID | J14: =VLOOKUP(E27,'Pipe size sch 40'!$A$5:$C$27,3,FALSE)*25.4/1000 -> 0.077978 | K14: m
C15: Density | E15: 458.8 | F15: kg/m3 | I15: Velocity | J15: =E13/(PI()/4*J14^2)/3600 -> 1.116772375 | K15: m/s | O15: Side Calculation (Suction)
C16: Flow temperature | E16: -158.4 | F16: deg C | I16: Velocity acceptance | J16: =IF(E27<=2,0.9,IF(OR(E27>=3,E27<=6),1.2,IF(OR(E27>=8,E27<=18),1.5,1.8))) -> 1.2 | K16: m/s | L16: (max) | O16: f tebakan | P16: 0.01896765269
C17: Viscocity | E17: 0.1434 | F17: cP | I17: Reynold number | J17: =E15*J16*J14/E18 -> 299383.3172 | O17: f left | P17: =1/(P16)^0.5 -> 7.260945978
E18: =E17*10^-3 -> 0.0001434 | F18: Nm2/s | I18: Pipe DP | J18: =P22 -> 0.07075243234 | K18: bar/100m | O18: f right | P18: =-2*LOG(P10/(3.7*J14*0.3048)+2.51/(J17*(P16)^0.5)) -> 7.260757689
C19: Vapor pressure | E19: ='Pump sizing'!E17 -> 1.01 | F19: bara | I19: Pipe DP acceptance | J19: =IF(E27<=6,0.137,0.225) -> 0.137 | K19: bar/100m | O19: f left/f right | P19: =P17/P18 -> 1.000025932 | Q19: Goal seek
C20: Pump efficiency | E20: 0.45 | I20: Static head | J20: =E15*9.8*E25/10^5 -> 0.1011654 | K20: bar | O20: psi/100 ft | P20: =0.000336*P16*P12^2/(J14*1000/25.4)^5/P13 -> 0.31269745
I21: Pipe friction loss | J21: =J18*E26/100 -> 0.007075243234 | K21: bar | O21: psi/ft | P21: =P20/100 -> 0.0031269745
C22: SUCTION | I22: Fitting friction loss | J22: =G45 -> 0.08011877809 | K22: bar | O22: bar/100 m | P22: =P21*100/14.5/0.3048 -> 0.07075243234
C23: Pressure at Vessel (min) | E23: 2 | F23: barg | I23: Suction Pressure | J23: =E23+J20-SUM(J21:J22) -> 2.013971379 | K23: barg
C24: Pressure at Vessel (max) | E24: 5 | F24: barg | I24: Result | J24: =IF(AND(J15<J16,J18<J19),"OK","NOT OK") -> OK
C25: Static head | E25: 2.25 | F25: m | G25: (vertical tank) | O25: Side Calculation (Discharge) | T25: Suction | V25: Discharge
C26: Length | E26: 10 | F26: m | G26: (plot plan) | I26: Discharge Hydraulic | O26: f tebakan | P26: 0.0198159601 | W26: < 49 barg | X26: > 49 barg
C27: Pipe size | E27: 3 | F27: in | I27: Pipe ID | J27: =VLOOKUP(E51,'Pipe size sch 40'!$A$5:$C$27,3,FALSE)*25.4/1000 -> 0.077978 | K27: m | O27: f left | P27: =1/(P26)^0.5 -> 7.103828046 | T27: Velocity | U27: Pressure | V27: Velocity | W27: Pressure | X27: Pressure
C28: Schedule | E28: 40 | I28: Velocity | J28: =E13/(PI()/4*J14^2)/3600 -> 1.116772375 | K28: m/s | O28: f right | P28: =-2*LOG(P10/(3.7*J27*0.3048)+2.51/(J30*(P26)^0.5)) -> 7.446040652 | S28: 0.5 | T28: 0.9 | U28: 0.137 | V28: 4.5 | W28: 0.343 | X28: 0.686
C29: Fittings | I29: Velocity acceptance | J29: =IF(E49<=18,4.5,6) -> 4.5 | K29: m/s | L29: (max) | O29: f left/f right | P29: =P27/P28 -> 0.9540409968 | Q29: Goal seek | S29: 0.75 | T29: 0.9 | U29: 0.137 | V29: 4.5 | W29: 0.343 | X29: 0.686
E30: Qty | F30: K | G30: DP | I30: Reynold number | J30: =E15*J29*J27/E18 -> 1122687.439 | O30: psi/100 ft | P30: =0.000336*P26*P12^2/(J27*1000/25.4)^5/P13 -> 0.3266824996 | S30: 1 | T30: 0.9 | U30: 0.137 | V30: 4.5 | W30: 0.343 | X30: 0.686
C31: Elbow 90 LR | D31: =C31&$E$27 -> Elbow 90 LR3 | E31: 6 | F31: =VLOOKUP(D31,'K-value'!$D$4:$E$146,2,FALSE) -> 0.29 | G31: =E31*F31*$J$15^2/(2*9.8)*$E$15*9.8/10^5 -> 0.004978195944 | I31: Pipe DP | J31: =P32 -> 0.07391675709 | K31: bar/100m | O31: psi/ft | P31: =P30/100 -> 0.003266824996 | S31: 1.5 | T31: 0.9 | U31: 0.137 | V31: 4.5 | W31: 0.343 | X31: 0.686
C32: Elbow 45 LR | D32: Elbow 45 LR3 | F32: =VLOOKUP(D32,'K-value'!$D$4:$E$146,2,FALSE) -> 0.29 | G32: 0 | I32: Pipe DP acceptance | J32: =IF(E48<=49,0.343,0.686) -> 0.343 | K32: bar/100m | O32: bar/100 m | P32: =P31*100/14.5/0.3048 -> 0.07391675709 | S32: 2 | T32: 0.9 | U32: 0.137 | V32: 4.5 | W32: 0.343 | X32: 0.686
C33: Tee thru | D33: Tee thru3 | F33: =VLOOKUP(D33,'K-value'!$D$4:$E$146,2,FALSE) -> 0.36 | G33: 0 | I33: Static head | J33: =E15*9.8*E49/10^5 -> 0.0899248 | K33: bar | L33: note 1 | S33: 3 | T33: 1.2 | U33: 0.137 | V33: 4.5 | W33: 0.343 | X33: 0.686
C34: Tee branch | D34: Tee branch3 | E34: 3 | F34: =VLOOKUP(D34,'K-value'!$D$4:$E$146,2,FALSE) -> 1.08 | G34: 0.009269744171 | I34: Line losses | J34: =J31*E50/100 -> 0.03843671369 | K34: bar | S34: 4 | T34: 1.2 | U34: 0.137 | V34: 4.5 | W34: 0.343 | X34: 0.686
C35: Ball valve | D35: Ball valve3 | E35: 2 | F35: =VLOOKUP(D35,'K-value'!$D$4:$E$146,2,FALSE) -> 0.05 | G35: 0.0002861032152 | I35: Fitting & eqp losses | J35: =G69+G71+G72 -> 0.7319634512 | K35: bar | O35: NPSHA calculation | S35: 6 | T35: 1.2 | U35: 0.137 | V35: 4.5 | W35: 0.343 | X35: 0.686
C36: Butterfly valve | D36: Butterfly valve3 | F36: =VLOOKUP(D36,'K-value'!$D$4:$E$146,2,FALSE) -> 0.81 | G36: 0 | I36: Discharge Pressure | J36: =E48+J33+J34+J35 -> 8.860324965 | K36: barg | O36: HA | P36: =(E23+1.01)*100000/(E15*9.81) -> 66.8765836 | Q36: m | S36: 8 | T36: 1.5 | U36: 0.225 | V36: 4.5 | W36: 0.343 | X36: 0.686
C37: Gate valve | D37: Gate valve3 | F37: =VLOOKUP(D37,'K-value'!$D$4:$E$146,2,FALSE) -> 0.14 | G37: 0 | I37: Result | J37: =IF(AND(J28<J29,J31<J32),"OK","NOT OK") -> OK | O37: HZ | P37: =E25 -> 2.25 | Q37: m | S37: 10 | T37: 1.5 | U37: 0.225 | V37: 4.5 | W37: 0.343 | X37: 0.686
C38: Globe valve | D38: Globe valve3 | F38: =VLOOKUP(D38,'K-value'!$D$4:$E$146,2,FALSE) -> 6.1 | G38: 0 | O38: HF | P38: =SUM(J21:J22)*-1*10^5/(E15*9.8) -> -1.939265282 | Q38: m | S38: 12 | T38: 1.5 | U38: 0.225 | V38: 4.5 | W38: 0.343 | X38: 0.686
C39: Check valve | D39: Check valve3 | F39: =VLOOKUP(D39,'K-value'!$D$4:$E$146,2,FALSE) -> 1.8 | G39: 0 | I39: Pump Data | O39: HV | P39: 0 | S39: 16 | T39: 1.5 | U39: 0.225 | V39: 4.5 | W39: 0.343 | X39: 0.686
C40: Plug valve | D40: Plug valve3 | F40: =VLOOKUP(D40,'K-value'!$D$4:$E$146,2,FALSE) -> 1.62 | G40: 0 | I40: Suction Pressure | J40: =J23 -> 2.013971379 | K40: barg | O40: HVP | P40: =E19*10^5/(E15*9.8)*-1 -> -22.46321371 | Q40: m | S40: 18 | T40: 1.5 | U40: 0.225 | V40: 4.5 | W40: 0.343 | X40: 0.686
C41: Pipe entrance | D41: Pipe entrance3 | E41: 1 | F41: =VLOOKUP(D41,'K-value'!$D$4:$E$146,2,FALSE) -> 0.78 | G41: 0.002231605078 | I41: Discharge Pressure | J41: =J36 -> 8.860324965 | K41: barg | O41: NPSHA | P41: =SUM(P36:P40) -> 44.72410461 | Q41: m | S41: 20 | T41: 1.8 | U41: 0.225 | V41: 6 | W41: 0.343 | X41: 0.686
C42: Suction strainer | D42: Suction strainer3 | E42: 1 | G42: =0.05*E42 -> 0.05 | I42: Selected disc. Pressure | J42: =J41 -> 8.860324965 | K42: barg
C43: Total, barg | G43: =SUM(G31:G42) -> 0.06676564841 | I43: Differential Pressure | J43: =J42-J40 -> 6.846353586 | K43: bar
C44: Contingency | G44: 0.2 | I44: Differential Head | J44: =J43*10^5/(E15*9.8) -> 152.2684195 | K44: m
C45: Total + Contingency | G45: =(1+G44)*G43 -> 0.08011877809 | I45: Hydraulic Power | J45: =E15*9.8*J44*E14/3600000 -> 4.016527437 | K45: kW
I46: Pump BHP | J46: =J45/E20 -> 8.925616527 | K46: kW
C47: DISCHARGE | I47: Rated Power (calculated) | J47: =IF(J46<22,J46*1.25,IF(AND(J46>22,J46<55),J46*1.15,IF(J46>55,J46*1.1,"ERROR"))) -> 11.15702066 | K47: kW
C48: Target Pressure | E48: 8 | F48: barg | I48: Rated Power (selected) | J48: 15 | K48: kW
C49: Static head | E49: 2 | F49: m | G49: note 2 | I49: NPSHa | J49: =P41 -> 44.72410461 | K49: m
C50: Length | E50: 52 | F50: m | G50: (plot plan) | I50: NPSHr | J50: =J49-1 -> 43.72410461 | K50: m
C51: Pipe size | E51: 3 | F51: in
C52: Schedule | E52: 40 | I52: Shut in Pressure
C53: Fittings | I53: P shut in | J53: =E24+1.3*J43 -> 13.90025966 | K53: barg
E54: Qty | F54: K | G54: DP
C55: Elbow 90 LR | D55: =C55&$E$51 -> Elbow 90 LR3 | E55: 5 | F55: =VLOOKUP(D55,'K-value'!$D$4:$E$146,2,FALSE) -> 0.29 | G55: =E55*F55*$J$15^2/(2*9.8)*$E$15*9.8/10^5 -> 0.00414849662
C56: Elbow 45 LR | D56: Elbow 45 LR3 | F56: =VLOOKUP(D56,'K-value'!$D$4:$E$146,2,FALSE) -> 0.29 | G56: 0
C57: Tee thru | D57: Tee thru3 | F57: =VLOOKUP(D57,'K-value'!$D$4:$E$146,2,FALSE) -> 0.36 | G57: 0
C58: Tee branch | D58: Tee branch3 | E58: 2 | F58: =VLOOKUP(D58,'K-value'!$D$4:$E$146,2,FALSE) -> 1.08 | G58: 0.006179829447
C59: Ball valve | D59: Ball valve3 | E59: 6 | F59: =VLOOKUP(D59,'K-value'!$D$4:$E$146,2,FALSE) -> 0.05 | G59: 0.0008583096455
C60: Butterfly valve | D60: Butterfly valve3 | F60: =VLOOKUP(D60,'K-value'!$D$4:$E$146,2,FALSE) -> 0.81 | G60: 0
C61: Gate valve | D61: Gate valve3 | F61: =VLOOKUP(D61,'K-value'!$D$4:$E$146,2,FALSE) -> 0.14 | G61: 0 | I61: Note:
C62: Globe valve | D62: Globe valve3 | F62: =VLOOKUP(D62,'K-value'!$D$4:$E$146,2,FALSE) -> 6.1 | G62: 0
C63: Check valve | D63: Check valve3 | E63: 3 | F63: =VLOOKUP(D63,'K-value'!$D$4:$E$146,2,FALSE) -> 1.8 | G63: 0.01544957362 | I63: 1. Discharge liquid level is assumed 2 m above grade elevation
C64: Plug valve | D64: Plug valve3 | F64: =VLOOKUP(D64,'K-value'!$D$4:$E$146,2,FALSE) -> 1.62 | G64: 0
C65: Pipe entrance | D65: Pipe entrance3 | F65: =VLOOKUP(D65,'K-value'!$D$4:$E$146,2,FALSE) -> 0.78 | G65: 0
C66: Flow orifice | D66: Flow orifice3 | E66: 1 | G66: 0.25
C67: Total, barg | G67: =SUM(G55:G66) -> 0.2766362093
C68: Contingency | G68: 0.2
C69: Total + contingency, barg | G69: =G67*(1+G68) -> 0.3319634512
C70: Pressure Loss due to Equipment
C71: Coriolis flow meter at LNG dispenser | G71: 0.1
C72: Control valve | G72: 0.3

Sheet Cirebon (HP Pump) (hidden)
F1: PUMP SIZING
C5: Project: FEED PROYEK LNG JAWA
C7: Tag No: | E7: CRBN-P-003A/B
C8: Description: | E8: LNG HP Pump
C9: Location: | E9: Cirebon | O9: Pipe roughness | P9: 0.05 | Q9: mm
P10: =P9/1000/3.28 -> 1.524390244e-05 | Q10: ft
C12: DATA | I12: RESULTS | O12: Mass flow | P12: =E14*E15/0.45 -> 1098.146296 | Q12: lb/hr
C13: Flow rate (normal) | E13: =0.5*47/24 -> 0.9791666667 | F13: m3/h | I13: Suction Hydraulic | O13: Rho | P13: =E15/16.02 -> 28.639201 | Q13: lb/ft3
C14: Flow rate (rated) | E14: =1.1*E13 -> 1.077083333 | F14: m3/h | I14: Pipe ID | J14: =VLOOKUP(E27,'Pipe size sch 40'!$A$5:$C$27,3,FALSE)*25.4/1000 -> 0.02667 | K14: m
C15: Density | E15: 458.8 | F15: kg/m3 | I15: Velocity | J15: =E14/(PI()/4*J14^2)/3600 -> 0.5355634027 | K15: m/s | O15: Side Calculation (Suction)
C16: Flow temperature | E16: -158.4 | F16: deg C | I16: Velocity acceptance | J16: =IF(E27<=2,0.9,IF(OR(E27>=3,E27<=6),1.2,IF(OR(E27>=8,E27<=18),1.5,1.8))) -> 0.9 | K16: m/s | L16: (max) | O16: f tebakan | P16: 0.02524381393
C17: Viscocity | E17: 0.1434 | F17: cP | I17: Reynold number | J17: =E15*J16*J14/E18 -> 76796.20921 | O17: f left | P17: =1/(P16)^0.5 -> 6.293938788
E18: =E17*10^-3 -> 0.0001434 | F18: Nm2/s | I18: Pipe DP | J18: =P22 -> 0.06331757775 | K18: bar/100m | O18: f right | P18: =-2*LOG(P10/(3.7*J14*0.3048)+2.51/(J17*(P16)^0.5)) -> 6.294389225
C19: Vapor pressure | E19: ='Pump sizing'!E17 -> 1.01 | F19: bara | I19: Pipe DP acceptance | J19: =IF(E27<=6,0.137,0.225) -> 0.137 | K19: bar/100m | O19: f left/f right | P19: =P17/P18 -> 0.9999284383 | Q19: Goal seek
C20: Pump efficiency | E20: 0.45 | I20: Static head | J20: =E15*9.8*E25/10^5 -> 0.1011654 | K20: bar | O20: psi/100 ft | P20: =0.000336*P16*P12^2/(J14*1000/25.4)^5/P13 -> 0.2798383666
I21: Pipe friction loss | J21: =J18*E26/100 -> 0.009497636662 | K21: bar | O21: psi/ft | P21: =P20/100 -> 0.002798383666
C22: SUCTION | I22: Fitting friction loss | J22: =G45 -> 0.0672641411 | K22: bar | O22: bar/100 m | P22: =P21*100/14.5/0.3048 -> 0.06331757775
C23: Pressure at Vessel (min) | E23: 2 | F23: barg | I23: Suction Pressure | J23: =E23+J20-SUM(J21:J22) -> 2.024403622 | K23: barg
C24: Pressure at Vessel (max) | E24: 5 | F24: barg | I24: Result | J24: =IF(AND(J15<J16,J18<J19),"OK","NOT OK") -> OK
C25: Static head | E25: 2.25 | F25: m | G25: (vertical tank) | O25: Side Calculation (Discharge) | T25: Suction | V25: Discharge
C26: Length | E26: 15 | F26: m | G26: (plot plan) | I26: Discharge Hydraulic | O26: f tebakan | P26: 0.02514009188 | W26: < 49 barg | X26: > 49 barg
C27: Pipe size | E27: 1 | F27: in | I27: Pipe ID | J27: =VLOOKUP(E51,'Pipe size sch 40'!$A$5:$C$27,3,FALSE)*25.4/1000 -> 0.020828 | K27: m | O27: f left | P27: =1/(P26)^0.5 -> 6.306909072 | T27: Velocity | U27: Pressure | V27: Velocity | W27: Pressure | X27: Pressure
C28: Schedule | E28: 40 | I28: Velocity | J28: =E14/(PI()/4*J14^2)/3600 -> 0.5355634027 | K28: m/s | O28: f right | P28: =-2*LOG(P10/(3.7*J27*0.3048)+2.51/(J30*(P26)^0.5)) -> 6.307608663 | S28: 0.5 | T28: 0.9 | U28: 0.137 | V28: 4.5 | W28: 0.343 | X28: 0.686
C29: Fittings | I29: Velocity acceptance | J29: =IF(E49<=18,4.5,6) -> 4.5 | K29: m/s | L29: (max) | O29: f left/f right | P29: =P27/P28 -> 0.9998890877 | Q29: Goal seek | S29: 0.75 | T29: 0.9 | U29: 0.137 | V29: 4.5 | W29: 0.343 | X29: 0.686
E30: Qty | F30: K | G30: DP | I30: Reynold number | J30: =E15*J29*J27/E18 -> 299870.9121 | O30: psi/100 ft | P30: =0.000336*P26*P12^2/(J27*1000/25.4)^5/P13 -> 0.9593926367 | S30: 1 | T30: 0.9 | U30: 0.137 | V30: 4.5 | W30: 0.343 | X30: 0.686
C31: Elbow 90 LR | D31: =C31&$E$27 -> Elbow 90 LR1 | E31: 6 | F31: =VLOOKUP(D31,'K-value'!$D$4:$E$146,2,FALSE) -> 0.69 | G31: =E31*F31*$J$15^2/(2*9.8)*$E$15*9.8/10^5 -> 0.002724052912 | I31: Pipe DP | J31: =P32 -> 0.2170768026 | K31: bar/100m | O31: psi/ft | P31: =P30/100 -> 0.009593926367 | S31: 1.5 | T31: 0.9 | U31: 0.137 | V31: 4.5 | W31: 0.343 | X31: 0.686
C32: Elbow 45 LR | D32: =C32&$E$27 -> Elbow 45 LR1 | F32: =VLOOKUP(D32,'K-value'!$D$4:$E$146,2,FALSE) -> 0.37 | G32: 0 | I32: Pipe DP acceptance | J32: =IF(E48<=49,0.343,0.686) -> 0.686 | K32: bar/100m | O32: bar/100 m | P32: =P31*100/14.5/0.3048 -> 0.2170768026 | S32: 2 | T32: 0.9 | U32: 0.137 | V32: 4.5 | W32: 0.343 | X32: 0.686
C33: Tee thru | D33: Tee thru1 | F33: =VLOOKUP(D33,'K-value'!$D$4:$E$146,2,FALSE) -> 0.46 | G33: 0 | I33: Static head | J33: =E15*9.8*E49/10^5 -> 0.0899248 | K33: bar | L33: note 1 | S33: 3 | T33: 1.2 | U33: 0.137 | V33: 4.5 | W33: 0.343 | X33: 0.686
C34: Tee branch | D34: Tee branch1 | E34: 3 | F34: =VLOOKUP(D34,'K-value'!$D$4:$E$146,2,FALSE) -> 1.38 | G34: 0.002724052912 | I34: Line losses | J34: =J31*E50/100 -> 0.1128799373 | K34: bar | S34: 4 | T34: 1.2 | U34: 0.137 | V34: 4.5 | W34: 0.343 | X34: 0.686
C35: Ball valve | D35: Ball valve1 | E35: 2 | F35: =VLOOKUP(D35,'K-value'!$D$4:$E$146,2,FALSE) -> 0.07 | G35: 9.211773133e-05 | I35: Fitting & eqp losses | J35: =G69+G71+G72+G73 -> 2.711867396 | K35: bar | O35: NPSHA calculation | S35: 6 | T35: 1.2 | U35: 0.137 | V35: 4.5 | W35: 0.343 | X35: 0.686
C36: Butterfly valve | D36: Butterfly valve1 | F36: =VLOOKUP(D36,'K-value'!$D$4:$E$146,2,FALSE) -> 0.86 | G36: 0 | I36: Discharge Pressure | J36: =E48+J33+J34+J35 -> 252.9146721 | K36: barg | O36: HA | P36: =(E23+1.01)*100000/(E15*9.81) -> 66.8765836 | Q36: m | S36: 8 | T36: 1.5 | U36: 0.225 | V36: 4.5 | W36: 0.343 | X36: 0.686
C37: Gate valve | D37: Gate valve1 | F37: =VLOOKUP(D37,'K-value'!$D$4:$E$146,2,FALSE) -> 0.18 | G37: 0 | I37: Result | J37: =IF(AND(J28<J29,J31<J32),"OK","NOT OK") -> OK | O37: HZ | P37: =E25 -> 2.25 | Q37: m | S37: 10 | T37: 1.5 | U37: 0.225 | V37: 4.5 | W37: 0.343 | X37: 0.686
C38: Globe valve | D38: Globe valve1 | F38: =VLOOKUP(D38,'K-value'!$D$4:$E$146,2,FALSE) -> 7.8 | G38: 0 | O38: HF | P38: =SUM(J21:J22)*-1*10^5/(E15*9.8) -> -1.707243781 | Q38: m | S38: 12 | T38: 1.5 | U38: 0.225 | V38: 4.5 | W38: 0.343 | X38: 0.686
C39: Check valve | D39: Check valve1 | F39: =VLOOKUP(D39,'K-value'!$D$4:$E$146,2,FALSE) -> 2.3 | G39: 0 | I39: Pump Data | O39: HV | P39: 0 | S39: 16 | T39: 1.5 | U39: 0.225 | V39: 4.5 | W39: 0.343 | X39: 0.686
C40: Plug valve | D40: Plug valve1 | F40: =VLOOKUP(D40,'K-value'!$D$4:$E$146,2,FALSE) -> 2.07 | G40: 0 | I40: Suction Pressure | J40: =J23 -> 2.024403622 | K40: barg | O40: HVP | P40: =E19*10^5/(E15*9.8)*-1 -> -22.46321371 | Q40: m | S40: 18 | T40: 1.5 | U40: 0.225 | V40: 4.5 | W40: 0.343 | X40: 0.686
C41: Pipe entrance | D41: Pipe entrance1 | E41: 1 | F41: =VLOOKUP(D41,'K-value'!$D$4:$E$146,2,FALSE) -> 0.78 | G41: 0.0005132273603 | I41: Discharge Pressure | J41: =J36 -> 252.9146721 | K41: barg | O41: NPSHA | P41: =SUM(P36:P40) -> 44.95612611 | Q41: m | S41: 20 | T41: 1.8 | U41: 0.225 | V41: 6 | W41: 0.343 | X41: 0.686
C42: Suction strainer | D42: Suction strainer1 | E42: 1 | G42: =0.05*E42 -> 0.05 | I42: Selected disc. Pressure | J42: =J41 -> 252.9146721 | K42: barg
C43: Total, barg | G43: =SUM(G31:G42) -> 0.05605345092 | I43: Differential Pressure | J43: =J42-J40 -> 250.8902685 | K43: bar
C44: Contingency | G44: 0.2 | I44: Differential Head | J44: =J43*10^5/(E15*9.8) -> 5580.001702 | K44: m
C45: Total + Contingency | G45: =(1+G44)*G43 -> 0.0672641411 | I45: Hydraulic Power | J45: =E15*9.8*J44*E14/3600000 -> 7.506381297 | K45: kW
I46: Pump BHP | J46: =J45/E20 -> 16.68084733 | K46: kW
C47: DISCHARGE | I47: Rated Power (calculated) | J47: =IF(J46<22,J46*1.25,IF(AND(J46>22,J46<55),J46*1.15,IF(J46>55,J46*1.1,"ERROR"))) -> 20.85105916 | K47: kW
C48: Target Pressure | E48: 250 | F48: barg | I48: Rated Power (selected) | J48: 22 | K48: kW
C49: Static head | E49: 2 | F49: m | G49: note 2 | I49: NPSHa | J49: =P41 -> 44.95612611 | K49: m
C50: Length | E50: 52 | F50: m | G50: (plot plan) | I50: NPSHr | J50: =J49-1 -> 43.95612611 | K50: m
C51: Pipe size | E51: 0.75 | F51: in
C52: Schedule | E52: 40 | I52: Shut in Pressure
C53: Fittings | I53: P shut in | J53: - | K53: barg
E54: Qty | F54: K | G54: DP
C55: Elbow 90 LR | D55: =C55&$E$51 -> Elbow 90 LR0.75 | E55: 5 | F55: =VLOOKUP(D55,'K-value'!$D$4:$E$146,2,FALSE) -> 0.81 | G55: =E55*F55*$J$15^2/(2*9.8)*$E$15*9.8/10^5 -> 0.002664834371
C56: Elbow 45 LR | D56: =C56&$E$51 -> Elbow 45 LR0.75 | F56: =VLOOKUP(D56,'K-value'!$D$4:$E$146,2,FALSE) -> 0.4 | G56: 0
C57: Tee thru | D57: Tee thru0.75 | F57: =VLOOKUP(D57,'K-value'!$D$4:$E$146,2,FALSE) -> 0.5 | G57: 0
C58: Tee branch | D58: Tee branch0.75 | E58: 2 | F58: =VLOOKUP(D58,'K-value'!$D$4:$E$146,2,FALSE) -> 1.5 | G58: 0.001973951386
C59: Ball valve | D59: Ball valve0.75 | E59: 6 | F59: =VLOOKUP(D59,'K-value'!$D$4:$E$146,2,FALSE) -> 0.08 | G59: 0.0003158322217
C60: Butterfly valve | D60: Butterfly valve0.75 | F60: =VLOOKUP(D60,'K-value'!$D$4:$E$146,2,FALSE) -> 0.86 | G60: 0
C61: Gate valve | D61: Gate valve0.75 | F61: =VLOOKUP(D61,'K-value'!$D$4:$E$146,2,FALSE) -> 0.2 | G61: 0 | I61: Note:
C62: Globe valve | D62: Globe valve0.75 | F62: =VLOOKUP(D62,'K-value'!$D$4:$E$146,2,FALSE) -> 8.5 | G62: 0
C63: Check valve | D63: Check valve0.75 | E63: 3 | F63: =VLOOKUP(D63,'K-value'!$D$4:$E$146,2,FALSE) -> 2.5 | G63: 0.004934878464 | I63: 1. Discharge liquid level is assumed 2 m above grade elevation
C64: Plug valve | D64: Plug valve0.75 | F64: =VLOOKUP(D64,'K-value'!$D$4:$E$146,2,FALSE) -> 2.25 | G64: 0
C65: Pipe entrance | D65: Pipe entrance0.75 | F65: =VLOOKUP(D65,'K-value'!$D$4:$E$146,2,FALSE) -> 0.78 | G65: 0
C66: Flow orifice | D66: Flow orifice0.75 | E66: 1 | G66: 0.25
C67: Total, barg | G67: =SUM(G55:G66) -> 0.2598894964
C68: Contingency | G68: 0.2
C69: Total + contingency, barg | G69: =G67*(1+G68) -> 0.3118673957
C70: Pressure Loss due to Equipment
C71: AAV | G71: 2
C72: Control valve | G72: 0.3
C73: Coriolis flow meter at CNG dispenser | G73: 0.1

Sheet Gresik (LP Pump) (hidden)
F1: PUMP SIZING
C5: Project: FEED PROYEK LNG JAWA
C7: Tag No: | E7: GRSK-P-002A/B
C8: Description: | E8: LNG LP Pump
C9: Location: | E9: Gresik | O9: Pipe roughness | P9: 0.05 | Q9: mm
P10: =P9/1000/3.28 -> 1.524390244e-05 | Q10: ft
C12: DATA | I12: RESULTS | O12: Mass flow | P12: =E13*E15/0.45 -> 19575.46667 | Q12: lb/hr
C13: Flow rate (normal) | E13: =9.6*2 -> 19.2 | F13: m3/h | I13: Suction Hydraulic | O13: Rho | P13: =E15/16.02 -> 28.639201 | Q13: lb/ft3
C14: Flow rate (rated) | E14: =1.1*E13 -> 21.12 | F14: m3/h | I14: Pipe ID | J14: =VLOOKUP(E27,'Pipe size sch 40'!$A$5:$C$27,3,FALSE)*25.4/1000 -> 0.077978 | K14: m
C15: Density | E15: 458.8 | F15: kg/m3 | I15: Velocity | J15: =E13/(PI()/4*J14^2)/3600 -> 1.116772375 | K15: m/s | O15: Side Calculation (Suction)
C16: Flow temperature | E16: -158.4 | F16: deg C | I16: Velocity acceptance | J16: =IF(E27<=2,0.9,IF(OR(E27>=3,E27<=6),1.2,IF(OR(E27>=8,E27<=18),1.5,1.8))) -> 1.2 | K16: m/s | L16: (max) | O16: f tebakan | P16: 0.01896765269
C17: Viscocity | E17: 0.1434 | F17: cP | I17: Reynold number | J17: =E15*J16*J14/E18 -> 299383.3172 | O17: f left | P17: =1/(P16)^0.5 -> 7.260945978
E18: =E17*10^-3 -> 0.0001434 | F18: Nm2/s | I18: Pipe DP | J18: =P22 -> 0.07075243234 | K18: bar/100m | O18: f right | P18: =-2*LOG(P10/(3.7*J14*0.3048)+2.51/(J17*(P16)^0.5)) -> 7.260757689
C19: Vapor pressure | E19: ='Pump sizing'!E17 -> 1.01 | F19: bara | I19: Pipe DP acceptance | J19: =IF(E27<=6,0.137,0.225) -> 0.137 | K19: bar/100m | O19: f left/f right | P19: =P17/P18 -> 1.000025932 | Q19: Goal seek
C20: Pump efficiency | E20: 0.45 | I20: Static head | J20: =E15*9.8*E25/10^5 -> 0.1011654 | K20: bar | O20: psi/100 ft | P20: =0.000336*P16*P12^2/(J14*1000/25.4)^5/P13 -> 0.31269745
I21: Pipe friction loss | J21: =J18*E26/100 -> 0.007075243234 | K21: bar | O21: psi/ft | P21: =P20/100 -> 0.0031269745
C22: SUCTION | I22: Fitting friction loss | J22: =G45 -> 0.08011877809 | K22: bar | O22: bar/100 m | P22: =P21*100/14.5/0.3048 -> 0.07075243234
C23: Pressure at Vessel (min) | E23: 2 | F23: barg | I23: Suction Pressure | J23: =E23+J20-SUM(J21:J22) -> 2.013971379 | K23: barg
C24: Pressure at Vessel (max) | E24: 5 | F24: barg | I24: Result | J24: =IF(AND(J15<J16,J18<J19),"OK","NOT OK") -> OK
C25: Static head | E25: 2.25 | F25: m | G25: (vertical tank) | O25: Side Calculation (Discharge) | T25: Suction | V25: Discharge
C26: Length | E26: 10 | F26: m | G26: (plot plan) | I26: Discharge Hydraulic | O26: f tebakan | P26: 0.01806057864 | W26: < 49 barg | X26: > 49 barg
C27: Pipe size | E27: 3 | F27: in | I27: Pipe ID | J27: =VLOOKUP(E51,'Pipe size sch 40'!$A$5:$C$27,3,FALSE)*25.4/1000 -> 0.077978 | K27: m | O27: f left | P27: =1/(P26)^0.5 -> 7.441049092 | T27: Velocity | U27: Pressure | V27: Velocity | W27: Pressure | X27: Pressure
C28: Schedule | E28: 40 | I28: Velocity | J28: =E13/(PI()/4*J14^2)/3600 -> 1.116772375 | K28: m/s | O28: f right | P28: =-2*LOG(P10/(3.7*J27*0.3048)+2.51/(J30*(P26)^0.5)) -> 7.442586826 | S28: 0.5 | T28: 0.9 | U28: 0.137 | V28: 4.5 | W28: 0.343 | X28: 0.686
C29: Fittings | I29: Velocity acceptance | J29: =IF(E49<=18,4.5,6) -> 4.5 | K29: m/s | L29: (max) | O29: f left/f right | P29: =P27/P28 -> 0.999793387 | Q29: Goal seek | S29: 0.75 | T29: 0.9 | U29: 0.137 | V29: 4.5 | W29: 0.343 | X29: 0.686
E30: Qty | F30: K | G30: DP | I30: Reynold number | J30: =E15*J29*J27/E18 -> 1122687.439 | O30: psi/100 ft | P30: =0.000336*P26*P12^2/(J27*1000/25.4)^5/P13 -> 0.2977435837 | S30: 1 | T30: 0.9 | U30: 0.137 | V30: 4.5 | W30: 0.343 | X30: 0.686
C31: Elbow 90 LR | D31: =C31&$E$27 -> Elbow 90 LR3 | E31: 6 | F31: =VLOOKUP(D31,'K-value'!$D$4:$E$146,2,FALSE) -> 0.29 | G31: =E31*F31*$J$15^2/(2*9.8)*$E$15*9.8/10^5 -> 0.004978195944 | I31: Pipe DP | J31: =P32 -> 0.06736889847 | K31: bar/100m | O31: psi/ft | P31: =P30/100 -> 0.002977435837 | S31: 1.5 | T31: 0.9 | U31: 0.137 | V31: 4.5 | W31: 0.343 | X31: 0.686
C32: Elbow 45 LR | D32: Elbow 45 LR3 | F32: =VLOOKUP(D32,'K-value'!$D$4:$E$146,2,FALSE) -> 0.29 | G32: 0 | I32: Pipe DP acceptance | J32: =IF(E48<=49,0.343,0.686) -> 0.343 | K32: bar/100m | O32: bar/100 m | P32: =P31*100/14.5/0.3048 -> 0.06736889847 | S32: 2 | T32: 0.9 | U32: 0.137 | V32: 4.5 | W32: 0.343 | X32: 0.686
C33: Tee thru | D33: Tee thru3 | F33: =VLOOKUP(D33,'K-value'!$D$4:$E$146,2,FALSE) -> 0.36 | G33: 0 | I33: Static head | J33: =E15*9.8*E49/10^5 -> 0.0899248 | K33: bar | L33: note 1 | S33: 3 | T33: 1.2 | U33: 0.137 | V33: 4.5 | W33: 0.343 | X33: 0.686
C34: Tee branch | D34: Tee branch3 | E34: 3 | F34: =VLOOKUP(D34,'K-value'!$D$4:$E$146,2,FALSE) -> 1.08 | G34: 0.009269744171 | I34: Line losses | J34: =J31*E50/100 -> 0.04715822893 | K34: bar | S34: 4 | T34: 1.2 | U34: 0.137 | V34: 4.5 | W34: 0.343 | X34: 0.686
C35: Ball valve | D35: Ball valve3 | E35: 2 | F35: =VLOOKUP(D35,'K-value'!$D$4:$E$146,2,FALSE) -> 0.05 | G35: 0.0002861032152 | I35: Fitting & eqp losses | J35: =G69+G71+G72 -> 0.7319634512 | K35: bar | O35: NPSHA calculation | S35: 6 | T35: 1.2 | U35: 0.137 | V35: 4.5 | W35: 0.343 | X35: 0.686
C36: Butterfly valve | D36: Butterfly valve3 | F36: =VLOOKUP(D36,'K-value'!$D$4:$E$146,2,FALSE) -> 0.81 | G36: 0 | I36: Discharge Pressure | J36: =E48+J33+J34+J35 -> 8.86904648 | K36: barg | O36: HA | P36: =(E23+1.01)*100000/(E15*9.81) -> 66.8765836 | Q36: m | S36: 8 | T36: 1.5 | U36: 0.225 | V36: 4.5 | W36: 0.343 | X36: 0.686
C37: Gate valve | D37: Gate valve3 | F37: =VLOOKUP(D37,'K-value'!$D$4:$E$146,2,FALSE) -> 0.14 | G37: 0 | I37: Result | J37: =IF(AND(J28<J29,J31<J32),"OK","NOT OK") -> OK | O37: HZ | P37: =E25 -> 2.25 | Q37: m | S37: 10 | T37: 1.5 | U37: 0.225 | V37: 4.5 | W37: 0.343 | X37: 0.686
C38: Globe valve | D38: Globe valve3 | F38: =VLOOKUP(D38,'K-value'!$D$4:$E$146,2,FALSE) -> 6.1 | G38: 0 | O38: HF | P38: =SUM(J21:J22)*-1*10^5/(E15*9.8) -> -1.939265282 | Q38: m | S38: 12 | T38: 1.5 | U38: 0.225 | V38: 4.5 | W38: 0.343 | X38: 0.686
C39: Check valve | D39: Check valve3 | F39: =VLOOKUP(D39,'K-value'!$D$4:$E$146,2,FALSE) -> 1.8 | G39: 0 | I39: Pump Data | O39: HV | P39: 0 | S39: 16 | T39: 1.5 | U39: 0.225 | V39: 4.5 | W39: 0.343 | X39: 0.686
C40: Plug valve | D40: Plug valve3 | F40: =VLOOKUP(D40,'K-value'!$D$4:$E$146,2,FALSE) -> 1.62 | G40: 0 | I40: Suction Pressure | J40: =J23 -> 2.013971379 | K40: barg | O40: HVP | P40: =E19*10^5/(E15*9.8)*-1 -> -22.46321371 | Q40: m | S40: 18 | T40: 1.5 | U40: 0.225 | V40: 4.5 | W40: 0.343 | X40: 0.686
C41: Pipe entrance | D41: Pipe entrance3 | E41: 1 | F41: =VLOOKUP(D41,'K-value'!$D$4:$E$146,2,FALSE) -> 0.78 | G41: 0.002231605078 | I41: Discharge Pressure | J41: =J36 -> 8.86904648 | K41: barg | O41: NPSHA | P41: =SUM(P36:P40) -> 44.72410461 | Q41: m | S41: 20 | T41: 1.8 | U41: 0.225 | V41: 6 | W41: 0.343 | X41: 0.686
C42: Suction strainer | D42: Suction strainer3 | E42: 1 | G42: =0.05*E42 -> 0.05 | I42: Selected disc. Pressure | J42: =J41 -> 8.86904648 | K42: barg
C43: Total, barg | G43: =SUM(G31:G42) -> 0.06676564841 | I43: Differential Pressure | J43: =J42-J40 -> 6.855075101 | K43: bar
C44: Contingency | G44: 0.2 | I44: Differential Head | J44: =J43*10^5/(E15*9.8) -> 152.4623931 | K44: m
C45: Total + Contingency | G45: =(1+G44)*G43 -> 0.08011877809 | I45: Hydraulic Power | J45: =E15*9.8*J44*E14/3600000 -> 4.02164406 | K45: kW
I46: Pump BHP | J46: =J45/E20 -> 8.936986799 | K46: kW
C47: DISCHARGE | I47: Rated Power (calculated) | J47: =IF(J46<22,J46*1.25,IF(AND(J46>22,J46<55),J46*1.15,IF(J46>55,J46*1.1,"ERROR"))) -> 11.1712335 | K47: kW
C48: Target Pressure | E48: 8 | F48: barg | I48: Rated Power (selected) | J48: 15 | K48: kW
C49: Static head | E49: 2 | F49: m | G49: note 2 | I49: NPSHa | J49: =P41 -> 44.72410461 | K49: m
C50: Length | E50: 70 | F50: m | G50: (plot plan) | I50: NPSHr | J50: =J49-1 -> 43.72410461 | K50: m
C51: Pipe size | E51: 3 | F51: in
C52: Schedule | E52: 40 | I52: Shut in Pressure
C53: Fittings | I53: P shut in | J53: =E24+1.3*J43 -> 13.91159763 | K53: barg
E54: Qty | F54: K | G54: DP
C55: Elbow 90 LR | D55: =C55&$E$51 -> Elbow 90 LR3 | E55: 5 | F55: =VLOOKUP(D55,'K-value'!$D$4:$E$146,2,FALSE) -> 0.29 | G55: =E55*F55*$J$15^2/(2*9.8)*$E$15*9.8/10^5 -> 0.00414849662
C56: Elbow 45 LR | D56: Elbow 45 LR3 | F56: =VLOOKUP(D56,'K-value'!$D$4:$E$146,2,FALSE) -> 0.29 | G56: 0
C57: Tee thru | D57: Tee thru3 | F57: =VLOOKUP(D57,'K-value'!$D$4:$E$146,2,FALSE) -> 0.36 | G57: 0
C58: Tee branch | D58: Tee branch3 | E58: 2 | F58: =VLOOKUP(D58,'K-value'!$D$4:$E$146,2,FALSE) -> 1.08 | G58: 0.006179829447
C59: Ball valve | D59: Ball valve3 | E59: 6 | F59: =VLOOKUP(D59,'K-value'!$D$4:$E$146,2,FALSE) -> 0.05 | G59: 0.0008583096455
C60: Butterfly valve | D60: Butterfly valve3 | F60: =VLOOKUP(D60,'K-value'!$D$4:$E$146,2,FALSE) -> 0.81 | G60: 0
C61: Gate valve | D61: Gate valve3 | F61: =VLOOKUP(D61,'K-value'!$D$4:$E$146,2,FALSE) -> 0.14 | G61: 0 | I61: Note:
C62: Globe valve | D62: Globe valve3 | F62: =VLOOKUP(D62,'K-value'!$D$4:$E$146,2,FALSE) -> 6.1 | G62: 0
C63: Check valve | D63: Check valve3 | E63: 3 | F63: =VLOOKUP(D63,'K-value'!$D$4:$E$146,2,FALSE) -> 1.8 | G63: 0.01544957362 | I63: 1. Discharge liquid level is assumed 2 m above grade elevation
C64: Plug valve | D64: Plug valve3 | F64: =VLOOKUP(D64,'K-value'!$D$4:$E$146,2,FALSE) -> 1.62 | G64: 0
C65: Pipe entrance | D65: Pipe entrance3 | F65: =VLOOKUP(D65,'K-value'!$D$4:$E$146,2,FALSE) -> 0.78 | G65: 0
C66: Flow orifice | D66: Flow orifice3 | E66: 1 | G66: 0.25
C67: Total, barg | G67: =SUM(G55:G66) -> 0.2766362093
C68: Contingency | G68: 0.2
C69: Total + contingency, barg | G69: =G67*(1+G68) -> 0.3319634512
C70: Pressure Loss due to Equipment
C71: Coriolis flow meter at LNG dispenser | G71: 0.1
C72: Control valve | G72: 0.3

Sheet Gresik (HP Pump) (hidden)
F1: PUMP SIZING
C5: Project: FEED PROYEK LNG JAWA
C7: Tag No: | E7: GRSK-P-003A/B
C8: Description: | E8: LNG HP Pump
C9: Location: | E9: Gresik | O9: Pipe roughness | P9: 0.05 | Q9: mm
P10: =P9/1000/3.28 -> 1.524390244e-05 | Q10: ft
C12: DATA | I12: RESULTS | O12: Mass flow | P12: =E14*E15/0.45 -> 1098.146296 | Q12: lb/hr
C13: Flow rate (normal) | E13: =0.5*47/24 -> 0.9791666667 | F13: m3/h | I13: Suction Hydraulic | O13: Rho | P13: =E15/16.02 -> 28.639201 | Q13: lb/ft3
C14: Flow rate (rated) | E14: =1.1*E13 -> 1.077083333 | F14: m3/h | I14: Pipe ID | J14: =VLOOKUP(E27,'Pipe size sch 40'!$A$5:$C$27,3,FALSE)*25.4/1000 -> 0.02667 | K14: m
C15: Density | E15: 458.8 | F15: kg/m3 | I15: Velocity | J15: =E14/(PI()/4*J14^2)/3600 -> 0.5355634027 | K15: m/s | O15: Side Calculation (Suction)
C16: Flow temperature | E16: -158.4 | F16: deg C | I16: Velocity acceptance | J16: =IF(E27<=2,0.9,IF(OR(E27>=3,E27<=6),1.2,IF(OR(E27>=8,E27<=18),1.5,1.8))) -> 0.9 | K16: m/s | L16: (max) | O16: f tebakan | P16: 0.02524381393
C17: Viscocity | E17: 0.1434 | F17: cP | I17: Reynold number | J17: =E15*J16*J14/E18 -> 76796.20921 | O17: f left | P17: =1/(P16)^0.5 -> 6.293938788
E18: =E17*10^-3 -> 0.0001434 | F18: Nm2/s | I18: Pipe DP | J18: =P22 -> 0.06331757775 | K18: bar/100m | O18: f right | P18: =-2*LOG(P10/(3.7*J14*0.3048)+2.51/(J17*(P16)^0.5)) -> 6.294389225
C19: Vapor pressure | E19: ='Pump sizing'!E17 -> 1.01 | F19: bara | I19: Pipe DP acceptance | J19: =IF(E27<=6,0.137,0.225) -> 0.137 | K19: bar/100m | O19: f left/f right | P19: =P17/P18 -> 0.9999284383 | Q19: Goal seek
C20: Pump efficiency | E20: 0.45 | I20: Static head | J20: =E15*9.8*E25/10^5 -> 0.1011654 | K20: bar | O20: psi/100 ft | P20: =0.000336*P16*P12^2/(J14*1000/25.4)^5/P13 -> 0.2798383666
I21: Pipe friction loss | J21: =J18*E26/100 -> 0.009497636662 | K21: bar | O21: psi/ft | P21: =P20/100 -> 0.002798383666
C22: SUCTION | I22: Fitting friction loss | J22: =G45 -> 0.0672641411 | K22: bar | O22: bar/100 m | P22: =P21*100/14.5/0.3048 -> 0.06331757775
C23: Pressure at Vessel (min) | E23: 2 | F23: barg | I23: Suction Pressure | J23: =E23+J20-SUM(J21:J22) -> 2.024403622 | K23: barg
C24: Pressure at Vessel (max) | E24: 5 | F24: barg | I24: Result | J24: =IF(AND(J15<J16,J18<J19),"OK","NOT OK") -> OK
C25: Static head | E25: 2.25 | F25: m | G25: (vertical tank) | O25: Side Calculation (Discharge) | T25: Suction | V25: Discharge
C26: Length | E26: 15 | F26: m | G26: (plot plan) | I26: Discharge Hydraulic | O26: f tebakan | P26: 0.02514009188 | W26: < 49 barg | X26: > 49 barg
C27: Pipe size | E27: 1 | F27: in | I27: Pipe ID | J27: =VLOOKUP(E51,'Pipe size sch 40'!$A$5:$C$27,3,FALSE)*25.4/1000 -> 0.020828 | K27: m | O27: f left | P27: =1/(P26)^0.5 -> 6.306909072 | T27: Velocity | U27: Pressure | V27: Velocity | W27: Pressure | X27: Pressure
C28: Schedule | E28: 40 | I28: Velocity | J28: =E14/(PI()/4*J14^2)/3600 -> 0.5355634027 | K28: m/s | O28: f right | P28: =-2*LOG(P10/(3.7*J27*0.3048)+2.51/(J30*(P26)^0.5)) -> 6.307608663 | S28: 0.5 | T28: 0.9 | U28: 0.137 | V28: 4.5 | W28: 0.343 | X28: 0.686
C29: Fittings | I29: Velocity acceptance | J29: =IF(E49<=18,4.5,6) -> 4.5 | K29: m/s | L29: (max) | O29: f left/f right | P29: =P27/P28 -> 0.9998890877 | Q29: Goal seek | S29: 0.75 | T29: 0.9 | U29: 0.137 | V29: 4.5 | W29: 0.343 | X29: 0.686
E30: Qty | F30: K | G30: DP | I30: Reynold number | J30: =E15*J29*J27/E18 -> 299870.9121 | O30: psi/100 ft | P30: =0.000336*P26*P12^2/(J27*1000/25.4)^5/P13 -> 0.9593926367 | S30: 1 | T30: 0.9 | U30: 0.137 | V30: 4.5 | W30: 0.343 | X30: 0.686
C31: Elbow 90 LR | D31: =C31&$E$27 -> Elbow 90 LR1 | E31: 6 | F31: =VLOOKUP(D31,'K-value'!$D$4:$E$146,2,FALSE) -> 0.69 | G31: =E31*F31*$J$15^2/(2*9.8)*$E$15*9.8/10^5 -> 0.002724052912 | I31: Pipe DP | J31: =P32 -> 0.2170768026 | K31: bar/100m | O31: psi/ft | P31: =P30/100 -> 0.009593926367 | S31: 1.5 | T31: 0.9 | U31: 0.137 | V31: 4.5 | W31: 0.343 | X31: 0.686
C32: Elbow 45 LR | D32: =C32&$E$27 -> Elbow 45 LR1 | F32: =VLOOKUP(D32,'K-value'!$D$4:$E$146,2,FALSE) -> 0.37 | G32: 0 | I32: Pipe DP acceptance | J32: =IF(E48<=49,0.343,0.686) -> 0.686 | K32: bar/100m | O32: bar/100 m | P32: =P31*100/14.5/0.3048 -> 0.2170768026 | S32: 2 | T32: 0.9 | U32: 0.137 | V32: 4.5 | W32: 0.343 | X32: 0.686
C33: Tee thru | D33: Tee thru1 | F33: =VLOOKUP(D33,'K-value'!$D$4:$E$146,2,FALSE) -> 0.46 | G33: 0 | I33: Static head | J33: =E15*9.8*E49/10^5 -> 0.0899248 | K33: bar | L33: note 1 | S33: 3 | T33: 1.2 | U33: 0.137 | V33: 4.5 | W33: 0.343 | X33: 0.686
C34: Tee branch | D34: Tee branch1 | E34: 3 | F34: =VLOOKUP(D34,'K-value'!$D$4:$E$146,2,FALSE) -> 1.38 | G34: 0.002724052912 | I34: Line losses | J34: =J31*E50/100 -> 0.1519537618 | K34: bar | S34: 4 | T34: 1.2 | U34: 0.137 | V34: 4.5 | W34: 0.343 | X34: 0.686
C35: Ball valve | D35: Ball valve1 | E35: 2 | F35: =VLOOKUP(D35,'K-value'!$D$4:$E$146,2,FALSE) -> 0.07 | G35: 9.211773133e-05 | I35: Fitting & eqp losses | J35: =G69+G71+G72+G73 -> 2.711867396 | K35: bar | O35: NPSHA calculation | S35: 6 | T35: 1.2 | U35: 0.137 | V35: 4.5 | W35: 0.343 | X35: 0.686
C36: Butterfly valve | D36: Butterfly valve1 | F36: =VLOOKUP(D36,'K-value'!$D$4:$E$146,2,FALSE) -> 0.86 | G36: 0 | I36: Discharge Pressure | J36: =E48+J33+J34+J35 -> 252.953746 | K36: barg | O36: HA | P36: =(E23+1.01)*100000/(E15*9.81) -> 66.8765836 | Q36: m | S36: 8 | T36: 1.5 | U36: 0.225 | V36: 4.5 | W36: 0.343 | X36: 0.686
C37: Gate valve | D37: Gate valve1 | F37: =VLOOKUP(D37,'K-value'!$D$4:$E$146,2,FALSE) -> 0.18 | G37: 0 | I37: Result | J37: =IF(AND(J28<J29,J31<J32),"OK","NOT OK") -> OK | O37: HZ | P37: =E25 -> 2.25 | Q37: m | S37: 10 | T37: 1.5 | U37: 0.225 | V37: 4.5 | W37: 0.343 | X37: 0.686
C38: Globe valve | D38: Globe valve1 | F38: =VLOOKUP(D38,'K-value'!$D$4:$E$146,2,FALSE) -> 7.8 | G38: 0 | O38: HF | P38: =SUM(J21:J22)*-1*10^5/(E15*9.8) -> -1.707243781 | Q38: m | S38: 12 | T38: 1.5 | U38: 0.225 | V38: 4.5 | W38: 0.343 | X38: 0.686
C39: Check valve | D39: Check valve1 | F39: =VLOOKUP(D39,'K-value'!$D$4:$E$146,2,FALSE) -> 2.3 | G39: 0 | I39: Pump Data | O39: HV | P39: 0 | S39: 16 | T39: 1.5 | U39: 0.225 | V39: 4.5 | W39: 0.343 | X39: 0.686
C40: Plug valve | D40: Plug valve1 | F40: =VLOOKUP(D40,'K-value'!$D$4:$E$146,2,FALSE) -> 2.07 | G40: 0 | I40: Suction Pressure | J40: =J23 -> 2.024403622 | K40: barg | O40: HVP | P40: =E19*10^5/(E15*9.8)*-1 -> -22.46321371 | Q40: m | S40: 18 | T40: 1.5 | U40: 0.225 | V40: 4.5 | W40: 0.343 | X40: 0.686
C41: Pipe entrance | D41: Pipe entrance1 | E41: 1 | F41: =VLOOKUP(D41,'K-value'!$D$4:$E$146,2,FALSE) -> 0.78 | G41: 0.0005132273603 | I41: Discharge Pressure | J41: =J36 -> 252.953746 | K41: barg | O41: NPSHA | P41: =SUM(P36:P40) -> 44.95612611 | Q41: m | S41: 20 | T41: 1.8 | U41: 0.225 | V41: 6 | W41: 0.343 | X41: 0.686
C42: Suction strainer | D42: Suction strainer1 | E42: 1 | G42: =0.05*E42 -> 0.05 | I42: Selected disc. Pressure | J42: =J41 -> 252.953746 | K42: barg
C43: Total, barg | G43: =SUM(G31:G42) -> 0.05605345092 | I43: Differential Pressure | J43: =J42-J40 -> 250.9293423 | K43: bar
C44: Contingency | G44: 0.2 | I44: Differential Head | J44: =J43*10^5/(E15*9.8) -> 5580.870735 | K44: m
C45: Total + Contingency | G45: =(1+G44)*G43 -> 0.0672641411 | I45: Hydraulic Power | J45: =E15*9.8*J44*E14/3600000 -> 7.507550346 | K45: kW
I46: Pump BHP | J46: =J45/E20 -> 16.68344521 | K46: kW
C47: DISCHARGE | I47: Rated Power (calculated) | J47: =IF(J46<22,J46*1.25,IF(AND(J46>22,J46<55),J46*1.15,IF(J46>55,J46*1.1,"ERROR"))) -> 20.85430652 | K47: kW
C48: Target Pressure | E48: 250 | F48: barg | I48: Rated Power (selected) | J48: 22 | K48: kW
C49: Static head | E49: 2 | F49: m | G49: note 2 | I49: NPSHa | J49: =P41 -> 44.95612611 | K49: m
C50: Length | E50: 70 | F50: m | G50: (plot plan) | I50: NPSHr | J50: =J49-1 -> 43.95612611 | K50: m
C51: Pipe size | E51: 0.75 | F51: in
C52: Schedule | E52: 40 | I52: Shut in Pressure
C53: Fittings | I53: P shut in | J53: - | K53: barg
E54: Qty | F54: K | G54: DP
C55: Elbow 90 LR | D55: =C55&$E$51 -> Elbow 90 LR0.75 | E55: 5 | F55: =VLOOKUP(D55,'K-value'!$D$4:$E$146,2,FALSE) -> 0.81 | G55: =E55*F55*$J$15^2/(2*9.8)*$E$15*9.8/10^5 -> 0.002664834371
C56: Elbow 45 LR | D56: =C56&$E$51 -> Elbow 45 LR0.75 | F56: =VLOOKUP(D56,'K-value'!$D$4:$E$146,2,FALSE) -> 0.4 | G56: 0
C57: Tee thru | D57: Tee thru0.75 | F57: =VLOOKUP(D57,'K-value'!$D$4:$E$146,2,FALSE) -> 0.5 | G57: 0
C58: Tee branch | D58: Tee branch0.75 | E58: 2 | F58: =VLOOKUP(D58,'K-value'!$D$4:$E$146,2,FALSE) -> 1.5 | G58: 0.001973951386
C59: Ball valve | D59: Ball valve0.75 | E59: 6 | F59: =VLOOKUP(D59,'K-value'!$D$4:$E$146,2,FALSE) -> 0.08 | G59: 0.0003158322217
C60: Butterfly valve | D60: Butterfly valve0.75 | F60: =VLOOKUP(D60,'K-value'!$D$4:$E$146,2,FALSE) -> 0.86 | G60: 0
C61: Gate valve | D61: Gate valve0.75 | F61: =VLOOKUP(D61,'K-value'!$D$4:$E$146,2,FALSE) -> 0.2 | G61: 0 | I61: Note:
C62: Globe valve | D62: Globe valve0.75 | F62: =VLOOKUP(D62,'K-value'!$D$4:$E$146,2,FALSE) -> 8.5 | G62: 0
C63: Check valve | D63: Check valve0.75 | E63: 3 | F63: =VLOOKUP(D63,'K-value'!$D$4:$E$146,2,FALSE) -> 2.5 | G63: 0.004934878464 | I63: 1. Discharge liquid level is assumed 2 m above grade elevation
C64: Plug valve | D64: Plug valve0.75 | F64: =VLOOKUP(D64,'K-value'!$D$4:$E$146,2,FALSE) -> 2.25 | G64: 0
C65: Pipe entrance | D65: Pipe entrance0.75 | F65: =VLOOKUP(D65,'K-value'!$D$4:$E$146,2,FALSE) -> 0.78 | G65: 0
C66: Flow orifice | D66: Flow orifice0.75 | E66: 1 | G66: 0.25
C67: Total, barg | G67: =SUM(G55:G66) -> 0.2598894964
C68: Contingency | G68: 0.2
C69: Total + contingency, barg | G69: =G67*(1+G68) -> 0.3118673957
C70: Pressure Loss due to Equipment
C71: AAV | G71: 2
C72: Control valve | G72: 0.3
C73: Coriolis flow meter at CNG dispenser | G73: 0.1

Sheet Banyuwangi (LP Pump) (hidden)
F1: PUMP SIZING
C5: Project: FEED PROYEK LNG JAWA
C7: Tag No: | E7: BYWG-P-002A/B
C8: Description: | E8: LNG LP Pump
C9: Location: | E9: Banyuwangi | O9: Pipe roughness | P9: 0.05 | Q9: mm
P10: =P9/1000/3.28 -> 1.524390244e-05 | Q10: ft
C12: DATA | I12: RESULTS | O12: Mass flow | P12: =E13*E15/0.45 -> 19575.46667 | Q12: lb/hr
C13: Flow rate (normal) | E13: =9.6*2 -> 19.2 | F13: m3/h | I13: Suction Hydraulic | O13: Rho | P13: =E15/16.02 -> 28.639201 | Q13: lb/ft3
C14: Flow rate (rated) | E14: =1.1*E13 -> 21.12 | F14: m3/h | I14: Pipe ID | J14: =VLOOKUP(E27,'Pipe size sch 40'!$A$5:$C$27,3,FALSE)*25.4/1000 -> 0.077978 | K14: m
C15: Density | E15: 458.8 | F15: kg/m3 | I15: Velocity | J15: =E13/(PI()/4*J14^2)/3600 -> 1.116772375 | K15: m/s | O15: Side Calculation (Suction)
C16: Flow temperature | E16: -158.4 | F16: deg C | I16: Velocity acceptance | J16: =IF(E27<=2,0.9,IF(OR(E27>=3,E27<=6),1.2,IF(OR(E27>=8,E27<=18),1.5,1.8))) -> 1.2 | K16: m/s | L16: (max) | O16: f tebakan | P16: 0.01896765269
C17: Viscocity | E17: 0.1434 | F17: cP | I17: Reynold number | J17: =E15*J16*J14/E18 -> 299383.3172 | O17: f left | P17: =1/(P16)^0.5 -> 7.260945978
E18: =E17*10^-3 -> 0.0001434 | F18: Nm2/s | I18: Pipe DP | J18: =P22 -> 0.07075243234 | K18: bar/100m | O18: f right | P18: =-2*LOG(P10/(3.7*J14*0.3048)+2.51/(J17*(P16)^0.5)) -> 7.260757689
C19: Vapor pressure | E19: ='Pump sizing'!E17 -> 1.01 | F19: bara | I19: Pipe DP acceptance | J19: =IF(E27<=6,0.137,0.225) -> 0.137 | K19: bar/100m | O19: f left/f right | P19: =P17/P18 -> 1.000025932 | Q19: Goal seek
C20: Pump efficiency | E20: 0.45 | I20: Static head | J20: =E15*9.8*E25/10^5 -> 0.1011654 | K20: bar | O20: psi/100 ft | P20: =0.000336*P16*P12^2/(J14*1000/25.4)^5/P13 -> 0.31269745
I21: Pipe friction loss | J21: =J18*E26/100 -> 0.007075243234 | K21: bar | O21: psi/ft | P21: =P20/100 -> 0.0031269745
C22: SUCTION | I22: Fitting friction loss | J22: =G45 -> 0.08011877809 | K22: bar | O22: bar/100 m | P22: =P21*100/14.5/0.3048 -> 0.07075243234
C23: Pressure at Vessel (min) | E23: 2 | F23: barg | I23: Suction Pressure | J23: =E23+J20-SUM(J21:J22) -> 2.013971379 | K23: barg
C24: Pressure at Vessel (max) | E24: 5 | F24: barg | I24: Result | J24: =IF(AND(J15<J16,J18<J19),"OK","NOT OK") -> OK
C25: Static head | E25: 2.25 | F25: m | G25: (vertical tank) | O25: Side Calculation (Discharge) | T25: Suction | V25: Discharge
C26: Length | E26: 10 | F26: m | G26: (plot plan) | I26: Discharge Hydraulic | O26: f tebakan | P26: 0.01806057864 | W26: < 49 barg | X26: > 49 barg
C27: Pipe size | E27: 3 | F27: in | I27: Pipe ID | J27: =VLOOKUP(E51,'Pipe size sch 40'!$A$5:$C$27,3,FALSE)*25.4/1000 -> 0.077978 | K27: m | O27: f left | P27: =1/(P26)^0.5 -> 7.441049092 | T27: Velocity | U27: Pressure | V27: Velocity | W27: Pressure | X27: Pressure
C28: Schedule | E28: 40 | I28: Velocity | J28: =E13/(PI()/4*J14^2)/3600 -> 1.116772375 | K28: m/s | O28: f right | P28: =-2*LOG(P10/(3.7*J27*0.3048)+2.51/(J30*(P26)^0.5)) -> 7.442586826 | S28: 0.5 | T28: 0.9 | U28: 0.137 | V28: 4.5 | W28: 0.343 | X28: 0.686
C29: Fittings | I29: Velocity acceptance | J29: =IF(E49<=18,4.5,6) -> 4.5 | K29: m/s | L29: (max) | O29: f left/f right | P29: =P27/P28 -> 0.999793387 | Q29: Goal seek | S29: 0.75 | T29: 0.9 | U29: 0.137 | V29: 4.5 | W29: 0.343 | X29: 0.686
E30: Qty | F30: K | G30: DP | I30: Reynold number | J30: =E15*J29*J27/E18 -> 1122687.439 | O30: psi/100 ft | P30: =0.000336*P26*P12^2/(J27*1000/25.4)^5/P13 -> 0.2977435837 | S30: 1 | T30: 0.9 | U30: 0.137 | V30: 4.5 | W30: 0.343 | X30: 0.686
C31: Elbow 90 LR | D31: =C31&$E$27 -> Elbow 90 LR3 | E31: 6 | F31: =VLOOKUP(D31,'K-value'!$D$4:$E$146,2,FALSE) -> 0.29 | G31: =E31*F31*$J$15^2/(2*9.8)*$E$15*9.8/10^5 -> 0.004978195944 | I31: Pipe DP | J31: =P32 -> 0.06736889847 | K31: bar/100m | O31: psi/ft | P31: =P30/100 -> 0.002977435837 | S31: 1.5 | T31: 0.9 | U31: 0.137 | V31: 4.5 | W31: 0.343 | X31: 0.686
C32: Elbow 45 LR | D32: Elbow 45 LR3 | F32: =VLOOKUP(D32,'K-value'!$D$4:$E$146,2,FALSE) -> 0.29 | G32: 0 | I32: Pipe DP acceptance | J32: =IF(E48<=49,0.343,0.686) -> 0.343 | K32: bar/100m | O32: bar/100 m | P32: =P31*100/14.5/0.3048 -> 0.06736889847 | S32: 2 | T32: 0.9 | U32: 0.137 | V32: 4.5 | W32: 0.343 | X32: 0.686
C33: Tee thru | D33: Tee thru3 | F33: =VLOOKUP(D33,'K-value'!$D$4:$E$146,2,FALSE) -> 0.36 | G33: 0 | I33: Static head | J33: =E15*9.8*E49/10^5 -> 0.0899248 | K33: bar | L33: note 1 | S33: 3 | T33: 1.2 | U33: 0.137 | V33: 4.5 | W33: 0.343 | X33: 0.686
C34: Tee branch | D34: Tee branch3 | E34: 3 | F34: =VLOOKUP(D34,'K-value'!$D$4:$E$146,2,FALSE) -> 1.08 | G34: 0.009269744171 | I34: Line losses | J34: =J31*E50/100 -> 0.04378978401 | K34: bar | S34: 4 | T34: 1.2 | U34: 0.137 | V34: 4.5 | W34: 0.343 | X34: 0.686
C35: Ball valve | D35: Ball valve3 | E35: 2 | F35: =VLOOKUP(D35,'K-value'!$D$4:$E$146,2,FALSE) -> 0.05 | G35: 0.0002861032152 | I35: Fitting & eqp losses | J35: =G69+G71+G72 -> 0.7319634512 | K35: bar | O35: NPSHA calculation | S35: 6 | T35: 1.2 | U35: 0.137 | V35: 4.5 | W35: 0.343 | X35: 0.686
C36: Butterfly valve | D36: Butterfly valve3 | F36: =VLOOKUP(D36,'K-value'!$D$4:$E$146,2,FALSE) -> 0.81 | G36: 0 | I36: Discharge Pressure | J36: =E48+J33+J34+J35 -> 8.865678035 | K36: barg | O36: HA | P36: =(E23+1.01)*100000/(E15*9.81) -> 66.8765836 | Q36: m | S36: 8 | T36: 1.5 | U36: 0.225 | V36: 4.5 | W36: 0.343 | X36: 0.686
C37: Gate valve | D37: Gate valve3 | F37: =VLOOKUP(D37,'K-value'!$D$4:$E$146,2,FALSE) -> 0.14 | G37: 0 | I37: Result | J37: =IF(AND(J28<J29,J31<J32),"OK","NOT OK") -> OK | O37: HZ | P37: =E25 -> 2.25 | Q37: m | S37: 10 | T37: 1.5 | U37: 0.225 | V37: 4.5 | W37: 0.343 | X37: 0.686
C38: Globe valve | D38: Globe valve3 | F38: =VLOOKUP(D38,'K-value'!$D$4:$E$146,2,FALSE) -> 6.1 | G38: 0 | O38: HF | P38: =SUM(J21:J22)*-1*10^5/(E15*9.8) -> -1.939265282 | Q38: m | S38: 12 | T38: 1.5 | U38: 0.225 | V38: 4.5 | W38: 0.343 | X38: 0.686
C39: Check valve | D39: Check valve3 | F39: =VLOOKUP(D39,'K-value'!$D$4:$E$146,2,FALSE) -> 1.8 | G39: 0 | I39: Pump Data | O39: HV | P39: 0 | S39: 16 | T39: 1.5 | U39: 0.225 | V39: 4.5 | W39: 0.343 | X39: 0.686
C40: Plug valve | D40: Plug valve3 | F40: =VLOOKUP(D40,'K-value'!$D$4:$E$146,2,FALSE) -> 1.62 | G40: 0 | I40: Suction Pressure | J40: =J23 -> 2.013971379 | K40: barg | O40: HVP | P40: =E19*10^5/(E15*9.8)*-1 -> -22.46321371 | Q40: m | S40: 18 | T40: 1.5 | U40: 0.225 | V40: 4.5 | W40: 0.343 | X40: 0.686
C41: Pipe entrance | D41: Pipe entrance3 | E41: 1 | F41: =VLOOKUP(D41,'K-value'!$D$4:$E$146,2,FALSE) -> 0.78 | G41: 0.002231605078 | I41: Discharge Pressure | J41: =J36 -> 8.865678035 | K41: barg | O41: NPSHA | P41: =SUM(P36:P40) -> 44.72410461 | Q41: m | S41: 20 | T41: 1.8 | U41: 0.225 | V41: 6 | W41: 0.343 | X41: 0.686
C42: Suction strainer | D42: Suction strainer3 | E42: 1 | G42: =0.05*E42 -> 0.05 | I42: Selected disc. Pressure | J42: =J41 -> 8.865678035 | K42: barg
C43: Total, barg | G43: =SUM(G31:G42) -> 0.06676564841 | I43: Differential Pressure | J43: =J42-J40 -> 6.851706657 | K43: bar
C44: Contingency | G44: 0.2 | I44: Differential Head | J44: =J43*10^5/(E15*9.8) -> 152.3874761 | K44: m
C45: Total + Contingency | G45: =(1+G44)*G43 -> 0.08011877809 | I45: Hydraulic Power | J45: =E15*9.8*J44*E14/3600000 -> 4.019667905 | K45: kW
I46: Pump BHP | J46: =J45/E20 -> 8.932595345 | K46: kW
C47: DISCHARGE | I47: Rated Power (calculated) | J47: =IF(J46<22,J46*1.25,IF(AND(J46>22,J46<55),J46*1.15,IF(J46>55,J46*1.1,"ERROR"))) -> 11.16574418 | K47: kW
C48: Target Pressure | E48: 8 | F48: barg | I48: Rated Power (selected) | J48: 15 | K48: kW
C49: Static head | E49: 2 | F49: m | G49: note 2 | I49: NPSHa | J49: =P41 -> 44.72410461 | K49: m
C50: Length | E50: 65 | F50: m | G50: (plot plan) | I50: NPSHr | J50: =J49-1 -> 43.72410461 | K50: m
C51: Pipe size | E51: 3 | F51: in
C52: Schedule | E52: 40 | I52: Shut in Pressure
C53: Fittings | I53: P shut in | J53: =E24+1.3*J43 -> 13.90721865 | K53: barg
E54: Qty | F54: K | G54: DP
C55: Elbow 90 LR | D55: =C55&$E$51 -> Elbow 90 LR3 | E55: 5 | F55: =VLOOKUP(D55,'K-value'!$D$4:$E$146,2,FALSE) -> 0.29 | G55: =E55*F55*$J$15^2/(2*9.8)*$E$15*9.8/10^5 -> 0.00414849662
C56: Elbow 45 LR | D56: Elbow 45 LR3 | F56: =VLOOKUP(D56,'K-value'!$D$4:$E$146,2,FALSE) -> 0.29 | G56: 0
C57: Tee thru | D57: Tee thru3 | F57: =VLOOKUP(D57,'K-value'!$D$4:$E$146,2,FALSE) -> 0.36 | G57: 0
C58: Tee branch | D58: Tee branch3 | E58: 2 | F58: =VLOOKUP(D58,'K-value'!$D$4:$E$146,2,FALSE) -> 1.08 | G58: 0.006179829447
C59: Ball valve | D59: Ball valve3 | E59: 6 | F59: =VLOOKUP(D59,'K-value'!$D$4:$E$146,2,FALSE) -> 0.05 | G59: 0.0008583096455
C60: Butterfly valve | D60: Butterfly valve3 | F60: =VLOOKUP(D60,'K-value'!$D$4:$E$146,2,FALSE) -> 0.81 | G60: 0
C61: Gate valve | D61: Gate valve3 | F61: =VLOOKUP(D61,'K-value'!$D$4:$E$146,2,FALSE) -> 0.14 | G61: 0 | I61: Note:
C62: Globe valve | D62: Globe valve3 | F62: =VLOOKUP(D62,'K-value'!$D$4:$E$146,2,FALSE) -> 6.1 | G62: 0
C63: Check valve | D63: Check valve3 | E63: 3 | F63: =VLOOKUP(D63,'K-value'!$D$4:$E$146,2,FALSE) -> 1.8 | G63: 0.01544957362 | I63: 1. Discharge liquid level is assumed 2 m above grade elevation
C64: Plug valve | D64: Plug valve3 | F64: =VLOOKUP(D64,'K-value'!$D$4:$E$146,2,FALSE) -> 1.62 | G64: 0
C65: Pipe entrance | D65: Pipe entrance3 | F65: =VLOOKUP(D65,'K-value'!$D$4:$E$146,2,FALSE) -> 0.78 | G65: 0
C66: Flow orifice | D66: Flow orifice3 | E66: 1 | G66: 0.25
C67: Total, barg | G67: =SUM(G55:G66) -> 0.2766362093
C68: Contingency | G68: 0.2
C69: Total + contingency, barg | G69: =G67*(1+G68) -> 0.3319634512
C70: Pressure Loss due to Equipment
C71: Coriolis flow meter at LNG dispenser | G71: 0.1
C72: Control valve | G72: 0.3

Sheet Semarang (med feed pump) 0.5 MM (hidden)
F1: PUMP SIZING
C5: Project: FEED PROYEK LNG JAWA
C7: Tag No: | E7: SMRG-G-003A/B
C8: Description: | E8: Medium Pressure Pump
C9: Location: | E9: Semarang | O9: Pipe roughness | P9: 0.05 | Q9: mm
P10: =P9/1000/3.28 -> 1.524390244e-05 | Q10: ft
C12: DATA | I12: RESULTS | O12: Mass flow | P12: =E14*E15/0.45 -> 1098.146296 | Q12: lb/hr
C13: Flow rate (normal) | E13: =0.5*47/24 -> 0.9791666667 | F13: m3/h | H13: =0.6*E13 -> 0.5875 | I13: Suction Hydraulic | O13: Rho | P13: =E15/16.02 -> 28.639201 | Q13: lb/ft3
C14: Flow rate (rated) | E14: =1.1*E13 -> 1.077083333 | F14: m3/h | I14: Pipe ID | J14: =VLOOKUP(E27,'Pipe size sch 40'!$A$5:$C$27,3,FALSE)*25.4/1000 -> 0.02667 | K14: m
C15: Density | E15: 458.8 | F15: kg/m3 | I15: Velocity | J15: =E14/(PI()/4*J14^2)/3600 -> 0.5355634027 | K15: m/s | O15: Side Calculation (Suction)
C16: Flow temperature | E16: -158.4 | F16: deg C | I16: Velocity acceptance | J16: =IF(E27<=2,0.9,IF(OR(E27>=3,E27<=6),1.2,IF(OR(E27>=8,E27<=18),1.5,1.8))) -> 0.9 | K16: m/s | L16: (max) | O16: f tebakan | P16: 0.0252436265
C17: Viscocity | E17: 0.1434 | F17: cP | I17: Reynold number | J17: =E15*J16*J14/E18 -> 76796.20921 | O17: f left | P17: =1/(P16)^0.5 -> 6.293962153
E18: =E17*10^-3 -> 0.0001434 | F18: Nm2/s | I18: Pipe DP | J18: =P22 -> 0.06331710764 | K18: bar/100m | O18: f right | P18: =-2*LOG(P10/(3.7*J14*0.3048)+2.51/(J17*(P16)^0.5)) -> 6.294388294
C19: Vapor pressure | E19: ='Pump sizing'!E17 -> 1.01 | F19: bara | I19: Pipe DP acceptance | J19: =IF(E27<=6,0.137,0.225) -> 0.137 | K19: bar/100m | O19: f left/f right | P19: =P17/P18 -> 0.9999322983 | Q19: Goal seek
C20: Pump efficiency | E20: 0.45 | I20: Static head | J20: =E15*9.8*E25/10^5 -> 0.0449624 | K20: bar | O20: psi/100 ft | P20: =0.000336*P16*P12^2/(J14*1000/25.4)^5/P13 -> 0.2798362889
I21: Pipe friction loss | J21: =J18*E26/100 -> 0.01266342153 | K21: bar | O21: psi/ft | P21: =P20/100 -> 0.002798362889
C22: SUCTION | I22: Fitting friction loss | J22: =G45 -> 0.0672641411 | K22: bar | O22: bar/100 m | P22: =P21*100/14.5/0.3048 -> 0.06331710764
C23: Pressure at Vessel (min) | E23: 2 | F23: barg | I23: Suction Pressure | J23: =E23+J20-SUM(J21:J22) -> 1.965034837 | K23: barg
C24: Pressure at Vessel (max) | E24: 5 | F24: barg | I24: Result | J24: =IF(AND(J15<J16,J18<J19),"OK","NOT OK") -> OK
C25: Static head | E25: 1 | F25: m | G25: (vertical tank) | O25: Side Calculation (Discharge) | T25: Suction | V25: Discharge
C26: Length | E26: 20 | F26: m | G26: (plot plan) | I26: Discharge Hydraulic | O26: f tebakan | P26: 0.02508713445 | W26: < 49 barg | X26: > 49 barg
C27: Pipe size | E27: 1 | F27: in | I27: Pipe ID | J27: =VLOOKUP(E51,'Pipe size sch 40'!$A$5:$C$27,3,FALSE)*25.4/1000 -> 0.020828 | K27: m | O27: f left | P27: =1/(P26)^0.5 -> 6.313562315 | T27: Velocity | U27: Pressure | V27: Velocity | W27: Pressure | X27: Pressure
C28: Schedule | E28: 40 | I28: Velocity | J28: =E14/(PI()/4*J14^2)/3600 -> 0.5355634027 | K28: m/s | O28: f right | P28: =-2*LOG(P10/(3.7*J27*0.3048)+2.51/(J30*(P26)^0.5)) -> 6.307539738 | S28: 0.5 | T28: 0.9 | U28: 0.137 | V28: 4.5 | W28: 0.343 | X28: 0.686
C29: Fittings | I29: Velocity acceptance | J29: =IF(E49<=18,4.5,6) -> 4.5 | K29: m/s | L29: (max) | O29: f left/f right | P29: =P27/P28 -> 1.000954822 | Q29: Goal seek | S29: 0.75 | T29: 0.9 | U29: 0.137 | V29: 4.5 | W29: 0.343 | X29: 0.686
E30: Qty | F30: K | G30: DP | I30: Reynold number | J30: =E15*J29*J27/E18 -> 299870.9121 | O30: psi/100 ft | P30: =0.000336*P26*P12^2/(J27*1000/25.4)^5/P13 -> 0.9573716828 | S30: 1 | T30: 0.9 | U30: 0.137 | V30: 4.5 | W30: 0.343 | X30: 0.686
C31: Elbow 90 LR | D31: =C31&$E$27 -> Elbow 90 LR1 | E31: 6 | F31: =VLOOKUP(D31,'K-value'!$D$4:$E$146,2,FALSE) -> 0.69 | G31: =E31*F31*$J$15^2/(2*9.8)*$E$15*9.8/10^5 -> 0.002724052912 | I31: Pipe DP | J31: =P32 -> 0.2166195318 | K31: bar/100m | O31: psi/ft | P31: =P30/100 -> 0.009573716828 | S31: 1.5 | T31: 0.9 | U31: 0.137 | V31: 4.5 | W31: 0.343 | X31: 0.686
C32: Elbow 45 LR | D32: Elbow 45 LR1 | F32: =VLOOKUP(D32,'K-value'!$D$4:$E$146,2,FALSE) -> 0.37 | G32: 0 | I32: Pipe DP acceptance | J32: =IF(E48<=49,0.343,0.686) -> 0.343 | K32: bar/100m | O32: bar/100 m | P32: =P31*100/14.5/0.3048 -> 0.2166195318 | S32: 2 | T32: 0.9 | U32: 0.137 | V32: 4.5 | W32: 0.343 | X32: 0.686
C33: Tee thru | D33: Tee thru1 | F33: =VLOOKUP(D33,'K-value'!$D$4:$E$146,2,FALSE) -> 0.46 | G33: 0 | I33: Static head | J33: =E15*9.8*E49/10^5 -> 0.0899248 | K33: bar | L33: note 1 | S33: 3 | T33: 1.2 | U33: 0.137 | V33: 4.5 | W33: 0.343 | X33: 0.686
C34: Tee branch | D34: Tee branch1 | E34: 3 | F34: =VLOOKUP(D34,'K-value'!$D$4:$E$146,2,FALSE) -> 1.38 | G34: 0.002724052912 | I34: Line losses | J34: =J31*E50/100 -> 0.1516336723 | K34: bar | S34: 4 | T34: 1.2 | U34: 0.137 | V34: 4.5 | W34: 0.343 | X34: 0.686
C35: Ball valve | D35: Ball valve1 | E35: 2 | F35: =VLOOKUP(D35,'K-value'!$D$4:$E$146,2,FALSE) -> 0.07 | G35: 9.211773133e-05 | I35: Fitting & eqp losses | J35: =G69+G71+G72 -> 0.8118673957 | K35: bar | O35: NPSHA calculation | S35: 6 | T35: 1.2 | U35: 0.137 | V35: 4.5 | W35: 0.343 | X35: 0.686
C36: Butterfly valve | D36: Butterfly valve1 | F36: =VLOOKUP(D36,'K-value'!$D$4:$E$146,2,FALSE) -> 0.86 | G36: 0 | I36: Discharge Pressure | J36: =E48+J33+J34+J35 -> 16.05342587 | K36: barg | O36: HA | P36: =(E23+1.01)*100000/(E15*9.81) -> 66.8765836 | Q36: m | S36: 8 | T36: 1.5 | U36: 0.225 | V36: 4.5 | W36: 0.343 | X36: 0.686
C37: Gate valve | D37: Gate valve1 | F37: =VLOOKUP(D37,'K-value'!$D$4:$E$146,2,FALSE) -> 0.18 | G37: 0 | I37: Result | J37: =IF(AND(J28<J29,J31<J32),"OK","NOT OK") -> OK | O37: HZ | P37: =E25 -> 1 | Q37: m | S37: 10 | T37: 1.5 | U37: 0.225 | V37: 4.5 | W37: 0.343 | X37: 0.686
C38: Globe valve | D38: Globe valve1 | F38: =VLOOKUP(D38,'K-value'!$D$4:$E$146,2,FALSE) -> 7.8 | G38: 0 | O38: HF | P38: =SUM(J21:J22)*-1*10^5/(E15*9.8) -> -1.777653387 | Q38: m | S38: 12 | T38: 1.5 | U38: 0.225 | V38: 4.5 | W38: 0.343 | X38: 0.686
C39: Check valve | D39: Check valve1 | F39: =VLOOKUP(D39,'K-value'!$D$4:$E$146,2,FALSE) -> 2.3 | G39: 0 | I39: Pump Data | O39: HV | P39: 0 | S39: 16 | T39: 1.5 | U39: 0.225 | V39: 4.5 | W39: 0.343 | X39: 0.686
C40: Plug valve | D40: Plug valve1 | F40: =VLOOKUP(D40,'K-value'!$D$4:$E$146,2,FALSE) -> 2.07 | G40: 0 | I40: Suction Pressure | J40: =J23 -> 1.965034837 | K40: barg | O40: HVP | P40: =E19*10^5/(E15*9.8)*-1 -> -22.46321371 | Q40: m | S40: 18 | T40: 1.5 | U40: 0.225 | V40: 4.5 | W40: 0.343 | X40: 0.686
C41: Pipe entrance | D41: Pipe entrance1 | E41: 1 | F41: =VLOOKUP(D41,'K-value'!$D$4:$E$146,2,FALSE) -> 0.78 | G41: 0.0005132273603 | I41: Discharge Pressure | J41: =J36 -> 16.05342587 | K41: barg | O41: NPSHA | P41: =SUM(P36:P40) -> 43.6357165 | Q41: m | S41: 20 | T41: 1.8 | U41: 0.225 | V41: 6 | W41: 0.343 | X41: 0.686
C42: Suction strainer | D42: Suction strainer1 | E42: 1 | G42: =0.05*E42 -> 0.05 | I42: Selected disc. Pressure | J42: 17 | K42: barg
C43: Total, barg | G43: =SUM(G31:G42) -> 0.05605345092 | I43: Differential Pressure | J43: =J42-J40 -> 15.03496516 | K43: bar
C44: Contingency | G44: 0.2 | I44: Differential Head | J44: =J43*10^5/(E15*9.8) -> 334.3897382 | K44: m
C45: Total + Contingency | G45: =(1+G44)*G43 -> 0.0672641411 | I45: Hydraulic Power | J45: =E15*9.8*J44*E14/3600000 -> 0.4498308443 | K45: kW
I46: Pump BHP | J46: =J45/E20 -> 0.9996240984 | K46: kW
C47: DISCHARGE | I47: Rated Power (calculated) | J47: =IF(J46<22,J46*1.25,IF(AND(J46>22,J46<55),J46*1.15,IF(J46>55,J46*1.1,"ERROR"))) -> 1.249530123 | K47: kW
C48: Target Pressure | E48: 15 | F48: barg | I48: Rated Power (selected) | J48: 1.5 | K48: kW
C49: Static head | E49: 2 | F49: m | G49: note 2 | I49: NPSHa | J49: =P41 -> 43.6357165 | K49: m
C50: Length | E50: 70 | F50: m | G50: (plot plan) | I50: NPSHr | J50: =J49-1 -> 42.6357165 | K50: m
C51: Pipe size | E51: 0.75 | F51: in
C52: Schedule | E52: 40 | I52: Shut in Pressure
C53: Fittings | I53: P shut in | J53: =E24+1.3*J43 -> 24.54545471 | K53: barg
E54: Qty | F54: K | G54: DP
C55: Elbow 90 LR | D55: =C55&$E$51 -> Elbow 90 LR0.75 | E55: 5 | F55: =VLOOKUP(D55,'K-value'!$D$4:$E$146,2,FALSE) -> 0.81 | G55: =E55*F55*$J$15^2/(2*9.8)*$E$15*9.8/10^5 -> 0.002664834371
C56: Elbow 45 LR | D56: Elbow 45 LR0.75 | F56: =VLOOKUP(D56,'K-value'!$D$4:$E$146,2,FALSE) -> 0.4 | G56: 0
C57: Tee thru | D57: Tee thru0.75 | F57: =VLOOKUP(D57,'K-value'!$D$4:$E$146,2,FALSE) -> 0.5 | G57: 0
C58: Tee branch | D58: Tee branch0.75 | E58: 2 | F58: =VLOOKUP(D58,'K-value'!$D$4:$E$146,2,FALSE) -> 1.5 | G58: 0.001973951386
C59: Ball valve | D59: Ball valve0.75 | E59: 6 | F59: =VLOOKUP(D59,'K-value'!$D$4:$E$146,2,FALSE) -> 0.08 | G59: 0.0003158322217
C60: Butterfly valve | D60: Butterfly valve0.75 | F60: =VLOOKUP(D60,'K-value'!$D$4:$E$146,2,FALSE) -> 0.86 | G60: 0
C61: Gate valve | D61: Gate valve0.75 | F61: =VLOOKUP(D61,'K-value'!$D$4:$E$146,2,FALSE) -> 0.2 | G61: 0 | I61: Note:
C62: Globe valve | D62: Globe valve0.75 | F62: =VLOOKUP(D62,'K-value'!$D$4:$E$146,2,FALSE) -> 8.5 | G62: 0
C63: Check valve | D63: Check valve0.75 | E63: 3 | F63: =VLOOKUP(D63,'K-value'!$D$4:$E$146,2,FALSE) -> 2.5 | G63: 0.004934878464 | I63: 1. Discharge liquid level is assumed 2 m above grade elevation
C64: Plug valve | D64: Plug valve0.75 | F64: =VLOOKUP(D64,'K-value'!$D$4:$E$146,2,FALSE) -> 2.25 | G64: 0
C65: Pipe entrance | D65: Pipe entrance0.75 | F65: =VLOOKUP(D65,'K-value'!$D$4:$E$146,2,FALSE) -> 0.78 | G65: 0
C66: Flow orifice | D66: Flow orifice0.75 | E66: 1 | G66: 0.25
C67: Total, barg | G67: =SUM(G55:G66) -> 0.2598894964
C68: Contingency | G68: 0.2
C69: Total + contingency, barg | G69: =G67*(1+G68) -> 0.3118673957
C70: Pressure Loss due to Equipment
C71: Truck loading arm | G71: 0.5

Sheet recirculation (hidden)
F1: PUMP SIZING
C5: Project: LNG Receiving and Regasification Facility for PLTG Gorontalo
C7: Equipment Design Group | E7: -
C8: Equipment Design | E8: -
C9: Tag No: | E9: GTO-G-002 A/B
C10: Description: | E10: LNG Recirculation Pump
C11: Location: | E11: Gorontalo | O11: Pipe roughness | P11: 0.05 | Q11: mm
P12: =P11/1000/3.28 -> 1.524390244e-05 | Q12: ft
C14: DATA | I14: RESULTS | O14: Mass flow | P14: =E15*E16/0.45 -> 3057.777778 | Q14: lb/hr
C15: Flow rate | E15: =3 -> 3 | F15: m3/h | I15: Suction Hydraulic | O15: Rho | P15: =E16/16.02 -> 28.63087807 | Q15: lb/ft3
C16: Density | E16: =1376/E15 -> 458.6666667 | F16: kg/m3 | I16: Pipe ID | J16: =VLOOKUP(E28,'Pipe size sch 40'!$A$5:$C$27,3,FALSE)*25.4/1000 -> 0.052578 | K16: m
C17: Flow temperature | E17: -158.4 | F17: deg C | I17: Velocity | J17: =E15/(PI()/4*J16^2)/3600 -> 0.3838139438 | K17: m/s | O17: Side Calculation (Suction)
C18: Viscocity | E18: 0.143 | F18: cP | I18: Velocity acceptance | J18: =IF(E28<=2,0.9,IF(OR(E28>=3,E28<=6),1.2,IF(OR(E28>=8,E28<=18),1.5,1.8))) -> 0.9 | K18: m/s | L18: (max) | O18: f tebakan | P18: 0.02308384552
E19: =E18*10^-3 -> 0.000143 | F19: Nm2/s | I19: Reynold number | J19: =E16*J17*J16/E19 -> 64727.07059 | O19: f left | P19: =1/(P18)^0.5 -> 6.581818777
C20: Vapor pressure | E20: =VLOOKUP(E11,'Data pompa'!$B$5:$R$24,15,FALSE) ->  | F20: bara | I20: Pipe DP | J20: =P24 -> 0.01507960332 | K20: bar/100m | O20: f right | P20: =-2*LOG(P12/(3.7*J16*0.3048)+2.51/(J19*(P18)^0.5)) -> 6.580925225
C21: Pump efficiency | E21: 0.45 | I21: Pipe DP acceptance | J21: =IF(E28<=6,0.137,0.225) -> 0.137 | K21: bar/100m | O21: f left/f right | P21: =P19/P20 -> 1.000135779 | Q21: Goal seek
I22: Static head | J22: =E16*9.8*E26/10^5 ->  | K22: bar | O22: psi/100 ft | P22: =0.000336*P18*P14^2/(J16*1000/25.4)^5/P15 -> 0.06664581485
C23: SUCTION | I23: Pipe friction loss | J23: =J20*E27/100 -> 0.04523880997 | K23: bar | O23: psi/ft | P23: =P22/100 -> 0.0006664581485
C24: Pressure at Vessel (min) | E24: 2 | F24: barg | I24: Fitting friction loss | J24: =G46 -> 0.0632594624 | K24: bar | O24: bar/100 m | P24: =P23*100/14.5/0.3048 -> 0.01507960332
C25: Pressure at Vessel (max) | E25: 5 | F25: barg | I25: Suction Pressure | J25: =E24+J22-SUM(J23:J24) ->  | K25: barg
C26: Static head | E26: =VLOOKUP(E11,'Data pompa'!$B$5:$S$27,18,FALSE)/1000 ->  | F26: m | I26: Result | J26: =IF(AND(J17<J18,J20<J21),"OK","NOT OK") -> OK
C27: Length | E27: 300 | F27: m | G27: assumption | O27: Side Calculation (Discharge) | T27: Suction | V27: Discharge
C28: Pipe size | E28: 2 | F28: in | I28: Discharge Hydraulic | O28: f tebakan | P28: 0.02459137761 | W28: < 49 barg | X28: > 49 barg
C29: Schedule | E29: 40 | I29: Pipe ID | J29: =VLOOKUP(E52,'Pipe size sch 40'!$A$5:$C$27,3,FALSE)*25.4/1000 -> 0.040894 | K29: m | O29: f left | P29: =1/(P28)^0.5 -> 6.376884789 | T29: Velocity | U29: Pressure | V29: Velocity | W29: Pressure | X29: Pressure
C30: Fittings | I30: Velocity | J30: =E15/(PI()/4*J16^2)/3600 -> 0.3838139438 | K30: m/s | O30: f right | P30: =-2*LOG(P12/(3.7*J29*0.3048)+2.51/(J32*(P28)^0.5)) -> 6.376215325 | S30: 0.5 | T30: 0.9 | U30: 0.137 | V30: 4.5 | W30: 0.343 | X30: 0.686
E31: Qty | F31: K | G31: DP | I31: Velocity acceptance | J31: =IF(E50<=18,4.5,6) -> 4.5 | K31: m/s | L31: (max) | O31: f left/f right | P31: =P29/P30 -> 1.000104994 | Q31: Goal seek | S31: 0.75 | T31: 0.9 | U31: 0.137 | V31: 4.5 | W31: 0.343 | X31: 0.686
C32: Elbow 90 LR | D32: =C32&$E$28 -> Elbow 90 LR2 | E32: 20 | F32: =VLOOKUP(D32,'K-value'!$D$48:$E$124,2,FALSE) -> 0.3 | G32: =E32*F32*$J$17^2/(2*9.8)*$E$16*9.8/10^5 -> 0.002027028854 | I32: Reynold number | J32: =E16*J30*J29/E19 -> 50343.27713 | O32: psi/100 ft | P32: =0.000336*P28*P14^2/(J29*1000/25.4)^5/P15 -> 0.2494422003 | S32: 1 | T32: 0.9 | U32: 0.137 | V32: 4.5 | W32: 0.343 | X32: 0.686
C33: Elbow 45 LR | D33: Elbow 45 LR2 | F33: =VLOOKUP(D33,'K-value'!$D$48:$E$124,2,FALSE) -> 0.3 | G33: 0 | I33: Pipe DP | J33: =P34 -> 0.05643999463 | K33: bar/100m | O33: psi/ft | P33: =P32/100 -> 0.002494422003 | S33: 1.5 | T33: 0.9 | U33: 0.137 | V33: 4.5 | W33: 0.343 | X33: 0.686
C34: Tee thru | D34: Tee thru2 | F34: =VLOOKUP(D34,'K-value'!$D$48:$E$124,2,FALSE) -> 0.38 | G34: 0 | I34: Pipe DP acceptance | J34: =IF(E49<=49,0.343,0.686) -> 0.343 | K34: bar/100m | O34: bar/100 m | P34: =P33*100/14.5/0.3048 -> 0.05643999463 | S34: 2 | T34: 0.9 | U34: 0.137 | V34: 4.5 | W34: 0.343 | X34: 0.686
C35: Tee branch | D35: Tee branch2 | E35: 1 | F35: =VLOOKUP(D35,'K-value'!$D$48:$E$124,2,FALSE) -> 1.14 | G35: 0.0003851354823 | I35: Static head | J35: =E16*9.8*E50/10^5 -> 0.134848 | K35: bar | L35: note 1 | S35: 3 | T35: 1.2 | U35: 0.137 | V35: 4.5 | W35: 0.343 | X35: 0.686
C36: Ball valve | D36: Ball valve2 | E36: 2 | F36: =VLOOKUP(D36,'K-value'!$D$48:$E$124,2,FALSE) -> 0.06 | G36: 4.054057708e-05 | I36: Line losses | J36: =J33*E51/100 -> 0.1693199839 | K36: bar | S36: 4 | T36: 1.2 | U36: 0.137 | V36: 4.5 | W36: 0.343 | X36: 0.686
C37: Butterfly valve | D37: Butterfly valve2 | F37: =VLOOKUP(D37,'K-value'!$D$48:$E$124,2,FALSE) -> 0.86 | G37: 0 | I37: Fitting & eqp losses | J37: =G70+G72+G73 -> 0.3041351389 | K37: bar | O37: NPSHA calculation | S37: 6 | T37: 1.2 | U37: 0.137 | V37: 4.5 | W37: 0.343 | X37: 0.686
C38: Gate valve | D38: Gate valve2 | F38: =VLOOKUP(D38,'K-value'!$D$48:$E$124,2,FALSE) -> 0.15 | G38: 0 | I38: Discharge Pressure | J38: =E49+J35+J36+J37 -> 2.908303123 | K38: barg | O38: HA | P38: =(E24+1.01)*100000/(E16*9.81) -> 66.89602446 | Q38: m | S38: 8 | T38: 1.5 | U38: 0.225 | V38: 4.5 | W38: 0.343 | X38: 0.686
C39: Globe valve | D39: Globe valve2 | F39: =VLOOKUP(D39,'K-value'!$D$48:$E$124,2,FALSE) -> 6.5 | G39: 0 | I39: Result | J39: =IF(AND(J30<J31,J33<J34),"OK","NOT OK") -> OK | O39: HZ | P39: =E26 ->  | Q39: m | S39: 10 | T39: 1.5 | U39: 0.225 | V39: 4.5 | W39: 0.343 | X39: 0.686
C40: Check valve | D40: Check valve2 | F40: =VLOOKUP(D40,'K-value'!$D$48:$E$124,2,FALSE) -> 1.9 | G40: 0 | O40: HF | P40: =SUM(J23:J24)*-1*10^5/(E16*9.8) -> -2.413790469 | Q40: m | S40: 12 | T40: 1.5 | U40: 0.225 | V40: 4.5 | W40: 0.343 | X40: 0.686
C41: Plug valve | D41: Plug valve2 | F41: =VLOOKUP(D41,'K-value'!$D$48:$E$124,2,FALSE) -> 1.71 | G41: 0 | I41: Pump Data | O41: HV | P41: 0 | S41: 16 | T41: 1.5 | U41: 0.225 | V41: 4.5 | W41: 0.343 | X41: 0.686
C42: Pipe entrance | D42: Pipe entrance2 | E42: 1 | F42: =VLOOKUP(D42,'K-value'!$D$48:$E$124,2,FALSE) -> 0.78 | G42: 0.000263513751 | I42: Suction Pressure | J42: =J25 ->  | K42: barg | O42: HVP | P42: =E20*10^5/(E16*9.8)*-1 ->  | Q42: m | S42: 18 | T42: 1.5 | U42: 0.225 | V42: 4.5 | W42: 0.343 | X42: 0.686
C43: Suction strainer | D43: Suction strainer2 | E43: 1 | G43: =0.05*E43 -> 0.05 | I43: Discharge Pressure | J43: =J38 -> 2.908303123 | K43: barg | O43: NPSHA | P43: =SUM(P38:P42) ->  | Q43: m | S43: 20 | T43: 1.8 | U43: 0.225 | V43: 6 | W43: 0.343 | X43: 0.686
C44: Total, barg | G44: =SUM(G32:G43) -> 0.05271621866 | I44: Selected disc. Pressure | J44: 3 | K44: barg
C45: Contingency | G45: 0.2 | I45: Differential Pressure | J45: =J44-J42 ->  | K45: bar
C46: Total + Contingency | G46: =(1+G45)*G44 -> 0.0632594624 | I46: Differential Head | J46: =J45*10^5/(E16*9.8) ->  | K46: m
I47: Hydraulic Power | J47: =E16*9.8*J46*E15/3600000 ->  | K47: kW
C48: DISCHARGE | I48: Pump BHP | J48: =J47/E21 ->  | K48: kW
C49: Target Pressure | E49: 2.3 | F49: barg | I49: Rated Power (calculated) | J49: =IF(J48<22,J48*1.25,IF(AND(J48>22,J48<55),J48*1.15,IF(J48>55,J48*1.1,"ERROR"))) ->  | K49: kW
C50: Static head | E50: 3 | F50: m | G50: note 2 | I50: Rated Power (selected) | J50: 0.75 | K50: kW
C51: Length | E51: 300 | F51: m | I51: NPSHa | J51: =P43 ->  | K51: m
C52: Pipe size | E52: 1.5 | F52: in | I52: NPSHr | J52: =J51-1 ->  | K52: m
C53: Schedule | E53: 40
C54: Fittings | I54: Shut in Pressure
E55: Qty | F55: K | G55: DP | I55: P shut in | J55: =E25+1.3*J45 ->  | K55: barg
C56: Elbow 90 LR | D56: =C56&$E$52 -> Elbow 90 LR1.5 | E56: 3 | F56: =VLOOKUP(D56,'K-value'!$D$48:$E$124,2,FALSE) -> 0.34 | G56: =E56*F56*$J$17^2/(2*9.8)*$E$16*9.8/10^5 -> 0.0003445949052
C57: Elbow 45 LR | D57: Elbow 45 LR1.5 | F57: =VLOOKUP(D57,'K-value'!$D$48:$E$124,2,FALSE) -> 0.34 | G57: 0
C58: Tee thru | D58: Tee thru1.5 | F58: =VLOOKUP(D58,'K-value'!$D$48:$E$124,2,FALSE) -> 0.42 | G58: 0
C59: Tee branch | D59: Tee branch1.5 | E59: 2 | F59: =VLOOKUP(D59,'K-value'!$D$48:$E$124,2,FALSE) -> 1.26 | G59: 0.0008513521187
C60: Ball valve | D60: Ball valve1.5 | E60: 6 | F60: =VLOOKUP(D60,'K-value'!$D$48:$E$124,2,FALSE) -> 0.06 | G60: 0.0001216217312
C61: Butterfly valve | D61: Butterfly valve1.5 | F61: =VLOOKUP(D61,'K-value'!$D$48:$E$124,2,FALSE) -> 0.86 | G61: 0
C62: Gate valve | D62: Gate valve1.5 | F62: =VLOOKUP(D62,'K-value'!$D$48:$E$124,2,FALSE) -> 0.15 | G62: 0
C63: Globe valve | D63: Globe valve1.5 | F63: =VLOOKUP(D63,'K-value'!$D$48:$E$124,2,FALSE) -> 7.1 | G63: 0 | I63: Note:
C64: Check valve | D64: Check valve1.5 | E64: 3 | F64: =VLOOKUP(D64,'K-value'!$D$48:$E$124,2,FALSE) -> 2.1 | G64: 0.002128380297
C65: Plug valve | D65: Plug valve1.5 | F65: =VLOOKUP(D65,'K-value'!$D$48:$E$124,2,FALSE) -> 1.89 | G65: 0 | I65: 1. Discharge liquid level is assumed 3 m above grade elevation
C66: Pipe entrance | D66: Pipe entrance1.5 | F66: =VLOOKUP(D66,'K-value'!$D$48:$E$124,2,FALSE) -> 0.78 | G66: 0
C67: Flow orifice | D67: Flow orifice1.5 | E67: 1 | G67: 0.25
C68: Total, barg | G68: =SUM(G56:G67) -> 0.2534459491
C69: Contingency | G69: 0.2
C70: Total + contingency, barg | G70: =G68*(1+G69) -> 0.3041351389
C71: Pressure Loss due to Equipment

Sheet Kalsel (LP) (hidden)
F1: PUMP SIZING
C5: Project: LNG Regasification in Central Region of Indonesia
C7: Equipment Design Group | E7: 33.6 | F7: MMSCFD
C8: Equipment Design | E8: 33.6 | F8: MMSCFD
C9: Tag No: | E9: KPK-G-001A/B
C10: Description: | E10: LNG LP Pump
C11: Location: | E11: Kalsel Peaker-1 (LP) | O11: Pipe roughness | P11: 0.05 | Q11: mm
P12: =P11/1000/3.28 -> 1.524390244e-05 | Q12: ft
C14: DATA | I14: RESULTS | O14: Mass flow | P14: =E15*E16/0.45 -> 62602.08889 | Q14: lb/hr
C15: Flow rate | E15: ='Data pompa'!I22 -> 64.91 | F15: m3/h | I15: Suction Hydraulic | O15: Rho | P15: =E16/16.02 -> 27.09113608 | Q15: lb/ft3
C16: Density | E16: ='Data pompa'!N22 -> 434 | F16: kg/m3 | I16: Pipe ID | J16: =VLOOKUP(E28,'Pipe size sch 40'!$A$5:$C$27,3,FALSE)*25.4/1000 -> 0.202692 | K16: m
C17: Flow temperature | E17: ='Data pompa'!M22 -> -159.53 | F17: deg C | I17: Velocity | J17: =E15/(PI()/4*J16^2)/3600 -> 0.5587866362 | K17: m/s | O17: Side Calculation (Suction)
C18: Viscocity | E18: ='Data pompa'!O22 -> 0.1190810296 | F18: cP | I18: Velocity acceptance | J18: =IF(E28<=2,0.9,IF(OR(E28>=3,E28<=6),1.2,IF(OR(E28>=8,E28<=18),1.5,1.8))) -> 1.2 | K18: m/s | L18: (max) | O18: f tebakan | P18: 0.01525838481
E19: =E18*10^-3 -> 0.0001190810296 | F19: Nm2/s | I19: Reynold number | J19: =E16*J18*J16/E19 -> 886471.9592 | O19: f left | P19: =1/(P18)^0.5 -> 8.095538048
C20: Vapor pressure | E20: ='Data pompa'!P22 -> 1.160034049 | F20: bara | G20: =E20-1 -> 0.1600340495 | I20: Pipe DP | J20: =P24 -> 0.00518562194 | K20: bar/100m | O20: f right | P20: =-2*LOG(P12/(3.7*J16*0.3048)+2.51/(J19*(P18)^0.5)) -> 8.095293243
C21: Pump efficiency | E21: 0.6 | I21: Pipe DP acceptance | J21: =IF(E28<=6,0.137,0.225) -> 0.225 | K21: bar/100m | O21: f left/f right | P21: =P19/P20 -> 1.00003024 | Q21: Goal seek
I22: Static head | J22: =E16*9.8*E26/10^5 -> 0.1148364 | K22: bar | O22: psi/100 ft | P22: =0.000336*P18*P14^2/(J16*1000/25.4)^5/P15 -> 0.02291837473
C23: SUCTION | I23: Pipe friction loss | J23: =J20*E27/100 -> 0.00518562194 | K23: bar | O23: psi/ft | P23: =P22/100 -> 0.0002291837473
C24: Pressure at Vessel (min) | E24: ='Data pompa'!K22 -> 0.15 | F24: barg | I24: Fitting friction loss | J24: =G46 -> 0.05204625003 | K24: bar | O24: bar/100 m | P24: =P23*100/14.5/0.3048 -> 0.00518562194
C25: Pressure at Vessel (max) | E25: 0.2 | F25: barg | I25: Suction Pressure | J25: =E24+J22-SUM(J23:J24) -> 0.207604528 | K25: barg
C26: Static head | E26: =VLOOKUP(E11,'Data pompa'!$B$5:$S$27,18,FALSE)/1000+1.8 -> 2.7 | F26: m | I26: Result | J26: =IF(AND(J17<J18,J20<J21),"OK","NOT OK") -> OK
C27: Length | E27: 100 | F27: m | G27: assumption | O27: Side Calculation (Discharge) | T27: Suction | V27: Discharge
C28: Pipe size | E28: ='Data pompa'!Q22 -> 8 | F28: in | I28: Discharge Hydraulic | O28: f tebakan | P28: 0.01701963943 | W28: < 49 barg | X28: > 49 barg
C29: Schedule | E29: 40 | I29: Pipe ID | J29: =VLOOKUP(E52,'Pipe size sch 40'!$A$5:$C$27,3,FALSE)*25.4/1000 -> 0.102362 | K29: m | O29: f left | P29: =1/(P28)^0.5 -> 7.665223502 | T29: Velocity | U29: Pressure | V29: Velocity | W29: Pressure | X29: Pressure
C30: Fittings | I30: Velocity | J30: =E15/(PI()/4*J16^2)/3600 -> 0.5587866362 | K30: m/s | O30: f right | P30: =-2*LOG(P12/(3.7*J29*0.3048)+2.51/(J32*(P28)^0.5)) -> 7.686228952 | S30: 0.5 | T30: 0.9 | U30: 0.137 | V30: 4.5 | W30: 0.343 | X30: 0.686
E31: Qty | F31: K | G31: DP | I31: Velocity acceptance | J31: =IF(E50<=18,4.5,6) -> 4.5 | K31: m/s | L31: (max) | O31: f left/f right | P31: =P29/P30 -> 0.9972671318 | Q31: Goal seek | S31: 0.75 | T31: 0.9 | U31: 0.137 | V31: 4.5 | W31: 0.343 | X31: 0.686
C32: Elbow 90 LR | D32: =C32&$E$28 -> Elbow 90 LR8 | E32: 10 | F32: =VLOOKUP(D32,'K-value'!$D$48:$E$124,2,FALSE) -> 0.22 | G32: =E32*F32*$J$17^2/(2*9.8)*$E$16*9.8/10^5 -> 0.001490645718 | I32: Reynold number | J32: =E16*J31*J29/E19 -> 1678797.93 | O32: psi/100 ft | P32: =0.000336*P28*P14^2/(J29*1000/25.4)^5/P15 -> 0.7782423023 | S32: 1 | T32: 0.9 | U32: 0.137 | V32: 4.5 | W32: 0.343 | X32: 0.686
C33: Elbow 45 LR | D33: Elbow 45 LR8 | F33: =VLOOKUP(D33,'K-value'!$D$48:$E$124,2,FALSE) -> 0.22 | G33: 0 | I33: Pipe DP | J33: =P34 -> 0.1760888547 | K33: bar/100m | O33: psi/ft | P33: =P32/100 -> 0.007782423023 | S33: 1.5 | T33: 0.9 | U33: 0.137 | V33: 4.5 | W33: 0.343 | X33: 0.686
C34: Tee thru | D34: Tee thru8 | F34: =VLOOKUP(D34,'K-value'!$D$48:$E$124,2,FALSE) -> 0.28 | G34: 0 | I34: Pipe DP acceptance | J34: =IF(E49<=49,0.343,0.686) -> 0.343 | K34: bar/100m | O34: bar/100 m | P34: =P33*100/14.5/0.3048 -> 0.1760888547 | S34: 2 | T34: 0.9 | U34: 0.137 | V34: 4.5 | W34: 0.343 | X34: 0.686
C35: Tee branch | D35: Tee branch8 | F35: =VLOOKUP(D35,'K-value'!$D$48:$E$124,2,FALSE) -> 0.84 | G35: 0 | I35: Static head | J35: =E15*9.8*E50/10^5 -> 0.01908354 | K35: bar | L35: note 1 | S35: 3 | T35: 1.2 | U35: 0.137 | V35: 4.5 | W35: 0.343 | X35: 0.686
C36: Ball valve | D36: Ball valve8 | E36: 1 | F36: =VLOOKUP(D36,'K-value'!$D$48:$E$124,2,FALSE) -> 0.04 | G36: 2.710264941e-05 | I36: Line losses | J36: =J33*E51/100 -> 0.05282665641 | K36: bar | S36: 4 | T36: 1.2 | U36: 0.137 | V36: 4.5 | W36: 0.343 | X36: 0.686
C37: Butterfly valve | D37: Butterfly valve8 | F37: =VLOOKUP(D37,'K-value'!$D$48:$E$124,2,FALSE) -> 0.63 | G37: 0 | I37: Fitting & eqp losses | J37: =G70+G72 -> 0.3036182037 | K37: bar | O37: NPSHA calculation | S37: 6 | T37: 1.2 | U37: 0.137 | V37: 4.5 | W37: 0.343 | X37: 0.686
C38: Gate valve | D38: Gate valve8 | F38: =VLOOKUP(D38,'K-value'!$D$48:$E$124,2,FALSE) -> 0.11 | G38: 0 | I38: Discharge Pressure | J38: =E49+J35+J36+J37 -> 3.8255284 | K38: barg | O38: HA | P38: =(E24+1.01)*100000/(E16*9.81) -> 27.24578043 | Q38: m | S38: 8 | T38: 1.5 | U38: 0.225 | V38: 4.5 | W38: 0.343 | X38: 0.686
C39: Globe valve | D39: Globe valve8 | F39: =VLOOKUP(D39,'K-value'!$D$48:$E$124,2,FALSE) -> 4.8 | G39: 0 | I39: Result | J39: =IF(AND(J30<J31,J33<J34),"OK","NOT OK") -> OK | O39: HZ | P39: =E26 -> 2.7 | Q39: m | S39: 10 | T39: 1.5 | U39: 0.225 | V39: 4.5 | W39: 0.343 | X39: 0.686
C40: Check valve | D40: Check valve8 | F40: =VLOOKUP(D40,'K-value'!$D$48:$E$124,2,FALSE) -> 1.4 | G40: 0 | O40: HF | P40: =SUM(J23:J24)*-1 -> -0.05723187197 | S40: 12 | T40: 1.5 | U40: 0.225 | V40: 4.5 | W40: 0.343 | X40: 0.686
C41: Plug valve | D41: Plug valve8 | F41: =VLOOKUP(D41,'K-value'!$D$48:$E$124,2,FALSE) -> 1.26 | G41: 0 | I41: Pump Data | O41: HV | P41: 0 | S41: 16 | T41: 1.5 | U41: 0.225 | V41: 4.5 | W41: 0.343 | X41: 0.686
C42: Pipe entrance | D42: Pipe entrance8 | E42: 1 | F42: =VLOOKUP(D42,'K-value'!$D$48:$E$124,2,FALSE) -> 0.78 | G42: 0.0005285016635 | I42: Suction Pressure | J42: =J25 -> 0.207604528 | K42: barg | O42: HVP | P42: =E20*10^5/(E16*9.8)*-1 -> -27.27438281 | Q42: m | S42: 18 | T42: 1.5 | U42: 0.225 | V42: 4.5 | W42: 0.343 | X42: 0.686
C43: Suction strainer | D43: Suction strainer8 | E43: 1 | G43: =0.05*E43 -> 0.05 | I43: Discharge Pressure | J43: =J38 -> 3.8255284 | K43: barg | O43: NPSHA | P43: =SUM(P38:P42) -> 2.61416575 | Q43: m | S43: 20 | T43: 1.8 | U43: 0.225 | V43: 6 | W43: 0.343 | X43: 0.686
C44: Total, barg | G44: =SUM(G32:G43) -> 0.05204625003 | I44: Selected disc. Pressure | J44: =J43 -> 3.8255284 | K44: barg
C45: Contingency | G45: 0 | I45: Differential Pressure | J45: =J44-J42 -> 3.617923872 | K45: bar
C46: Total + Contingency | G46: =(1+G45)*G44 -> 0.05204625003 | I46: Differential Head | J46: =J45*10^5/(E16*9.8) -> 85.06357265 | K46: m
I47: Hydraulic Power | J47: =E16*9.8*J46*E15/3600000 -> 6.523317737 | K47: kW
C48: DISCHARGE | I48: Pump BHP | J48: =J47/E21 -> 10.87219623 | K48: kW
C49: Target Pressure | E49: ='Data pompa'!L22 -> 3.45 | F49: barg | I49: NPSHa | J49: =P43 -> 2.61416575 | K49: m
C50: Static head | E50: 3 | F50: m | G50: note 2 | I50: NPSHr | J50: =J49-1 -> 1.61416575 | K50: m
C51: Length | E51: 30 | F51: m
C52: Pipe size | E52: ='Data pompa'!R22 -> 4 | F52: in | I52: Shut in Pressure
C53: Schedule | E53: 40 | I53: P shut in | J53: =E25+1.3*J45 -> 4.903301034 | K53: barg
C54: Fittings
E55: Qty | F55: K | G55: DP
C56: Elbow 90 LR | D56: =C56&$E$52 -> Elbow 90 LR4 | E56: 10 | F56: =VLOOKUP(D56,'K-value'!$D$48:$E$124,2,FALSE) -> 0.27 | G56: =E56*F56*$J$17^2/(2*9.8)*$E$16*9.8/10^5 -> 0.001829428835
C57: Elbow 45 LR | D57: Elbow 45 LR4 | F57: =VLOOKUP(D57,'K-value'!$D$48:$E$124,2,FALSE) -> 0.27 | G57: 0
C58: Tee thru | D58: Tee thru4 | F58: =VLOOKUP(D58,'K-value'!$D$48:$E$124,2,FALSE) -> 0.34 | G58: 0
C59: Tee branch | D59: Tee branch4 | F59: =VLOOKUP(D59,'K-value'!$D$48:$E$124,2,FALSE) -> 1.02 | G59: 0
C60: Ball valve | D60: Ball valve4 | E60: 1 | F60: =VLOOKUP(D60,'K-value'!$D$48:$E$124,2,FALSE) -> 0.05 | G60: 3.387831177e-05
C61: Butterfly valve | D61: Butterfly valve4 | F61: =VLOOKUP(D61,'K-value'!$D$48:$E$124,2,FALSE) -> 0.77 | G61: 0
C62: Gate valve | D62: Gate valve4 | F62: =VLOOKUP(D62,'K-value'!$D$48:$E$124,2,FALSE) -> 0.14 | G62: 0
C63: Globe valve | D63: Globe valve4 | F63: =VLOOKUP(D63,'K-value'!$D$48:$E$124,2,FALSE) -> 5.8 | G63: 0 | I63: Note:
C64: Check valve | D64: Check valve4 | E64: 1 | F64: =VLOOKUP(D64,'K-value'!$D$48:$E$124,2,FALSE) -> 1.7 | G64: 0.0011518626
C65: Plug valve | D65: Plug valve4 | F65: =VLOOKUP(D65,'K-value'!$D$48:$E$124,2,FALSE) -> 1.53 | G65: 0 | I65: 1. Discharge liquid level is assumed 3 m above grade elevation
C66: Pipe entrance | D66: Pipe entrance4 | F66: =VLOOKUP(D66,'K-value'!$D$48:$E$124,2,FALSE) -> 0.78 | G66: 0
C67: Flow orifice | D67: Flow orifice4 | E67: 1 | G67: 0.25
C68: Total, barg | G68: =SUM(G56:G67) -> 0.2530151697
C69: Contingency | G69: 0.2
C70: Total + contingency, barg | G70: =G68*(1+G69) -> 0.3036182037
C71: Pressure Loss due to Equipment
C72: AAV | G72: 0

Sheet Kalsel (HP) (hidden)
F1: PUMP SIZING
C5: Project: LNG Regasification in Central Region of Indonesia
C7: Equipment Design Group | E7: 33.6 | F7: MMSCFD
C8: Equipment Design | E8: 33.6 | F8: MMSCFD
C9: Tag No: | E9: KPK-G-002A/B
C10: Description: | E10: LNG HP Pump
C11: Location: | E11: Kalsel Peaker-1 (HP) | O11: Pipe roughness | P11: 0.05 | Q11: mm
P12: =P11/1000/3.28 -> 1.524390244e-05 | Q12: ft
C14: DATA | I14: RESULTS | O14: Mass flow | P14: =E15*E16/0.45 -> 62606.94889 | Q14: lb/hr
C15: Flow rate | E15: =VLOOKUP(E11,'Data pompa'!$B$5:$R$24,8,FALSE) -> 64.93 | F15: m3/h | H15: =E15*1.1 -> 71.423 | I15: Suction Hydraulic | O15: Rho | P15: =E16/16.02 -> 27.08489388 | Q15: lb/ft3
C16: Density | E16: =VLOOKUP(E11,'Data pompa'!$B$5:$R$24,13,FALSE) -> 433.9 | F16: kg/m3 | I16: Pipe ID | J16: =VLOOKUP(E28,'Pipe size sch 40'!$A$5:$C$27,3,FALSE)*25.4/1000 -> 0.154178 | K16: m
C17: Flow temperature | E17: =VLOOKUP(E11,'Data pompa'!$B$5:$R$24,12,FALSE) -> -158.8 | F17: deg C | I17: Velocity | J17: =E15/(PI()/4*J16^2)/3600 -> 0.9660691313 | K17: m/s | O17: Side Calculation (Suction)
C18: Viscocity | E18: =VLOOKUP(E11,'Data pompa'!$B$5:$R$24,14,FALSE) -> 0.08516 | F18: cP | I18: Velocity acceptance | J18: =IF(E28<=2,0.9,IF(OR(E28>=3,E28<=6),1.2,IF(OR(E28>=8,E28<=18),1.5,1.8))) -> 1.2 | K18: m/s | L18: (max) | O18: f tebakan | P18: 0.01598778268
E19: =E18*10^-3 -> 8.516e-05 | F19: Nm2/s | I19: Reynold number | J19: =E16*J18*J16/E19 -> 942665.5829 | O19: f left | P19: =1/(P18)^0.5 -> 7.908714206
C20: Vapor pressure | E20: ='Data pompa'!P23 -> 3.888 | F20: bara | I20: Pipe DP | J20: =P24 -> 0.02134612427 | K20: bar/100m | O20: f right | P20: =-2*LOG(P12/(3.7*J16*0.3048)+2.51/(J19*(P18)^0.5)) -> 7.927305558
C21: Pump efficiency | E21: 0.6 | I21: Pipe DP acceptance | J21: =IF(E28<=6,0.137,0.225) -> 0.137 | K21: bar/100m | O21: f left/f right | P21: =P19/P20 -> 0.9976547704 | Q21: Goal seek
I22: Static head | J22: =E16*9.8*E26/10^5 -> 0.0425222 | K22: bar | O22: psi/100 ft | P22: =0.000336*P18*P14^2/(J16*1000/25.4)^5/P15 -> 0.09434133082
C23: SUCTION | I23: Pipe friction loss | J23: =J20*E27/100 -> 0.006403837281 | K23: bar | O23: psi/ft | P23: =P22/100 -> 0.0009434133082
C24: Pressure at Vessel (min) | E24: ='Data pompa'!K23 -> 2.9 | F24: barg | I24: Fitting friction loss | J24: =G46 -> 0.05654001264 | K24: bar | O24: bar/100 m | P24: =P23*100/14.5/0.3048 -> 0.02134612427
C25: Pressure at Vessel (max) | E25: =1.5*E24 -> 4.35 | F25: barg | I25: Suction Pressure | J25: =E24+J22-SUM(J23:J24) -> 2.87957835 | K25: barg
C26: Static head | E26: =VLOOKUP(E11,'Data pompa'!$B$5:$S$27,18,FALSE)/1000 -> 1 | F26: m | I26: Result | J26: =IF(AND(J17<J18,J20<J21),"OK","NOT OK") -> OK
C27: Length | E27: 30 | F27: m | G27: assumption | O27: Side Calculation (Discharge) | T27: Suction | V27: Discharge
C28: Pipe size | E28: =VLOOKUP(E11,'Data pompa'!$B$5:$R$24,16,FALSE) -> 6 | F28: in | I28: Discharge Hydraulic | O28: f tebakan | P28: 0.01686428424 | W28: < 49 barg | X28: > 49 barg
C29: Schedule | E29: 40 | I29: Pipe ID | J29: =VLOOKUP(E52,'Pipe size sch 40'!$A$5:$C$27,3,FALSE)*25.4/1000 -> 0.102362 | K29: m | O29: f left | P29: =1/(P28)^0.5 -> 7.700448901 | T29: Velocity | U29: Pressure | V29: Velocity | W29: Pressure | X29: Pressure
C30: Fittings | I30: Velocity | J30: =E15/(PI()/4*J16^2)/3600 -> 0.9660691313 | K30: m/s | O30: f right | P30: =-2*LOG(P12/(3.7*J29*0.3048)+2.51/(J32*(P28)^0.5)) -> 7.705970734 | S30: 0.5 | T30: 0.9 | U30: 0.137 | V30: 4.5 | W30: 0.343 | X30: 0.686
E31: Qty | F31: K | G31: DP | I31: Velocity acceptance | J31: =IF(E50<=18,4.5,6) -> 4.5 | K31: m/s | L31: (max) | O31: f left/f right | P31: =P29/P30 -> 0.9992834344 | Q31: Goal seek | S31: 0.75 | T31: 0.9 | U31: 0.137 | V31: 4.5 | W31: 0.343 | X31: 0.686
C32: Elbow 90 LR | D32: =C32&$E$28 -> Elbow 90 LR6 | E32: 10 | F32: =VLOOKUP(D32,'K-value'!$D$48:$E$124,2,FALSE) -> 0.24 | G32: =E32*F32*$J$17^2/(2*9.8)*$E$16*9.8/10^5 -> 0.004859452114 | I32: Reynold number | J32: =E16*J31*J29/E19 -> 2346957.763 | O32: psi/100 ft | P32: =0.000336*P28*P14^2/(J29*1000/25.4)^5/P15 -> 0.771435997 | S32: 1 | T32: 0.9 | U32: 0.137 | V32: 4.5 | W32: 0.343 | X32: 0.686
C33: Elbow 45 LR | D33: Elbow 45 LR6 | F33: =VLOOKUP(D33,'K-value'!$D$48:$E$124,2,FALSE) -> 0.24 | G33: 0 | I33: Pipe DP | J33: =P34 -> 0.1745488273 | K33: bar/100m | O33: psi/ft | P33: =P32/100 -> 0.00771435997 | S33: 1.5 | T33: 0.9 | U33: 0.137 | V33: 4.5 | W33: 0.343 | X33: 0.686
C34: Tee thru | D34: Tee thru6 | F34: =VLOOKUP(D34,'K-value'!$D$48:$E$124,2,FALSE) -> 0.3 | G34: 0 | I34: Pipe DP acceptance | J34: =IF(E49<=49,0.343,0.686) -> 0.686 | K34: bar/100m | O34: bar/100 m | P34: =P33*100/14.5/0.3048 -> 0.1745488273 | S34: 2 | T34: 0.9 | U34: 0.137 | V34: 4.5 | W34: 0.343 | X34: 0.686
C35: Tee branch | D35: Tee branch6 | F35: =VLOOKUP(D35,'K-value'!$D$48:$E$124,2,FALSE) -> 0.9 | G35: 0 | I35: Static head | J35: =E15*9.8*E50/10^5 -> 0.01908942 | K35: bar | L35: note 1 | S35: 3 | T35: 1.2 | U35: 0.137 | V35: 4.5 | W35: 0.343 | X35: 0.686
C36: Ball valve | D36: Ball valve6 | E36: 1 | F36: =VLOOKUP(D36,'K-value'!$D$48:$E$124,2,FALSE) -> 0.05 | G36: 0.0001012385857 | I36: Line losses | J36: =J33*E51/100 -> 0.05236464818 | K36: bar | S36: 4 | T36: 1.2 | U36: 0.137 | V36: 4.5 | W36: 0.343 | X36: 0.686
C37: Butterfly valve | D37: Butterfly valve6 | F37: =VLOOKUP(D37,'K-value'!$D$48:$E$124,2,FALSE) -> 0.68 | G37: 0 | I37: Fitting & eqp losses | J37: =G70+G72 -> 1.019559295 | K37: bar | O37: NPSHA calculation | S37: 6 | T37: 1.2 | U37: 0.137 | V37: 4.5 | W37: 0.343 | X37: 0.686
